Workbook

Sheet Introduction
C4: Joint Monitoring Programme for Water Supply, Sanitation and Hygiene
C6: Estimates on household water, sanitation and hygiene by wealth quintile and sub-national region in
C7: =+Water!B5 -> Afghanistan
C9: Updated May 2021
C11: Follow the links below to find the following information:
C13: JMP Estimates
C14: WASH status and trends by wealth quintile (customized quintiles made without water and sanitation assets)
C15: Water
C16: Sanitation
C17: Hygiene
C19: Data inputs
C20: customized wealth quintiles and subnational data:
C21: =IF(INDIRECT(CONCATENATE("Water","!B105"))=0,"",INDIRECT(CONCATENATE("Water","!B105"))) -> DHS10
C22: =IF(INDIRECT(CONCATENATE("Water","!B106"))=0,"",INDIRECT(CONCATENATE("Water","!B106"))) -> MICS11
C23: =IF(INDIRECT(CONCATENATE("Water","!B107"))=0,"",INDIRECT(CONCATENATE("Water","!B107"))) -> DHS15
C24: =IF(INDIRECT(CONCATENATE("Water","!B108"))=0,"",INDIRECT(CONCATENATE("Water","!B108"))) -> ALCS17
C25: =IF(INDIRECT(CONCATENATE("Water","!B109"))=0,"",INDIRECT(CONCATENATE("Water","!B109"))) -> 
C26: =IF(INDIRECT(CONCATENATE("Water","!B110"))=0,"",INDIRECT(CONCATENATE("Water","!B110"))) -> 
C27: =IF(INDIRECT(CONCATENATE("Water","!B111"))=0,"",INDIRECT(CONCATENATE("Water","!B111"))) -> 
C28: =IF(INDIRECT(CONCATENATE("Water","!B112"))=0,"",INDIRECT(CONCATENATE("Water","!B112"))) -> 
C29: =IF(INDIRECT(CONCATENATE("Water","!B113"))=0,"",INDIRECT(CONCATENATE("Water","!B113"))) -> 
C30: =IF(INDIRECT(CONCATENATE("Water","!B114"))=0,"",INDIRECT(CONCATENATE("Water","!B114"))) -> 
C31: =IF(INDIRECT(CONCATENATE("Water","!B115"))=0,"",INDIRECT(CONCATENATE("Water","!B115"))) -> 
C32: =IF(INDIRECT(CONCATENATE("Water","!B116"))=0,"",INDIRECT(CONCATENATE("Water","!B116"))) -> 
L55: =+IF(ISNUMBER(M48), "", "Insufficient data to estimate safely managed sanitation services at national level") -> Insufficient data to estimate safely managed sanitation services at national level

Sheet Water
A1: BGD
B4: Summary of trends in use of drinking water by wealth quintile (%)
B5: =IF(ISERROR(INDIRECT(CONCATENATE($B105,"!A2"))),"",INDIRECT(CONCATENATE($B105,"!A2"))) -> Afghanistan
B7: =B118 -> National use of drinking water sources, 2004–2020 | J7: =B218 -> Urban use of drinking water sources, 2004–2020 | R7: =B318 -> Rural use of drinking water sources, 2004–2020
B31: =IF(ISERROR(INDIRECT(CONCATENATE($B105,"!A2"))),"",INDIRECT(CONCATENATE($B105,"!A2"))) -> Afghanistan | F31: Poorest | J31: Poor | N31: Middle | R31: Rich | V31: Richest
F32: Basic | G32: Limited | H32: Unimproved | I32: Surface water | J32: Basic | K32: Limited | L32: Unimproved | M32: Surface water | N32: Basic | O32: Limited | P32: Unimproved | Q32: Surface water | R32: Basic | S32: Limited | T32: Unimproved | U32: Surface water | V32: Basic | W32: Limited | X32: Unimproved | Y32: Surface water
B33: NATIONAL | D33: Estimate | E33: =C99 -> 2004 | F33: =E99 -> 39.17969945 | G33: =F99 -> 3.894772817 | H33: 31.05056544 | I33: 25.8749623 | J33: =J99 -> 40.12089183 | K33: =K99 -> 2.722684433 | L33: 33.69250923 | M33: 23.46391451 | N33: =O99 -> 48.18267985 | O33: =P99 -> 2.649874955 | P33: 35.2275092 | Q33: 13.93993599 | R33: =T99 -> 56.08508122 | S33: =U99 -> 3.146326115 | T33: 29.22949836 | U33: 11.53909431 | V33: =Y99 -> 80.5846591 | W33: =Z99 -> 1.624925249 | X33: 13.56485848 | Y33: 4.225557168
E34: =C100 -> 2020 | F34: =E100 -> 46.29771833 | G34: 4.60236034 | H34: 34.77191816 | I34: 14.32800316 | J34: =J100 -> 59.41174131 | K34: 4.031800287 | L34: 27.50979438 | M34: 9.046664028 | N34: =O100 -> 67.28404808 | O34: 3.700381847 | P34: 18.25833509 | Q34: 10.75723498 | R34: =T100 -> 68.8736519 | S34: 3.863754227 | T34: 19.88354354 | U34: 7.379050328 | V34: =Y100 -> 94.29725901 | W34: 1.901428867 | X34: 3.423572959 | Y34: 0.3777391676
B36: URBAN | D36: Estimate | E36: =C199 -> 2004 | F36: =E199 -> 57.24366669 | G36: =F199 -> 2.587984594 | H36: 26.02245399 | I36: 14.14589472 | J36: =J199 -> 69.83945156 | K36: =K199 -> 2.706480064 | L36: 20.38469823 | M36: 7.069370142 | N36: =O199 -> 80.20611162 | O36: =P199 -> 2.184225985 | P36: 15.01596393 | Q36: 2.593698471 | R36: =T199 -> 87.5571808 | S36: =U199 -> 1.602719218 | T36: 9.701241237 | U36: 1.138858743 | V36: =Y199 -> 96.93661626 | W36: =Z199 -> 0.7097971738 | X36: 2.102491824 | Y36: 0.2510947456
E37: =C200 -> 2020 | F37: =E200 -> 82.75326639 | G37: 3.741272894 | H37: 12.93952885 | I37: 0.5659318605 | J37: =J200 -> 94.09636897 | K37: 3.646505535 | L37: 2.257125492 | M37: 0 | N37: =O200 -> 95.70796062 | O37: 2.60638261 | P37: 1.685656768 | Q37: 0 | R37: =T200 -> 96.33288103 | S37: 1.76335691 | T37: 1.862147254 | U37: 0.0416148102 | V37: =Y200 -> 95.99109451 | W37: 0.7028737976 | X37: 2.795383031 | Y37: 0.5106486646
B39: RURAL | D39: Estimate | E39: =C299 -> 2004 | F39: =E299 -> 38.68257281 | G39: =F299 -> 4.281949678 | H39: 31.68446424 | I39: 25.35101328 | J39: =J299 -> 40.18671537 | K39: =K299 -> 2.562892157 | L39: 31.70906011 | M39: 25.54133236 | N39: =O299 -> 44.81778557 | O39: =P299 -> 3.221019627 | P39: 34.47293212 | Q39: 17.48826268 | R39: =T299 -> 49.95155179 | S39: =U299 -> 3.026424389 | T39: 36.10329316 | U39: 10.91873066 | V39: =Y299 -> 62.17210984 | W39: =Z299 -> 2.204622321 | X39: 24.13306525 | Y39: 11.49020259
E40: =C300 -> 2020 | F40: =E300 -> 44.86083771 | G40: 4.965849881 | H40: 34.01861429 | I40: 16.15469812 | J40: =J300 -> 54.65341279 | K40: 3.485500164 | L40: 31.35859 | M40: 10.50249704 | N40: =O300 -> 61.01933584 | O40: 4.385412529 | P40: 25.39706071 | Q40: 9.198190915 | R40: =T300 -> 63.77354126 | S40: 3.863859956 | T40: 19.02485055 | U40: 13.33774823 | V40: =Y300 -> 73.25615108 | W40: 2.597662299 | X40: 18.16740032 | Y40: 5.978786297
A97: NATIONAL | D97: Poorest | I97: Poor | N97: Middle | S97: Rich | X97: Richest
D98: Improved | E98: Basic | F98: Limited | G98: Unimproved | H98: Surface water | I98: Improved | J98: Basic | K98: Limited | L98: Unimproved | M98: Surface water | N98: Improved | O98: Basic | P98: Limited | Q98: Unimproved | R98: Surface water | S98: Improved | T98: Basic | U98: Limited | V98: Unimproved | W98: Surface water | X98: Improved | Y98: Basic | Z98: Limited | AA98: Unimproved | AB98: Surface water
A99: Forecast period: | C99: 2004 | D99: =IF((D101+H101)>100,D101*100/(D101+H101),D101) -> 43.07447226 | E99: =D99*AVERAGEIF(E105:E116,">0")/100 -> 39.17969945 | F99: =D99*(100-AVERAGEIF(E105:E116,">0"))/100 -> 3.894772817 | G99: =100-(E99+F99+H99) -> 31.05056544 | H99: =IF((D101+H101)>100,H101*100/(D101+H101),H101) -> 25.8749623 | I99: =IF((I101+M101)>100,I101*100/(I101+M101),I101) -> 42.84357626 | J99: =I99*AVERAGEIF(J105:J116,">0")/100 -> 40.12089183 | K99: =I99*(100-AVERAGEIF(J105:J116,">0"))/100 -> 2.722684433 | L99: =100-(J99+K99+M99) -> 33.69250923 | M99: =IF((I101+M101)>100,M101*100/(I101+M101),M101) -> 23.46391451 | N99: =IF((N101+R101)>100,N101*100/(N101+R101),N101) -> 50.83255481 | O99: =N99*AVERAGEIF(O105:O116,">0")/100 -> 48.18267985 | P99: =N99*(100-AVERAGEIF(O105:O116,">0"))/100 -> 2.649874955 | Q99: =100-(O99+P99+R99) -> 35.2275092 | R99: =IF((N101+R101)>100,R101*100/(N101+R101),R101) -> 13.93993599 | S99: =IF((S101+W101)>100,S101*100/(S101+W101),S101) -> 59.23140734 | T99: =S99*AVERAGEIF(T105:T116,">0")/100 -> 56.08508122 | U99: =S99*(100-AVERAGEIF(T105:T116,">0"))/100 -> 3.146326115 | V99: =100-(T99+U99+W99) -> 29.22949836 | W99: =IF((S101+W101)>100,W101*100/(S101+W101),W101) -> 11.53909431 | X99: =IF((X101+AB101)>100,X101*100/(X101+AB101),X101) -> 82.20958435 | Y99: =X99*AVERAGEIF(Y105:Y116,">0")/100 -> 80.5846591 | Z99: =X99*(100-AVERAGEIF(Y105:Y116,">0"))/100 -> 1.624925249 | AA99: =100-(Y99+Z99+AB99) -> 13.56485848 | AB99: =IF((X101+AB101)>100,AB101*100/(X101+AB101),AB101) -> 4.225557168
C100: 2020 | D100: =IF((D102+H102)>100,D102*100/(D102+H102),D102) -> 50.90007868 | E100: =D100*AVERAGEIF(E105:E116,">0")/100 -> 46.29771833 | F100: =D100*(100-AVERAGEIF(E105:E116,">0"))/100 -> 4.60236034 | G100: =100-(E100+F100+H100) -> 34.77191816 | H100: =IF((D102+H102)>100,H102*100/(D102+H102),H102) -> 14.32800316 | I100: =IF((I102+M102)>100,I102*100/(I102+M102),I102) -> 63.44354159 | J100: =I100*AVERAGEIF(J105:J116,">0")/100 -> 59.41174131 | K100: =I100*(100-AVERAGEIF(J105:J116,">0"))/100 -> 4.031800287 | L100: =100-(J100+K100+M100) -> 27.50979438 | M100: =IF((I102+M102)>100,M102*100/(I102+M102),M102) -> 9.046664028 | N100: =IF((N102+R102)>100,N102*100/(N102+R102),N102) -> 70.98442992 | O100: =N100*AVERAGEIF(O105:O116,">0")/100 -> 67.28404808 | P100: =N100*(100-AVERAGEIF(O105:O116,">0"))/100 -> 3.700381847 | Q100: =100-(O100+P100+R100) -> 18.25833509 | R100: =IF((N102+R102)>100,R102*100/(N102+R102),R102) -> 10.75723498 | S100: =IF((S102+W102)>100,S102*100/(S102+W102),S102) -> 72.73740613 | T100: =S100*AVERAGEIF(T105:T116,">0")/100 -> 68.8736519 | U100: =S100*(100-AVERAGEIF(T105:T116,">0"))/100 -> 3.863754227 | V100: =100-(T100+U100+W100) -> 19.88354354 | W100: =IF((S102+W102)>100,W102*100/(S102+W102),W102) -> 7.379050328 | X100: =IF((X102+AB102)>100,X102*100/(X102+AB102),X102) -> 96.19868787 | Y100: =X100*AVERAGEIF(Y105:Y116,">0")/100 -> 94.29725901 | Z100: =X100*(100-AVERAGEIF(Y105:Y116,">0"))/100 -> 1.901428867 | AA100: =100-(Y100+Z100+AB100) -> 3.423572959 | AB100: =IF((X102+AB102)>100,AB102*100/(X102+AB102),AB102) -> 0.3777391676
A101: Regression period: | C101: =MinRegYear(C99,C105:C116) -> 2008 | D101: =IF(MAX(C105:C116)-MIN(C105:C116)<5,AVERAGEIF(C105:C116,">0",D105:D116), IF(FORECAST($C101,D$105:D$116,$C$105:$C$116)<0,0, IF(FORECAST($C101,D$105:D$116,$C$105:$C$116)>100,100, FORECAST($C101,D$105:D$116,$C$105:$C$116)))) -> 43.07447226 | H101: =IF(MAX(C105:C116)-MIN(C105:C116)<5,AVERAGEIF(C105:C116,">0",H105:H116), IF(FORECAST($C101,H$105:H$116,$C$105:$C$116)<0,0, IF(FORECAST($C101,H$105:H$116,$C$105:$C$116)>100,100, FORECAST($C101,H$105:H$116,$C$105:$C$116)))) -> 25.8749623 | I101: =IF(MAX(C105:C116)-MIN(C105:C116)<5,AVERAGEIF(C105:C116,">0",I105:I116), IF(FORECAST($C101,I$105:I$116,$C$105:$C$116)<0,0, IF(FORECAST($C101,I$105:I$116,$C$105:$C$116)>100,100, FORECAST($C101,I$105:I$116,$C$105:$C$116)))) -> 42.84357626 | M101: =IF(MAX(C105:C116)-MIN(C105:C116)<5,AVERAGEIF(C105:C116,">0",M105:M116), IF(FORECAST($C101,M$105:M$116,$C$105:$C$116)<0,0, IF(FORECAST($C101,M$105:M$116,$C$105:$C$116)>100,100, FORECAST($C101,M$105:M$116,$C$105:$C$116)))) -> 23.46391451 | N101: =IF(MAX(C105:C116)-MIN(C105:C116)<5,AVERAGEIF(C105:C116,">0",N105:N116), IF(FORECAST($C101,N$105:N$116,$C$105:$C$116)<0,0, IF(FORECAST($C101,N$105:N$116,$C$105:$C$116)>100,100, FORECAST($C101,N$105:N$116,$C$105:$C$116)))) -> 50.83255481 | R101: =IF(MAX(C105:C116)-MIN(C105:C116)<5,AVERAGEIF(C105:C116,">0",R105:R116), IF(FORECAST($C101,R$105:R$116,$C$105:$C$116)<0,0, IF(FORECAST($C101,R$105:R$116,$C$105:$C$116)>100,100, FORECAST($C101,R$105:R$116,$C$105:$C$116)))) -> 13.93993599 | S101: =IF(MAX(C105:C116)-MIN(C105:C116)<5,AVERAGEIF(C105:C116,">0",S105:S116), IF(FORECAST($C101,S$105:S$116,$C$105:$C$116)<0,0, IF(FORECAST($C101,S$105:S$116,$C$105:$C$116)>100,100, FORECAST($C101,S$105:S$116,$C$105:$C$116)))) -> 59.23140734 | W101: =IF(MAX(C105:C116)-MIN(C105:C116)<5,AVERAGEIF(C105:C116,">0",W105:W116), IF(FORECAST($C101,W$105:W$116,$C$105:$C$116)<0,0, IF(FORECAST($C101,W$105:W$116,$C$105:$C$116)>100,100, FORECAST($C101,W$105:W$116,$C$105:$C$116)))) -> 11.53909431 | X101: =IF(MAX(C105:C116)-MIN(C105:C116)<5,AVERAGEIF(C105:C116,">0",X105:X116), IF(FORECAST($C101,X$105:X$116,$C$105:$C$116)<0,0, IF(FORECAST($C101,X$105:X$116,$C$105:$C$116)>100,100, FORECAST($C101,X$105:X$116,$C$105:$C$116)))) -> 82.20958435 | AB101: =IF(MAX(C105:C116)-MIN(C105:C116)<5,AVERAGEIF(C105:C116,">0",AB105:AB116), IF(FORECAST($C101,AB$105:AB$116,$C$105:$C$116)<0,0, IF(FORECAST($C101,AB$105:AB$116,$C$105:$C$116)>100,100, FORECAST($C101,AB$105:AB$116,$C$105:$C$116)))) -> 4.225557168
C102: =MaxRegYear(C100,C105:C116) -> 2019 | D102: =IF(MAX(C105:C116)-MIN(C105:C116)<5,AVERAGEIF(C105:C116,">0",D105:D116), IF(FORECAST($C102,D$105:D$116,$C$105:$C$116)<0,0, IF(FORECAST($C102,D$105:D$116,$C$105:$C$116)>100,100, FORECAST($C102,D$105:D$116,$C$105:$C$116)))) -> 50.90007868 | H102: =IF(MAX(C105:C116)-MIN(C105:C116)<5,AVERAGEIF(C105:C116,">0",H105:H116), IF(FORECAST($C102,H$105:H$116,$C$105:$C$116)<0,0, IF(FORECAST($C102,H$105:H$116,$C$105:$C$116)>100,100, FORECAST($C102,H$105:H$116,$C$105:$C$116)))) -> 14.32800316 | I102: =IF(MAX(C105:C116)-MIN(C105:C116)<5,AVERAGEIF(C105:C116,">0",I105:I116), IF(FORECAST($C102,I$105:I$116,$C$105:$C$116)<0,0, IF(FORECAST($C102,I$105:I$116,$C$105:$C$116)>100,100, FORECAST($C102,I$105:I$116,$C$105:$C$116)))) -> 63.44354159 | M102: =IF(MAX(C105:C116)-MIN(C105:C116)<5,AVERAGEIF(C105:C116,">0",M105:M116), IF(FORECAST($C102,M$105:M$116,$C$105:$C$116)<0,0, IF(FORECAST($C102,M$105:M$116,$C$105:$C$116)>100,100, FORECAST($C102,M$105:M$116,$C$105:$C$116)))) -> 9.046664028 | N102: =IF(MAX(C105:C116)-MIN(C105:C116)<5,AVERAGEIF(C105:C116,">0",N105:N116), IF(FORECAST($C102,N$105:N$116,$C$105:$C$116)<0,0, IF(FORECAST($C102,N$105:N$116,$C$105:$C$116)>100,100, FORECAST($C102,N$105:N$116,$C$105:$C$116)))) -> 70.98442992 | R102: =IF(MAX(C105:C116)-MIN(C105:C116)<5,AVERAGEIF(C105:C116,">0",R105:R116), IF(FORECAST($C102,R$105:R$116,$C$105:$C$116)<0,0, IF(FORECAST($C102,R$105:R$116,$C$105:$C$116)>100,100, FORECAST($C102,R$105:R$116,$C$105:$C$116)))) -> 10.75723498 | S102: =IF(MAX(C105:C116)-MIN(C105:C116)<5,AVERAGEIF(C105:C116,">0",S105:S116), IF(FORECAST($C102,S$105:S$116,$C$105:$C$116)<0,0, IF(FORECAST($C102,S$105:S$116,$C$105:$C$116)>100,100, FORECAST($C102,S$105:S$116,$C$105:$C$116)))) -> 72.73740613 | W102: =IF(MAX(C105:C116)-MIN(C105:C116)<5,AVERAGEIF(C105:C116,">0",W105:W116), IF(FORECAST($C102,W$105:W$116,$C$105:$C$116)<0,0, IF(FORECAST($C102,W$105:W$116,$C$105:$C$116)>100,100, FORECAST($C102,W$105:W$116,$C$105:$C$116)))) -> 7.379050328 | X102: =IF(MAX(C105:C116)-MIN(C105:C116)<5,AVERAGEIF(C105:C116,">0",X105:X116), IF(FORECAST($C102,X$105:X$116,$C$105:$C$116)<0,0, IF(FORECAST($C102,X$105:X$116,$C$105:$C$116)>100,100, FORECAST($C102,X$105:X$116,$C$105:$C$116)))) -> 96.19868787 | AB102: =IF(MAX(C105:C116)-MIN(C105:C116)<5,AVERAGEIF(C105:C116,">0",AB105:AB116), IF(FORECAST($C102,AB$105:AB$116,$C$105:$C$116)<0,0, IF(FORECAST($C102,AB$105:AB$116,$C$105:$C$116)>100,100, FORECAST($C102,AB$105:AB$116,$C$105:$C$116)))) -> 0.3777391676
B104: Survey | C104: Year | D104: Improved | E104: % Improved < = 30min | H104: Surface water | I104: Improved | J104: % Improved < = 30min | M104: Surface water | N104: Improved | O104: % Improved < = 30min | R104: Surface water | S104: Improved | T104: % Improved < = 30min | W104: Surface water | X104: Improved | Y104: % Improved < = 30min | AB104: Surface water
B105: DHS10 | C105: 2010 | D105: =IF(ISERROR(INDIRECT(CONCATENATE($B105,"!C16"))),"",INDIRECT(CONCATENATE($B105,"!C16"))) -> 42.79717425 | E105: =IF(ISERROR(INDIRECT(CONCATENATE($B105,"!C23"))),"",INDIRECT(CONCATENATE($B105,"!C23"))) -> N/A | H105: =IF(ISERROR(INDIRECT(CONCATENATE($B105,"!C21"))),"",INDIRECT(CONCATENATE($B105,"!C21"))) -> 28.48453395 | I105: =IF(ISERROR(INDIRECT(CONCATENATE($B105,"!D16"))),"",INDIRECT(CONCATENATE($B105,"!D16"))) -> 45.37373657 | J105: =IF(ISERROR(INDIRECT(CONCATENATE($B105,"!D23"))),"",INDIRECT(CONCATENATE($B105,"!D23"))) -> N/A | M105: =IF(ISERROR(INDIRECT(CONCATENATE($B105,"!D21"))),"",INDIRECT(CONCATENATE($B105,"!D21"))) -> 20.814746 | N105: =IF(ISERROR(INDIRECT(CONCATENATE($B105,"!E16"))),"",INDIRECT(CONCATENATE($B105,"!E16"))) -> 50.71435181 | O105: =IF(ISERROR(INDIRECT(CONCATENATE($B105,"!E23"))),"",INDIRECT(CONCATENATE($B105,"!E23"))) -> N/A | R105: =IF(ISERROR(INDIRECT(CONCATENATE($B105,"!E21"))),"",INDIRECT(CONCATENATE($B105,"!E21"))) -> 10.61108076 | S105: =IF(ISERROR(INDIRECT(CONCATENATE($B105,"!F16"))),"",INDIRECT(CONCATENATE($B105,"!F16"))) -> 63.38061492 | T105: =IF(ISERROR(INDIRECT(CONCATENATE($B105,"!F23"))),"",INDIRECT(CONCATENATE($B105,"!F23"))) -> N/A | W105: =IF(ISERROR(INDIRECT(CONCATENATE($B105,"!F21"))),"",INDIRECT(CONCATENATE($B105,"!F21"))) -> 4.86711057 | X105: =IF(ISERROR(INDIRECT(CONCATENATE($B105,"!G16"))),"",INDIRECT(CONCATENATE($B105,"!G16"))) -> 85.46040519 | Y105: =IF(ISERROR(INDIRECT(CONCATENATE($B105,"!G23"))),"",INDIRECT(CONCATENATE($B105,"!G23"))) -> N/A | AB105: =IF(ISERROR(INDIRECT(CONCATENATE($B105,"!G221"))),"",INDIRECT(CONCATENATE($B105,"!G21"))) -> 1.665438859
B106: MICS11 | C106: 2011 | D106: 45.92988628 | E106: 90.05262738 | H106: 18.51750379 | I106: 48.24703069 | J106: 92.78746313 | M106: 20.68953776 | N106: 57.43457721 | O106: 94.00211917 | R106: 18.46851122 | S106: 56.70477259 | T106: 93.41540512 | W106: 19.25462804 | X106: 84.30498555 | Y106: 96.50179369 | AB106: 5.493726709
B107: DHS15 | C107: 2015 | D107: 51.84140486 | E107: 86.62211232 | H107: 14.67019518 | I107: 60.85030669 | J107: 90.84743666 | M107: 10.91397445 | N107: 73.57593696 | O107: 92.07841739 | R107: 5.350465118 | S107: 80.5289007 | T107: 93.27555215 | W107: 3.046162422 | X107: 93.79545153 | Y107: 97.86500356 | AB107: 1.336024991
B108: ALCS17 | C108: 2017 | D108: 46.66921773 | E108: 96.19940631 | H108: 19.78342155 | I108: 56.23043764 | J108: 97.30027413 | M108: 13.913558 | N108: 60.07711483 | O108: 98.28061764 | R108: 15.2536213 | S108: 62.09552066 | T108: 97.37327694 | W108: 11.04657406 | X108: 91.98396549 | Y108: 99.70351002 | AB108: 1.061203749
D111: =IF(ISERROR(INDIRECT(CONCATENATE($B111,"!C16"))),"",INDIRECT(CONCATENATE($B111,"!C16"))) ->  | E111: =IF(ISERROR(INDIRECT(CONCATENATE($B111,"!C23"))),"",INDIRECT(CONCATENATE($B111,"!C23"))) ->  | H111: =IF(ISERROR(INDIRECT(CONCATENATE($B111,"!C21"))),"",INDIRECT(CONCATENATE($B111,"!C21"))) ->  | I111: =IF(ISERROR(INDIRECT(CONCATENATE($B111,"!D16"))),"",INDIRECT(CONCATENATE($B111,"!D16"))) ->  | J111: =IF(ISERROR(INDIRECT(CONCATENATE($B111,"!D23"))),"",INDIRECT(CONCATENATE($B111,"!D23"))) ->  | M111: =IF(ISERROR(INDIRECT(CONCATENATE($B111,"!D21"))),"",INDIRECT(CONCATENATE($B111,"!D21"))) ->  | N111: =IF(ISERROR(INDIRECT(CONCATENATE($B111,"!E16"))),"",INDIRECT(CONCATENATE($B111,"!E16"))) ->  | O111: =IF(ISERROR(INDIRECT(CONCATENATE($B111,"!E23"))),"",INDIRECT(CONCATENATE($B111,"!E23"))) ->  | R111: =IF(ISERROR(INDIRECT(CONCATENATE($B111,"!E21"))),"",INDIRECT(CONCATENATE($B111,"!E21"))) ->  | S111: =IF(ISERROR(INDIRECT(CONCATENATE($B111,"!F16"))),"",INDIRECT(CONCATENATE($B111,"!F16"))) ->  | T111: =IF(ISERROR(INDIRECT(CONCATENATE($B111,"!F23"))),"",INDIRECT(CONCATENATE($B111,"!F23"))) ->  | W111: =IF(ISERROR(INDIRECT(CONCATENATE($B111,"!F21"))),"",INDIRECT(CONCATENATE($B111,"!F21"))) ->  | X111: =IF(ISERROR(INDIRECT(CONCATENATE($B111,"!G16"))),"",INDIRECT(CONCATENATE($B111,"!G16"))) ->  | Y111: =IF(ISERROR(INDIRECT(CONCATENATE($B111,"!G23"))),"",INDIRECT(CONCATENATE($B111,"!G23"))) ->  | AB111: =IF(ISERROR(INDIRECT(CONCATENATE($B111,"!G221"))),"",INDIRECT(CONCATENATE($B111,"!G21"))) -> 
D112: =IF(ISERROR(INDIRECT(CONCATENATE($B112,"!C16"))),"",INDIRECT(CONCATENATE($B112,"!C16"))) ->  | E112: =IF(ISERROR(INDIRECT(CONCATENATE($B112,"!C23"))),"",INDIRECT(CONCATENATE($B112,"!C23"))) ->  | H112: =IF(ISERROR(INDIRECT(CONCATENATE($B112,"!C21"))),"",INDIRECT(CONCATENATE($B112,"!C21"))) ->  | I112: =IF(ISERROR(INDIRECT(CONCATENATE($B112,"!D16"))),"",INDIRECT(CONCATENATE($B112,"!D16"))) ->  | J112: =IF(ISERROR(INDIRECT(CONCATENATE($B112,"!D23"))),"",INDIRECT(CONCATENATE($B112,"!D23"))) ->  | M112: =IF(ISERROR(INDIRECT(CONCATENATE($B112,"!D21"))),"",INDIRECT(CONCATENATE($B112,"!D21"))) ->  | N112: =IF(ISERROR(INDIRECT(CONCATENATE($B112,"!E16"))),"",INDIRECT(CONCATENATE($B112,"!E16"))) ->  | O112: =IF(ISERROR(INDIRECT(CONCATENATE($B112,"!E23"))),"",INDIRECT(CONCATENATE($B112,"!E23"))) ->  | R112: =IF(ISERROR(INDIRECT(CONCATENATE($B112,"!E21"))),"",INDIRECT(CONCATENATE($B112,"!E21"))) ->  | S112: =IF(ISERROR(INDIRECT(CONCATENATE($B112,"!F16"))),"",INDIRECT(CONCATENATE($B112,"!F16"))) ->  | T112: =IF(ISERROR(INDIRECT(CONCATENATE($B112,"!F23"))),"",INDIRECT(CONCATENATE($B112,"!F23"))) ->  | W112: =IF(ISERROR(INDIRECT(CONCATENATE($B112,"!F21"))),"",INDIRECT(CONCATENATE($B112,"!F21"))) ->  | X112: =IF(ISERROR(INDIRECT(CONCATENATE($B112,"!G16"))),"",INDIRECT(CONCATENATE($B112,"!G16"))) ->  | Y112: =IF(ISERROR(INDIRECT(CONCATENATE($B112,"!G23"))),"",INDIRECT(CONCATENATE($B112,"!G23"))) ->  | AB112: =IF(ISERROR(INDIRECT(CONCATENATE($B112,"!G221"))),"",INDIRECT(CONCATENATE($B112,"!G21"))) -> 
B118: =CONCATENATE("National use of drinking water sources, ",C99,"–",C100) -> National use of drinking water sources, 2004–2020 | S118: Data points used for regression
E153: =IF(ISERROR(INDIRECT(CONCATENATE($B153,"!M18"))),"",INDIRECT(CONCATENATE($B153,"!M18"))) ->  | F153: =IF(ISERROR(INDIRECT(CONCATENATE($B153,"!M19"))),"",INDIRECT(CONCATENATE($B153,"!M19"))) ->  | G153: =IF(ISERROR(INDIRECT(CONCATENATE($B153,"!M20"))),"",INDIRECT(CONCATENATE($B153,"!M20"))) ->  | H153: =IF(ISERROR(INDIRECT(CONCATENATE($B153,"!M21"))),"",INDIRECT(CONCATENATE($B153,"!M21"))) ->  | J153: =IF(ISERROR(INDIRECT(CONCATENATE($B153,"!N18"))),"",INDIRECT(CONCATENATE($B153,"!N18"))) ->  | K153: =IF(ISERROR(INDIRECT(CONCATENATE($B153,"!N19"))),"",INDIRECT(CONCATENATE($B153,"!N19"))) ->  | L153: =IF(ISERROR(INDIRECT(CONCATENATE($B153,"!N20"))),"",INDIRECT(CONCATENATE($B153,"!N20"))) ->  | M153: =IF(ISERROR(INDIRECT(CONCATENATE($B153,"!N21"))),"",INDIRECT(CONCATENATE($B153,"!N21"))) ->  | O153: =IF(ISERROR(INDIRECT(CONCATENATE($B153,"!O18"))),"",INDIRECT(CONCATENATE($B153,"!O18"))) ->  | P153: =IF(ISERROR(INDIRECT(CONCATENATE($B153,"!O19"))),"",INDIRECT(CONCATENATE($B153,"!O19"))) ->  | Q153: =IF(ISERROR(INDIRECT(CONCATENATE($B153,"!O20"))),"",INDIRECT(CONCATENATE($B153,"!O20"))) ->  | R153: =IF(ISERROR(INDIRECT(CONCATENATE($B153,"!O21"))),"",INDIRECT(CONCATENATE($B153,"!O21"))) ->  | T153: =IF(ISERROR(INDIRECT(CONCATENATE($B153,"!P18"))),"",INDIRECT(CONCATENATE($B153,"!P18"))) ->  | U153: =IF(ISERROR(INDIRECT(CONCATENATE($B153,"!P19"))),"",INDIRECT(CONCATENATE($B153,"!P19"))) ->  | V153: =IF(ISERROR(INDIRECT(CONCATENATE($B153,"!P20"))),"",INDIRECT(CONCATENATE($B153,"!P20"))) ->  | W153: =IF(ISERROR(INDIRECT(CONCATENATE($B153,"!P21"))),"",INDIRECT(CONCATENATE($B153,"!P21"))) ->  | Y153: =IF(ISERROR(INDIRECT(CONCATENATE($B153,"!Q18"))),"",INDIRECT(CONCATENATE($B153,"!Q18"))) ->  | Z153: =IF(ISERROR(INDIRECT(CONCATENATE($B153,"!Q19"))),"",INDIRECT(CONCATENATE($B153,"!Q19"))) ->  | AA153: =IF(ISERROR(INDIRECT(CONCATENATE($B153,"!Q20"))),"",INDIRECT(CONCATENATE($B153,"!Q20"))) ->  | AB153: =IF(ISERROR(INDIRECT(CONCATENATE($B153,"!Q21"))),"",INDIRECT(CONCATENATE($B153,"!Q1"))) -> 
A197: URBAN | D197: Poorest | I197: Poor | N197: Middle | S197: Rich | X197: Richest
D198: Improved | E198: Basic | F198: Limited | G198: Unimproved | H198: Surface water | I198: Improved | J198: Basic | K198: Limited | L198: Unimproved | M198: Surface water | N198: Improved | O198: Basic | P198: Limited | Q198: Unimproved | R198: Surface water | S198: Improved | T198: Basic | U198: Limited | V198: Unimproved | W198: Surface water | X198: Improved | Y198: Basic | Z198: Limited | AA198: Unimproved | AB198: Surface water
A199: Forecast period: | C199: 2004 | D199: =IF((D201+H201)>100,D201*100/(D201+H201),D201) -> 59.83165128 | E199: =D199*AVERAGEIF(E205:E216,">0")/100 -> 57.24366669 | F199: =D199*(100-AVERAGEIF(E205:E216,">0"))/100 -> 2.587984594 | G199: =100-(E199+F199+H199) -> 26.02245399 | H199: =IF((D201+H201)>100,H201*100/(D201+H201),H201) -> 14.14589472 | I199: =IF((I201+M201)>100,I201*100/(I201+M201),I201) -> 72.54593162 | J199: =I199*AVERAGEIF(J205:J216,">0")/100 -> 69.83945156 | K199: =I199*(100-AVERAGEIF(J205:J216,">0"))/100 -> 2.706480064 | L199: =100-(J199+K199+M199) -> 20.38469823 | M199: =IF((I201+M201)>100,M201*100/(I201+M201),M201) -> 7.069370142 | N199: =IF((N201+R201)>100,N201*100/(N201+R201),N201) -> 82.3903376 | O199: =N199*AVERAGEIF(O205:O216,">0")/100 -> 80.20611162 | P199: =N199*(100-AVERAGEIF(O205:O216,">0"))/100 -> 2.184225985 | Q199: =100-(O199+P199+R199) -> 15.01596393 | R199: =IF((N201+R201)>100,R201*100/(N201+R201),R201) -> 2.593698471 | S199: =IF((S201+W201)>100,S201*100/(S201+W201),S201) -> 89.15990002 | T199: =S199*AVERAGEIF(T205:T216,">0")/100 -> 87.5571808 | U199: =S199*(100-AVERAGEIF(T205:T216,">0"))/100 -> 1.602719218 | V199: =100-(T199+U199+W199) -> 9.701241237 | W199: =IF((S201+W201)>100,W201*100/(S201+W201),W201) -> 1.138858743 | X199: =IF((X201+AB201)>100,X201*100/(X201+AB201),X201) -> 97.64641343 | Y199: =X199*AVERAGEIF(Y205:Y216,">0")/100 -> 96.93661626 | Z199: =X199*(100-AVERAGEIF(Y205:Y216,">0"))/100 -> 0.7097971738 | AA199: =100-(Y199+Z199+AB199) -> 2.102491824 | AB199: =IF((X201+AB201)>100,AB201*100/(X201+AB201),AB201) -> 0.2510947456
C200: 2020 | D200: =IF((D202+H202)>100,D202*100/(D202+H202),D202) -> 86.49453929 | E200: =D200*AVERAGEIF(E205:E216,">0")/100 -> 82.75326639 | F200: =D200*(100-AVERAGEIF(E205:E216,">0"))/100 -> 3.741272894 | G200: =100-(E200+F200+H200) -> 12.93952885 | H200: =IF((D202+H202)>100,H202*100/(D202+H202),H202) -> 0.5659318605 | I200: =IF((I202+M202)>100,I202*100/(I202+M202),I202) -> 97.74287451 | J200: =I200*AVERAGEIF(J205:J216,">0")/100 -> 94.09636897 | K200: =I200*(100-AVERAGEIF(J205:J216,">0"))/100 -> 3.646505535 | L200: =100-(J200+K200+M200) -> 2.257125492 | M200: =IF((I202+M202)>100,M202*100/(I202+M202),M202) -> 0 | N200: =IF((N202+R202)>100,N202*100/(N202+R202),N202) -> 98.31434323 | O200: =N200*AVERAGEIF(O205:O216,">0")/100 -> 95.70796062 | P200: =N200*(100-AVERAGEIF(O205:O216,">0"))/100 -> 2.60638261 | Q200: =100-(O200+P200+R200) -> 1.685656768 | R200: =IF((N202+R202)>100,R202*100/(N202+R202),R202) -> 0 | S200: =IF((S202+W202)>100,S202*100/(S202+W202),S202) -> 98.09623794 | T200: =S200*AVERAGEIF(T205:T216,">0")/100 -> 96.33288103 | U200: =S200*(100-AVERAGEIF(T205:T216,">0"))/100 -> 1.76335691 | V200: =100-(T200+U200+W200) -> 1.862147254 | W200: =IF((S202+W202)>100,W202*100/(S202+W202),W202) -> 0.0416148102 | X200: =IF((X202+AB202)>100,X202*100/(X202+AB202),X202) -> 96.6939683 | Y200: =X200*AVERAGEIF(Y205:Y216,">0")/100 -> 95.99109451 | Z200: =X200*(100-AVERAGEIF(Y205:Y216,">0"))/100 -> 0.7028737976 | AA200: =100-(Y200+Z200+AB200) -> 2.795383031 | AB200: =IF((X202+AB202)>100,AB202*100/(X202+AB202),AB202) -> 0.5106486646
A201: Regression period: | C201: =MinRegYear(C199,C205:C216) -> 2008 | D201: =IF(MAX(C205:C216)-MIN(C205:C216)<5,AVERAGEIF(C205:C216,">0",D205:D216), IF(FORECAST($C201,D$205:D$216,$C$205:$C$216)<0,0, IF(FORECAST($C201,D$205:D$216,$C$205:$C$216)>100,100, FORECAST($C201,D$205:D$216,$C$205:$C$216)))) -> 59.83165128 | H201: =IF(MAX(C205:C216)-MIN(C205:C216)<5,AVERAGEIF(C205:C216,">0",H205:H216), IF(FORECAST($C201,H$205:H$216,$C$205:$C$216)<0,0, IF(FORECAST($C201,H$205:H$216,$C$205:$C$216)>100,100, FORECAST($C201,H$205:H$216,$C$205:$C$216)))) -> 14.14589472 | I201: =IF(MAX(C205:C216)-MIN(C205:C216)<5,AVERAGEIF(C205:C216,">0",I205:I216), IF(FORECAST($C201,I$205:I$216,$C$205:$C$216)<0,0, IF(FORECAST($C201,I$205:I$216,$C$205:$C$216)>100,100, FORECAST($C201,I$205:I$216,$C$205:$C$216)))) -> 72.54593162 | M201: =IF(MAX(C205:C216)-MIN(C205:C216)<5,AVERAGEIF(C205:C216,">0",M205:M216), IF(FORECAST($C201,M$205:M$216,$C$205:$C$216)<0,0, IF(FORECAST($C201,M$205:M$216,$C$205:$C$216)>100,100, FORECAST($C201,M$205:M$216,$C$205:$C$216)))) -> 7.069370142 | N201: =IF(MAX(C205:C216)-MIN(C205:C216)<5,AVERAGEIF(C205:C216,">0",N205:N216), IF(FORECAST($C201,N$205:N$216,$C$205:$C$216)<0,0, IF(FORECAST($C201,N$205:N$216,$C$205:$C$216)>100,100, FORECAST($C201,N$205:N$216,$C$205:$C$216)))) -> 82.3903376 | R201: =IF(MAX(C205:C216)-MIN(C205:C216)<5,AVERAGEIF(C205:C216,">0",R205:R216), IF(FORECAST($C201,R$205:R$216,$C$205:$C$216)<0,0, IF(FORECAST($C201,R$205:R$216,$C$205:$C$216)>100,100, FORECAST($C201,R$205:R$216,$C$205:$C$216)))) -> 2.593698471 | S201: =IF(MAX(C205:C216)-MIN(C205:C216)<5,AVERAGEIF(C205:C216,">0",S205:S216), IF(FORECAST($C201,S$205:S$216,$C$205:$C$216)<0,0, IF(FORECAST($C201,S$205:S$216,$C$205:$C$216)>100,100, FORECAST($C201,S$205:S$216,$C$205:$C$216)))) -> 89.15990002 | W201: =IF(MAX(C205:C216)-MIN(C205:C216)<5,AVERAGEIF(C205:C216,">0",W205:W216), IF(FORECAST($C201,W$205:W$216,$C$205:$C$216)<0,0, IF(FORECAST($C201,W$205:W$216,$C$205:$C$216)>100,100, FORECAST($C201,W$205:W$216,$C$205:$C$216)))) -> 1.138858743 | X201: =IF(MAX(C205:C216)-MIN(C205:C216)<5,AVERAGEIF(C205:C216,">0",X205:X216), IF(FORECAST($C201,X$205:X$216,$C$205:$C$216)<0,0, IF(FORECAST($C201,X$205:X$216,$C$205:$C$216)>100,100, FORECAST($C201,X$205:X$216,$C$205:$C$216)))) -> 97.64641343 | AB201: =IF(MAX(C205:C216)-MIN(C205:C216)<5,AVERAGEIF(C205:C216,">0",AB205:AB216), IF(FORECAST($C201,AB$205:AB$216,$C$205:$C$216)<0,0, IF(FORECAST($C201,AB$205:AB$216,$C$205:$C$216)>100,100, FORECAST($C201,AB$205:AB$216,$C$205:$C$216)))) -> 0.2510947456
C202: =MaxRegYear(C200,C205:C216) -> 2019 | D202: =IF(MAX(C205:C216)-MIN(C205:C216)<5,AVERAGEIF(C205:C216,">0",D205:D216), IF(FORECAST($C202,D$205:D$216,$C$205:$C$216)<0,0, IF(FORECAST($C202,D$205:D$216,$C$205:$C$216)>100,100, FORECAST($C202,D$205:D$216,$C$205:$C$216)))) -> 86.49453929 | H202: =IF(MAX(C205:C216)-MIN(C205:C216)<5,AVERAGEIF(C205:C216,">0",H205:H216), IF(FORECAST($C202,H$205:H$216,$C$205:$C$216)<0,0, IF(FORECAST($C202,H$205:H$216,$C$205:$C$216)>100,100, FORECAST($C202,H$205:H$216,$C$205:$C$216)))) -> 0.5659318605 | I202: =IF(MAX(C205:C216)-MIN(C205:C216)<5,AVERAGEIF(C205:C216,">0",I205:I216), IF(FORECAST($C202,I$205:I$216,$C$205:$C$216)<0,0, IF(FORECAST($C202,I$205:I$216,$C$205:$C$216)>100,100, FORECAST($C202,I$205:I$216,$C$205:$C$216)))) -> 97.74287451 | M202: =IF(MAX(C205:C216)-MIN(C205:C216)<5,AVERAGEIF(C205:C216,">0",M205:M216), IF(FORECAST($C202,M$205:M$216,$C$205:$C$216)<0,0, IF(FORECAST($C202,M$205:M$216,$C$205:$C$216)>100,100, FORECAST($C202,M$205:M$216,$C$205:$C$216)))) -> 0 | N202: =IF(MAX(C205:C216)-MIN(C205:C216)<5,AVERAGEIF(C205:C216,">0",N205:N216), IF(FORECAST($C202,N$205:N$216,$C$205:$C$216)<0,0, IF(FORECAST($C202,N$205:N$216,$C$205:$C$216)>100,100, FORECAST($C202,N$205:N$216,$C$205:$C$216)))) -> 98.31434323 | R202: =IF(MAX(C205:C216)-MIN(C205:C216)<5,AVERAGEIF(C205:C216,">0",R205:R216), IF(FORECAST($C202,R$205:R$216,$C$205:$C$216)<0,0, IF(FORECAST($C202,R$205:R$216,$C$205:$C$216)>100,100, FORECAST($C202,R$205:R$216,$C$205:$C$216)))) -> 0 | S202: =IF(MAX(C205:C216)-MIN(C205:C216)<5,AVERAGEIF(C205:C216,">0",S205:S216), IF(FORECAST($C202,S$205:S$216,$C$205:$C$216)<0,0, IF(FORECAST($C202,S$205:S$216,$C$205:$C$216)>100,100, FORECAST($C202,S$205:S$216,$C$205:$C$216)))) -> 98.09623794 | W202: =IF(MAX(C205:C216)-MIN(C205:C216)<5,AVERAGEIF(C205:C216,">0",W205:W216), IF(FORECAST($C202,W$205:W$216,$C$205:$C$216)<0,0, IF(FORECAST($C202,W$205:W$216,$C$205:$C$216)>100,100, FORECAST($C202,W$205:W$216,$C$205:$C$216)))) -> 0.0416148102 | X202: =IF(MAX(C205:C216)-MIN(C205:C216)<5,AVERAGEIF(C205:C216,">0",X205:X216), IF(FORECAST($C202,X$205:X$216,$C$205:$C$216)<0,0, IF(FORECAST($C202,X$205:X$216,$C$205:$C$216)>100,100, FORECAST($C202,X$205:X$216,$C$205:$C$216)))) -> 96.6939683 | AB202: =IF(MAX(C205:C216)-MIN(C205:C216)<5,AVERAGEIF(C205:C216,">0",AB205:AB216), IF(FORECAST($C202,AB$205:AB$216,$C$205:$C$216)<0,0, IF(FORECAST($C202,AB$205:AB$216,$C$205:$C$216)>100,100, FORECAST($C202,AB$205:AB$216,$C$205:$C$216)))) -> 0.5106486646
B204: Survey | C204: Year | D204: Improved | E204: % Improved < = 30min | H204: Surface water | I204: Improved | J204: % Improved < = 30min | M204: Surface water | N204: Improved | O204: % Improved < = 30min | R204: Surface water | S204: Improved | T204: % Improved < = 30min | W204: Surface water | X204: Improved | Y204: % Improved < = 30min | AB204: Surface water
B205: DHS10 | C205: 2010 | D205: =IF(ISERROR(INDIRECT(CONCATENATE($B205,"!H16"))),"",INDIRECT(CONCATENATE($B205,"!H16"))) -> 61.44479881 | E205: =IF(ISERROR(INDIRECT(CONCATENATE($B205,"!H23"))),"",INDIRECT(CONCATENATE($B205,"!H23"))) -> N/A | H205: =IF(ISERROR(INDIRECT(CONCATENATE($B205,"!H21"))),"",INDIRECT(CONCATENATE($B205,"!H21"))) -> 10.21926686 | I205: =IF(ISERROR(INDIRECT(CONCATENATE($B205,"!I16"))),"",INDIRECT(CONCATENATE($B205,"!I16"))) -> 79.06070757 | J205: =IF(ISERROR(INDIRECT(CONCATENATE($B205,"!I23"))),"",INDIRECT(CONCATENATE($B205,"!I23"))) -> N/A | M205: =IF(ISERROR(INDIRECT(CONCATENATE($B205,"!I21"))),"",INDIRECT(CONCATENATE($B205,"!I21"))) -> 2.287137967 | N205: =IF(ISERROR(INDIRECT(CONCATENATE($B205,"!J16"))),"",INDIRECT(CONCATENATE($B205,"!J16"))) -> 83.47426704 | O205: =IF(ISERROR(INDIRECT(CONCATENATE($B205,"!J23"))),"",INDIRECT(CONCATENATE($B205,"!J23"))) -> N/A | R205: =IF(ISERROR(INDIRECT(CONCATENATE($B205,"!J21"))),"",INDIRECT(CONCATENATE($B205,"!J21"))) -> 1.1085634 | S205: =IF(ISERROR(INDIRECT(CONCATENATE($B205,"!K16"))),"",INDIRECT(CONCATENATE($B205,"!K16"))) -> 88.32772491 | T205: =IF(ISERROR(INDIRECT(CONCATENATE($B205,"!K23"))),"",INDIRECT(CONCATENATE($B205,"!K23"))) -> N/A | W205: =IF(ISERROR(INDIRECT(CONCATENATE($B205,"!K21"))),"",INDIRECT(CONCATENATE($B205,"!K21"))) -> 0.9611211389 | X205: =IF(ISERROR(INDIRECT(CONCATENATE($B205,"!L16"))),"",INDIRECT(CONCATENATE($B205,"!L16"))) -> 96.94034011 | Y205: =IF(ISERROR(INDIRECT(CONCATENATE($B205,"!L23"))),"",INDIRECT(CONCATENATE($B205,"!L23"))) -> N/A | AB205: =IF(ISERROR(INDIRECT(CONCATENATE($B205,"!L221"))),"",INDIRECT(CONCATENATE($B205,"!L21"))) -> 0.1684534122
B206: MICS11 | C206: 2011 | D206: 69.14050711 | E206: 92.88712532 | H206: 13.12402397 | I206: 76.93884442 | J206: 92.99853966 | M206: 9.410704985 | N206: 88.59804513 | O206: 95.95790332 | R206: 3.122338643 | S206: 93.33973332 | T206: 97.86858289 | W206: 0.882271639 | X206: 97.8173782 | Y206: 99.10902604 | AB206: 0.5095307398
B207: DHS15 | C207: 2015 | D207: 82.00874236 | E207: 96.29439304 | H207: 2.560236701 | I207: 89.24999436 | J207: 96.21827827 | M207: 0.7943674542 | N207: 93.26911012 | O207: 96.18023957 | R207: 0.4053977745 | S207: 98.21808319 | T207: 97.17559194 | W207: 0.2364643559 | X207: 97.61329958 | Y207: 98.71025739 | AB207: 0.3077350792
B208: ALCS17 | C208: 2017 | D208: 77.63443395 | E208: 97.84214952 | H208: 4.754667714 | I208: 93.03743474 | J208: 99.59104488 | M208: 1.186790762 | N208: 94.6203025 | O208: 99.90864542 | R208: 0.4425196539 | S208: 93.81434013 | T208: 99.56308958 | W208: 0.3808394213 | X208: 96.3963315 | Y208: 100 | AB208: 0.5141717786
B218: =CONCATENATE("Urban use of drinking water sources, ",C199,"–",C200) -> Urban use of drinking water sources, 2004–2020 | S218: Data points used for regression
E253: =IF(ISERROR(INDIRECT(CONCATENATE($B253,"!M18"))),"",INDIRECT(CONCATENATE($B253,"!M18"))) ->  | F253: =IF(ISERROR(INDIRECT(CONCATENATE($B253,"!M19"))),"",INDIRECT(CONCATENATE($B253,"!M19"))) ->  | G253: =IF(ISERROR(INDIRECT(CONCATENATE($B253,"!M20"))),"",INDIRECT(CONCATENATE($B253,"!M20"))) ->  | H253: =IF(ISERROR(INDIRECT(CONCATENATE($B253,"!M21"))),"",INDIRECT(CONCATENATE($B253,"!M21"))) ->  | J253: =IF(ISERROR(INDIRECT(CONCATENATE($B253,"!N18"))),"",INDIRECT(CONCATENATE($B253,"!N18"))) ->  | K253: =IF(ISERROR(INDIRECT(CONCATENATE($B253,"!N19"))),"",INDIRECT(CONCATENATE($B253,"!N19"))) ->  | L253: =IF(ISERROR(INDIRECT(CONCATENATE($B253,"!N20"))),"",INDIRECT(CONCATENATE($B253,"!N20"))) ->  | M253: =IF(ISERROR(INDIRECT(CONCATENATE($B253,"!N21"))),"",INDIRECT(CONCATENATE($B253,"!N21"))) ->  | O253: =IF(ISERROR(INDIRECT(CONCATENATE($B253,"!O18"))),"",INDIRECT(CONCATENATE($B253,"!O18"))) ->  | P253: =IF(ISERROR(INDIRECT(CONCATENATE($B253,"!O19"))),"",INDIRECT(CONCATENATE($B253,"!O19"))) ->  | Q253: =IF(ISERROR(INDIRECT(CONCATENATE($B253,"!O20"))),"",INDIRECT(CONCATENATE($B253,"!O20"))) ->  | R253: =IF(ISERROR(INDIRECT(CONCATENATE($B253,"!O21"))),"",INDIRECT(CONCATENATE($B253,"!O21"))) ->  | T253: =IF(ISERROR(INDIRECT(CONCATENATE($B253,"!P18"))),"",INDIRECT(CONCATENATE($B253,"!P18"))) ->  | U253: =IF(ISERROR(INDIRECT(CONCATENATE($B253,"!P19"))),"",INDIRECT(CONCATENATE($B253,"!P19"))) ->  | V253: =IF(ISERROR(INDIRECT(CONCATENATE($B253,"!P20"))),"",INDIRECT(CONCATENATE($B253,"!P20"))) ->  | W253: =IF(ISERROR(INDIRECT(CONCATENATE($B253,"!P21"))),"",INDIRECT(CONCATENATE($B253,"!P21"))) ->  | Y253: =IF(ISERROR(INDIRECT(CONCATENATE($B253,"!Q18"))),"",INDIRECT(CONCATENATE($B253,"!Q18"))) ->  | Z253: =IF(ISERROR(INDIRECT(CONCATENATE($B253,"!Q19"))),"",INDIRECT(CONCATENATE($B253,"!Q19"))) ->  | AA253: =IF(ISERROR(INDIRECT(CONCATENATE($B253,"!Q20"))),"",INDIRECT(CONCATENATE($B253,"!Q20"))) ->  | AB253: =IF(ISERROR(INDIRECT(CONCATENATE($B253,"!Q21"))),"",INDIRECT(CONCATENATE($B253,"!Q1"))) -> 
E254: =IF(ISERROR(INDIRECT(CONCATENATE($B254,"!M18"))),"",INDIRECT(CONCATENATE($B254,"!M18"))) ->  | F254: =IF(ISERROR(INDIRECT(CONCATENATE($B254,"!M19"))),"",INDIRECT(CONCATENATE($B254,"!M19"))) ->  | G254: =IF(ISERROR(INDIRECT(CONCATENATE($B254,"!M20"))),"",INDIRECT(CONCATENATE($B254,"!M20"))) ->  | H254: =IF(ISERROR(INDIRECT(CONCATENATE($B254,"!M21"))),"",INDIRECT(CONCATENATE($B254,"!M21"))) ->  | J254: =IF(ISERROR(INDIRECT(CONCATENATE($B254,"!N18"))),"",INDIRECT(CONCATENATE($B254,"!N18"))) ->  | K254: =IF(ISERROR(INDIRECT(CONCATENATE($B254,"!N19"))),"",INDIRECT(CONCATENATE($B254,"!N19"))) ->  | L254: =IF(ISERROR(INDIRECT(CONCATENATE($B254,"!N20"))),"",INDIRECT(CONCATENATE($B254,"!N20"))) ->  | M254: =IF(ISERROR(INDIRECT(CONCATENATE($B254,"!N21"))),"",INDIRECT(CONCATENATE($B254,"!N21"))) ->  | O254: =IF(ISERROR(INDIRECT(CONCATENATE($B254,"!O18"))),"",INDIRECT(CONCATENATE($B254,"!O18"))) ->  | P254: =IF(ISERROR(INDIRECT(CONCATENATE($B254,"!O19"))),"",INDIRECT(CONCATENATE($B254,"!O19"))) ->  | Q254: =IF(ISERROR(INDIRECT(CONCATENATE($B254,"!O20"))),"",INDIRECT(CONCATENATE($B254,"!O20"))) ->  | R254: =IF(ISERROR(INDIRECT(CONCATENATE($B254,"!O21"))),"",INDIRECT(CONCATENATE($B254,"!O21"))) ->  | T254: =IF(ISERROR(INDIRECT(CONCATENATE($B254,"!P18"))),"",INDIRECT(CONCATENATE($B254,"!P18"))) ->  | U254: =IF(ISERROR(INDIRECT(CONCATENATE($B254,"!P19"))),"",INDIRECT(CONCATENATE($B254,"!P19"))) ->  | V254: =IF(ISERROR(INDIRECT(CONCATENATE($B254,"!P20"))),"",INDIRECT(CONCATENATE($B254,"!P20"))) ->  | W254: =IF(ISERROR(INDIRECT(CONCATENATE($B254,"!P21"))),"",INDIRECT(CONCATENATE($B254,"!P21"))) ->  | Y254: =IF(ISERROR(INDIRECT(CONCATENATE($B254,"!Q18"))),"",INDIRECT(CONCATENATE($B254,"!Q18"))) ->  | Z254: =IF(ISERROR(INDIRECT(CONCATENATE($B254,"!Q19"))),"",INDIRECT(CONCATENATE($B254,"!Q19"))) ->  | AA254: =IF(ISERROR(INDIRECT(CONCATENATE($B254,"!Q20"))),"",INDIRECT(CONCATENATE($B254,"!Q20"))) ->  | AB254: =IF(ISERROR(INDIRECT(CONCATENATE($B254,"!Q21"))),"",INDIRECT(CONCATENATE($B254,"!Q1"))) -> 
E255: =IF(ISERROR(INDIRECT(CONCATENATE($B255,"!M18"))),"",INDIRECT(CONCATENATE($B255,"!M18"))) ->  | F255: =IF(ISERROR(INDIRECT(CONCATENATE($B255,"!M19"))),"",INDIRECT(CONCATENATE($B255,"!M19"))) ->  | G255: =IF(ISERROR(INDIRECT(CONCATENATE($B255,"!M20"))),"",INDIRECT(CONCATENATE($B255,"!M20"))) ->  | H255: =IF(ISERROR(INDIRECT(CONCATENATE($B255,"!M21"))),"",INDIRECT(CONCATENATE($B255,"!M21"))) ->  | J255: =IF(ISERROR(INDIRECT(CONCATENATE($B255,"!N18"))),"",INDIRECT(CONCATENATE($B255,"!N18"))) ->  | K255: =IF(ISERROR(INDIRECT(CONCATENATE($B255,"!N19"))),"",INDIRECT(CONCATENATE($B255,"!N19"))) ->  | L255: =IF(ISERROR(INDIRECT(CONCATENATE($B255,"!N20"))),"",INDIRECT(CONCATENATE($B255,"!N20"))) ->  | M255: =IF(ISERROR(INDIRECT(CONCATENATE($B255,"!N21"))),"",INDIRECT(CONCATENATE($B255,"!N21"))) ->  | O255: =IF(ISERROR(INDIRECT(CONCATENATE($B255,"!O18"))),"",INDIRECT(CONCATENATE($B255,"!O18"))) ->  | P255: =IF(ISERROR(INDIRECT(CONCATENATE($B255,"!O19"))),"",INDIRECT(CONCATENATE($B255,"!O19"))) ->  | Q255: =IF(ISERROR(INDIRECT(CONCATENATE($B255,"!O20"))),"",INDIRECT(CONCATENATE($B255,"!O20"))) ->  | R255: =IF(ISERROR(INDIRECT(CONCATENATE($B255,"!O21"))),"",INDIRECT(CONCATENATE($B255,"!O21"))) ->  | T255: =IF(ISERROR(INDIRECT(CONCATENATE($B255,"!P18"))),"",INDIRECT(CONCATENATE($B255,"!P18"))) ->  | U255: =IF(ISERROR(INDIRECT(CONCATENATE($B255,"!P19"))),"",INDIRECT(CONCATENATE($B255,"!P19"))) ->  | V255: =IF(ISERROR(INDIRECT(CONCATENATE($B255,"!P20"))),"",INDIRECT(CONCATENATE($B255,"!P20"))) ->  | W255: =IF(ISERROR(INDIRECT(CONCATENATE($B255,"!P21"))),"",INDIRECT(CONCATENATE($B255,"!P21"))) ->  | Y255: =IF(ISERROR(INDIRECT(CONCATENATE($B255,"!Q18"))),"",INDIRECT(CONCATENATE($B255,"!Q18"))) ->  | Z255: =IF(ISERROR(INDIRECT(CONCATENATE($B255,"!Q19"))),"",INDIRECT(CONCATENATE($B255,"!Q19"))) ->  | AA255: =IF(ISERROR(INDIRECT(CONCATENATE($B255,"!Q20"))),"",INDIRECT(CONCATENATE($B255,"!Q20"))) ->  | AB255: =IF(ISERROR(INDIRECT(CONCATENATE($B255,"!Q21"))),"",INDIRECT(CONCATENATE($B255,"!Q1"))) -> 
E256: =IF(ISERROR(INDIRECT(CONCATENATE($B256,"!M18"))),"",INDIRECT(CONCATENATE($B256,"!M18"))) ->  | F256: =IF(ISERROR(INDIRECT(CONCATENATE($B256,"!M19"))),"",INDIRECT(CONCATENATE($B256,"!M19"))) ->  | G256: =IF(ISERROR(INDIRECT(CONCATENATE($B256,"!M20"))),"",INDIRECT(CONCATENATE($B256,"!M20"))) ->  | H256: =IF(ISERROR(INDIRECT(CONCATENATE($B256,"!M21"))),"",INDIRECT(CONCATENATE($B256,"!M21"))) ->  | J256: =IF(ISERROR(INDIRECT(CONCATENATE($B256,"!N18"))),"",INDIRECT(CONCATENATE($B256,"!N18"))) ->  | K256: =IF(ISERROR(INDIRECT(CONCATENATE($B256,"!N19"))),"",INDIRECT(CONCATENATE($B256,"!N19"))) ->  | L256: =IF(ISERROR(INDIRECT(CONCATENATE($B256,"!N20"))),"",INDIRECT(CONCATENATE($B256,"!N20"))) ->  | M256: =IF(ISERROR(INDIRECT(CONCATENATE($B256,"!N21"))),"",INDIRECT(CONCATENATE($B256,"!N21"))) ->  | O256: =IF(ISERROR(INDIRECT(CONCATENATE($B256,"!O18"))),"",INDIRECT(CONCATENATE($B256,"!O18"))) ->  | P256: =IF(ISERROR(INDIRECT(CONCATENATE($B256,"!O19"))),"",INDIRECT(CONCATENATE($B256,"!O19"))) ->  | Q256: =IF(ISERROR(INDIRECT(CONCATENATE($B256,"!O20"))),"",INDIRECT(CONCATENATE($B256,"!O20"))) ->  | R256: =IF(ISERROR(INDIRECT(CONCATENATE($B256,"!O21"))),"",INDIRECT(CONCATENATE($B256,"!O21"))) ->  | T256: =IF(ISERROR(INDIRECT(CONCATENATE($B256,"!P18"))),"",INDIRECT(CONCATENATE($B256,"!P18"))) ->  | U256: =IF(ISERROR(INDIRECT(CONCATENATE($B256,"!P19"))),"",INDIRECT(CONCATENATE($B256,"!P19"))) ->  | V256: =IF(ISERROR(INDIRECT(CONCATENATE($B256,"!P20"))),"",INDIRECT(CONCATENATE($B256,"!P20"))) ->  | W256: =IF(ISERROR(INDIRECT(CONCATENATE($B256,"!P21"))),"",INDIRECT(CONCATENATE($B256,"!P21"))) ->  | Y256: =IF(ISERROR(INDIRECT(CONCATENATE($B256,"!Q18"))),"",INDIRECT(CONCATENATE($B256,"!Q18"))) ->  | Z256: =IF(ISERROR(INDIRECT(CONCATENATE($B256,"!Q19"))),"",INDIRECT(CONCATENATE($B256,"!Q19"))) ->  | AA256: =IF(ISERROR(INDIRECT(CONCATENATE($B256,"!Q20"))),"",INDIRECT(CONCATENATE($B256,"!Q20"))) ->  | AB256: =IF(ISERROR(INDIRECT(CONCATENATE($B256,"!Q21"))),"",INDIRECT(CONCATENATE($B256,"!Q1"))) -> 
E257: =IF(ISERROR(INDIRECT(CONCATENATE($B257,"!M18"))),"",INDIRECT(CONCATENATE($B257,"!M18"))) ->  | F257: =IF(ISERROR(INDIRECT(CONCATENATE($B257,"!M19"))),"",INDIRECT(CONCATENATE($B257,"!M19"))) ->  | G257: =IF(ISERROR(INDIRECT(CONCATENATE($B257,"!M20"))),"",INDIRECT(CONCATENATE($B257,"!M20"))) ->  | H257: =IF(ISERROR(INDIRECT(CONCATENATE($B257,"!M21"))),"",INDIRECT(CONCATENATE($B257,"!M21"))) ->  | J257: =IF(ISERROR(INDIRECT(CONCATENATE($B257,"!N18"))),"",INDIRECT(CONCATENATE($B257,"!N18"))) ->  | K257: =IF(ISERROR(INDIRECT(CONCATENATE($B257,"!N19"))),"",INDIRECT(CONCATENATE($B257,"!N19"))) ->  | L257: =IF(ISERROR(INDIRECT(CONCATENATE($B257,"!N20"))),"",INDIRECT(CONCATENATE($B257,"!N20"))) ->  | M257: =IF(ISERROR(INDIRECT(CONCATENATE($B257,"!N21"))),"",INDIRECT(CONCATENATE($B257,"!N21"))) ->  | O257: =IF(ISERROR(INDIRECT(CONCATENATE($B257,"!O18"))),"",INDIRECT(CONCATENATE($B257,"!O18"))) ->  | P257: =IF(ISERROR(INDIRECT(CONCATENATE($B257,"!O19"))),"",INDIRECT(CONCATENATE($B257,"!O19"))) ->  | Q257: =IF(ISERROR(INDIRECT(CONCATENATE($B257,"!O20"))),"",INDIRECT(CONCATENATE($B257,"!O20"))) ->  | R257: =IF(ISERROR(INDIRECT(CONCATENATE($B257,"!O21"))),"",INDIRECT(CONCATENATE($B257,"!O21"))) ->  | T257: =IF(ISERROR(INDIRECT(CONCATENATE($B257,"!P18"))),"",INDIRECT(CONCATENATE($B257,"!P18"))) ->  | U257: =IF(ISERROR(INDIRECT(CONCATENATE($B257,"!P19"))),"",INDIRECT(CONCATENATE($B257,"!P19"))) ->  | V257: =IF(ISERROR(INDIRECT(CONCATENATE($B257,"!P20"))),"",INDIRECT(CONCATENATE($B257,"!P20"))) ->  | W257: =IF(ISERROR(INDIRECT(CONCATENATE($B257,"!P21"))),"",INDIRECT(CONCATENATE($B257,"!P21"))) ->  | Y257: =IF(ISERROR(INDIRECT(CONCATENATE($B257,"!Q18"))),"",INDIRECT(CONCATENATE($B257,"!Q18"))) ->  | Z257: =IF(ISERROR(INDIRECT(CONCATENATE($B257,"!Q19"))),"",INDIRECT(CONCATENATE($B257,"!Q19"))) ->  | AA257: =IF(ISERROR(INDIRECT(CONCATENATE($B257,"!Q20"))),"",INDIRECT(CONCATENATE($B257,"!Q20"))) ->  | AB257: =IF(ISERROR(INDIRECT(CONCATENATE($B257,"!Q21"))),"",INDIRECT(CONCATENATE($B257,"!Q1"))) -> 
A297: RURAL | D297: Poorest | I297: Poor | N297: Middle | S297: Rich | X297: Richest
D298: Improved | E298: Basic | F298: Limited | G298: Unimproved | H298: Surface water | I298: Improved | J298: Basic | K298: Limited | L298: Unimproved | M298: Surface water | N298: Improved | O298: Basic | P298: Limited | Q298: Unimproved | R298: Surface water | S298: Improved | T298: Basic | U298: Limited | V298: Unimproved | W298: Surface water | X298: Improved | Y298: Basic | Z298: Limited | AA298: Unimproved | AB298: Surface water
A299: Forecast period: | C299: 2004 | D299: =IF((D301+H301)>100,D301*100/(D301+H301),D301) -> 42.96452249 | E299: =D299*AVERAGEIF(E305:E316,">0")/100 -> 38.68257281 | F299: =D299*(100-AVERAGEIF(E305:E316,">0"))/100 -> 4.281949678 | G299: =100-(E299+F299+H299) -> 31.68446424 | H299: =IF((D301+H301)>100,H301*100/(D301+H301),H301) -> 25.35101328 | I299: =IF((I301+M301)>100,I301*100/(I301+M301),I301) -> 42.74960753 | J299: =I299*AVERAGEIF(J305:J316,">0")/100 -> 40.18671537 | K299: =I299*(100-AVERAGEIF(J305:J316,">0"))/100 -> 2.562892157 | L299: =100-(J299+K299+M299) -> 31.70906011 | M299: =IF((I301+M301)>100,M301*100/(I301+M301),M301) -> 25.54133236 | N299: =IF((N301+R301)>100,N301*100/(N301+R301),N301) -> 48.0388052 | O299: =N299*AVERAGEIF(O305:O316,">0")/100 -> 44.81778557 | P299: =N299*(100-AVERAGEIF(O305:O316,">0"))/100 -> 3.221019627 | Q299: =100-(O299+P299+R299) -> 34.47293212 | R299: =IF((N301+R301)>100,R301*100/(N301+R301),R301) -> 17.48826268 | S299: =IF((S301+W301)>100,S301*100/(S301+W301),S301) -> 52.97797618 | T299: =S299*AVERAGEIF(T305:T316,">0")/100 -> 49.95155179 | U299: =S299*(100-AVERAGEIF(T305:T316,">0"))/100 -> 3.026424389 | V299: =100-(T299+U299+W299) -> 36.10329316 | W299: =IF((S301+W301)>100,W301*100/(S301+W301),W301) -> 10.91873066 | X299: =IF((X301+AB301)>100,X301*100/(X301+AB301),X301) -> 64.37673216 | Y299: =X299*AVERAGEIF(Y305:Y316,">0")/100 -> 62.17210984 | Z299: =X299*(100-AVERAGEIF(Y305:Y316,">0"))/100 -> 2.204622321 | AA299: =100-(Y299+Z299+AB299) -> 24.13306525 | AB299: =IF((X301+AB301)>100,AB301*100/(X301+AB301),AB301) -> 11.49020259
C300: 2020 | D300: =IF((D302+H302)>100,D302*100/(D302+H302),D302) -> 49.82668759 | E300: =D300*AVERAGEIF(E305:E316,">0")/100 -> 44.86083771 | F300: =D300*(100-AVERAGEIF(E305:E316,">0"))/100 -> 4.965849881 | G300: =100-(E300+F300+H300) -> 34.01861429 | H300: =IF((D302+H302)>100,H302*100/(D302+H302),H302) -> 16.15469812 | I300: =IF((I302+M302)>100,I302*100/(I302+M302),I302) -> 58.13891295 | J300: =I300*AVERAGEIF(J305:J316,">0")/100 -> 54.65341279 | K300: =I300*(100-AVERAGEIF(J305:J316,">0"))/100 -> 3.485500164 | L300: =100-(J300+K300+M300) -> 31.35859 | M300: =IF((I302+M302)>100,M302*100/(I302+M302),M302) -> 10.50249704 | N300: =IF((N302+R302)>100,N302*100/(N302+R302),N302) -> 65.40474837 | O300: =N300*AVERAGEIF(O305:O316,">0")/100 -> 61.01933584 | P300: =N300*(100-AVERAGEIF(O305:O316,">0"))/100 -> 4.385412529 | Q300: =100-(O300+P300+R300) -> 25.39706071 | R300: =IF((N302+R302)>100,R302*100/(N302+R302),R302) -> 9.198190915 | S300: =IF((S302+W302)>100,S302*100/(S302+W302),S302) -> 67.63740122 | T300: =S300*AVERAGEIF(T305:T316,">0")/100 -> 63.77354126 | U300: =S300*(100-AVERAGEIF(T305:T316,">0"))/100 -> 3.863859956 | V300: =100-(T300+U300+W300) -> 19.02485055 | W300: =IF((S302+W302)>100,W302*100/(S302+W302),W302) -> 13.33774823 | X300: =IF((X302+AB302)>100,X302*100/(X302+AB302),X302) -> 75.85381338 | Y300: =X300*AVERAGEIF(Y305:Y316,">0")/100 -> 73.25615108 | Z300: =X300*(100-AVERAGEIF(Y305:Y316,">0"))/100 -> 2.597662299 | AA300: =100-(Y300+Z300+AB300) -> 18.16740032 | AB300: =IF((X302+AB302)>100,AB302*100/(X302+AB302),AB302) -> 5.978786297
A301: Regression period: | C301: =MinRegYear(C299,C305:C316) -> 2008 | D301: =IF(MAX(C305:C316)-MIN(C305:C316)<5,AVERAGEIF(C305:C316,">0",D305:D316), IF(FORECAST($C301,D$305:D$316,$C$305:$C$316)<0,0, IF(FORECAST($C301,D$305:D$316,$C$305:$C$316)>100,100, FORECAST($C301,D$305:D$316,$C$305:$C$316)))) -> 42.96452249 | H301: =IF(MAX(C305:C316)-MIN(C305:C316)<5,AVERAGEIF(C305:C316,">0",H305:H316), IF(FORECAST($C301,H$305:H$316,$C$305:$C$316)<0,0, IF(FORECAST($C301,H$305:H$316,$C$305:$C$316)>100,100, FORECAST($C301,H$305:H$316,$C$305:$C$316)))) -> 25.35101328 | I301: =IF(MAX(C305:C316)-MIN(C305:C316)<5,AVERAGEIF(C305:C316,">0",I305:I316), IF(FORECAST($C301,I$305:I$316,$C$305:$C$316)<0,0, IF(FORECAST($C301,I$305:I$316,$C$305:$C$316)>100,100, FORECAST($C301,I$305:I$316,$C$305:$C$316)))) -> 42.74960753 | M301: =IF(MAX(C305:C316)-MIN(C305:C316)<5,AVERAGEIF(C305:C316,">0",M305:M316), IF(FORECAST($C301,M$305:M$316,$C$305:$C$316)<0,0, IF(FORECAST($C301,M$305:M$316,$C$305:$C$316)>100,100, FORECAST($C301,M$305:M$316,$C$305:$C$316)))) -> 25.54133236 | N301: =IF(MAX(C305:C316)-MIN(C305:C316)<5,AVERAGEIF(C305:C316,">0",N305:N316), IF(FORECAST($C301,N$305:N$316,$C$305:$C$316)<0,0, IF(FORECAST($C301,N$305:N$316,$C$305:$C$316)>100,100, FORECAST($C301,N$305:N$316,$C$305:$C$316)))) -> 48.0388052 | R301: =IF(MAX(C305:C316)-MIN(C305:C316)<5,AVERAGEIF(C305:C316,">0",R305:R316), IF(FORECAST($C301,R$305:R$316,$C$305:$C$316)<0,0, IF(FORECAST($C301,R$305:R$316,$C$305:$C$316)>100,100, FORECAST($C301,R$305:R$316,$C$305:$C$316)))) -> 17.48826268 | S301: =IF(MAX(C305:C316)-MIN(C305:C316)<5,AVERAGEIF(C305:C316,">0",S305:S316), IF(FORECAST($C301,S$305:S$316,$C$305:$C$316)<0,0, IF(FORECAST($C301,S$305:S$316,$C$305:$C$316)>100,100, FORECAST($C301,S$305:S$316,$C$305:$C$316)))) -> 52.97797618 | W301: =IF(MAX(C305:C316)-MIN(C305:C316)<5,AVERAGEIF(C305:C316,">0",W305:W316), IF(FORECAST($C301,W$305:W$316,$C$305:$C$316)<0,0, IF(FORECAST($C301,W$305:W$316,$C$305:$C$316)>100,100, FORECAST($C301,W$305:W$316,$C$305:$C$316)))) -> 10.91873066 | X301: =IF(MAX(C305:C316)-MIN(C305:C316)<5,AVERAGEIF(C305:C316,">0",X305:X316), IF(FORECAST($C301,X$305:X$316,$C$305:$C$316)<0,0, IF(FORECAST($C301,X$305:X$316,$C$305:$C$316)>100,100, FORECAST($C301,X$305:X$316,$C$305:$C$316)))) -> 64.37673216 | AB301: =IF(MAX(C305:C316)-MIN(C305:C316)<5,AVERAGEIF(C305:C316,">0",AB305:AB316), IF(FORECAST($C301,AB$305:AB$316,$C$305:$C$316)<0,0, IF(FORECAST($C301,AB$305:AB$316,$C$305:$C$316)>100,100, FORECAST($C301,AB$305:AB$316,$C$305:$C$316)))) -> 11.49020259
C302: =MaxRegYear(C300,C305:C316) -> 2019 | D302: =IF(MAX(C305:C316)-MIN(C305:C316)<5,AVERAGEIF(C305:C316,">0",D305:D316), IF(FORECAST($C302,D$305:D$316,$C$305:$C$316)<0,0, IF(FORECAST($C302,D$305:D$316,$C$305:$C$316)>100,100, FORECAST($C302,D$305:D$316,$C$305:$C$316)))) -> 49.82668759 | H302: =IF(MAX(C305:C316)-MIN(C305:C316)<5,AVERAGEIF(C305:C316,">0",H305:H316), IF(FORECAST($C302,H$305:H$316,$C$305:$C$316)<0,0, IF(FORECAST($C302,H$305:H$316,$C$305:$C$316)>100,100, FORECAST($C302,H$305:H$316,$C$305:$C$316)))) -> 16.15469812 | I302: =IF(MAX(C305:C316)-MIN(C305:C316)<5,AVERAGEIF(C305:C316,">0",I305:I316), IF(FORECAST($C302,I$305:I$316,$C$305:$C$316)<0,0, IF(FORECAST($C302,I$305:I$316,$C$305:$C$316)>100,100, FORECAST($C302,I$305:I$316,$C$305:$C$316)))) -> 58.13891295 | M302: =IF(MAX(C305:C316)-MIN(C305:C316)<5,AVERAGEIF(C305:C316,">0",M305:M316), IF(FORECAST($C302,M$305:M$316,$C$305:$C$316)<0,0, IF(FORECAST($C302,M$305:M$316,$C$305:$C$316)>100,100, FORECAST($C302,M$305:M$316,$C$305:$C$316)))) -> 10.50249704 | N302: =IF(MAX(C305:C316)-MIN(C305:C316)<5,AVERAGEIF(C305:C316,">0",N305:N316), IF(FORECAST($C302,N$305:N$316,$C$305:$C$316)<0,0, IF(FORECAST($C302,N$305:N$316,$C$305:$C$316)>100,100, FORECAST($C302,N$305:N$316,$C$305:$C$316)))) -> 65.40474837 | R302: =IF(MAX(C305:C316)-MIN(C305:C316)<5,AVERAGEIF(C305:C316,">0",R305:R316), IF(FORECAST($C302,R$305:R$316,$C$305:$C$316)<0,0, IF(FORECAST($C302,R$305:R$316,$C$305:$C$316)>100,100, FORECAST($C302,R$305:R$316,$C$305:$C$316)))) -> 9.198190915 | S302: =IF(MAX(C305:C316)-MIN(C305:C316)<5,AVERAGEIF(C305:C316,">0",S305:S316), IF(FORECAST($C302,S$305:S$316,$C$305:$C$316)<0,0, IF(FORECAST($C302,S$305:S$316,$C$305:$C$316)>100,100, FORECAST($C302,S$305:S$316,$C$305:$C$316)))) -> 67.63740122 | W302: =IF(MAX(C305:C316)-MIN(C305:C316)<5,AVERAGEIF(C305:C316,">0",W305:W316), IF(FORECAST($C302,W$305:W$316,$C$305:$C$316)<0,0, IF(FORECAST($C302,W$305:W$316,$C$305:$C$316)>100,100, FORECAST($C302,W$305:W$316,$C$305:$C$316)))) -> 13.33774823 | X302: =IF(MAX(C305:C316)-MIN(C305:C316)<5,AVERAGEIF(C305:C316,">0",X305:X316), IF(FORECAST($C302,X$305:X$316,$C$305:$C$316)<0,0, IF(FORECAST($C302,X$305:X$316,$C$305:$C$316)>100,100, FORECAST($C302,X$305:X$316,$C$305:$C$316)))) -> 75.85381338 | AB302: =IF(MAX(C305:C316)-MIN(C305:C316)<5,AVERAGEIF(C305:C316,">0",AB305:AB316), IF(FORECAST($C302,AB$305:AB$316,$C$305:$C$316)<0,0, IF(FORECAST($C302,AB$305:AB$316,$C$305:$C$316)>100,100, FORECAST($C302,AB$305:AB$316,$C$305:$C$316)))) -> 5.978786297
B304: Survey | C304: Year | D304: Improved | E304: % Improved < = 30min | H304: Surface water | I304: Improved | J304: % Improved < = 30min | M304: Surface water | N304: Improved | O304: % Improved < = 30min | R304: Surface water | S304: Improved | T304: % Improved < = 30min | W304: Surface water | X304: Improved | Y304: % Improved < = 30min | AB304: Surface water
B305: DHS10 | C305: 2010 | D305: =IF(ISERROR(INDIRECT(CONCATENATE($B305,"!M16"))),"",INDIRECT(CONCATENATE($B305,"!M16"))) -> 43.11303251 | E305: =IF(ISERROR(INDIRECT(CONCATENATE($B305,"!M23"))),"",INDIRECT(CONCATENATE($B305,"!M23"))) -> N/A | H305: =IF(ISERROR(INDIRECT(CONCATENATE($B305,"!M21"))),"",INDIRECT(CONCATENATE($B305,"!M21"))) -> 28.1103171 | I305: =IF(ISERROR(INDIRECT(CONCATENATE($B305,"!N16"))),"",INDIRECT(CONCATENATE($B305,"!N16"))) -> 44.12408783 | J305: =IF(ISERROR(INDIRECT(CONCATENATE($B305,"!N23"))),"",INDIRECT(CONCATENATE($B305,"!N23"))) -> N/A | M305: =IF(ISERROR(INDIRECT(CONCATENATE($B305,"!N21"))),"",INDIRECT(CONCATENATE($B305,"!N21"))) -> 24.16365515 | N305: =IF(ISERROR(INDIRECT(CONCATENATE($B305,"!O16"))),"",INDIRECT(CONCATENATE($B305,"!O16"))) -> 47.52055577 | O305: =IF(ISERROR(INDIRECT(CONCATENATE($B305,"!O23"))),"",INDIRECT(CONCATENATE($B305,"!O23"))) -> N/A | R305: =IF(ISERROR(INDIRECT(CONCATENATE($B305,"!O21"))),"",INDIRECT(CONCATENATE($B305,"!O21"))) -> 14.75924106 | S305: =IF(ISERROR(INDIRECT(CONCATENATE($B305,"!P16"))),"",INDIRECT(CONCATENATE($B305,"!P16"))) -> 53.33042341 | T305: =IF(ISERROR(INDIRECT(CONCATENATE($B305,"!P23"))),"",INDIRECT(CONCATENATE($B305,"!P23"))) -> N/A | W305: =IF(ISERROR(INDIRECT(CONCATENATE($B305,"!P21"))),"",INDIRECT(CONCATENATE($B305,"!P21"))) -> 7.795008446 | X305: =IF(ISERROR(INDIRECT(CONCATENATE($B305,"!Q16"))),"",INDIRECT(CONCATENATE($B305,"!Q16"))) -> 69.30446292 | Y305: =IF(ISERROR(INDIRECT(CONCATENATE($B305,"!Q23"))),"",INDIRECT(CONCATENATE($B305,"!Q23"))) -> N/A | AB305: =IF(ISERROR(INDIRECT(CONCATENATE($B305,"!Q221"))),"",INDIRECT(CONCATENATE($B305,"!Q21"))) -> 4.526669281
B306: MICS11 | C306: 2011 | D306: 44.96527085 | E306: 89.19001378 | H306: 18.8677116 | I306: 47.49320331 | J306: 92.93241376 | M306: 21.13166665 | N306: 54.4675178 | O306: 93.94138846 | R306: 17.92684506 | S306: 56.49760408 | T306: 92.83191153 | W306: 18.13147995 | X306: 60.55977504 | Y306: 95.11959762 | AB306: 18.3614089
B307: DHS15 | C307: 2015 | D307: 50.79065575 | E307: 84.94879599 | H307: 15.91469594 | I307: 55.88577773 | J307: 92.43235241 | M307: 12.14736226 | N307: 66.87714887 | O307: 87.98015811 | R307: 8.390304777 | S307: 71.83705222 | T307: 91.56141518 | W307: 5.271456397 | X307: 82.57807933 | Y307: 95.66289953 | AB307: 3.725079823
B308: ALCS17 | C308: 2017 | D308: 46.08962787 | E308: 95.9624545 | H308: 20.95472679 | I308: 52.87494432 | J308: 96.64986059 | M308: 16.0121416 | N308: 56.4431626 | O308: 97.96334265 | R308: 13.05015917 | S308: 58.23300008 | T308: 98.46884768 | W308: 17.09510231 | X308: 66.97540278 | Y308: 98.94381119 | AB308: 8.825857618
B318: =CONCATENATE("Rural use of drinking water sources, ",C299,"–",C300) -> Rural use of drinking water sources, 2004–2020 | S318: Data points used for regression

Sheet Sanitation
B4: Summary of trends in use of sanitation facilities by wealth quintile (%)
B5: =IF(ISERROR(INDIRECT(CONCATENATE($B105,"!A2"))),"",INDIRECT(CONCATENATE($B105,"!A2"))) -> Afghanistan
B7: =B118 -> National use of sanitation facilities, 2004–2020 | J7: =B218 -> Urban use of sanitation facilities, 2004–2020 | R7: =B318 -> Rural use of sanitation facilities, 2004–2020
B31: =IF(ISERROR(INDIRECT(CONCATENATE($B105,"!A2"))),"",INDIRECT(CONCATENATE($B105,"!A2"))) -> Afghanistan | F31: Poorest | J31: Poor | N31: Middle | R31: Rich | V31: Richest
F32: Basic | G32: Limited | H32: Unimproved | I32: Open defecation | J32: Basic | K32: Limited | L32: Unimproved | M32: Open defecation | N32: Basic | O32: Limited | P32: Unimproved | Q32: Open defecation | R32: Basic | S32: Limited | T32: Unimproved | U32: Open defecation | V32: Basic | W32: Limited | X32: Unimproved | Y32: Open defecation
B33: NATIONAL | D33: Estimate | E33: =C99 -> 2004 | F33: =E99 -> 11.85252264 | G33: =F99 -> 2.380160079 | H33: 46.13945047 | I33: 39.62786681 | J33: =J99 -> 22.53128329 | K33: =K99 -> 5.704809883 | L33: 44.72625767 | M33: 27.03764915 | N33: =O99 -> 22.82204226 | O33: =P99 -> 6.429685315 | P33: 47.56158071 | Q33: 23.18669172 | R33: =T99 -> 24.0073311 | S33: =U99 -> 9.888370044 | T33: 51.4227769 | U33: 14.68152195 | V33: =Y99 -> 43.32854998 | W33: =Z99 -> 17.22692684 | X33: 37.55494929 | Y33: 1.889573895
E34: =C100 -> 2020 | F34: =E100 -> 35.12852126 | G34: 7.054321384 | H34: 44.07791826 | I34: 13.7392391 | J34: =J100 -> 27.26608775 | K34: 6.903639034 | L34: 53.57159616 | M34: 12.25867706 | N34: =O100 -> 34.68382059 | O34: 9.771520417 | P34: 50.31653576 | Q34: 5.22812323 | R34: =T100 -> 30.19375996 | S34: 12.43649576 | T34: 37.61085869 | U34: 19.75888559 | V34: =Y100 -> 58.36762744 | W34: 23.20628888 | X34: 17.79682446 | Y34: 0.6292592204
B36: URBAN | D36: Estimate | E36: =C199 -> 2004 | F36: =E199 -> 29.75952939 | G36: =F199 -> 13.17370119 | H36: 52.43403342 | I36: 4.632736003 | J36: =J199 -> 34.74324592 | K36: =K199 -> 16.24265833 | L36: 48.50319715 | M36: 0.5108986077 | N36: =O199 -> 36.19133908 | O36: =P199 -> 20.48653343 | P36: 43.19031554 | Q36: 0.131811949 | R36: =T199 -> 47.70537219 | S36: =U199 -> 18.71916821 | T36: 33.5754596 | U36: 0 | V36: =Y199 -> 67.4590426 | W36: =Z199 -> 20.00741864 | X36: 12.53353875 | Y36: 0
E37: =C200 -> 2020 | F37: =E200 -> 48.1403835 | G37: 21.31038495 | H37: 27.10771696 | I37: 3.441514585 | J37: =J200 -> 53.41975557 | K37: 24.97402919 | L37: 21.49103375 | M37: 0.1151814915 | N37: =O200 -> 54.29172389 | O37: 30.73246927 | P37: 14.85074085 | Q37: 0.1250659953 | R37: =T200 -> 61.34430307 | S37: 24.07096466 | T37: 14.07000791 | U37: 0.5147243573 | V37: =Y200 -> 73.89273613 | W37: 21.91556312 | X37: 4.191700743 | Y37: 0
B39: RURAL | D39: Estimate | E39: =C299 -> 2004 | F39: =E299 -> 9.960609394 | G39: =F299 -> 1.97255501 | H39: 45.56300779 | I39: 42.50382781 | J39: =J299 -> 20.59007158 | K39: =K299 -> 4.664997213 | L39: 46.15452305 | M39: 28.59040816 | N39: =O299 -> 25.83679747 | O39: =P299 -> 6.472508377 | P39: 44.02997368 | Q39: 23.66072048 | R39: =T299 -> 21.73313062 | S39: =U299 -> 6.092452307 | T39: 48.8615486 | U39: 23.31286847 | V39: =Y299 -> 25.80648889 | W39: =Z299 -> 10.43997793 | X39: 45.61975823 | Y39: 18.13377495
E40: =C300 -> 2020 | F40: =E300 -> 35.49177578 | G40: 7.02863423 | H40: 43.87902149 | I40: 13.6005685 | J40: =J300 -> 29.5492567 | K40: 6.694838317 | L40: 50.35524911 | M40: 13.40065588 | N40: =O300 -> 25.34846435 | O40: 6.350173549 | P40: 56.60897646 | Q40: 11.69238564 | R40: =T300 -> 32.63518708 | S40: 9.1486277 | T40: 52.12887935 | U40: 6.087305875 | V40: =Y300 -> 32.22913976 | W40: 13.0382521 | X40: 49.73566029 | Y40: 4.996947861
A97: NATIONAL | D97: Poorest | I97: Poor | N97: Middle | S97: Rich | X97: Richest
D98: Improved | E98: Basic | F98: Limited | G98: Unimproved | H98: Open defecation | I98: Improved | J98: Basic | K98: Limited | L98: Unimproved | M98: Open defecation | N98: Improved | O98: Basic | P98: Limited | Q98: Unimproved | R98: Open defecation | S98: Improved | T98: Basic | U98: Limited | V98: Unimproved | W98: Open defecation | X98: Improved | Y98: Basic | Z98: Limited | AA98: Unimproved | AB98: Open defecation
A99: Forecast period: | C99: 2004 | D99: =IF((D101+H101)>100,D101*100/(D101+H101),D101) -> 14.23268272 | E99: =D99*AVERAGEIF(E105:E116,">0")/100 -> 11.85252264 | F99: =D99*(100-AVERAGEIF(E105:E116,">0"))/100 -> 2.380160079 | G99: =100-(E99+F99+H99) -> 46.13945047 | H99: =IF((D101+H101)>100,H101*100/(D101+H101),H101) -> 39.62786681 | I99: =IF((I101+M101)>100,I101*100/(I101+M101),I101) -> 28.23609318 | J99: =I99*AVERAGEIF(J105:J116,">0")/100 -> 22.53128329 | K99: =I99*(100-AVERAGEIF(J105:J116,">0"))/100 -> 5.704809883 | L99: =100-(J99+K99+M99) -> 44.72625767 | M99: =IF((I101+M101)>100,M101*100/(I101+M101),M101) -> 27.03764915 | N99: =IF((N101+R101)>100,N101*100/(N101+R101),N101) -> 29.25172758 | O99: =N99*AVERAGEIF(O105:O116,">0")/100 -> 22.82204226 | P99: =N99*(100-AVERAGEIF(O105:O116,">0"))/100 -> 6.429685315 | Q99: =100-(O99+P99+R99) -> 47.56158071 | R99: =IF((N101+R101)>100,R101*100/(N101+R101),R101) -> 23.18669172 | S99: =IF((S101+W101)>100,S101*100/(S101+W101),S101) -> 33.89570114 | T99: =S99*AVERAGEIF(T105:T116,">0")/100 -> 24.0073311 | U99: =S99*(100-AVERAGEIF(T105:T116,">0"))/100 -> 9.888370044 | V99: =100-(T99+U99+W99) -> 51.4227769 | W99: =IF((S101+W101)>100,W101*100/(S101+W101),W101) -> 14.68152195 | X99: =IF((X101+AB101)>100,X101*100/(X101+AB101),X101) -> 60.55547682 | Y99: =X99*AVERAGEIF(Y105:Y116,">0")/100 -> 43.32854998 | Z99: =X99*(100-AVERAGEIF(Y105:Y116,">0"))/100 -> 17.22692684 | AA99: =100-(Y99+Z99+AB99) -> 37.55494929 | AB99: =IF((X101+AB101)>100,AB101*100/(X101+AB101),AB101) -> 1.889573895
C100: 2020 | D100: =IF((D102+H102)>100,D102*100/(D102+H102),D102) -> 42.18284264 | E100: =D100*AVERAGEIF(E105:E116,">0")/100 -> 35.12852126 | F100: =D100*(100-AVERAGEIF(E105:E116,">0"))/100 -> 7.054321384 | G100: =100-(E100+F100+H100) -> 44.07791826 | H100: =IF((D102+H102)>100,H102*100/(D102+H102),H102) -> 13.7392391 | I100: =IF((I102+M102)>100,I102*100/(I102+M102),I102) -> 34.16972678 | J100: =I100*AVERAGEIF(J105:J116,">0")/100 -> 27.26608775 | K100: =I100*(100-AVERAGEIF(J105:J116,">0"))/100 -> 6.903639034 | L100: =100-(J100+K100+M100) -> 53.57159616 | M100: =IF((I102+M102)>100,M102*100/(I102+M102),M102) -> 12.25867706 | N100: =IF((N102+R102)>100,N102*100/(N102+R102),N102) -> 44.45534101 | O100: =N100*AVERAGEIF(O105:O116,">0")/100 -> 34.68382059 | P100: =N100*(100-AVERAGEIF(O105:O116,">0"))/100 -> 9.771520417 | Q100: =100-(O100+P100+R100) -> 50.31653576 | R100: =IF((N102+R102)>100,R102*100/(N102+R102),R102) -> 5.22812323 | S100: =IF((S102+W102)>100,S102*100/(S102+W102),S102) -> 42.63025572 | T100: =S100*AVERAGEIF(T105:T116,">0")/100 -> 30.19375996 | U100: =S100*(100-AVERAGEIF(T105:T116,">0"))/100 -> 12.43649576 | V100: =100-(T100+U100+W100) -> 37.61085869 | W100: =IF((S102+W102)>100,W102*100/(S102+W102),W102) -> 19.75888559 | X100: =IF((X102+AB102)>100,X102*100/(X102+AB102),X102) -> 81.57391632 | Y100: =X100*AVERAGEIF(Y105:Y116,">0")/100 -> 58.36762744 | Z100: =X100*(100-AVERAGEIF(Y105:Y116,">0"))/100 -> 23.20628888 | AA100: =100-(Y100+Z100+AB100) -> 17.79682446 | AB100: =IF((X102+AB102)>100,AB102*100/(X102+AB102),AB102) -> 0.6292592204
A101: Regression period: | C101: =MinRegYear(C99,C105:C116) -> 2008 | D101: =IF(MAX(C105:C116)-MIN(C105:C116)<5,AVERAGEIF(C105:C116,">0",D105:D116), IF(FORECAST($C101,D$105:D$116,$C$105:$C$116)<0,0, IF(FORECAST($C101,D$105:D$116,$C$105:$C$116)>100,100, FORECAST($C101,D$105:D$116,$C$105:$C$116)))) -> 14.23268272 | H101: =IF(MAX(C105:C116)-MIN(C105:C116)<5,AVERAGEIF(C105:C116,">0",H105:H116), IF(FORECAST($C101,H$105:H$116,$C$105:$C$116)<0,0, IF(FORECAST($C101,H$105:H$116,$C$105:$C$116)>100,100, FORECAST($C101,H$105:H$116,$C$105:$C$116)))) -> 39.62786681 | I101: =IF(MAX(C105:C116)-MIN(C105:C116)<5,AVERAGEIF(C105:C116,">0",I105:I116), IF(FORECAST($C101,I$105:I$116,$C$105:$C$116)<0,0, IF(FORECAST($C101,I$105:I$116,$C$105:$C$116)>100,100, FORECAST($C101,I$105:I$116,$C$105:$C$116)))) -> 28.23609318 | M101: =IF(MAX(C105:C116)-MIN(C105:C116)<5,AVERAGEIF(C105:C116,">0",M105:M116), IF(FORECAST($C101,M$105:M$116,$C$105:$C$116)<0,0, IF(FORECAST($C101,M$105:M$116,$C$105:$C$116)>100,100, FORECAST($C101,M$105:M$116,$C$105:$C$116)))) -> 27.03764915 | N101: =IF(MAX(C105:C116)-MIN(C105:C116)<5,AVERAGEIF(C105:C116,">0",N105:N116), IF(FORECAST($C101,N$105:N$116,$C$105:$C$116)<0,0, IF(FORECAST($C101,N$105:N$116,$C$105:$C$116)>100,100, FORECAST($C101,N$105:N$116,$C$105:$C$116)))) -> 29.25172758 | R101: =IF(MAX(C105:C116)-MIN(C105:C116)<5,AVERAGEIF(C105:C116,">0",R105:R116), IF(FORECAST($C101,R$105:R$116,$C$105:$C$116)<0,0, IF(FORECAST($C101,R$105:R$116,$C$105:$C$116)>100,100, FORECAST($C101,R$105:R$116,$C$105:$C$116)))) -> 23.18669172 | S101: =IF(MAX(C105:C116)-MIN(C105:C116)<5,AVERAGEIF(C105:C116,">0",S105:S116), IF(FORECAST($C101,S$105:S$116,$C$105:$C$116)<0,0, IF(FORECAST($C101,S$105:S$116,$C$105:$C$116)>100,100, FORECAST($C101,S$105:S$116,$C$105:$C$116)))) -> 33.89570114 | W101: =IF(MAX(C105:C116)-MIN(C105:C116)<5,AVERAGEIF(C105:C116,">0",W105:W116), IF(FORECAST($C101,W$105:W$116,$C$105:$C$116)<0,0, IF(FORECAST($C101,W$105:W$116,$C$105:$C$116)>100,100, FORECAST($C101,W$105:W$116,$C$105:$C$116)))) -> 14.68152195 | X101: =IF(MAX(C105:C116)-MIN(C105:C116)<5,AVERAGEIF(C105:C116,">0",X105:X116), IF(FORECAST($C101,X$105:X$116,$C$105:$C$116)<0,0, IF(FORECAST($C101,X$105:X$116,$C$105:$C$116)>100,100, FORECAST($C101,X$105:X$116,$C$105:$C$116)))) -> 60.55547682 | AB101: =IF(MAX(C105:C116)-MIN(C105:C116)<5,AVERAGEIF(C105:C116,">0",AB105:AB116), IF(FORECAST($C101,AB$105:AB$116,$C$105:$C$116)<0,0, IF(FORECAST($C101,AB$105:AB$116,$C$105:$C$116)>100,100, FORECAST($C101,AB$105:AB$116,$C$105:$C$116)))) -> 1.889573895
C102: =MaxRegYear(C100,C105:C116) -> 2019 | D102: =IF(MAX(C105:C116)-MIN(C105:C116)<5,AVERAGEIF(C105:C116,">0",D105:D116), IF(FORECAST($C102,D$105:D$116,$C$105:$C$116)<0,0, IF(FORECAST($C102,D$105:D$116,$C$105:$C$116)>100,100, FORECAST($C102,D$105:D$116,$C$105:$C$116)))) -> 42.18284264 | H102: =IF(MAX(C105:C116)-MIN(C105:C116)<5,AVERAGEIF(C105:C116,">0",H105:H116), IF(FORECAST($C102,H$105:H$116,$C$105:$C$116)<0,0, IF(FORECAST($C102,H$105:H$116,$C$105:$C$116)>100,100, FORECAST($C102,H$105:H$116,$C$105:$C$116)))) -> 13.7392391 | I102: =IF(MAX(C105:C116)-MIN(C105:C116)<5,AVERAGEIF(C105:C116,">0",I105:I116), IF(FORECAST($C102,I$105:I$116,$C$105:$C$116)<0,0, IF(FORECAST($C102,I$105:I$116,$C$105:$C$116)>100,100, FORECAST($C102,I$105:I$116,$C$105:$C$116)))) -> 34.16972678 | M102: =IF(MAX(C105:C116)-MIN(C105:C116)<5,AVERAGEIF(C105:C116,">0",M105:M116), IF(FORECAST($C102,M$105:M$116,$C$105:$C$116)<0,0, IF(FORECAST($C102,M$105:M$116,$C$105:$C$116)>100,100, FORECAST($C102,M$105:M$116,$C$105:$C$116)))) -> 12.25867706 | N102: =IF(MAX(C105:C116)-MIN(C105:C116)<5,AVERAGEIF(C105:C116,">0",N105:N116), IF(FORECAST($C102,N$105:N$116,$C$105:$C$116)<0,0, IF(FORECAST($C102,N$105:N$116,$C$105:$C$116)>100,100, FORECAST($C102,N$105:N$116,$C$105:$C$116)))) -> 44.45534101 | R102: =IF(MAX(C105:C116)-MIN(C105:C116)<5,AVERAGEIF(C105:C116,">0",R105:R116), IF(FORECAST($C102,R$105:R$116,$C$105:$C$116)<0,0, IF(FORECAST($C102,R$105:R$116,$C$105:$C$116)>100,100, FORECAST($C102,R$105:R$116,$C$105:$C$116)))) -> 5.22812323 | S102: =IF(MAX(C105:C116)-MIN(C105:C116)<5,AVERAGEIF(C105:C116,">0",S105:S116), IF(FORECAST($C102,S$105:S$116,$C$105:$C$116)<0,0, IF(FORECAST($C102,S$105:S$116,$C$105:$C$116)>100,100, FORECAST($C102,S$105:S$116,$C$105:$C$116)))) -> 42.63025572 | W102: =IF(MAX(C105:C116)-MIN(C105:C116)<5,AVERAGEIF(C105:C116,">0",W105:W116), IF(FORECAST($C102,W$105:W$116,$C$105:$C$116)<0,0, IF(FORECAST($C102,W$105:W$116,$C$105:$C$116)>100,100, FORECAST($C102,W$105:W$116,$C$105:$C$116)))) -> 19.75888559 | X102: =IF(MAX(C105:C116)-MIN(C105:C116)<5,AVERAGEIF(C105:C116,">0",X105:X116), IF(FORECAST($C102,X$105:X$116,$C$105:$C$116)<0,0, IF(FORECAST($C102,X$105:X$116,$C$105:$C$116)>100,100, FORECAST($C102,X$105:X$116,$C$105:$C$116)))) -> 81.57391632 | AB102: =IF(MAX(C105:C116)-MIN(C105:C116)<5,AVERAGEIF(C105:C116,">0",AB105:AB116), IF(FORECAST($C102,AB$105:AB$116,$C$105:$C$116)<0,0, IF(FORECAST($C102,AB$105:AB$116,$C$105:$C$116)>100,100, FORECAST($C102,AB$105:AB$116,$C$105:$C$116)))) -> 0.6292592204
B104: Survey | C104: Year | D104: Improved | E104: Not shared | H104: Open defecation | I104: Improved | J104: Not shared | M104: Open defecation | N104: Improved | O104: Not shared | R104: Open defecation | S104: Improved | T104: Not shared | W104: Open defecation | X104: Improved | Y104: Not shared | AB104: Open defecation
B105: DHS10 | C105: 2010 | D105: =IF(ISERROR(INDIRECT(CONCATENATE($B105,"!C122"))),"",INDIRECT(CONCATENATE($B105,"!C122"))) -> 19.98480869 | E105: =IF(ISERROR(INDIRECT(CONCATENATE($B105,"!C129"))),"",INDIRECT(CONCATENATE($B105,"!C129"))) -> 74.93298805 | H105: =IF(ISERROR(INDIRECT(CONCATENATE($B105,"!C127"))),"",INDIRECT(CONCATENATE($B105,"!C127"))) -> 38.76704356 | I105: =IF(ISERROR(INDIRECT(CONCATENATE($B105,"!D122"))),"",INDIRECT(CONCATENATE($B105,"!D122"))) -> 30.80709934 | J105: =IF(ISERROR(INDIRECT(CONCATENATE($B105,"!D129"))),"",INDIRECT(CONCATENATE($B105,"!D129"))) -> 67.03999394 | M105: =IF(ISERROR(INDIRECT(CONCATENATE($B105,"!D127"))),"",INDIRECT(CONCATENATE($B105,"!D127"))) -> 20.95938126 | N105: =IF(ISERROR(INDIRECT(CONCATENATE($B105,"!E122"))),"",INDIRECT(CONCATENATE($B105,"!E122"))) -> 31.41089138 | O105: =IF(ISERROR(INDIRECT(CONCATENATE($B105,"!E129"))),"",INDIRECT(CONCATENATE($B105,"!E129"))) -> 59.16144584 | R105: =IF(ISERROR(INDIRECT(CONCATENATE($B105,"!E127"))),"",INDIRECT(CONCATENATE($B105,"!E127"))) -> 21.06381527 | S105: =IF(ISERROR(INDIRECT(CONCATENATE($B105,"!F122"))),"",INDIRECT(CONCATENATE($B105,"!F122"))) -> 37.73830808 | T105: =IF(ISERROR(INDIRECT(CONCATENATE($B105,"!F129"))),"",INDIRECT(CONCATENATE($B105,"!F129"))) -> 37.01010499 | W105: =IF(ISERROR(INDIRECT(CONCATENATE($B105,"!F127"))),"",INDIRECT(CONCATENATE($B105,"!F127"))) -> 18.7277267 | X105: =IF(ISERROR(INDIRECT(CONCATENATE($B105,"!G122"))),"",INDIRECT(CONCATENATE($B105,"!G122"))) -> 70.19460768 | Y105: =IF(ISERROR(INDIRECT(CONCATENATE($B105,"!G129"))),"",INDIRECT(CONCATENATE($B105,"!G129"))) -> 48.79613094 | AB105: =IF(ISERROR(INDIRECT(CONCATENATE($B105,"!G2127"))),"",INDIRECT(CONCATENATE($B105,"!G127"))) -> 2.205333106
B106: MICS11 | C106: 2011 | D106: 27.40944236 | E106: 94.44527423 | H106: 26.70723661 | I106: 31.90264986 | J106: 95.06972871 | M106: 27.19599423 | N106: 37.99635296 | O106: 95.45380735 | R106: 17.49743266 | S106: 33.91179731 | T106: 90.7843705 | W106: 16.21069825 | X106: 61.85742635 | Y106: 84.5730476 | AB106: 0.7076990573
B107: DHS15 | C107: 2015 | D107: 13.0112064 | E107: 75.50611045 | H107: 27.27187175 | I107: 20.64459001 | J107: 73.19315817 | M107: 16.9350644 | N107: 27.25015169 | O107: 73.37759707 | R107: 10.13480234 | S107: 38.66144792 | T107: 80.01990436 | W107: 6.548582241 | X107: 66.86031642 | Y107: 85.45621671 | AB107: 1.694837756
B108: ALCS17 | C108: 2017 | D108: 49.88466966 | E108: 88.22282496 | H108: 16.34157151 | I108: 40.91787947 | J108: 83.88126626 | M108: 14.84575543 | N108: 49.37459448 | O108: 84.08502208 | R108: 9.76617676 | S108: 41.94630999 | T108: 75.49388981 | W108: 26.93222938 | X108: 83.43566859 | Y108: 67.38191253 | AB108: 0.5443703717
B118: =CONCATENATE("National use of sanitation facilities, ",C99,"–",C100) -> National use of sanitation facilities, 2004–2020 | S118: Data points used for regression
A197: URBAN | D197: Poorest | I197: Poor | N197: Middle | S197: Rich | X197: Richest
D198: Improved | E198: Basic | F198: Limited | G198: Unimproved | H198: Open defecation | I198: Improved | J198: Basic | K198: Limited | L198: Unimproved | M198: Open defecation | N198: Improved | O198: Basic | P198: Limited | Q198: Unimproved | R198: Open defecation | S198: Improved | T198: Basic | U198: Limited | V198: Unimproved | W198: Open defecation | X198: Improved | Y198: Basic | Z198: Limited | AA198: Unimproved | AB198: Open defecation
A199: Forecast period: | C199: 2004 | D199: =IF((D201+H201)>100,D201*100/(D201+H201),D201) -> 42.93323057 | E199: =D199*AVERAGEIF(E205:E216,">0")/100 -> 29.75952939 | F199: =D199*(100-AVERAGEIF(E205:E216,">0"))/100 -> 13.17370119 | G199: =100-(E199+F199+H199) -> 52.43403342 | H199: =IF((D201+H201)>100,H201*100/(D201+H201),H201) -> 4.632736003 | I199: =IF((I201+M201)>100,I201*100/(I201+M201),I201) -> 50.98590424 | J199: =I199*AVERAGEIF(J205:J216,">0")/100 -> 34.74324592 | K199: =I199*(100-AVERAGEIF(J205:J216,">0"))/100 -> 16.24265833 | L199: =100-(J199+K199+M199) -> 48.50319715 | M199: =IF((I201+M201)>100,M201*100/(I201+M201),M201) -> 0.5108986077 | N199: =IF((N201+R201)>100,N201*100/(N201+R201),N201) -> 56.67787251 | O199: =N199*AVERAGEIF(O205:O216,">0")/100 -> 36.19133908 | P199: =N199*(100-AVERAGEIF(O205:O216,">0"))/100 -> 20.48653343 | Q199: =100-(O199+P199+R199) -> 43.19031554 | R199: =IF((N201+R201)>100,R201*100/(N201+R201),R201) -> 0.131811949 | S199: =IF((S201+W201)>100,S201*100/(S201+W201),S201) -> 66.4245404 | T199: =S199*AVERAGEIF(T205:T216,">0")/100 -> 47.70537219 | U199: =S199*(100-AVERAGEIF(T205:T216,">0"))/100 -> 18.71916821 | V199: =100-(T199+U199+W199) -> 33.5754596 | W199: =IF((S201+W201)>100,W201*100/(S201+W201),W201) -> 0 | X199: =IF((X201+AB201)>100,X201*100/(X201+AB201),X201) -> 87.46646125 | Y199: =X199*AVERAGEIF(Y205:Y216,">0")/100 -> 67.4590426 | Z199: =X199*(100-AVERAGEIF(Y205:Y216,">0"))/100 -> 20.00741864 | AA199: =100-(Y199+Z199+AB199) -> 12.53353875 | AB199: =IF((X201+AB201)>100,AB201*100/(X201+AB201),AB201) -> 0
C200: 2020 | D200: =IF((D202+H202)>100,D202*100/(D202+H202),D202) -> 69.45076845 | E200: =D200*AVERAGEIF(E205:E216,">0")/100 -> 48.1403835 | F200: =D200*(100-AVERAGEIF(E205:E216,">0"))/100 -> 21.31038495 | G200: =100-(E200+F200+H200) -> 27.10771696 | H200: =IF((D202+H202)>100,H202*100/(D202+H202),H202) -> 3.441514585 | I200: =IF((I202+M202)>100,I202*100/(I202+M202),I202) -> 78.39378476 | J200: =I200*AVERAGEIF(J205:J216,">0")/100 -> 53.41975557 | K200: =I200*(100-AVERAGEIF(J205:J216,">0"))/100 -> 24.97402919 | L200: =100-(J200+K200+M200) -> 21.49103375 | M200: =IF((I202+M202)>100,M202*100/(I202+M202),M202) -> 0.1151814915 | N200: =IF((N202+R202)>100,N202*100/(N202+R202),N202) -> 85.02419316 | O200: =N200*AVERAGEIF(O205:O216,">0")/100 -> 54.29172389 | P200: =N200*(100-AVERAGEIF(O205:O216,">0"))/100 -> 30.73246927 | Q200: =100-(O200+P200+R200) -> 14.85074085 | R200: =IF((N202+R202)>100,R202*100/(N202+R202),R202) -> 0.1250659953 | S200: =IF((S202+W202)>100,S202*100/(S202+W202),S202) -> 85.41526773 | T200: =S200*AVERAGEIF(T205:T216,">0")/100 -> 61.34430307 | U200: =S200*(100-AVERAGEIF(T205:T216,">0"))/100 -> 24.07096466 | V200: =100-(T200+U200+W200) -> 14.07000791 | W200: =IF((S202+W202)>100,W202*100/(S202+W202),W202) -> 0.5147243573 | X200: =IF((X202+AB202)>100,X202*100/(X202+AB202),X202) -> 95.80829926 | Y200: =X200*AVERAGEIF(Y205:Y216,">0")/100 -> 73.89273613 | Z200: =X200*(100-AVERAGEIF(Y205:Y216,">0"))/100 -> 21.91556312 | AA200: =100-(Y200+Z200+AB200) -> 4.191700743 | AB200: =IF((X202+AB202)>100,AB202*100/(X202+AB202),AB202) -> 0
A201: Regression period: | C201: =MinRegYear(C199,C205:C216) -> 2008 | D201: =IF(MAX(C205:C216)-MIN(C205:C216)<5,AVERAGEIF(C205:C216,">0",D205:D216), IF(FORECAST($C201,D$205:D$216,$C$205:$C$216)<0,0, IF(FORECAST($C201,D$205:D$216,$C$205:$C$216)>100,100, FORECAST($C201,D$205:D$216,$C$205:$C$216)))) -> 42.93323057 | H201: =IF(MAX(C205:C216)-MIN(C205:C216)<5,AVERAGEIF(C205:C216,">0",H205:H216), IF(FORECAST($C201,H$205:H$216,$C$205:$C$216)<0,0, IF(FORECAST($C201,H$205:H$216,$C$205:$C$216)>100,100, FORECAST($C201,H$205:H$216,$C$205:$C$216)))) -> 4.632736003 | I201: =IF(MAX(C205:C216)-MIN(C205:C216)<5,AVERAGEIF(C205:C216,">0",I205:I216), IF(FORECAST($C201,I$205:I$216,$C$205:$C$216)<0,0, IF(FORECAST($C201,I$205:I$216,$C$205:$C$216)>100,100, FORECAST($C201,I$205:I$216,$C$205:$C$216)))) -> 50.98590424 | M201: =IF(MAX(C205:C216)-MIN(C205:C216)<5,AVERAGEIF(C205:C216,">0",M205:M216), IF(FORECAST($C201,M$205:M$216,$C$205:$C$216)<0,0, IF(FORECAST($C201,M$205:M$216,$C$205:$C$216)>100,100, FORECAST($C201,M$205:M$216,$C$205:$C$216)))) -> 0.5108986077 | N201: =IF(MAX(C205:C216)-MIN(C205:C216)<5,AVERAGEIF(C205:C216,">0",N205:N216), IF(FORECAST($C201,N$205:N$216,$C$205:$C$216)<0,0, IF(FORECAST($C201,N$205:N$216,$C$205:$C$216)>100,100, FORECAST($C201,N$205:N$216,$C$205:$C$216)))) -> 56.67787251 | R201: =IF(MAX(C205:C216)-MIN(C205:C216)<5,AVERAGEIF(C205:C216,">0",R205:R216), IF(FORECAST($C201,R$205:R$216,$C$205:$C$216)<0,0, IF(FORECAST($C201,R$205:R$216,$C$205:$C$216)>100,100, FORECAST($C201,R$205:R$216,$C$205:$C$216)))) -> 0.131811949 | S201: =IF(MAX(C205:C216)-MIN(C205:C216)<5,AVERAGEIF(C205:C216,">0",S205:S216), IF(FORECAST($C201,S$205:S$216,$C$205:$C$216)<0,0, IF(FORECAST($C201,S$205:S$216,$C$205:$C$216)>100,100, FORECAST($C201,S$205:S$216,$C$205:$C$216)))) -> 66.4245404 | W201: =IF(MAX(C205:C216)-MIN(C205:C216)<5,AVERAGEIF(C205:C216,">0",W205:W216), IF(FORECAST($C201,W$205:W$216,$C$205:$C$216)<0,0, IF(FORECAST($C201,W$205:W$216,$C$205:$C$216)>100,100, FORECAST($C201,W$205:W$216,$C$205:$C$216)))) -> 0 | X201: =IF(MAX(C205:C216)-MIN(C205:C216)<5,AVERAGEIF(C205:C216,">0",X205:X216), IF(FORECAST($C201,X$205:X$216,$C$205:$C$216)<0,0, IF(FORECAST($C201,X$205:X$216,$C$205:$C$216)>100,100, FORECAST($C201,X$205:X$216,$C$205:$C$216)))) -> 87.46646125 | AB201: =IF(MAX(C205:C216)-MIN(C205:C216)<5,AVERAGEIF(C205:C216,">0",AB205:AB216), IF(FORECAST($C201,AB$205:AB$216,$C$205:$C$216)<0,0, IF(FORECAST($C201,AB$205:AB$216,$C$205:$C$216)>100,100, FORECAST($C201,AB$205:AB$216,$C$205:$C$216)))) -> 0
C202: =MaxRegYear(C200,C205:C216) -> 2019 | D202: =IF(MAX(C205:C216)-MIN(C205:C216)<5,AVERAGEIF(C205:C216,">0",D205:D216), IF(FORECAST($C202,D$205:D$216,$C$205:$C$216)<0,0, IF(FORECAST($C202,D$205:D$216,$C$205:$C$216)>100,100, FORECAST($C202,D$205:D$216,$C$205:$C$216)))) -> 69.45076845 | H202: =IF(MAX(C205:C216)-MIN(C205:C216)<5,AVERAGEIF(C205:C216,">0",H205:H216), IF(FORECAST($C202,H$205:H$216,$C$205:$C$216)<0,0, IF(FORECAST($C202,H$205:H$216,$C$205:$C$216)>100,100, FORECAST($C202,H$205:H$216,$C$205:$C$216)))) -> 3.441514585 | I202: =IF(MAX(C205:C216)-MIN(C205:C216)<5,AVERAGEIF(C205:C216,">0",I205:I216), IF(FORECAST($C202,I$205:I$216,$C$205:$C$216)<0,0, IF(FORECAST($C202,I$205:I$216,$C$205:$C$216)>100,100, FORECAST($C202,I$205:I$216,$C$205:$C$216)))) -> 78.39378476 | M202: =IF(MAX(C205:C216)-MIN(C205:C216)<5,AVERAGEIF(C205:C216,">0",M205:M216), IF(FORECAST($C202,M$205:M$216,$C$205:$C$216)<0,0, IF(FORECAST($C202,M$205:M$216,$C$205:$C$216)>100,100, FORECAST($C202,M$205:M$216,$C$205:$C$216)))) -> 0.1151814915 | N202: =IF(MAX(C205:C216)-MIN(C205:C216)<5,AVERAGEIF(C205:C216,">0",N205:N216), IF(FORECAST($C202,N$205:N$216,$C$205:$C$216)<0,0, IF(FORECAST($C202,N$205:N$216,$C$205:$C$216)>100,100, FORECAST($C202,N$205:N$216,$C$205:$C$216)))) -> 85.02419316 | R202: =IF(MAX(C205:C216)-MIN(C205:C216)<5,AVERAGEIF(C205:C216,">0",R205:R216), IF(FORECAST($C202,R$205:R$216,$C$205:$C$216)<0,0, IF(FORECAST($C202,R$205:R$216,$C$205:$C$216)>100,100, FORECAST($C202,R$205:R$216,$C$205:$C$216)))) -> 0.1250659953 | S202: =IF(MAX(C205:C216)-MIN(C205:C216)<5,AVERAGEIF(C205:C216,">0",S205:S216), IF(FORECAST($C202,S$205:S$216,$C$205:$C$216)<0,0, IF(FORECAST($C202,S$205:S$216,$C$205:$C$216)>100,100, FORECAST($C202,S$205:S$216,$C$205:$C$216)))) -> 85.41526773 | W202: =IF(MAX(C205:C216)-MIN(C205:C216)<5,AVERAGEIF(C205:C216,">0",W205:W216), IF(FORECAST($C202,W$205:W$216,$C$205:$C$216)<0,0, IF(FORECAST($C202,W$205:W$216,$C$205:$C$216)>100,100, FORECAST($C202,W$205:W$216,$C$205:$C$216)))) -> 0.5147243573 | X202: =IF(MAX(C205:C216)-MIN(C205:C216)<5,AVERAGEIF(C205:C216,">0",X205:X216), IF(FORECAST($C202,X$205:X$216,$C$205:$C$216)<0,0, IF(FORECAST($C202,X$205:X$216,$C$205:$C$216)>100,100, FORECAST($C202,X$205:X$216,$C$205:$C$216)))) -> 95.80829926 | AB202: =IF(MAX(C205:C216)-MIN(C205:C216)<5,AVERAGEIF(C205:C216,">0",AB205:AB216), IF(FORECAST($C202,AB$205:AB$216,$C$205:$C$216)<0,0, IF(FORECAST($C202,AB$205:AB$216,$C$205:$C$216)>100,100, FORECAST($C202,AB$205:AB$216,$C$205:$C$216)))) -> 0
B204: Survey | C204: Year | D204: Improved | E204: Not shared | H204: Open defecation | I204: Improved | J204: Not shared | M204: Open defecation | N204: Improved | O204: Not shared | R204: Open defecation | S204: Improved | T204: Not shared | W204: Open defecation | X204: Improved | Y204: Not shared | AB204: Open defecation
B205: DHS10 | C205: 2010 | D205: =IF(ISERROR(INDIRECT(CONCATENATE($B205,"!H122"))),"",INDIRECT(CONCATENATE($B205,"!H122"))) -> 48.83527164 | E205: =IF(ISERROR(INDIRECT(CONCATENATE($B205,"!H129"))),"",INDIRECT(CONCATENATE($B205,"!H129"))) -> 47.31629517 | H205: =IF(ISERROR(INDIRECT(CONCATENATE($B205,"!H127"))),"",INDIRECT(CONCATENATE($B205,"!H127"))) -> 5.147464576 | I205: =IF(ISERROR(INDIRECT(CONCATENATE($B205,"!I122"))),"",INDIRECT(CONCATENATE($B205,"!I122"))) -> 59.88634326 | J205: =IF(ISERROR(INDIRECT(CONCATENATE($B205,"!I129"))),"",INDIRECT(CONCATENATE($B205,"!I129"))) -> 47.27118977 | M205: =IF(ISERROR(INDIRECT(CONCATENATE($B205,"!I127"))),"",INDIRECT(CONCATENATE($B205,"!I127"))) -> 0.3504029752 | N205: =IF(ISERROR(INDIRECT(CONCATENATE($B205,"!J122"))),"",INDIRECT(CONCATENATE($B205,"!J122"))) -> 68.61305227 | O205: =IF(ISERROR(INDIRECT(CONCATENATE($B205,"!J129"))),"",INDIRECT(CONCATENATE($B205,"!J129"))) -> 45.34647676 | R205: =IF(ISERROR(INDIRECT(CONCATENATE($B205,"!J127"))),"",INDIRECT(CONCATENATE($B205,"!J127"))) -> 0.1073549553 | S205: =IF(ISERROR(INDIRECT(CONCATENATE($B205,"!K122"))),"",INDIRECT(CONCATENATE($B205,"!K122"))) -> 75.32919557 | T205: =IF(ISERROR(INDIRECT(CONCATENATE($B205,"!K129"))),"",INDIRECT(CONCATENATE($B205,"!K129"))) -> 52.37962682 | W205: =IF(ISERROR(INDIRECT(CONCATENATE($B205,"!K127"))),"",INDIRECT(CONCATENATE($B205,"!K127"))) -> 0 | X205: =IF(ISERROR(INDIRECT(CONCATENATE($B205,"!L122"))),"",INDIRECT(CONCATENATE($B205,"!L122"))) -> 91.93399249 | Y205: =IF(ISERROR(INDIRECT(CONCATENATE($B205,"!L129"))),"",INDIRECT(CONCATENATE($B205,"!L129"))) -> 57.63832181 | AB205: =IF(ISERROR(INDIRECT(CONCATENATE($B205,"!L2127"))),"",INDIRECT(CONCATENATE($B205,"!L127"))) -> 0
B206: MICS11 | C206: 2011 | D206: 53.65802023 | E206: 90.18300647 | H206: 2.493527453 | I206: 55.92825342 | J206: 81.89034879 | M206: 0.5048871278 | N206: 57.49848988 | O206: 79.71041212 | R206: 0.1430087156 | S206: 66.35354244 | T206: 80.41050708 | W206: 0.01380284054 | X206: 86.821341 | Y206: 87.10619236 | AB206: 0
B207: DHS15 | C207: 2015 | D207: 45.54747889 | E207: 63.9316547 | H207: 6.758075958 | I207: 62.31470669 | J207: 75.71244707 | M207: 0.2632592454 | N207: 71.71247079 | O207: 78.13147103 | R207: 0.1697159512 | S207: 75.1791256 | T207: 86.29484247 | W207: 0 | X207: 91.20748756 | Y207: 88.43426525 | AB207: 0
B208: ALCS17 | C208: 2017 | D208: 74.31654203 | E208: 75.83240342 | H208: 1.857726046 | I208: 78.13844913 | J208: 67.69739608 | M208: 0.1695851332 | N208: 83.00318016 | O208: 52.22940707 | R208: 0.09428953496 | S208: 85.0913229 | T208: 68.19061126 | W208: 0.5688331494 | X208: 95.82835105 | Y208: 75.32366434 | AB208: 0
B218: =CONCATENATE("Urban use of sanitation facilities, ",C199,"–",C200) -> Urban use of sanitation facilities, 2004–2020 | S218: Data points used for regression
A297: RURAL | D297: Poorest | I297: Poor | N297: Middle | S297: Rich | X297: Richest
D298: Improved | E298: Basic | F298: Limited | G298: Unimproved | H298: Open defecation | I298: Improved | J298: Basic | K298: Limited | L298: Unimproved | M298: Open defecation | N298: Improved | O298: Basic | P298: Limited | Q298: Unimproved | R298: Open defecation | S298: Improved | T298: Basic | U298: Limited | V298: Unimproved | W298: Open defecation | X298: Improved | Y298: Basic | Z298: Limited | AA298: Unimproved | AB298: Open defecation
A299: Forecast period: | C299: 2004 | D299: =IF((D301+H301)>100,D301*100/(D301+H301),D301) -> 11.9331644 | E299: =D299*AVERAGEIF(E305:E316,">0")/100 -> 9.960609394 | F299: =D299*(100-AVERAGEIF(E305:E316,">0"))/100 -> 1.97255501 | G299: =100-(E299+F299+H299) -> 45.56300779 | H299: =IF((D301+H301)>100,H301*100/(D301+H301),H301) -> 42.50382781 | I299: =IF((I301+M301)>100,I301*100/(I301+M301),I301) -> 25.25506879 | J299: =I299*AVERAGEIF(J305:J316,">0")/100 -> 20.59007158 | K299: =I299*(100-AVERAGEIF(J305:J316,">0"))/100 -> 4.664997213 | L299: =100-(J299+K299+M299) -> 46.15452305 | M299: =IF((I301+M301)>100,M301*100/(I301+M301),M301) -> 28.59040816 | N299: =IF((N301+R301)>100,N301*100/(N301+R301),N301) -> 32.30930585 | O299: =N299*AVERAGEIF(O305:O316,">0")/100 -> 25.83679747 | P299: =N299*(100-AVERAGEIF(O305:O316,">0"))/100 -> 6.472508377 | Q299: =100-(O299+P299+R299) -> 44.02997368 | R299: =IF((N301+R301)>100,R301*100/(N301+R301),R301) -> 23.66072048 | S299: =IF((S301+W301)>100,S301*100/(S301+W301),S301) -> 27.82558293 | T299: =S299*AVERAGEIF(T305:T316,">0")/100 -> 21.73313062 | U299: =S299*(100-AVERAGEIF(T305:T316,">0"))/100 -> 6.092452307 | V299: =100-(T299+U299+W299) -> 48.8615486 | W299: =IF((S301+W301)>100,W301*100/(S301+W301),W301) -> 23.31286847 | X299: =IF((X301+AB301)>100,X301*100/(X301+AB301),X301) -> 36.24646682 | Y299: =X299*AVERAGEIF(Y305:Y316,">0")/100 -> 25.80648889 | Z299: =X299*(100-AVERAGEIF(Y305:Y316,">0"))/100 -> 10.43997793 | AA299: =100-(Y299+Z299+AB299) -> 45.61975823 | AB299: =IF((X301+AB301)>100,AB301*100/(X301+AB301),AB301) -> 18.13377495
C300: 2020 | D300: =IF((D302+H302)>100,D302*100/(D302+H302),D302) -> 42.52041001 | E300: =D300*AVERAGEIF(E305:E316,">0")/100 -> 35.49177578 | F300: =D300*(100-AVERAGEIF(E305:E316,">0"))/100 -> 7.02863423 | G300: =100-(E300+F300+H300) -> 43.87902149 | H300: =IF((D302+H302)>100,H302*100/(D302+H302),H302) -> 13.6005685 | I300: =IF((I302+M302)>100,I302*100/(I302+M302),I302) -> 36.24409502 | J300: =I300*AVERAGEIF(J305:J316,">0")/100 -> 29.5492567 | K300: =I300*(100-AVERAGEIF(J305:J316,">0"))/100 -> 6.694838317 | L300: =100-(J300+K300+M300) -> 50.35524911 | M300: =IF((I302+M302)>100,M302*100/(I302+M302),M302) -> 13.40065588 | N300: =IF((N302+R302)>100,N302*100/(N302+R302),N302) -> 31.6986379 | O300: =N300*AVERAGEIF(O305:O316,">0")/100 -> 25.34846435 | P300: =N300*(100-AVERAGEIF(O305:O316,">0"))/100 -> 6.350173549 | Q300: =100-(O300+P300+R300) -> 56.60897646 | R300: =IF((N302+R302)>100,R302*100/(N302+R302),R302) -> 11.69238564 | S300: =IF((S302+W302)>100,S302*100/(S302+W302),S302) -> 41.78381478 | T300: =S300*AVERAGEIF(T305:T316,">0")/100 -> 32.63518708 | U300: =S300*(100-AVERAGEIF(T305:T316,">0"))/100 -> 9.1486277 | V300: =100-(T300+U300+W300) -> 52.12887935 | W300: =IF((S302+W302)>100,W302*100/(S302+W302),W302) -> 6.087305875 | X300: =IF((X302+AB302)>100,X302*100/(X302+AB302),X302) -> 45.26739185 | Y300: =X300*AVERAGEIF(Y305:Y316,">0")/100 -> 32.22913976 | Z300: =X300*(100-AVERAGEIF(Y305:Y316,">0"))/100 -> 13.0382521 | AA300: =100-(Y300+Z300+AB300) -> 49.73566029 | AB300: =IF((X302+AB302)>100,AB302*100/(X302+AB302),AB302) -> 4.996947861
A301: Regression period: | C301: =MinRegYear(C299,C305:C316) -> 2008 | D301: =IF(MAX(C305:C316)-MIN(C305:C316)<5,AVERAGEIF(C305:C316,">0",D305:D316), IF(FORECAST($C301,D$305:D$316,$C$305:$C$316)<0,0, IF(FORECAST($C301,D$305:D$316,$C$305:$C$316)>100,100, FORECAST($C301,D$305:D$316,$C$305:$C$316)))) -> 11.9331644 | H301: =IF(MAX(C305:C316)-MIN(C305:C316)<5,AVERAGEIF(C305:C316,">0",H305:H316), IF(FORECAST($C301,H$305:H$316,$C$305:$C$316)<0,0, IF(FORECAST($C301,H$305:H$316,$C$305:$C$316)>100,100, FORECAST($C301,H$305:H$316,$C$305:$C$316)))) -> 42.50382781 | I301: =IF(MAX(C305:C316)-MIN(C305:C316)<5,AVERAGEIF(C305:C316,">0",I305:I316), IF(FORECAST($C301,I$305:I$316,$C$305:$C$316)<0,0, IF(FORECAST($C301,I$305:I$316,$C$305:$C$316)>100,100, FORECAST($C301,I$305:I$316,$C$305:$C$316)))) -> 25.25506879 | M301: =IF(MAX(C305:C316)-MIN(C305:C316)<5,AVERAGEIF(C305:C316,">0",M305:M316), IF(FORECAST($C301,M$305:M$316,$C$305:$C$316)<0,0, IF(FORECAST($C301,M$305:M$316,$C$305:$C$316)>100,100, FORECAST($C301,M$305:M$316,$C$305:$C$316)))) -> 28.59040816 | N301: =IF(MAX(C305:C316)-MIN(C305:C316)<5,AVERAGEIF(C305:C316,">0",N305:N316), IF(FORECAST($C301,N$305:N$316,$C$305:$C$316)<0,0, IF(FORECAST($C301,N$305:N$316,$C$305:$C$316)>100,100, FORECAST($C301,N$305:N$316,$C$305:$C$316)))) -> 32.30930585 | R301: =IF(MAX(C305:C316)-MIN(C305:C316)<5,AVERAGEIF(C305:C316,">0",R305:R316), IF(FORECAST($C301,R$305:R$316,$C$305:$C$316)<0,0, IF(FORECAST($C301,R$305:R$316,$C$305:$C$316)>100,100, FORECAST($C301,R$305:R$316,$C$305:$C$316)))) -> 23.66072048 | S301: =IF(MAX(C305:C316)-MIN(C305:C316)<5,AVERAGEIF(C305:C316,">0",S305:S316), IF(FORECAST($C301,S$305:S$316,$C$305:$C$316)<0,0, IF(FORECAST($C301,S$305:S$316,$C$305:$C$316)>100,100, FORECAST($C301,S$305:S$316,$C$305:$C$316)))) -> 27.82558293 | W301: =IF(MAX(C305:C316)-MIN(C305:C316)<5,AVERAGEIF(C305:C316,">0",W305:W316), IF(FORECAST($C301,W$305:W$316,$C$305:$C$316)<0,0, IF(FORECAST($C301,W$305:W$316,$C$305:$C$316)>100,100, FORECAST($C301,W$305:W$316,$C$305:$C$316)))) -> 23.31286847 | X301: =IF(MAX(C305:C316)-MIN(C305:C316)<5,AVERAGEIF(C305:C316,">0",X305:X316), IF(FORECAST($C301,X$305:X$316,$C$305:$C$316)<0,0, IF(FORECAST($C301,X$305:X$316,$C$305:$C$316)>100,100, FORECAST($C301,X$305:X$316,$C$305:$C$316)))) -> 36.24646682 | AB301: =IF(MAX(C305:C316)-MIN(C305:C316)<5,AVERAGEIF(C305:C316,">0",AB305:AB316), IF(FORECAST($C301,AB$305:AB$316,$C$305:$C$316)<0,0, IF(FORECAST($C301,AB$305:AB$316,$C$305:$C$316)>100,100, FORECAST($C301,AB$305:AB$316,$C$305:$C$316)))) -> 18.13377495
C302: =MaxRegYear(C300,C305:C316) -> 2019 | D302: =IF(MAX(C305:C316)-MIN(C305:C316)<5,AVERAGEIF(C305:C316,">0",D305:D316), IF(FORECAST($C302,D$305:D$316,$C$305:$C$316)<0,0, IF(FORECAST($C302,D$305:D$316,$C$305:$C$316)>100,100, FORECAST($C302,D$305:D$316,$C$305:$C$316)))) -> 42.52041001 | H302: =IF(MAX(C305:C316)-MIN(C305:C316)<5,AVERAGEIF(C305:C316,">0",H305:H316), IF(FORECAST($C302,H$305:H$316,$C$305:$C$316)<0,0, IF(FORECAST($C302,H$305:H$316,$C$305:$C$316)>100,100, FORECAST($C302,H$305:H$316,$C$305:$C$316)))) -> 13.6005685 | I302: =IF(MAX(C305:C316)-MIN(C305:C316)<5,AVERAGEIF(C305:C316,">0",I305:I316), IF(FORECAST($C302,I$305:I$316,$C$305:$C$316)<0,0, IF(FORECAST($C302,I$305:I$316,$C$305:$C$316)>100,100, FORECAST($C302,I$305:I$316,$C$305:$C$316)))) -> 36.24409502 | M302: =IF(MAX(C305:C316)-MIN(C305:C316)<5,AVERAGEIF(C305:C316,">0",M305:M316), IF(FORECAST($C302,M$305:M$316,$C$305:$C$316)<0,0, IF(FORECAST($C302,M$305:M$316,$C$305:$C$316)>100,100, FORECAST($C302,M$305:M$316,$C$305:$C$316)))) -> 13.40065588 | N302: =IF(MAX(C305:C316)-MIN(C305:C316)<5,AVERAGEIF(C305:C316,">0",N305:N316), IF(FORECAST($C302,N$305:N$316,$C$305:$C$316)<0,0, IF(FORECAST($C302,N$305:N$316,$C$305:$C$316)>100,100, FORECAST($C302,N$305:N$316,$C$305:$C$316)))) -> 31.6986379 | R302: =IF(MAX(C305:C316)-MIN(C305:C316)<5,AVERAGEIF(C305:C316,">0",R305:R316), IF(FORECAST($C302,R$305:R$316,$C$305:$C$316)<0,0, IF(FORECAST($C302,R$305:R$316,$C$305:$C$316)>100,100, FORECAST($C302,R$305:R$316,$C$305:$C$316)))) -> 11.69238564 | S302: =IF(MAX(C305:C316)-MIN(C305:C316)<5,AVERAGEIF(C305:C316,">0",S305:S316), IF(FORECAST($C302,S$305:S$316,$C$305:$C$316)<0,0, IF(FORECAST($C302,S$305:S$316,$C$305:$C$316)>100,100, FORECAST($C302,S$305:S$316,$C$305:$C$316)))) -> 41.78381478 | W302: =IF(MAX(C305:C316)-MIN(C305:C316)<5,AVERAGEIF(C305:C316,">0",W305:W316), IF(FORECAST($C302,W$305:W$316,$C$305:$C$316)<0,0, IF(FORECAST($C302,W$305:W$316,$C$305:$C$316)>100,100, FORECAST($C302,W$305:W$316,$C$305:$C$316)))) -> 6.087305875 | X302: =IF(MAX(C305:C316)-MIN(C305:C316)<5,AVERAGEIF(C305:C316,">0",X305:X316), IF(FORECAST($C302,X$305:X$316,$C$305:$C$316)<0,0, IF(FORECAST($C302,X$305:X$316,$C$305:$C$316)>100,100, FORECAST($C302,X$305:X$316,$C$305:$C$316)))) -> 45.26739185 | AB302: =IF(MAX(C305:C316)-MIN(C305:C316)<5,AVERAGEIF(C305:C316,">0",AB305:AB316), IF(FORECAST($C302,AB$305:AB$316,$C$305:$C$316)<0,0, IF(FORECAST($C302,AB$305:AB$316,$C$305:$C$316)>100,100, FORECAST($C302,AB$305:AB$316,$C$305:$C$316)))) -> 4.996947861
B304: Survey | C304: Year | D304: Improved | E304: Not shared | H304: Open defecation | I304: Improved | J304: Not shared | M304: Open defecation | N304: Improved | O304: Not shared | R304: Open defecation | S304: Improved | T304: Not shared | W304: Open defecation | X304: Improved | Y304: Not shared | AB304: Open defecation
B305: DHS10 | C305: 2010 | D305: =IF(ISERROR(INDIRECT(CONCATENATE($B305,"!M122"))),"",INDIRECT(CONCATENATE($B305,"!M122"))) -> 18.91810257 | E305: =IF(ISERROR(INDIRECT(CONCATENATE($B305,"!M129"))),"",INDIRECT(CONCATENATE($B305,"!M129"))) -> 75.50211692 | H305: =IF(ISERROR(INDIRECT(CONCATENATE($B305,"!M127"))),"",INDIRECT(CONCATENATE($B305,"!M127"))) -> 41.637138 | I305: =IF(ISERROR(INDIRECT(CONCATENATE($B305,"!N122"))),"",INDIRECT(CONCATENATE($B305,"!N122"))) -> 28.83914476 | J305: =IF(ISERROR(INDIRECT(CONCATENATE($B305,"!N129"))),"",INDIRECT(CONCATENATE($B305,"!N129"))) -> 69.22227382 | M305: =IF(ISERROR(INDIRECT(CONCATENATE($B305,"!N127"))),"",INDIRECT(CONCATENATE($B305,"!N127"))) -> 23.49799638 | N305: =IF(ISERROR(INDIRECT(CONCATENATE($B305,"!O122"))),"",INDIRECT(CONCATENATE($B305,"!O122"))) -> 31.55803923 | O305: =IF(ISERROR(INDIRECT(CONCATENATE($B305,"!O129"))),"",INDIRECT(CONCATENATE($B305,"!O129"))) -> 65.29244158 | R305: =IF(ISERROR(INDIRECT(CONCATENATE($B305,"!O127"))),"",INDIRECT(CONCATENATE($B305,"!O127"))) -> 21.00194036 | S305: =IF(ISERROR(INDIRECT(CONCATENATE($B305,"!P122"))),"",INDIRECT(CONCATENATE($B305,"!P122"))) -> 29.52098891 | T305: =IF(ISERROR(INDIRECT(CONCATENATE($B305,"!P129"))),"",INDIRECT(CONCATENATE($B305,"!P129"))) -> 50.53684677 | W305: =IF(ISERROR(INDIRECT(CONCATENATE($B305,"!P127"))),"",INDIRECT(CONCATENATE($B305,"!P127"))) -> 21.10449134 | X305: =IF(ISERROR(INDIRECT(CONCATENATE($B305,"!Q122"))),"",INDIRECT(CONCATENATE($B305,"!Q122"))) -> 42.74731199 | Y305: =IF(ISERROR(INDIRECT(CONCATENATE($B305,"!Q129"))),"",INDIRECT(CONCATENATE($B305,"!Q129"))) -> 33.71174124 | AB305: =IF(ISERROR(INDIRECT(CONCATENATE($B305,"!Q2127"))),"",INDIRECT(CONCATENATE($B305,"!Q127"))) -> 18.52778222
B306: MICS11 | C306: 2011 | D306: 25.05479448 | E306: 93.85884487 | H306: 28.17240258 | I306: 31.86163541 | J306: 95.27091265 | M306: 26.48224835 | N306: 36.53840714 | O306: 95.29664221 | R306: 21.66640365 | S306: 36.93608644 | T306: 94.22075307 | W306: 18.00515152 | X306: 35.34378357 | Y306: 90.57907942 | AB306: 12.30942767
B307: DHS15 | C307: 2015 | D307: 12.07614051 | E307: 75.10080456 | H307: 28.09743018 | I307: 15.86815789 | J307: 76.89285941 | M307: 20.97793768 | N307: 20.97458398 | O307: 75.06516439 | R307: 13.92470126 | S307: 23.74554534 | T307: 82.7526527 | W307: 10.94825387 | X307: 35.06349264 | Y307: 82.61763264 | AB307: 6.759880148
B308: ALCS17 | C308: 2017 | D308: 50.07745258 | E308: 89.41813529 | H308: 16.92939089 | I308: 45.43038718 | J308: 84.72784039 | M308: 14.40483223 | N308: 39.00037242 | O308: 84.21393582 | R308: 15.2011974 | S308: 47.74724456 | T308: 84.90915916 | W308: 10.30841221 | X308: 49.05304505 | Y308: 77.88056094 | AB308: 9.85861259
B318: =CONCATENATE("Rural use of sanitation facilities, ",C299,"–",C300) -> Rural use of sanitation facilities, 2004–2020 | S318: Data points used for regression

Sheet Hygiene
B4: Access to hygiene facilities by wealth quintile (%)
B5: =IF(ISERROR(INDIRECT(CONCATENATE($E$32,"!A2"))),"",INDIRECT(CONCATENATE($E$32,"!A2"))) -> 
B7: =CONCATENATE("National ",IF(ISERROR(INDIRECT(CONCATENATE($E$32,"!A2"))),"",INDIRECT(CONCATENATE($E$32,"!A210")))) -> National | K7: =CONCATENATE("Urban ",IF(ISERROR(INDIRECT(CONCATENATE($E$32,"!A2"))),"",INDIRECT(CONCATENATE($E$32,"!A210")))) -> Urban | S7: =CONCATENATE("Rural ",IF(ISERROR(INDIRECT(CONCATENATE($E$32,"!A2"))),"",INDIRECT(CONCATENATE($E$32,"!A210")))) -> Rural
E32: =INDEX(B88:B100,A88) -> 0 | G32: =IF(ISERROR(INDIRECT(CONCATENATE($E$32,"!A2"))),"",INDIRECT(CONCATENATE($E$32,"!A2"))) ->  | K32: Poorest | N32: Poor | Q32: Middle | T32: Rich | W32: Richest
K33: Basic | L33: Limited | M33: No facility | N33: Basic | O33: Limited | P33: No facility | Q33: Basic | R33: Limited | S33: No facility | T33: Basic | U33: Limited | V33: No facility | W33: Basic | X33: Limited | Y33: No facility
B34: >>> Select Survey : | G34: NATIONAL | J34: =IF(ISERROR(INDIRECT(CONCATENATE(#REF!,"!A2"))),"",INDIRECT(CONCATENATE(#REF!,"!A210"))) ->  | K34: =IF(ISERROR(INDIRECT(CONCATENATE($E$32,"!C222"))),"",INDIRECT(CONCATENATE($E$32,"!C222"))) ->  | L34: =IF(ISERROR(INDIRECT(CONCATENATE($E$32,"!C223"))),"",INDIRECT(CONCATENATE($E$32,"!C223"))) ->  | M34: =IF(ISERROR(INDIRECT(CONCATENATE($E$32,"!C224"))),"",INDIRECT(CONCATENATE($E$32,"!C224"))) ->  | N34: =IF(ISERROR(INDIRECT(CONCATENATE($E$32,"!D222"))),"",INDIRECT(CONCATENATE($E$32,"!D222"))) ->  | O34: =IF(ISERROR(INDIRECT(CONCATENATE($E$32,"!D223"))),"",INDIRECT(CONCATENATE($E$32,"!D223"))) ->  | P34: =IF(ISERROR(INDIRECT(CONCATENATE($E$32,"!D224"))),"",INDIRECT(CONCATENATE($E$32,"!D224"))) ->  | Q34: =IF(ISERROR(INDIRECT(CONCATENATE($E$32,"!E222"))),"",INDIRECT(CONCATENATE($E$32,"!E222"))) ->  | R34: =IF(ISERROR(INDIRECT(CONCATENATE($E$32,"!E223"))),"",INDIRECT(CONCATENATE($E$32,"!E223"))) ->  | S34: =IF(ISERROR(INDIRECT(CONCATENATE($E$32,"!E224"))),"",INDIRECT(CONCATENATE($E$32,"!E224"))) ->  | T34: =IF(ISERROR(INDIRECT(CONCATENATE($E$32,"!F222"))),"",INDIRECT(CONCATENATE($E$32,"!F222"))) ->  | U34: =IF(ISERROR(INDIRECT(CONCATENATE($E$32,"!F223"))),"",INDIRECT(CONCATENATE($E$32,"!F223"))) ->  | V34: =IF(ISERROR(INDIRECT(CONCATENATE($E$32,"!F224"))),"",INDIRECT(CONCATENATE($E$32,"!F224"))) ->  | W34: =IF(ISERROR(INDIRECT(CONCATENATE($E$32,"!G222"))),"",INDIRECT(CONCATENATE($E$32,"!G222"))) ->  | X34: =IF(ISERROR(INDIRECT(CONCATENATE($E$32,"!G223"))),"",INDIRECT(CONCATENATE($E$32,"!G223"))) ->  | Y34: =IF(ISERROR(INDIRECT(CONCATENATE($E$32,"!G224"))),"",INDIRECT(CONCATENATE($E$32,"!G224"))) -> 
G37: URBAN | J37: =IF(ISERROR(INDIRECT(CONCATENATE(#REF!,"!A2"))),"",INDIRECT(CONCATENATE(#REF!,"!A210"))) ->  | K37: =IF(ISERROR(INDIRECT(CONCATENATE($E$32,"!H222"))),"",INDIRECT(CONCATENATE($E$32,"!H222"))) ->  | L37: =IF(ISERROR(INDIRECT(CONCATENATE($E$32,"!H223"))),"",INDIRECT(CONCATENATE($E$32,"!H223"))) ->  | M37: =IF(ISERROR(INDIRECT(CONCATENATE($E$32,"!H224"))),"",INDIRECT(CONCATENATE($E$32,"!H224"))) ->  | N37: =IF(ISERROR(INDIRECT(CONCATENATE($E$32,"!I222"))),"",INDIRECT(CONCATENATE($E$32,"!I222"))) ->  | O37: =IF(ISERROR(INDIRECT(CONCATENATE($E$32,"!I223"))),"",INDIRECT(CONCATENATE($E$32,"!I223"))) ->  | P37: =IF(ISERROR(INDIRECT(CONCATENATE($E$32,"!I224"))),"",INDIRECT(CONCATENATE($E$32,"!I224"))) ->  | Q37: =IF(ISERROR(INDIRECT(CONCATENATE($E$32,"!J222"))),"",INDIRECT(CONCATENATE($E$32,"!J222"))) ->  | R37: =IF(ISERROR(INDIRECT(CONCATENATE($E$32,"!J223"))),"",INDIRECT(CONCATENATE($E$32,"!J223"))) ->  | S37: =IF(ISERROR(INDIRECT(CONCATENATE($E$32,"!J224"))),"",INDIRECT(CONCATENATE($E$32,"!J224"))) ->  | T37: =IF(ISERROR(INDIRECT(CONCATENATE($E$32,"!K222"))),"",INDIRECT(CONCATENATE($E$32,"!K222"))) ->  | U37: =IF(ISERROR(INDIRECT(CONCATENATE($E$32,"!K223"))),"",INDIRECT(CONCATENATE($E$32,"!K223"))) ->  | V37: =IF(ISERROR(INDIRECT(CONCATENATE($E$32,"!K224"))),"",INDIRECT(CONCATENATE($E$32,"!K224"))) ->  | W37: =IF(ISERROR(INDIRECT(CONCATENATE($E$32,"!L222"))),"",INDIRECT(CONCATENATE($E$32,"!L222"))) ->  | X37: =IF(ISERROR(INDIRECT(CONCATENATE($E$32,"!L223"))),"",INDIRECT(CONCATENATE($E$32,"!L223"))) ->  | Y37: =IF(ISERROR(INDIRECT(CONCATENATE($E$32,"!L224"))),"",INDIRECT(CONCATENATE($E$32,"!L224"))) -> 
G40: RURAL | J40: =IF(ISERROR(INDIRECT(CONCATENATE(#REF!,"!A2"))),"",INDIRECT(CONCATENATE(#REF!,"!A210"))) ->  | K40: =IF(ISERROR(INDIRECT(CONCATENATE($E$32,"!M222"))),"",INDIRECT(CONCATENATE($E$32,"!M222"))) ->  | L40: =IF(ISERROR(INDIRECT(CONCATENATE($E$32,"!M223"))),"",INDIRECT(CONCATENATE($E$32,"!M223"))) ->  | M40: =IF(ISERROR(INDIRECT(CONCATENATE($E$32,"!M224"))),"",INDIRECT(CONCATENATE($E$32,"!M224"))) ->  | N40: =IF(ISERROR(INDIRECT(CONCATENATE($E$32,"!N222"))),"",INDIRECT(CONCATENATE($E$32,"!N222"))) ->  | O40: =IF(ISERROR(INDIRECT(CONCATENATE($E$32,"!N223"))),"",INDIRECT(CONCATENATE($E$32,"!N223"))) ->  | P40: =IF(ISERROR(INDIRECT(CONCATENATE($E$32,"!N224"))),"",INDIRECT(CONCATENATE($E$32,"!N224"))) ->  | Q40: =IF(ISERROR(INDIRECT(CONCATENATE($E$32,"!O222"))),"",INDIRECT(CONCATENATE($E$32,"!O222"))) ->  | R40: =IF(ISERROR(INDIRECT(CONCATENATE($E$32,"!O223"))),"",INDIRECT(CONCATENATE($E$32,"!O223"))) ->  | S40: =IF(ISERROR(INDIRECT(CONCATENATE($E$32,"!O224"))),"",INDIRECT(CONCATENATE($E$32,"!O224"))) ->  | T40: =IF(ISERROR(INDIRECT(CONCATENATE($E$32,"!P222"))),"",INDIRECT(CONCATENATE($E$32,"!P222"))) ->  | U40: =IF(ISERROR(INDIRECT(CONCATENATE($E$32,"!P223"))),"",INDIRECT(CONCATENATE($E$32,"!P223"))) ->  | V40: =IF(ISERROR(INDIRECT(CONCATENATE($E$32,"!P224"))),"",INDIRECT(CONCATENATE($E$32,"!P224"))) ->  | W40: =IF(ISERROR(INDIRECT(CONCATENATE($E$32,"!Q222"))),"",INDIRECT(CONCATENATE($E$32,"!Q222"))) ->  | X40: =IF(ISERROR(INDIRECT(CONCATENATE($E$32,"!Q223"))),"",INDIRECT(CONCATENATE($E$32,"!Q223"))) ->  | Y40: =IF(ISERROR(INDIRECT(CONCATENATE($E$32,"!Q224"))),"",INDIRECT(CONCATENATE($E$32,"!Q224"))) -> 
A88: 2 | B88: Template

Sheet DHS10
A2: =A1026 -> Afghanistan
A3: =A1034 -> 2010
A4: Use of drinking water sources
A5: by wealth quintile and sub-national region
A6: Notes:
A7: WHO/UNICEF JMP customised wealth index excludes water,
A8: sanitation and hygiene assets.
A9: Survey used for analysis: | B9: =A1025 -> DHS10
A10: =B1028 -> 
A11: =B1027 -> Time to improved source based on:
A14: Use of drinking water sources | C14: NATIONAL wealth index quintile | H14: URBAN wealth index quintile | M14: RURAL wealth index quintile | R14: SUB-REGIONS: | BA14: Raw numbers of respondents: | BB14: Use of drinking water sources | BC14: NATIONAL wealth index quintile | BH14: URBAN wealth index quintile | BM14: RURAL wealth index quintile | BR14: SUB-REGIONS:
A15: Weighted percentage (used in graphs) | C15: Poorest | D15: Poor | E15: Middle | F15: Rich | G15: Richest | H15: Poorest | I15: Poor | J15: Middle | K15: Rich | L15: Richest | M15: Poorest | N15: Poor | O15: Middle | P15: Rich | Q15: Richest | R15: Capital | S15: Central Highlands | T15: Eastern | U15: North Eastern | V15: Northern | W15: South Eastern | X15: Southern | Y15: Western | BA15: Water data, raw numbers (weighted) | BC15: Poorest | BD15: Poor | BE15: Middle | BF15: Rich | BG15: Richest | BH15: Poorest | BI15: Poor | BJ15: Middle | BK15: Rich | BL15: Richest | BM15: Poorest | BN15: Poor | BO15: Middle | BP15: Rich | BQ15: Richest | BR15: Capital | BS15: Central Highlands | BT15: Eastern | BU15: North Eastern | BV15: Northern | BW15: South Eastern | BX15: Southern | BY15: Western
A16: Water | B16: Improved | C16: 42.79717425 | D16: 45.37373657 | E16: 50.71435181 | F16: 63.38061492 | G16: 85.46040519 | H16: 61.44479881 | I16: 79.06070757 | J16: 83.47426704 | K16: 88.32772491 | L16: 96.94034011 | M16: 43.11303251 | N16: 44.12408783 | O16: 47.52055577 | P16: 53.33042341 | Q16: 69.30446292 | R16: 68.59304588 | S16: 50.10520751 | T16: 59.67888653 | U16: 47.44497216 | V16: 41.48982531 | W16: 65.75110676 | X16: 66.45661107 | Y16: 60.02901913 | BA16: Water | BB16: Improved | BC16: N/A | BD16: N/A | BE16: N/A | BF16: N/A | BG16: N/A | BH16: N/A | BI16: N/A | BJ16: N/A | BK16: N/A | BL16: N/A | BM16: N/A | BN16: N/A | BO16: N/A | BP16: N/A | BQ16: N/A | BR16: N/A | BS16: N/A | BT16: N/A | BU16: N/A | BV16: N/A | BW16: N/A | BX16: N/A | BY16: N/A
B17: Not Improved | C17: 57.20282575 | D17: 54.62626343 | E17: 49.28564819 | F17: 36.61938508 | G17: 14.53959481 | H17: 38.55520119 | I17: 20.93929243 | J17: 16.52573296 | K17: 11.67227509 | L17: 3.05965989 | M17: 56.88696749 | N17: 55.87591217 | O17: 52.47944423 | P17: 46.66957659 | Q17: 30.69553708 | R17: 31.40695412 | S17: 49.89479249 | T17: 40.32111347 | U17: 52.55502784 | V17: 58.51017469 | W17: 34.24889324 | X17: 33.54338893 | Y17: 39.97098087 | BB17: Not Improved | BC17: N/A | BD17: N/A | BE17: N/A | BF17: N/A | BG17: N/A | BH17: N/A | BI17: N/A | BJ17: N/A | BK17: N/A | BL17: N/A | BM17: N/A | BN17: N/A | BO17: N/A | BP17: N/A | BQ17: N/A | BR17: N/A | BS17: N/A | BT17: N/A | BU17: N/A | BV17: N/A | BW17: N/A | BX17: N/A | BY17: N/A
A18: Water ladder | B18: Basic | C18: 38.53997985 | D18: 42.10113909 | E18: 47.67256542 | F18: 59.2072582 | G18: 82.47082391 | H18: 57.07430728 | I18: 73.52530349 | J18: 80.10015646 | K18: 86.44509267 | L18: 96.07662692 | M18: 38.45251963 | N18: 41.00557987 | O18: 44.64146989 | P18: 49.50765148 | Q18: 65.92212626 | R18: 65.84373678 | S18: 45.7033334 | T18: 57.07839066 | U18: 44.24569769 | V18: 37.07715568 | W18: 62.92485458 | X18: 63.35192179 | Y18: 54.01101426 | BA18: Water ladder | BB18: Basic | BC18: N/A | BD18: N/A | BE18: N/A | BF18: N/A | BG18: N/A | BH18: N/A | BI18: N/A | BJ18: N/A | BK18: N/A | BL18: N/A | BM18: N/A | BN18: N/A | BO18: N/A | BP18: N/A | BQ18: N/A | BR18: N/A | BS18: N/A | BT18: N/A | BU18: N/A | BV18: N/A | BW18: N/A | BX18: N/A | BY18: N/A
B19: Limited | C19: 4.257194394 | D19: 3.27259748 | E19: 3.041786388 | F19: 4.173356726 | G19: 2.989581284 | H19: 4.370491537 | I19: 5.535404082 | J19: 3.374110574 | K19: 1.882632239 | L19: 0.8637131861 | M19: 4.660512875 | N19: 3.118507959 | O19: 2.879085874 | P19: 3.82277193 | Q19: 3.382336656 | R19: 2.7493091 | S19: 4.401874109 | T19: 2.600495862 | U19: 3.19927447 | V19: 4.412669623 | W19: 2.826252179 | X19: 3.104689282 | Y19: 6.018004869 | BB19: Limited | BC19: N/A | BD19: N/A | BE19: N/A | BF19: N/A | BG19: N/A | BH19: N/A | BI19: N/A | BJ19: N/A | BK19: N/A | BL19: N/A | BM19: N/A | BN19: N/A | BO19: N/A | BP19: N/A | BQ19: N/A | BR19: N/A | BS19: N/A | BT19: N/A | BU19: N/A | BV19: N/A | BW19: N/A | BX19: N/A | BY19: N/A
B20: Unimproved | C20: =100-C18-C19-C21 -> 28.7182918 | D20: =100-D18-D19-D21 -> 33.81151743 | E20: 38.67456743 | F20: 31.75227451 | G20: 12.87415595 | H20: 28.33593433 | I20: 18.65215446 | J20: 15.41716956 | K20: 10.71115395 | L20: 2.891206477 | M20: 28.77665039 | N20: 31.71225702 | O20: 37.72020317 | P20: 38.87456814 | Q20: 26.1688678 | R20: 26.19875829 | S20: 32.07863628 | T20: 33.06312983 | U20: 28.07728684 | V20: 23.32649104 | W20: 30.90326719 | X20: 27.37023428 | Y20: 36.10358252 | BB20: Unimproved | BC20: N/A | BD20: N/A | BE20: N/A | BF20: N/A | BG20: N/A | BH20: N/A | BI20: N/A | BJ20: N/A | BK20: N/A | BL20: N/A | BM20: N/A | BN20: N/A | BO20: N/A | BP20: N/A | BQ20: N/A | BR20: N/A | BS20: N/A | BT20: N/A | BU20: N/A | BV20: N/A | BW20: N/A | BX20: N/A | BY20: N/A
B21: Surface water | C21: =C69 -> 28.48453395 | D21: 20.814746 | E21: 10.61108076 | F21: 4.86711057 | G21: 1.665438859 | H21: 10.21926686 | I21: 2.287137967 | J21: 1.1085634 | K21: 0.9611211389 | L21: 0.1684534122 | M21: 28.1103171 | N21: 24.16365515 | O21: 14.75924106 | P21: 7.795008446 | Q21: 4.526669281 | R21: 5.208195826 | S21: 17.81615622 | T21: 7.257983642 | U21: 24.477741 | V21: 35.18368365 | W21: 3.345626052 | X21: 6.173154653 | Y21: 3.867398357 | BB21: Surface water | BC21: N/A | BD21: N/A | BE21: N/A | BF21: N/A | BG21: N/A | BH21: N/A | BI21: N/A | BJ21: N/A | BK21: N/A | BL21: N/A | BM21: N/A | BN21: N/A | BO21: N/A | BP21: N/A | BQ21: N/A | BR21: N/A | BS21: N/A | BT21: N/A | BU21: N/A | BV21: N/A | BW21: N/A | BX21: N/A | BY21: N/A
A22: Improved water point at more than 30 minutes | B22: Yes | C22: N/A | D22: N/A | E22: N/A | F22: N/A | G22: N/A | H22: N/A | I22: N/A | J22: N/A | K22: N/A | L22: N/A | M22: N/A | N22: N/A | O22: N/A | P22: N/A | Q22: N/A | R22: N/A | S22: N/A | T22: N/A | U22: N/A | V22: N/A | W22: N/A | X22: N/A | Y22: N/A | BA22: Improved water point at more than 30 minutes | BB22: Yes | BC22: N/A | BD22: N/A | BE22: N/A | BF22: N/A | BG22: N/A | BH22: N/A | BI22: N/A | BJ22: N/A | BK22: N/A | BL22: N/A | BM22: N/A | BN22: N/A | BO22: N/A | BP22: N/A | BQ22: N/A | BR22: N/A | BS22: N/A | BT22: N/A | BU22: N/A | BV22: N/A | BW22: N/A | BX22: N/A | BY22: N/A
B23: No | C23: N/A | D23: N/A | E23: N/A | F23: N/A | G23: N/A | H23: N/A | I23: N/A | J23: N/A | K23: N/A | L23: N/A | M23: N/A | N23: N/A | O23: N/A | P23: N/A | Q23: N/A | R23: N/A | S23: N/A | T23: N/A | U23: N/A | V23: N/A | W23: N/A | X23: N/A | Y23: N/A | BB23: No | BC23: N/A | BD23: N/A | BE23: N/A | BF23: N/A | BG23: N/A | BH23: N/A | BI23: N/A | BJ23: N/A | BK23: N/A | BL23: N/A | BM23: N/A | BN23: N/A | BO23: N/A | BP23: N/A | BQ23: N/A | BR23: N/A | BS23: N/A | BT23: N/A | BU23: N/A | BV23: N/A | BW23: N/A | BX23: N/A | BY23: N/A
A24: Manually calculated ratios | B24: Improved wells
B25: Improved springs
B26: Other
C27: NATIONAL wealth index quintile | H27: URBAN wealth index quintile | M27: RURAL wealth index quintile | R27: SUB-REGIONS: | BA27: Raw numbers of respondents: | BB27: Use of drinking water sources | BC27: NATIONAL wealth index quintile | BH27: URBAN wealth index quintile | BM27: RURAL wealth index quintile | BR27: SUB-REGIONS:
A28: Percentage based on weighted population | C28: Poorest | D28: Poor | E28: Middle | F28: Rich | G28: Richest | H28: Poorest | I28: Poor | J28: Middle | K28: Rich | L28: Richest | M28: Poorest | N28: Poor | O28: Middle | P28: Rich | Q28: Richest | R28: Capital | S28: Central Highlands | T28: Eastern | U28: North Eastern | V28: Northern | W28: South Eastern | X28: Southern | Y28: Western | BA28: Water data, raw numbers (weighted) | BC28: Poorest | BD28: Poor | BE28: Middle | BF28: Rich | BG28: Richest | BH28: Poorest | BI28: Poor | BJ28: Middle | BK28: Rich | BL28: Richest | BM28: Poorest | BN28: Poor | BO28: Middle | BP28: Rich | BQ28: Richest | BR28: Capital | BS28: Central Highlands | BT28: Eastern | BU28: North Eastern | BV28: Northern | BW28: South Eastern | BX28: Southern | BY28: Western
A29: Piped water | B29: Yes | C29: 8.82805942 | D29: 7.179270417 | E29: 7.411773415 | F29: 7.415928733 | G29: 27.25257266 | H29: 16.24517209 | I29: 26.4307018 | J29: 28.29386259 | K29: 31.48857795 | L29: 43.04217192 | M29: 9.179815031 | N29: 6.971442824 | O29: 7.262101286 | P29: 6.014476619 | Q29: 6.840753404 | R29: 15.77281945 | S29: 0 | T29: 6.62096711 | U29: 18.96133493 | V29: 6.324148281 | W29: 5.55248347 | X29: 11.12609571 | Y29: 17.64991625 | BA29: Piped water | BB29: Yes | BC29: N/A | BD29: N/A | BE29: N/A | BF29: N/A | BG29: N/A | BH29: N/A | BI29: N/A | BJ29: N/A | BK29: N/A | BL29: N/A | BM29: N/A | BN29: N/A | BO29: N/A | BP29: N/A | BQ29: N/A | BR29: N/A | BS29: N/A | BT29: N/A | BU29: N/A | BV29: N/A | BW29: N/A | BX29: N/A | BY29: N/A
B30: No | C30: 91.17194058 | D30: 92.82072958 | E30: 92.58822659 | F30: 92.58407127 | G30: 72.74742734 | H30: 83.75482791 | I30: 73.5692982 | J30: 71.70613741 | K30: 68.51142205 | L30: 56.95782808 | M30: 90.82018497 | N30: 93.02855718 | O30: 92.73789871 | P30: 93.98552338 | Q30: 93.1592466 | R30: 84.22718055 | S30: 100 | T30: 93.37903289 | U30: 81.03866507 | V30: 93.67585172 | W30: 94.44751653 | X30: 88.87390429 | Y30: 82.35008375 | BB30: No | BC30: N/A | BD30: N/A | BE30: N/A | BF30: N/A | BG30: N/A | BH30: N/A | BI30: N/A | BJ30: N/A | BK30: N/A | BL30: N/A | BM30: N/A | BN30: N/A | BO30: N/A | BP30: N/A | BQ30: N/A | BR30: N/A | BS30: N/A | BT30: N/A | BU30: N/A | BV30: N/A | BW30: N/A | BX30: N/A | BY30: N/A
A31: Piped water on premises | B31: Yes | C31: 0.5697022596 | D31: 2.426067183 | E31: 3.415286894 | F31: 4.784637418 | G31: 21.26920858 | H31: 9.264362239 | I31: 15.99572279 | J31: 19.73723654 | K31: 25.4297335 | L31: 39.44329712 | M31: 0.4806685589 | N31: 1.406886361 | O31: 3.373811178 | P31: 3.076361315 | Q31: 4.807355183 | R31: 11.71890946 | S31: 0 | T31: 3.397207053 | U31: 2.46682942 | V31: 4.734575343 | W31: 4.245322864 | X31: 9.196907514 | Y31: 11.26314633 | BA31: Piped water on premises | BB31: Yes | BC31: N/A | BD31: N/A | BE31: N/A | BF31: N/A | BG31: N/A | BH31: N/A | BI31: N/A | BJ31: N/A | BK31: N/A | BL31: N/A | BM31: N/A | BN31: N/A | BO31: N/A | BP31: N/A | BQ31: N/A | BR31: N/A | BS31: N/A | BT31: N/A | BU31: N/A | BV31: N/A | BW31: N/A | BX31: N/A | BY31: N/A
B32: No | C32: 99.43029774 | D32: 97.57393282 | E32: 96.58471311 | F32: 95.21536258 | G32: 78.73079142 | H32: 90.73563776 | I32: 84.00427721 | J32: 80.26276346 | K32: 74.5702665 | L32: 60.55670288 | M32: 99.51933144 | N32: 98.59311364 | O32: 96.62618882 | P32: 96.92363869 | Q32: 95.19264482 | R32: 88.28109054 | S32: 100 | T32: 96.60279295 | U32: 97.53317058 | V32: 95.26542466 | W32: 95.75467714 | X32: 90.80309249 | Y32: 88.73685367 | BB32: No | BC32: N/A | BD32: N/A | BE32: N/A | BF32: N/A | BG32: N/A | BH32: N/A | BI32: N/A | BJ32: N/A | BK32: N/A | BL32: N/A | BM32: N/A | BN32: N/A | BO32: N/A | BP32: N/A | BQ32: N/A | BR32: N/A | BS32: N/A | BT32: N/A | BU32: N/A | BV32: N/A | BW32: N/A | BX32: N/A | BY32: N/A
A33: Piped water into dwelling | B33: Yes | C33: N/A | D33: N/A | E33: N/A | F33: N/A | G33: N/A | H33: N/A | I33: N/A | J33: N/A | K33: N/A | L33: N/A | M33: N/A | N33: N/A | O33: N/A | P33: N/A | Q33: N/A | R33: N/A | S33: N/A | T33: N/A | U33: N/A | V33: N/A | W33: N/A | X33: N/A | Y33: N/A | BA33: Piped water into dwelling | BB33: Yes | BC33: N/A | BD33: N/A | BE33: N/A | BF33: N/A | BG33: N/A | BH33: N/A | BI33: N/A | BJ33: N/A | BK33: N/A | BL33: N/A | BM33: N/A | BN33: N/A | BO33: N/A | BP33: N/A | BQ33: N/A | BR33: N/A | BS33: N/A | BT33: N/A | BU33: N/A | BV33: N/A | BW33: N/A | BX33: N/A | BY33: N/A
B34: No | C34: N/A | D34: N/A | E34: N/A | F34: N/A | G34: N/A | H34: N/A | I34: N/A | J34: N/A | K34: N/A | L34: N/A | M34: N/A | N34: N/A | O34: N/A | P34: N/A | Q34: N/A | R34: N/A | S34: N/A | T34: N/A | U34: N/A | V34: N/A | W34: N/A | X34: N/A | Y34: N/A | BB34: No | BC34: N/A | BD34: N/A | BE34: N/A | BF34: N/A | BG34: N/A | BH34: N/A | BI34: N/A | BJ34: N/A | BK34: N/A | BL34: N/A | BM34: N/A | BN34: N/A | BO34: N/A | BP34: N/A | BQ34: N/A | BR34: N/A | BS34: N/A | BT34: N/A | BU34: N/A | BV34: N/A | BW34: N/A | BX34: N/A | BY34: N/A
A35: Water source on premises | B35: Yes | C35: N/A | D35: N/A | E35: N/A | F35: N/A | G35: N/A | H35: N/A | I35: N/A | J35: N/A | K35: N/A | L35: N/A | M35: N/A | N35: N/A | O35: N/A | P35: N/A | Q35: N/A | R35: N/A | S35: N/A | T35: N/A | U35: N/A | V35: N/A | W35: N/A | X35: N/A | Y35: N/A | BA35: Water source on premises | BB35: Yes | BC35: N/A | BD35: N/A | BE35: N/A | BF35: N/A | BG35: N/A | BH35: N/A | BI35: N/A | BJ35: N/A | BK35: N/A | BL35: N/A | BM35: N/A | BN35: N/A | BO35: N/A | BP35: N/A | BQ35: N/A | BR35: N/A | BS35: N/A | BT35: N/A | BU35: N/A | BV35: N/A | BW35: N/A | BX35: N/A | BY35: N/A
B36: No | C36: N/A | D36: N/A | E36: N/A | F36: N/A | G36: N/A | H36: N/A | I36: N/A | J36: N/A | K36: N/A | L36: N/A | M36: N/A | N36: N/A | O36: N/A | P36: N/A | Q36: N/A | R36: N/A | S36: N/A | T36: N/A | U36: N/A | V36: N/A | W36: N/A | X36: N/A | Y36: N/A | BB36: No | BC36: N/A | BD36: N/A | BE36: N/A | BF36: N/A | BG36: N/A | BH36: N/A | BI36: N/A | BJ36: N/A | BK36: N/A | BL36: N/A | BM36: N/A | BN36: N/A | BO36: N/A | BP36: N/A | BQ36: N/A | BR36: N/A | BS36: N/A | BT36: N/A | BU36: N/A | BV36: N/A | BW36: N/A | BX36: N/A | BY36: N/A
A37: Improved Water source on premises | B37: Yes | C37: N/A | D37: N/A | E37: N/A | F37: N/A | G37: N/A | H37: N/A | I37: N/A | J37: N/A | K37: N/A | L37: N/A | M37: N/A | N37: N/A | O37: N/A | P37: N/A | Q37: N/A | R37: N/A | S37: N/A | T37: N/A | U37: N/A | V37: N/A | W37: N/A | X37: N/A | Y37: N/A | BA37: Improved water source on premises | BB37: Yes | BC37: N/A | BD37: N/A | BE37: N/A | BF37: N/A | BG37: N/A | BH37: N/A | BI37: N/A | BJ37: N/A | BK37: N/A | BL37: N/A | BM37: N/A | BN37: N/A | BO37: N/A | BP37: N/A | BQ37: N/A | BR37: N/A | BS37: N/A | BT37: N/A | BU37: N/A | BV37: N/A | BW37: N/A | BX37: N/A | BY37: N/A
B38: No | C38: N/A | D38: N/A | E38: N/A | F38: N/A | G38: N/A | H38: N/A | I38: N/A | J38: N/A | K38: N/A | L38: N/A | M38: N/A | N38: N/A | O38: N/A | P38: N/A | Q38: N/A | R38: N/A | S38: N/A | T38: N/A | U38: N/A | V38: N/A | W38: N/A | X38: N/A | Y38: N/A | BB38: No | BC38: N/A | BD38: N/A | BE38: N/A | BF38: N/A | BG38: N/A | BH38: N/A | BI38: N/A | BJ38: N/A | BK38: N/A | BL38: N/A | BM38: N/A | BN38: N/A | BO38: N/A | BP38: N/A | BQ38: N/A | BR38: N/A | BS38: N/A | BT38: N/A | BU38: N/A | BV38: N/A | BW38: N/A | BX38: N/A | BY38: N/A
A39: Piped water on premises available when needed | B39: Yes | C39: N/A | D39: N/A | E39: N/A | F39: N/A | G39: N/A | H39: N/A | I39: N/A | J39: N/A | K39: N/A | L39: N/A | M39: N/A | N39: N/A | O39: N/A | P39: N/A | Q39: N/A | R39: N/A | S39: N/A | T39: N/A | U39: N/A | V39: N/A | W39: N/A | X39: N/A | Y39: N/A | BA39: Piped water on premises available when needed | BB39: Yes | BC39: N/A | BD39: N/A | BE39: N/A | BF39: N/A | BG39: N/A | BH39: N/A | BI39: N/A | BJ39: N/A | BK39: N/A | BL39: N/A | BM39: N/A | BN39: N/A | BO39: N/A | BP39: N/A | BQ39: N/A | BR39: N/A | BS39: N/A | BT39: N/A | BU39: N/A | BV39: N/A | BW39: N/A | BX39: N/A | BY39: N/A
B40: No | C40: N/A | D40: N/A | E40: N/A | F40: N/A | G40: N/A | H40: N/A | I40: N/A | J40: N/A | K40: N/A | L40: N/A | M40: N/A | N40: N/A | O40: N/A | P40: N/A | Q40: N/A | R40: N/A | S40: N/A | T40: N/A | U40: N/A | V40: N/A | W40: N/A | X40: N/A | Y40: N/A | BB40: No | BC40: N/A | BD40: N/A | BE40: N/A | BF40: N/A | BG40: N/A | BH40: N/A | BI40: N/A | BJ40: N/A | BK40: N/A | BL40: N/A | BM40: N/A | BN40: N/A | BO40: N/A | BP40: N/A | BQ40: N/A | BR40: N/A | BS40: N/A | BT40: N/A | BU40: N/A | BV40: N/A | BW40: N/A | BX40: N/A | BY40: N/A
A41: Water point at more than 30 minutes | B41: Yes | C41: N/A | D41: N/A | E41: N/A | F41: N/A | G41: N/A | H41: N/A | I41: N/A | J41: N/A | K41: N/A | L41: N/A | M41: N/A | N41: N/A | O41: N/A | P41: N/A | Q41: N/A | R41: N/A | S41: N/A | T41: N/A | U41: N/A | V41: N/A | W41: N/A | X41: N/A | Y41: N/A | BA41: Water point at more than 30 minutes | BB41: Yes | BC41: N/A | BD41: N/A | BE41: N/A | BF41: N/A | BG41: N/A | BH41: N/A | BI41: N/A | BJ41: N/A | BK41: N/A | BL41: N/A | BM41: N/A | BN41: N/A | BO41: N/A | BP41: N/A | BQ41: N/A | BR41: N/A | BS41: N/A | BT41: N/A | BU41: N/A | BV41: N/A | BW41: N/A | BX41: N/A | BY41: N/A
B42: No | C42: N/A | D42: N/A | E42: N/A | F42: N/A | G42: N/A | H42: N/A | I42: N/A | J42: N/A | K42: N/A | L42: N/A | M42: N/A | N42: N/A | O42: N/A | P42: N/A | Q42: N/A | R42: N/A | S42: N/A | T42: N/A | U42: N/A | V42: N/A | W42: N/A | X42: N/A | Y42: N/A | BB42: No | BC42: N/A | BD42: N/A | BE42: N/A | BF42: N/A | BG42: N/A | BH42: N/A | BI42: N/A | BJ42: N/A | BK42: N/A | BL42: N/A | BM42: N/A | BN42: N/A | BO42: N/A | BP42: N/A | BQ42: N/A | BR42: N/A | BS42: N/A | BT42: N/A | BU42: N/A | BV42: N/A | BW42: N/A | BX42: N/A | BY42: N/A
A43: Water source available when needed | B43: Yes | C43: N/A | D43: N/A | E43: N/A | F43: N/A | G43: N/A | H43: N/A | I43: N/A | J43: N/A | K43: N/A | L43: N/A | M43: N/A | N43: N/A | O43: N/A | P43: N/A | Q43: N/A | R43: N/A | S43: N/A | T43: N/A | U43: N/A | V43: N/A | W43: N/A | X43: N/A | Y43: N/A | BA43: Water source available when needed | BB43: Yes | BC43: N/A | BD43: N/A | BE43: N/A | BF43: N/A | BG43: N/A | BH43: N/A | BI43: N/A | BJ43: N/A | BK43: N/A | BL43: N/A | BM43: N/A | BN43: N/A | BO43: N/A | BP43: N/A | BQ43: N/A | BR43: N/A | BS43: N/A | BT43: N/A | BU43: N/A | BV43: N/A | BW43: N/A | BX43: N/A | BY43: N/A
B44: No | C44: N/A | D44: N/A | E44: N/A | F44: N/A | G44: N/A | H44: N/A | I44: N/A | J44: N/A | K44: N/A | L44: N/A | M44: N/A | N44: N/A | O44: N/A | P44: N/A | Q44: N/A | R44: N/A | S44: N/A | T44: N/A | U44: N/A | V44: N/A | W44: N/A | X44: N/A | Y44: N/A | BB44: No | BC44: N/A | BD44: N/A | BE44: N/A | BF44: N/A | BG44: N/A | BH44: N/A | BI44: N/A | BJ44: N/A | BK44: N/A | BL44: N/A | BM44: N/A | BN44: N/A | BO44: N/A | BP44: N/A | BQ44: N/A | BR44: N/A | BS44: N/A | BT44: N/A | BU44: N/A | BV44: N/A | BW44: N/A | BX44: N/A | BY44: N/A
A45: Improved water source available when needed | B45: Yes | C45: N/A | D45: N/A | E45: N/A | F45: N/A | G45: N/A | H45: N/A | I45: N/A | J45: N/A | K45: N/A | L45: N/A | M45: N/A | N45: N/A | O45: N/A | P45: N/A | Q45: N/A | R45: N/A | S45: N/A | T45: N/A | U45: N/A | V45: N/A | W45: N/A | X45: N/A | Y45: N/A | BA45: Improved water source available when needed | BB45: Yes | BC45: N/A | BD45: N/A | BE45: N/A | BF45: N/A | BG45: N/A | BH45: N/A | BI45: N/A | BJ45: N/A | BK45: N/A | BL45: N/A | BM45: N/A | BN45: N/A | BO45: N/A | BP45: N/A | BQ45: N/A | BR45: N/A | BS45: N/A | BT45: N/A | BU45: N/A | BV45: N/A | BW45: N/A | BX45: N/A | BY45: N/A
B46: No | C46: N/A | D46: N/A | E46: N/A | F46: N/A | G46: N/A | H46: N/A | I46: N/A | J46: N/A | K46: N/A | L46: N/A | M46: N/A | N46: N/A | O46: N/A | P46: N/A | Q46: N/A | R46: N/A | S46: N/A | T46: N/A | U46: N/A | V46: N/A | W46: N/A | X46: N/A | Y46: N/A | BB46: No | BC46: N/A | BD46: N/A | BE46: N/A | BF46: N/A | BG46: N/A | BH46: N/A | BI46: N/A | BJ46: N/A | BK46: N/A | BL46: N/A | BM46: N/A | BN46: N/A | BO46: N/A | BP46: N/A | BQ46: N/A | BR46: N/A | BS46: N/A | BT46: N/A | BU46: N/A | BV46: N/A | BW46: N/A | BX46: N/A | BY46: N/A
A47: Microbiological quality at point of collection | B47: Not contaminated (No E. coli in 100 mL) | C47: N/A | D47: N/A | E47: N/A | F47: N/A | G47: N/A | H47: N/A | I47: N/A | J47: N/A | K47: N/A | L47: N/A | M47: N/A | N47: N/A | O47: N/A | P47: N/A | Q47: N/A | R47: N/A | S47: N/A | T47: N/A | U47: N/A | V47: N/A | W47: N/A | X47: N/A | Y47: N/A | BA47: Microbiological quality at point of collection | BB47: Not contaminated (No E. coli in 100 mL) | BC47: N/A | BD47: N/A | BE47: N/A | BF47: N/A | BG47: N/A | BH47: N/A | BI47: N/A | BJ47: N/A | BK47: N/A | BL47: N/A | BM47: N/A | BN47: N/A | BO47: N/A | BP47: N/A | BQ47: N/A | BR47: N/A | BS47: N/A | BT47: N/A | BU47: N/A | BV47: N/A | BW47: N/A | BX47: N/A | BY47: N/A
B48: Contaminated (E. coli detected in 100 mL) | C48: N/A | D48: N/A | E48: N/A | F48: N/A | G48: N/A | H48: N/A | I48: N/A | J48: N/A | K48: N/A | L48: N/A | M48: N/A | N48: N/A | O48: N/A | P48: N/A | Q48: N/A | R48: N/A | S48: N/A | T48: N/A | U48: N/A | V48: N/A | W48: N/A | X48: N/A | Y48: N/A | BB48: Contaminated (E. coli detected in 100 mL) | BC48: N/A | BD48: N/A | BE48: N/A | BF48: N/A | BG48: N/A | BH48: N/A | BI48: N/A | BJ48: N/A | BK48: N/A | BL48: N/A | BM48: N/A | BN48: N/A | BO48: N/A | BP48: N/A | BQ48: N/A | BR48: N/A | BS48: N/A | BT48: N/A | BU48: N/A | BV48: N/A | BW48: N/A | BX48: N/A | BY48: N/A
B49: Highly contaminated (>100 CFU/100 mL) | C49: N/A | D49: N/A | E49: N/A | F49: N/A | G49: N/A | H49: N/A | I49: N/A | J49: N/A | K49: N/A | L49: N/A | M49: N/A | N49: N/A | O49: N/A | P49: N/A | Q49: N/A | R49: N/A | S49: N/A | T49: N/A | U49: N/A | V49: N/A | W49: N/A | X49: N/A | Y49: N/A | BB49: Highly contaminated (>100 CFU/100 mL) | BC49: N/A | BD49: N/A | BE49: N/A | BF49: N/A | BG49: N/A | BH49: N/A | BI49: N/A | BJ49: N/A | BK49: N/A | BL49: N/A | BM49: N/A | BN49: N/A | BO49: N/A | BP49: N/A | BQ49: N/A | BR49: N/A | BS49: N/A | BT49: N/A | BU49: N/A | BV49: N/A | BW49: N/A | BX49: N/A | BY49: N/A
A50: Microbiological quality of improved water sources at point of collection | B50: Not contaminated (No E. coli in 100 mL) | C50: N/A | D50: N/A | E50: N/A | F50: N/A | G50: N/A | H50: N/A | I50: N/A | J50: N/A | K50: N/A | L50: N/A | M50: N/A | N50: N/A | O50: N/A | P50: N/A | Q50: N/A | R50: N/A | S50: N/A | T50: N/A | U50: N/A | V50: N/A | W50: N/A | X50: N/A | Y50: N/A | BA50: Microbiological quality of improved water sources at point of collection | BB50: Not contaminated (No E. coli in 100 mL) | BC50: N/A | BD50: N/A | BE50: N/A | BF50: N/A | BG50: N/A | BH50: N/A | BI50: N/A | BJ50: N/A | BK50: N/A | BL50: N/A | BM50: N/A | BN50: N/A | BO50: N/A | BP50: N/A | BQ50: N/A | BR50: N/A | BS50: N/A | BT50: N/A | BU50: N/A | BV50: N/A | BW50: N/A | BX50: N/A | BY50: N/A
B51: Contaminated (E. coli detected in 100 mL) | C51: N/A | D51: N/A | E51: N/A | F51: N/A | G51: N/A | H51: N/A | I51: N/A | J51: N/A | K51: N/A | L51: N/A | M51: N/A | N51: N/A | O51: N/A | P51: N/A | Q51: N/A | R51: N/A | S51: N/A | T51: N/A | U51: N/A | V51: N/A | W51: N/A | X51: N/A | Y51: N/A | BB51: Contaminated (E. coli detected in 100 mL) | BC51: N/A | BD51: N/A | BE51: N/A | BF51: N/A | BG51: N/A | BH51: N/A | BI51: N/A | BJ51: N/A | BK51: N/A | BL51: N/A | BM51: N/A | BN51: N/A | BO51: N/A | BP51: N/A | BQ51: N/A | BR51: N/A | BS51: N/A | BT51: N/A | BU51: N/A | BV51: N/A | BW51: N/A | BX51: N/A | BY51: N/A
B52: Highly contaminated (>100 CFU/100 mL) | C52: N/A | D52: N/A | E52: N/A | F52: N/A | G52: N/A | H52: N/A | I52: N/A | J52: N/A | K52: N/A | L52: N/A | M52: N/A | N52: N/A | O52: N/A | P52: N/A | Q52: N/A | R52: N/A | S52: N/A | T52: N/A | U52: N/A | V52: N/A | W52: N/A | X52: N/A | Y52: N/A | BB52: Highly contaminated (>100 CFU/100 mL) | BC52: N/A | BD52: N/A | BE52: N/A | BF52: N/A | BG52: N/A | BH52: N/A | BI52: N/A | BJ52: N/A | BK52: N/A | BL52: N/A | BM52: N/A | BN52: N/A | BO52: N/A | BP52: N/A | BQ52: N/A | BR52: N/A | BS52: N/A | BT52: N/A | BU52: N/A | BV52: N/A | BW52: N/A | BX52: N/A | BY52: N/A
A53: Microbiological quality of piped on premises at point of collection | B53: Not contaminated (No E. coli in 100 mL) | C53: N/A | D53: N/A | E53: N/A | F53: N/A | G53: N/A | H53: N/A | I53: N/A | J53: N/A | K53: N/A | L53: N/A | M53: N/A | N53: N/A | O53: N/A | P53: N/A | Q53: N/A | R53: N/A | S53: N/A | T53: N/A | U53: N/A | V53: N/A | W53: N/A | X53: N/A | Y53: N/A | BA53: Microbiological quality of piped on premises at point of collection | BB53: Not contaminated (No E. coli in 100 mL) | BC53: N/A | BD53: N/A | BE53: N/A | BF53: N/A | BG53: N/A | BH53: N/A | BI53: N/A | BJ53: N/A | BK53: N/A | BL53: N/A | BM53: N/A | BN53: N/A | BO53: N/A | BP53: N/A | BQ53: N/A | BR53: N/A | BS53: N/A | BT53: N/A | BU53: N/A | BV53: N/A | BW53: N/A | BX53: N/A | BY53: N/A
B54: Contaminated (E. coli detected in 100 mL) | C54: N/A | D54: N/A | E54: N/A | F54: N/A | G54: N/A | H54: N/A | I54: N/A | J54: N/A | K54: N/A | L54: N/A | M54: N/A | N54: N/A | O54: N/A | P54: N/A | Q54: N/A | R54: N/A | S54: N/A | T54: N/A | U54: N/A | V54: N/A | W54: N/A | X54: N/A | Y54: N/A | BB54: Contaminated (E. coli detected in 100 mL) | BC54: N/A | BD54: N/A | BE54: N/A | BF54: N/A | BG54: N/A | BH54: N/A | BI54: N/A | BJ54: N/A | BK54: N/A | BL54: N/A | BM54: N/A | BN54: N/A | BO54: N/A | BP54: N/A | BQ54: N/A | BR54: N/A | BS54: N/A | BT54: N/A | BU54: N/A | BV54: N/A | BW54: N/A | BX54: N/A | BY54: N/A
B55: Highly contaminated (>100 CFU/100 mL) | C55: N/A | D55: N/A | E55: N/A | F55: N/A | G55: N/A | H55: N/A | I55: N/A | J55: N/A | K55: N/A | L55: N/A | M55: N/A | N55: N/A | O55: N/A | P55: N/A | Q55: N/A | R55: N/A | S55: N/A | T55: N/A | U55: N/A | V55: N/A | W55: N/A | X55: N/A | Y55: N/A | BB55: Highly contaminated (>100 CFU/100 mL) | BC55: N/A | BD55: N/A | BE55: N/A | BF55: N/A | BG55: N/A | BH55: N/A | BI55: N/A | BJ55: N/A | BK55: N/A | BL55: N/A | BM55: N/A | BN55: N/A | BO55: N/A | BP55: N/A | BQ55: N/A | BR55: N/A | BS55: N/A | BT55: N/A | BU55: N/A | BV55: N/A | BW55: N/A | BX55: N/A | BY55: N/A
C56: NATIONAL wealth index quintile | H56: URBAN wealth index quintile | M56: RURAL wealth index quintile | R56: SUB-REGIONS: | BA56: Raw numbers of respondents: | BB56: Use of drinking water sources | BC56: NATIONAL wealth index quintile | BH56: URBAN wealth index quintile | BM56: RURAL wealth index quintile | BR56: SUB-REGIONS:
A57: Percentage based on weighted population | C57: Poorest | D57: Poor | E57: Middle | F57: Rich | G57: Richest | H57: Poorest | I57: Poor | J57: Middle | K57: Rich | L57: Richest | M57: Poorest | N57: Poor | O57: Middle | P57: Rich | Q57: Richest | R57: Capital | S57: Central Highlands | T57: Eastern | U57: North Eastern | V57: Northern | W57: South Eastern | X57: Southern | Y57: Western | BA57: Water data, raw numbers (weighted) | BC57: Poorest | BD57: Poor | BE57: Middle | BF57: Rich | BG57: Richest | BH57: Poorest | BI57: Poor | BJ57: Middle | BK57: Rich | BL57: Richest | BM57: Poorest | BN57: Poor | BO57: Middle | BP57: Rich | BQ57: Richest | BR57: Capital | BS57: Central Highlands | BT57: Eastern | BU57: North Eastern | BV57: Northern | BW57: South Eastern | BX57: Southern | BY57: Western
A58: Source of drinking water | B58: Piped - into dwelling | C58: 0.2263952942 | D58: 0.4916301978 | E58: 1.356160689 | F58: 1.952134354 | G58: 7.613525053 | H58: 3.660944507 | I58: 5.984052811 | J58: 6.795002614 | K58: 7.327448084 | L58: 16.46022764 | M58: 0.2432347268 | N58: 0.2014935598 | O58: 1.007585276 | P58: 1.190726829 | Q58: 1.858568373 | R58: 4.931223795 | S58: 0 | T58: 2.37959935 | U58: 0.7301214367 | V58: 1.486831274 | W58: 1.172755907 | X58: 4.02622448 | Y58: 1.542335275
B59: Piped - into yard/plot | C59: 0.3434405159 | D59: 1.936166546 | E59: 2.065954422 | F59: 2.855948891 | G59: 13.67603753 | H59: 5.609879259 | I59: 10.03002823 | J59: 13.01436069 | K59: 18.10228541 | L59: 22.98306948 | M59: 0.2375746152 | N59: 1.205820259 | O59: 2.374754724 | P59: 1.89278143 | Q59: 2.968868938 | R59: 6.810403996 | S59: 0 | T59: 1.020221093 | U59: 1.738569262 | V59: 3.249025473 | W59: 3.118411582 | X59: 5.17939007 | Y59: 9.725030386
B60: Piped - public tap / standpipe | C60: 8.260293097 | D60: 4.756591827 | E60: 4.004476736 | F60: 2.64418525 | G60: 5.989089977 | H60: 6.985678694 | I60: 10.44695521 | J60: 8.587894943 | K60: 6.058844452 | L60: 3.598874805 | M60: 8.701694367 | N60: 5.56624716 | O60: 3.898119507 | P60: 2.944941078 | Q60: 2.041892489 | R60: 4.061768918 | S60: 0 | T60: 3.226240018 | U60: 16.50695099 | V60: 1.590003152 | W60: 1.321276444 | X60: 1.931014629 | Y60: 6.389162499
B61: Tube well or borehole | C61: 9.130690341 | D61: 13.24322192 | E61: 20.23743982 | F61: 34.20180837 | G61: 36.85930156 | H61: 21.73178823 | I61: 27.29777802 | J61: 33.6848192 | K61: 33.3660953 | L61: 38.46579523 | M61: 8.699067655 | N61: 11.59881533 | O61: 17.13068595 | P61: 24.48490072 | Q61: 41.56056092 | R61: 28.24243371 | S61: 1.926629406 | T61: 34.87021245 | U61: 3.666279224 | V61: 17.98347635 | W61: 46.25216224 | X61: 30.83973094 | Y61: 9.807905746
B62: Dug well - protected | C62: 11.44817546 | D62: 14.7779832 | E62: 15.21895857 | F62: 15.32838468 | G62: 17.04454312 | H62: 18.04983504 | I62: 18.2030041 | J62: 16.42816997 | K62: 19.47492824 | L62: 13.38779737 | M62: 11.02311356 | N62: 14.07263946 | O62: 15.09904673 | P62: 15.4281622 | Q62: 15.26798366 | R62: 18.08216234 | S62: 15.21605095 | T62: 10.39301223 | U62: 15.62393691 | V62: 10.65127691 | W62: 5.782231852 | X62: 15.71308816 | Y62: 25.40949764
B63: Dug well - unprotected | C63: 14.20936077 | D63: 20.29671762 | E63: 23.40447449 | F63: 17.6015812 | G63: 7.939008755 | H63: 18.50913032 | I63: 11.28122711 | J63: 9.508394708 | K63: 6.496999307 | L63: 1.470563591 | M63: 14.2581693 | N63: 17.47707456 | O63: 23.48005815 | P63: 21.83902471 | Q63: 15.43163392 | R63: 12.14146205 | S63: 4.625128101 | T63: 14.21358081 | U63: 22.29419031 | V63: 15.68973709 | W63: 9.341225631 | X63: 21.60306776 | Y63: 27.68041123
B64: Spring - protected | C64: 10.4676517 | D64: 8.376014399 | E64: 5.93388411 | F64: 4.971298389 | G64: 1.012015152 | H64: 1.108954682 | I64: 1.034451178 | J64: 0.7384132635 | K64: 0.4306377194 | L64: 0.04775923794 | M64: 11.00667934 | N64: 9.541568965 | O64: 6.505287769 | P64: 5.668012104 | Q64: 4.878761792 | R64: 3.691364213 | S64: 32.76102077 | T64: 5.168882126 | U64: 7.966312774 | V64: 2.724367191 | W64: 7.823429699 | X64: 4.896925099 | Y64: 5.88823308
B65: Spring - unprotected | C65: 13.72804034 | D65: 11.41255006 | E65: 11.4793037 | F65: 7.164320726 | G65: 0.7577449016 | H65: 4.148078844 | I65: 0.7498315254 | J65: 0.3873781754 | K65: 0.08661428425 | L65: 0 | M65: 13.77534817 | N65: 12.90566207 | O65: 10.70250451 | P65: 12.6192396 | Q65: 4.312849107 | R65: 8.68806735 | S65: 27.45350818 | T65: 16.92368004 | U65: 5.192271404 | V65: 6.082396197 | W65: 4.247779296 | X65: 5.277898366 | Y65: 6.473383834
B66: Rainwater | C66: 2.030928563 | D66: 0.4954730796 | E66: 0.1133721232 | F66: 0.08786347211 | G66: 0 | H66: 0 | I66: 0 | J66: 0 | K66: 0 | L66: 0 | M66: 2.355506785 | N66: 0.7475524057 | O66: 0.1953551813 | P66: 0.1095117578 | Q66: 0 | R66: 0.2011229947 | S66: 0.2015063831 | T66: 0 | U66: 0 | V66: 2.624472073 | W66: 0 | X66: 0 | Y66: 0.6952971849
B67: Tanker truck | C67: 0.07269806962 | D67: 0.1155399825 | E67: 0.2647859248 | F67: 0.8026498824 | G67: 2.648765116 | H67: 3.795406243 | I67: 5.045786031 | J67: 3.685915872 | K67: 3.229688511 | L67: 1.632579074 | M67: 0.07638036126 | N67: 0.061953787 | O67: 0.01375732677 | P67: 0.1700853646 | Q67: 0.2137800728 | R67: 2.457082075 | S67: 0 | T67: 0.06807023686 | U67: 0.1060926404 | V67: 0.1299257919 | W67: 0.5476061621 | X67: 2.687673478 | Y67: 0
B68: Cart with small tank | C68: 0.7951687465 | D68: 0.9650950457 | E68: 0.5293346264 | F68: 0.619975367 | G68: 0.626113653 | H68: 0.4587333567 | I68: 1.109389777 | J68: 0.8447346178 | K68: 0.3377971902 | L68: 0 | M68: 0.742720704 | N68: 1.081908072 | O68: 0.7456480868 | P68: 0.3586248976 | Q68: 0.8035574436 | R68: 0.1855265982 | S68: 0 | T68: 0.8367223558 | U68: 1.083736664 | V68: 1.019906434 | W68: 0.4432695276 | X68: 1.245481033 | Y68: 0.5940450391
B69: Surface water (river/dam/lake/pond/stream/canal/irrigation channel | C69: 28.48453395 | D69: 20.814746 | E69: 10.61108076 | F69: 4.86711057 | G69: 1.665438859 | H69: 10.21926686 | I69: 2.287137967 | J69: 1.1085634 | K69: 0.9611211389 | L69: 0.1684534122 | M69: 28.1103171 | N69: 24.16365515 | O69: 14.75924106 | P69: 7.795008446 | Q69: 4.526669281 | R69: 5.208195826 | S69: 17.81615622 | T69: 7.257983642 | U69: 24.477741 | V69: 35.18368365 | W69: 3.345626052 | X69: 6.173154653 | Y69: 3.867398357
B70: Bottled water | C70: 0.03176504065 | D70: 0.2483676378 | E70: 1.091378493 | F70: 0.2269458966 | G70: 0.07279710417 | H70: 0.08643412487 | I70: 0 | J70: 0 | K70: 0 | L70: 0.3642372762 | M70: 0.03968777924 | N70: 0.05949519348 | O70: 0.6704447467 | P70: 1.206573254 | Q70: 0 | R70: 0.06293203152 | S70: 0 | T70: 1.761836209 | U70: 0.05877056704 | V70: 0.04176979644 | W70: 0 | X70: 0 | Y70: 0
B71: Other | C71: 0.7708581134 | D71: 2.069902487 | E71: 3.689395523 | F71: 6.675792954 | G71: 4.095619221 | H71: 5.63586984 | I71: 6.53035804 | J71: 5.216352543 | K71: 4.127540361 | L71: 1.420642886 | M71: 0.7305055309 | N71: 1.316114025 | O71: 3.417510986 | P71: 4.292407621 | Q71: 6.134874006 | R71: 5.236254098 | S71: 0 | T71: 1.879959442 | U71: 0.5550268215 | V71: 1.543128617 | W71: 16.6042256 | X71: 0.4263513314 | Y71: 1.92729972
A108: =A1026 -> Afghanistan
A109: =A1034 -> 2010
A110: Use of sanitation facilities
A111: by wealth quintile and sub-national region
A112: Notes:
A113: WHO/UNICEF JMP customised wealth index excludes water,
A114: sanitation and hygiene assets.
A115: Survey used for analysis: | B115: =A1025 -> DHS10
A116: =B1030 -> 
A117: =B1029 -> 
A120: Use of sanitation facilities | C120: NATIONAL wealth index quintile | H120: URBAN wealth index quintile | M120: RURAL wealth index quintile | R120: SUB-REGIONS: | BA120: Raw numbers of respondents: | BB120: Use of sanitation facilities | BC120: NATIONAL wealth index quintile | BH120: URBAN wealth index quintile | BM120: RURAL wealth index quintile | BR120: SUB-REGIONS:
A121: Weighted percentage (used in graphs) | C121: Poorest | D121: Poor | E121: Middle | F121: Rich | G121: Richest | H121: Poorest | I121: Poor | J121: Middle | K121: Rich | L121: Richest | M121: Poorest | N121: Poor | O121: Middle | P121: Rich | Q121: Richest | R121: Capital | S121: Central Highlands | T121: Eastern | U121: North Eastern | V121: Northern | W121: South Eastern | X121: Southern | Y121: Western | BA121: Sanitation data, raw numbers (weighted) | BC121: Poorest | BD121: Poor | BE121: Middle | BF121: Rich | BG121: Richest | BH121: Poorest | BI121: Poor | BJ121: Middle | BK121: Rich | BL121: Richest | BM121: Poorest | BN121: Poor | BO121: Middle | BP121: Rich | BQ121: Richest | BR121: Capital | BS121: Central Highlands | BT121: Eastern | BU121: North Eastern | BV121: Northern | BW121: South Eastern | BX121: Southern | BY121: Western
A122: Sanitation | B122: Improved | C122: 19.98480869 | D122: 30.80709934 | E122: 31.41089138 | F122: 37.73830808 | G122: 70.19460768 | H122: 48.83527164 | I122: 59.88634326 | J122: 68.61305227 | K122: 75.32919557 | L122: 91.93399249 | M122: 18.91810257 | N122: 28.83914476 | O122: 31.55803923 | P122: 29.52098891 | Q122: 42.74731199 | R122: 53.00732614 | S122: 44.23514341 | T122: 39.17629961 | U122: 13.71494077 | V122: 48.96207858 | W122: 20.29115833 | X122: 51.44682028 | Y122: 31.10640615 | BA122: Sanitation | BB122: Improved | BC122: 7125.980088 | BD122: 10985.75218 | BE122: 11200.59048 | BF122: 13456.21031 | BG122: 25032.70522 | BH122: 3478.373198 | BI122: 4268.005846 | BJ122: 4885.324824 | BK122: 5368.899592 | BL122: 6546.278248 | BM122: 5399.333932 | BN122: 8228.410213 | BO122: 9003.986393 | BP122: 8423.715334 | BQ122: 12198.9107 | BR122: 18886.72785 | BS122: 2680.873204 | BT122: 12129.81196 | BU122: 3631.407624 | BV122: 13682.99771 | BW122: 3269.929965 | BX122: 6577.747017 | BY122: 6941.742947
B123: Not Improved | C123: 80.01519131 | D123: 69.19290066 | E123: 68.58910862 | F123: 62.26169192 | G123: 29.80539232 | H123: 51.16472836 | I123: 40.11365674 | J123: 31.38694773 | K123: 24.67080443 | L123: 8.066007508 | M123: 81.08189743 | N123: 71.16085524 | O123: 68.44196077 | P123: 70.47901109 | Q123: 57.25268801 | R123: 46.99267386 | S123: 55.76485659 | T123: 60.82370039 | U123: 86.28505923 | V123: 51.03792142 | W123: 79.70884167 | X123: 48.55317972 | Y123: 68.89359385 | BB123: Not Improved | BC123: 28531.00416 | BD123: 24674.05485 | BE123: 24457.71144 | BF123: 22200.42347 | BG123: 10629.15834 | BH123: 3644.292615 | BI123: 2858.83746 | BJ123: 2234.785217 | BK123: 1758.349745 | BL123: 574.350445 | BM123: 23141.23409 | BN123: 20303.67797 | BO123: 19527.52764 | BP123: 20110.94982 | BQ123: 16338.34727 | BR123: 16743.68256 | BS123: 3379.632081 | BT123: 18832.30564 | BU123: 22846.34161 | BV123: 14263.11509 | BW123: 12845.11834 | BX123: 6207.779827 | BY123: 15374.37712
A124: Sanitation ladder | B124: Basic | C124: =C122*C129/100 -> 14.97521431 | D124: =D122*D129/100 -> 20.65307753 | E124: =E122*E129/100 -> 18.58313749 | F124: 13.96698744 | G124: 34.25225268 | H124: 23.10704128 | I124: 28.30898697 | J124: 31.1136018 | K124: 39.45715153 | L124: 52.98921045 | M124: 14.28356792 | N124: 19.96311175 | O124: 20.60501433 | P124: 14.91897693 | Q124: 14.41086321 | R124: 27.34407609 | S124: 32.71083788 | T124: 15.80572759 | U124: 11.56570218 | V124: 32.49762086 | W124: 1.687507406 | X124: 20.68557357 | Y124: 21.33910706 | BA124: Sanitation ladder | BB124: Basic | BC124: 5171.425078 | BD124: 6917.875451 | BE124: 6275.149274 | BF124: 4788.220671 | BG124: 11881.42332 | BH124: 1584.939027 | BI124: 1953.236327 | BJ124: 2164.753687 | BK124: 2754.159472 | BL124: 3724.854007 | BM124: 3970.239392 | BN124: 5292.714407 | BO124: 5619.034091 | BP124: 4065.018177 | BQ124: 3905.145203 | BR124: 9513.01235 | BS124: 1576.770447 | BT124: 4689.032188 | BU124: 3004.744313 | BV124: 8975.210904 | BW124: 265.152251 | BX124: 2356.294155 | BY124: 4653.877182
B125: Limited | C125: =C122*C128/100 -> 5.009594382 | D125: =D122*D128/100 -> 10.15402181 | E125: =E122*E128/100 -> 12.82775389 | F125: 23.77132064 | G125: 35.942355 | H125: 25.72823037 | I125: 31.57735629 | J125: 37.49945047 | K125: 35.87204405 | L125: 38.94478205 | M125: 4.634534648 | N125: 8.876033007 | O125: 10.9530249 | P125: 14.60201198 | Q125: 28.33644878 | R125: 25.66325006 | S125: 11.52430552 | T125: 23.37057202 | U125: 2.14923859 | V125: 16.46445772 | W125: 18.60365092 | X125: 30.7612467 | Y125: 9.767299089 | BB125: Limited | BC125: 1729.974709 | BD125: 3401.152109 | BE125: 4331.672761 | BF125: 8149.382916 | BG125: 12467.6861 | BH125: 1764.729457 | BI125: 2178.744138 | BJ125: 2609.054207 | BK125: 2503.9144 | BL125: 2737.606887 | BM125: 1288.208389 | BN125: 2353.255763 | BO125: 2986.914706 | BP125: 3978.653791 | BQ125: 7678.78686 | BR125: 8928.252464 | BS125: 555.509597 | BT125: 6933.269211 | BU125: 558.367519 | BV125: 4547.163039 | BW125: 2923.127863 | BX125: 3504.01431 | BY125: 2130.164595
B126: Unimproved | C126: =100-C124-C125-C127 -> 41.24814775 | D126: =100-D124-D125-D127 -> 48.2335194 | E126: =100-E124-E125-E127 -> 47.52529335 | F126: 43.53396522 | G126: 27.60005921 | H126: 46.01726378 | I126: 39.76325376 | J126: 31.27959278 | K126: 24.67080443 | L126: 8.066007508 | M126: 39.44475943 | N126: 47.66285887 | O126: 47.44002041 | P126: 49.37451975 | Q126: 38.72490579 | R126: 44.2060728 | S126: 0.5968921365 | T126: 36.9482301 | U126: 58.86162282 | V126: 42.10650078 | W126: 40.98608166 | X126: 38.10606244 | Y126: 35.8475367 | BB126: Unimproved | BC126: 14794.90869 | BD126: 17339.7213 | BE126: 17071.78288 | BF126: 15619.8698 | BG126: 9857.771024 | BH126: 3284.280945 | BI126: 2834.341426 | BJ126: 2227.261145 | BK126: 1758.349745 | BL126: 574.350445 | BM126: 11316.41936 | BN126: 13736.07066 | BO126: 13618.9517 | BP126: 14169.0601 | BQ126: 11164.96816 | BR126: 15763.21844 | BS126: 338.822359 | BT126: 11561.12499 | BU126: 15603.96194 | BV126: 11781.47619 | BW126: 6636.543931 | BX126: 4947.01249 | BY126: 8051.893351
B127: Open defecation | C127: 38.76704356 | D127: 20.95938126 | E127: 21.06381527 | F127: 18.7277267 | G127: 2.205333106 | H127: 5.147464576 | I127: 0.3504029752 | J127: 0.1073549553 | K127: 0 | L127: 0 | M127: 41.637138 | N127: 23.49799638 | O127: 21.00194036 | P127: 21.10449134 | Q127: 18.52778222 | R127: 2.786601059 | S127: 55.16796446 | T127: 23.87547028 | U127: 27.42343641 | V127: 8.931420646 | W127: 38.72276002 | X127: 10.44711728 | Y127: 33.04605715 | BB127: Open defecation | BC127: 13736.09547 | BD127: 7334.333559 | BE127: 7385.928555 | BF127: 6580.553676 | BG127: 771.387319 | BH127: 360.01167 | BI127: 24.496034 | BJ127: 7.524072 | BK127: 0 | BL127: 0 | BM127: 11824.81473 | BN127: 6567.607307 | BO127: 5908.575944 | BP127: 5941.889718 | BQ127: 5173.379107 | BR127: 980.464116 | BS127: 3040.809722 | BT127: 7271.180655 | BU127: 7242.379673 | BV127: 2481.638904 | BW127: 6208.574404 | BX127: 1260.767337 | BY127: 7322.483773
A128: Shared among Improved Sanitation | B128: Yes | C128: 25.06701195 | D128: 32.96000606 | E128: 40.83855416 | F128: 62.98989501 | G128: 51.20386906 | H128: 52.68370483 | I128: 52.72881023 | J128: 54.65352324 | K128: 47.62037318 | L128: 42.36167819 | M128: 24.49788308 | N128: 30.77772618 | O128: 34.70755842 | P128: 49.46315323 | Q128: 66.28825876 | R128: 48.41453422 | S128: 26.05237518 | T128: 59.65487362 | U128: 15.67078288 | V128: 33.62695824 | W128: 91.68353339 | X128: 59.79231863 | Y128: 31.39963852 | BA128: Shared among improved sanitation facilities | BB128: Yes | BC128: N/A | BD128: N/A | BE128: N/A | BF128: N/A | BG128: N/A | BH128: N/A | BI128: N/A | BJ128: N/A | BK128: N/A | BL128: N/A | BM128: N/A | BN128: N/A | BO128: N/A | BP128: N/A | BQ128: N/A | BR128: N/A | BS128: N/A | BT128: N/A | BU128: N/A | BV128: N/A | BW128: N/A | BX128: N/A | BY128: N/A
B129: No | C129: 74.93298805 | D129: 67.03999394 | E129: 59.16144584 | F129: 37.01010499 | G129: 48.79613094 | H129: 47.31629517 | I129: 47.27118977 | J129: 45.34647676 | K129: 52.37962682 | L129: 57.63832181 | M129: 75.50211692 | N129: 69.22227382 | O129: 65.29244158 | P129: 50.53684677 | Q129: 33.71174124 | R129: 51.58546578 | S129: 73.94762482 | T129: 40.34512638 | U129: 84.32921712 | V129: 66.37304176 | W129: 8.316466606 | X129: 40.20768137 | Y129: 68.60036148 | BB129: No | BC129: N/A | BD129: N/A | BE129: N/A | BF129: N/A | BG129: N/A | BH129: N/A | BI129: N/A | BJ129: N/A | BK129: N/A | BL129: N/A | BM129: N/A | BN129: N/A | BO129: N/A | BP129: N/A | BQ129: N/A | BR129: N/A | BS129: N/A | BT129: N/A | BU129: N/A | BV129: N/A | BW129: N/A | BX129: N/A | BY129: N/A
A130: Manually calculated ratios | B130: Improved latrines
B131: Other
B132: Other
C133: NATIONAL wealth index quintile | H133: URBAN wealth index quintile | M133: RURAL wealth index quintile | R133: SUB-REGIONS: | BA133: Raw numbers of respondents: | BB133: Use of sanitation facilities | BC133: NATIONAL wealth index quintile | BH133: URBAN wealth index quintile | BM133: RURAL wealth index quintile | BR133: SUB-REGIONS:
A134: Percentage based on weighted population | C134: Poorest | D134: Poor | E134: Middle | F134: Rich | G134: Richest | H134: Poorest | I134: Poor | J134: Middle | K134: Rich | L134: Richest | M134: Poorest | N134: Poor | O134: Middle | P134: Rich | Q134: Richest | R134: Capital | S134: Central Highlands | T134: Eastern | U134: North Eastern | V134: Northern | W134: South Eastern | X134: Southern | Y134: Western | BA134: Sanitation data, raw numbers (weighted) | BC134: Poorest | BD134: Poor | BE134: Middle | BF134: Rich | BG134: Richest | BH134: Poorest | BI134: Poor | BJ134: Middle | BK134: Rich | BL134: Richest | BM134: Poorest | BN134: Poor | BO134: Middle | BP134: Rich | BQ134: Richest | BR134: Capital | BS134: Central Highlands | BT134: Eastern | BU134: North Eastern | BV134: Northern | BW134: South Eastern | BX134: Southern | BY134: Western
A135: Sanitation type | B135: Sewer connection | C135: 0 | D135: 0.02663722771 | E135: 0.03502600328 | F135: 0.1059411195 | G135: 2.774743345 | H135: 0.2666730196 | I135: 0.545391716 | J135: 1.116532814 | K135: 2.248668321 | L135: 9.188429284 | M135: 0 | N135: 0.02324629714 | O135: 0 | P135: 0.02444507396 | Q135: 0.2935698135 | R135: 2.30865954 | S135: 0 | T135: 0.2861044071 | U135: 0.02216760174 | V135: 0.2673902469 | W135: 0.02269516003 | X135: 0.03699794352 | Y135: 0.2201881548 | BA135: Sanitation type | BB135: Sewer connection | BC135: N/A | BD135: N/A | BE135: N/A | BF135: N/A | BG135: N/A | BH135: N/A | BI135: N/A | BJ135: N/A | BK135: N/A | BL135: N/A | BM135: N/A | BN135: N/A | BO135: N/A | BP135: N/A | BQ135: N/A | BR135: N/A | BS135: N/A | BT135: N/A | BU135: N/A | BV135: N/A | BW135: N/A | BX135: N/A | BY135: N/A
B136: Septic tank connection | C136: 0.04264908354 | D136: 0.2173071406 | E136: 0.6568041813 | F136: 1.279984815 | G136: 17.55770599 | H136: 2.419304801 | I136: 6.105313774 | J136: 12.11464747 | K136: 20.76661966 | L136: 43.53806944 | M136: 0.0441183651 | N136: 0.0515933566 | O136: 0.4451631968 | P136: 0.6326315765 | Q136: 2.311296901 | R136: 8.894549946 | S136: 0 | T136: 2.422052892 | U136: 0.791253513 | V136: 3.328737967 | W136: 0.1741473899 | X136: 4.263123817 | Y136: 6.3305775 | BB136: Septic tank connection | BC136: N/A | BD136: N/A | BE136: N/A | BF136: N/A | BG136: N/A | BH136: N/A | BI136: N/A | BJ136: N/A | BK136: N/A | BL136: N/A | BM136: N/A | BN136: N/A | BO136: N/A | BP136: N/A | BQ136: N/A | BR136: N/A | BS136: N/A | BT136: N/A | BU136: N/A | BV136: N/A | BW136: N/A | BX136: N/A | BY136: N/A
B137: Improved latrines | C137: 19.94215961 | D137: 30.56315497 | E137: 30.71906119 | F137: 36.35238215 | G137: 49.86215835 | H137: 46.14929382 | I137: 53.23563777 | J137: 55.38187198 | K137: 52.31390759 | L137: 39.20749377 | M137: 18.8739842 | N137: 28.7643051 | O137: 31.11287603 | P137: 28.86391226 | Q137: 40.14244527 | R137: 41.80411666 | S137: 44.23514341 | T137: 36.46814231 | U137: 12.90151965 | V137: 45.36595037 | W137: 20.09431578 | X137: 47.14669852 | Y137: 24.5556405 | BB137: Improved latrines | BC137: N/A | BD137: N/A | BE137: N/A | BF137: N/A | BG137: N/A | BH137: N/A | BI137: N/A | BJ137: N/A | BK137: N/A | BL137: N/A | BM137: N/A | BN137: N/A | BO137: N/A | BP137: N/A | BQ137: N/A | BR137: N/A | BS137: N/A | BT137: N/A | BU137: N/A | BV137: N/A | BW137: N/A | BX137: N/A | BY137: N/A
B138: Unimproved facilities | C138: 41.4923163 | D138: 48.62539296 | E138: 47.87603998 | F138: 43.80635001 | G138: 27.64233284 | H138: 46.11027712 | I138: 39.76994167 | J138: 31.2812742 | K138: 24.67080443 | L138: 8.066007508 | M138: 39.65029479 | N138: 48.14253543 | O138: 47.73301439 | P138: 49.65560319 | Q138: 39.12417997 | R138: 44.24091179 | S138: 5.590661885 | T138: 37.33958103 | U138: 58.93235789 | V138: 42.15783523 | W138: 41.18227763 | X138: 38.69228504 | Y138: 36.08106304 | BB138: Unimproved facilities | BC138: N/A | BD138: N/A | BE138: N/A | BF138: N/A | BG138: N/A | BH138: N/A | BI138: N/A | BJ138: N/A | BK138: N/A | BL138: N/A | BM138: N/A | BN138: N/A | BO138: N/A | BP138: N/A | BQ138: N/A | BR138: N/A | BS138: N/A | BT138: N/A | BU138: N/A | BV138: N/A | BW138: N/A | BX138: N/A | BY138: N/A
B139: Open defecation | C139: 38.52287501 | D139: 20.56750771 | E139: 20.71306865 | F139: 18.4553419 | G139: 2.163059476 | H139: 5.054451233 | I139: 0.3437150636 | J139: 0.1056735353 | K139: 0 | L139: 0 | M139: 41.43160264 | N139: 23.01831981 | O139: 20.70894638 | P139: 20.8234079 | Q139: 18.12850805 | R139: 2.751762061 | S139: 50.17419471 | T139: 23.48411936 | U139: 27.35270135 | V139: 8.880086193 | W139: 38.52656404 | X139: 9.860894685 | Y139: 32.81253081 | BB139: Open defecation | BC139: N/A | BD139: N/A | BE139: N/A | BF139: N/A | BG139: N/A | BH139: N/A | BI139: N/A | BJ139: N/A | BK139: N/A | BL139: N/A | BM139: N/A | BN139: N/A | BO139: N/A | BP139: N/A | BQ139: N/A | BR139: N/A | BS139: N/A | BT139: N/A | BU139: N/A | BV139: N/A | BW139: N/A | BX139: N/A | BY139: N/A
A140: Septic tank emptying practices | B140: Not emptied/treated and disposed in situ | C140: N/A | D140: N/A | E140: N/A | F140: N/A | G140: N/A | H140: N/A | I140: N/A | J140: N/A | K140: N/A | L140: N/A | M140: N/A | N140: N/A | O140: N/A | P140: N/A | Q140: N/A | R140: N/A | S140: N/A | T140: N/A | U140: N/A | V140: N/A | W140: N/A | X140: N/A | Y140: N/A | BA140: Septic tank emptying practices | BB140: Not emptied/treated and disposed in situ | BC140: N/A | BD140: N/A | BE140: N/A | BF140: N/A | BG140: N/A | BH140: N/A | BI140: N/A | BJ140: N/A | BK140: N/A | BL140: N/A | BM140: N/A | BN140: N/A | BO140: N/A | BP140: N/A | BQ140: N/A | BR140: N/A | BS140: N/A | BT140: N/A | BU140: N/A | BV140: N/A | BW140: N/A | BX140: N/A | BY140: N/A
B141: Emptied and buried on site | C141: N/A | D141: N/A | E141: N/A | F141: N/A | G141: N/A | H141: N/A | I141: N/A | J141: N/A | K141: N/A | L141: N/A | M141: N/A | N141: N/A | O141: N/A | P141: N/A | Q141: N/A | R141: N/A | S141: N/A | T141: N/A | U141: N/A | V141: N/A | W141: N/A | X141: N/A | Y141: N/A | BB141: Emptied and buried on site | BC141: N/A | BD141: N/A | BE141: N/A | BF141: N/A | BG141: N/A | BH141: N/A | BI141: N/A | BJ141: N/A | BK141: N/A | BL141: N/A | BM141: N/A | BN141: N/A | BO141: N/A | BP141: N/A | BQ141: N/A | BR141: N/A | BS141: N/A | BT141: N/A | BU141: N/A | BV141: N/A | BW141: N/A | BX141: N/A | BY141: N/A
B142: Emptied and discharged locally | C142: N/A | D142: N/A | E142: N/A | F142: N/A | G142: N/A | H142: N/A | I142: N/A | J142: N/A | K142: N/A | L142: N/A | M142: N/A | N142: N/A | O142: N/A | P142: N/A | Q142: N/A | R142: N/A | S142: N/A | T142: N/A | U142: N/A | V142: N/A | W142: N/A | X142: N/A | Y142: N/A | BB142: Emptied and discharged locally | BC142: N/A | BD142: N/A | BE142: N/A | BF142: N/A | BG142: N/A | BH142: N/A | BI142: N/A | BJ142: N/A | BK142: N/A | BL142: N/A | BM142: N/A | BN142: N/A | BO142: N/A | BP142: N/A | BQ142: N/A | BR142: N/A | BS142: N/A | BT142: N/A | BU142: N/A | BV142: N/A | BW142: N/A | BX142: N/A | BY142: N/A
B143: Emptied and removed offsite | C143: N/A | D143: N/A | E143: N/A | F143: N/A | G143: N/A | H143: N/A | I143: N/A | J143: N/A | K143: N/A | L143: N/A | M143: N/A | N143: N/A | O143: N/A | P143: N/A | Q143: N/A | R143: N/A | S143: N/A | T143: N/A | U143: N/A | V143: N/A | W143: N/A | X143: N/A | Y143: N/A | BB143: Emptied and removed offsite | BC143: N/A | BD143: N/A | BE143: N/A | BF143: N/A | BG143: N/A | BH143: N/A | BI143: N/A | BJ143: N/A | BK143: N/A | BL143: N/A | BM143: N/A | BN143: N/A | BO143: N/A | BP143: N/A | BQ143: N/A | BR143: N/A | BS143: N/A | BT143: N/A | BU143: N/A | BV143: N/A | BW143: N/A | BX143: N/A | BY143: N/A
A144: Latrine emptying practices | B144: Not emptied/treated and disposed in situ | C144: N/A | D144: N/A | E144: N/A | F144: N/A | G144: N/A | H144: N/A | I144: N/A | J144: N/A | K144: N/A | L144: N/A | M144: N/A | N144: N/A | O144: N/A | P144: N/A | Q144: N/A | R144: N/A | S144: N/A | T144: N/A | U144: N/A | V144: N/A | W144: N/A | X144: N/A | Y144: N/A | BA144: Latrine emptying practices | BB144: Not emptied/treated and disposed in situ | BC144: N/A | BD144: N/A | BE144: N/A | BF144: N/A | BG144: N/A | BH144: N/A | BI144: N/A | BJ144: N/A | BK144: N/A | BL144: N/A | BM144: N/A | BN144: N/A | BO144: N/A | BP144: N/A | BQ144: N/A | BR144: N/A | BS144: N/A | BT144: N/A | BU144: N/A | BV144: N/A | BW144: N/A | BX144: N/A | BY144: N/A
B145: Emptied and buried on site | C145: N/A | D145: N/A | E145: N/A | F145: N/A | G145: N/A | H145: N/A | I145: N/A | J145: N/A | K145: N/A | L145: N/A | M145: N/A | N145: N/A | O145: N/A | P145: N/A | Q145: N/A | R145: N/A | S145: N/A | T145: N/A | U145: N/A | V145: N/A | W145: N/A | X145: N/A | Y145: N/A | BB145: Emptied and buried on site | BC145: N/A | BD145: N/A | BE145: N/A | BF145: N/A | BG145: N/A | BH145: N/A | BI145: N/A | BJ145: N/A | BK145: N/A | BL145: N/A | BM145: N/A | BN145: N/A | BO145: N/A | BP145: N/A | BQ145: N/A | BR145: N/A | BS145: N/A | BT145: N/A | BU145: N/A | BV145: N/A | BW145: N/A | BX145: N/A | BY145: N/A
B146: Emptied and discharged locally | C146: N/A | D146: N/A | E146: N/A | F146: N/A | G146: N/A | H146: N/A | I146: N/A | J146: N/A | K146: N/A | L146: N/A | M146: N/A | N146: N/A | O146: N/A | P146: N/A | Q146: N/A | R146: N/A | S146: N/A | T146: N/A | U146: N/A | V146: N/A | W146: N/A | X146: N/A | Y146: N/A | BB146: Emptied and discharged locally | BC146: N/A | BD146: N/A | BE146: N/A | BF146: N/A | BG146: N/A | BH146: N/A | BI146: N/A | BJ146: N/A | BK146: N/A | BL146: N/A | BM146: N/A | BN146: N/A | BO146: N/A | BP146: N/A | BQ146: N/A | BR146: N/A | BS146: N/A | BT146: N/A | BU146: N/A | BV146: N/A | BW146: N/A | BX146: N/A | BY146: N/A
B147: Emptied and removed offsite | C147: N/A | D147: N/A | E147: N/A | F147: N/A | G147: N/A | H147: N/A | I147: N/A | J147: N/A | K147: N/A | L147: N/A | M147: N/A | N147: N/A | O147: N/A | P147: N/A | Q147: N/A | R147: N/A | S147: N/A | T147: N/A | U147: N/A | V147: N/A | W147: N/A | X147: N/A | Y147: N/A | BB147: Emptied and removed offsite | BC147: N/A | BD147: N/A | BE147: N/A | BF147: N/A | BG147: N/A | BH147: N/A | BI147: N/A | BJ147: N/A | BK147: N/A | BL147: N/A | BM147: N/A | BN147: N/A | BO147: N/A | BP147: N/A | BQ147: N/A | BR147: N/A | BS147: N/A | BT147: N/A | BU147: N/A | BV147: N/A | BW147: N/A | BX147: N/A | BY147: N/A
A148: Shared among improved sanitation facilities | B148: Yes | C148: 4.851713473 | D148: 9.537774857 | E148: 12.14772585 | F148: 22.85516621 | G148: 34.96083731 | H148: 24.77624956 | I148: 30.57095609 | J148: 36.64345343 | K148: 35.13156734 | L148: 38.44614015 | M148: 4.513604593 | N148: 8.247751612 | O148: 10.46882651 | P148: 13.9432293 | Q148: 26.90793512 | R148: 25.05795572 | S148: 9.166060764 | T148: 22.39274878 | U148: 2.108817913 | V148: 16.27118259 | W148: 18.13911947 | X148: 27.40610029 | Y148: 9.545407482 | BA148: Shared among improved sanitation facilities | BB148: Yes | BC148: N/A | BD148: N/A | BE148: N/A | BF148: N/A | BG148: N/A | BH148: N/A | BI148: N/A | BJ148: N/A | BK148: N/A | BL148: N/A | BM148: N/A | BN148: N/A | BO148: N/A | BP148: N/A | BQ148: N/A | BR148: N/A | BS148: N/A | BT148: N/A | BU148: N/A | BV148: N/A | BW148: N/A | BX148: N/A | BY148: N/A
B149: No | C149: 14.50325984 | D149: 19.39964354 | E149: 17.59800365 | F149: 13.42869521 | G149: 33.31688849 | H149: 22.25204816 | I149: 27.4067528 | J149: 30.40337403 | K149: 38.64267043 | L149: 52.31074625 | M149: 13.91086326 | N149: 18.55004223 | O149: 19.69413219 | P149: 14.24589409 | Q149: 13.68437433 | R149: 26.69913773 | S149: 26.01714499 | T149: 15.14441695 | U149: 11.34818631 | V149: 32.11613353 | W149: 1.645370501 | X149: 18.42938648 | Y149: 20.85432937 | BB149: No | BC149: N/A | BD149: N/A | BE149: N/A | BF149: N/A | BG149: N/A | BH149: N/A | BI149: N/A | BJ149: N/A | BK149: N/A | BL149: N/A | BM149: N/A | BN149: N/A | BO149: N/A | BP149: N/A | BQ149: N/A | BR149: N/A | BS149: N/A | BT149: N/A | BU149: N/A | BV149: N/A | BW149: N/A | BX149: N/A | BY149: N/A
B150: DK/missing | C150: 80.64502668 | D150: 71.0625816 | E150: 70.2542705 | F150: 63.71613858 | G150: 31.7222742 | H150: 52.97170228 | I150: 42.02229111 | J150: 32.95317254 | K150: 26.22576223 | L150: 9.243113598 | M150: 81.57553214 | N150: 73.20220616 | O150: 69.8370413 | P150: 71.81087661 | Q150: 59.40769055 | R150: 48.24290655 | S150: 64.81679425 | T150: 62.46283427 | U150: 86.54299578 | V150: 51.61268388 | W150: 80.21551003 | X150: 54.16451323 | Y150: 69.60026315 | BB150: DK/missing | BC150: N/A | BD150: N/A | BE150: N/A | BF150: N/A | BG150: N/A | BH150: N/A | BI150: N/A | BJ150: N/A | BK150: N/A | BL150: N/A | BM150: N/A | BN150: N/A | BO150: N/A | BP150: N/A | BQ150: N/A | BR150: N/A | BS150: N/A | BT150: N/A | BU150: N/A | BV150: N/A | BW150: N/A | BX150: N/A | BY150: N/A
A151: Shared among all sanitation facilities | B151: Yes | C151: 30.22616298 | D151: 31.97710881 | E151: 48.67376726 | F151: 66.45293368 | G151: 51.27277664 | H151: 46.65955627 | I151: 49.20545404 | J151: 51.27278424 | K151: 47.66716505 | L151: 41.96571081 | M151: 30.05869436 | N151: 29.92968047 | O151: 39.05968544 | P151: 59.08194616 | Q151: 69.29611679 | R151: 50.96036092 | S151: 20.30534209 | T151: 65.89471293 | U151: 19.09246517 | V151: 32.2796755 | W151: 91.19733302 | X151: 55.60589135 | Y151: 36.27373116 | BA151: Shared among all sanitation facilities | BB151: Yes | BC151: N/A | BD151: N/A | BE151: N/A | BF151: N/A | BG151: N/A | BH151: N/A | BI151: N/A | BJ151: N/A | BK151: N/A | BL151: N/A | BM151: N/A | BN151: N/A | BO151: N/A | BP151: N/A | BQ151: N/A | BR151: N/A | BS151: N/A | BT151: N/A | BU151: N/A | BV151: N/A | BW151: N/A | BX151: N/A | BY151: N/A
B152: No | C152: 67.67594784 | D152: 63.82282249 | E152: 46.83313532 | F152: 29.60667501 | G152: 45.40212195 | H152: 50.11969295 | I152: 47.63214997 | J152: 45.29398455 | K152: 49.62554107 | L152: 56.54814633 | M152: 67.97633857 | N152: 65.96857679 | O152: 56.86120141 | P152: 36.548413 | Q152: 25.99182618 | R152: 46.52074033 | S152: 61.52749011 | T152: 29.66698567 | U152: 78.1221431 | V152: 66.38119392 | W152: 6.353749595 | X152: 32.79510798 | Y152: 61.74730272 | BB152: No | BC152: N/A | BD152: N/A | BE152: N/A | BF152: N/A | BG152: N/A | BH152: N/A | BI152: N/A | BJ152: N/A | BK152: N/A | BL152: N/A | BM152: N/A | BN152: N/A | BO152: N/A | BP152: N/A | BQ152: N/A | BR152: N/A | BS152: N/A | BT152: N/A | BU152: N/A | BV152: N/A | BW152: N/A | BX152: N/A | BY152: N/A
A153: Type of toilet facility | B153: Flush - to piped sewer system | C153: 0 | D153: 0.02665149024 | E153: 0.03505134003 | F153: 0.1060454747 | G153: 2.776893793 | H153: 0.2666730196 | I153: 0.545391716 | J153: 1.120880381 | K153: 2.248668321 | L153: 9.188429284 | M153: 0 | N153: 0.02324629714 | O153: 0 | P153: 0.0244869264 | Q153: 0.2935698135 | R153: 2.312729659 | S153: 0 | T153: 0.2861044071 | U153: 0.02218349222 | V153: 0.2674626155 | W153: 0.02269516003 | X153: 0.03705106406 | Y153: 0.2201881548 | BA153: Type of toilet facility | BB153: Flush - to piped sewer system | BC153: 0 | BD153: 9.498784 | BE153: 12.489678 | BF153: 37.775037 | BG153: 989.525186 | BH153: 18.994228 | BI153: 38.869213 | BJ153: 79.498365 | BK153: 160.268198 | BL153: 654.273932 | BM153: 0 | BN153: 6.632654 | BO153: 0 | BP153: 6.97532 | BQ153: 83.776775 | BR153: 822.584869 | BS153: 0 | BT153: 88.583983 | BU153: 5.869482 | BV153: 74.72518 | BW153: 3.657336 | BX153: 4.730382 | BY153: 49.137453
B154: Flush - to septic tank | C154: 0.04264908354 | D154: 0.2174234946 | E154: 0.6572792936 | F154: 1.281245639 | G154: 17.57131335 | H154: 2.419304801 | I154: 6.105313774 | J154: 12.16181961 | K154: 20.76661966 | L154: 43.53806944 | M154: 0.0441183651 | N154: 0.0515933566 | O154: 0.4456501587 | P154: 0.6337147058 | Q154: 2.311296901 | R154: 8.910230853 | S154: 0 | T154: 2.422052892 | U154: 0.79182071 | V154: 3.329638883 | W154: 0.1741473899 | X154: 4.269244683 | Y154: 6.3305775 | BB154: Flush - to septic tank | BC154: 15.207377 | BD154: 77.491307 | BE154: 234.205218 | BF154: 456.399498 | BG154: 6261.405155 | BH154: 172.318996 | BI154: 435.116146 | BJ154: 862.576231 | BK154: 1480.088762 | BL154: 3100.184265 | BM154: 12.591632 | BN154: 14.720662 | BO154: 127.0118 | BP154: 180.519302 | BQ154: 659.580759 | BR154: 3169.16465 | BS154: 0 | BT154: 749.918865 | BU154: 209.506121 | BV154: 930.252867 | BW154: 28.063936 | BX154: 545.06284 | BY154: 1412.739276
B155: Flush - to pit latrine | C155: 0.6306551037 | D155: 2.01339012 | E155: 5.466665803 | F155: 2.682599978 | G155: 5.790534687 | H155: 5.753338564 | I155: 5.989556311 | J155: 6.883823334 | K155: 5.715372954 | L155: 6.617515606 | M155: 0.6832873959 | N155: 1.59559844 | O155: 4.267986722 | P155: 4.274756331 | Q155: 2.178040359 | R155: 10.59946947 | S155: 0 | T155: 1.641373182 | U155: 0.3885786817 | V155: 1.677423733 | W155: 0.45438933 | X155: 3.666674804 | Y155: 2.322795667 | BB155: Flush - to pit latrine | BC155: 224.872591 | BD155: 717.58681 | BE155: 1947.911137 | BF155: 955.583571 | BG155: 2063.413418 | BH155: 409.791079 | BI155: 426.866293 | BJ155: 488.234703 | BK155: 407.348881 | BL155: 471.208715 | BM155: 195.014104 | BN155: 455.257554 | BO155: 1216.390627 | BP155: 1217.702575 | BQ155: 621.552996 | BR155: 3769.988061 | BS155: 0 | BT155: 508.203895 | BU155: 102.813189 | BV155: 468.64789 | BW155: 73.22506 | BX155: 468.131562 | BY155: 518.35787
B156: Flush - to somewhere else | C156: 0 | D156: 0.08086082436 | E156: 0.656301016 | F156: 0.3329147975 | G156: 1.648807127 | H156: 0.7328054884 | I156: 0.9144534852 | J156: 1.110911517 | K156: 2.194918034 | L156: 2.449107059 | M156: 0 | N156: 0.04728278531 | O156: 0.4483964911 | P156: 0.4092404307 | Q156: 0.6446202967 | R156: 1.45917889 | S156: 0 | T156: 0.9038605162 | U156: 0.08150134588 | V156: 0.05852716139 | W156: 0.1846256024 | X156: 0.8011641579 | Y156: 0 | BB156: Flush - to somewhere else | BC156: 0 | BD156: 28.819383 | BE156: 233.856633 | BF156: 118.589396 | BG156: 587.54 | BH156: 52.195286 | BI156: 65.171667 | BJ156: 78.791324 | BK156: 156.437281 | BL156: 174.39182 | BM156: 0 | BN156: 13.490766 | BO156: 127.794514 | BP156: 116.575797 | BQ156: 183.956957 | BR156: 518.996447 | BS156: 0 | BT156: 279.854356 | BU156: 21.564264 | BV156: 16.351641 | BW156: 29.752505 | BX156: 102.286199 | BY156: 0
B157: Flush - don't know where | C157: 0.03064144719 | D157: 0.2763934392 | E157: 0.214434868 | F157: 0.4007364955 | G157: 1.446724567 | H157: 1.941992179 | I157: 2.409769398 | J157: 1.603423937 | K157: 0.7203446038 | L157: 2.81389256 | M157: 0 | N157: 0.210230354 | O157: 0.1606881699 | P157: 0.0516284649 | Q157: 0.1686983734 | R157: 1.77773014 | S157: 0 | T157: 0.2833060262 | U157: 0.008612036412 | V157: 0.2917778562 | W157: 0.066569363 | X157: 0.2316933241 | Y157: 0 | BB157: Flush - don't know where | BC157: 10.925816 | BD157: 98.508622 | BE157: 76.408561 | BF157: 142.748533 | BG157: 515.529402 | BH157: 138.321613 | BI157: 171.740489 | BJ157: 113.722734 | BK157: 51.340756 | BL157: 200.366841 | BM157: 0 | BN157: 59.98311 | BO157: 45.796671 | BP157: 14.70683 | BQ157: 48.14189 | BR157: 632.297817 | BS157: 0 | BT157: 87.717545 | BU157: 2.27864 | BV157: 81.518506 | BW157: 10.727685 | BX157: 29.580741 | BY157: 0
B158: Pit latrine - ventilated improved pit (VIP) | C158: 1.363062968 | D158: 6.984615103 | E158: 12.9618408 | F158: 16.84083492 | G158: 17.10045687 | H158: 11.28523267 | I158: 15.30266963 | J158: 20.07334771 | K158: 17.53767707 | L158: 9.701108186 | M158: 0.9347241996 | N158: 5.136701855 | O158: 11.54314729 | P158: 13.22995154 | Q158: 19.7527011 | R158: 12.33576406 | S158: 0 | T158: 27.3673251 | U158: 2.942424185 | V158: 1.216323257 | W158: 9.852035312 | X158: 25.57728566 | Y158: 3.827026214 | BB158: Pit latrine - ventilated improved pit (VIP) | BC158: 486.027148 | BD158: 2489.367371 | BE158: 4618.631349 | BF158: 5998.96567 | BG158: 6093.618996 | BH158: 803.809409 | BI158: 1090.597286 | BJ158: 1423.700825 | BK158: 1249.953973 | BL158: 690.779893 | BM158: 266.775596 | BN158: 1465.608303 | BO158: 3289.835955 | BP158: 3768.670026 | BQ158: 5636.879268 | BR158: 4387.548206 | BS158: 0 | BT158: 8473.503383 | BU158: 778.529621 | BV158: 339.823097 | BW158: 1587.660249 | BX158: 3265.502213 | BY158: 854.043765
B159: Pit latrine - with slab | C159: 17.91780009 | D159: 21.30512092 | E159: 12.09834096 | F159: 16.46401895 | G159: 25.56308579 | H159: 27.16873041 | I159: 29.53364244 | J159: 27.03692351 | K159: 28.34051296 | L159: 20.07497742 | M159: 17.25597261 | N159: 21.82177445 | O159: 15.17508807 | P159: 11.35699386 | Q159: 18.04300544 | R159: 17.16485278 | S159: 44.23514341 | T159: 7.176138003 | U159: 9.57115299 | V159: 42.19270372 | W159: 9.721321772 | X159: 17.73873656 | Y159: 18.40581862 | BB159: Pit latrine - with slab | BC159: 6388.947156 | BD159: 7593.299282 | BE159: 4310.944541 | BF159: 5864.737999 | BG159: 9109.213064 | BH159: 1935.137873 | BI159: 2104.816419 | BJ159: 1917.591966 | BK159: 2019.899022 | BL159: 1429.464602 | BM159: 4924.9526 | BN159: 6226.20793 | BO159: 4324.95134 | BP159: 3235.141281 | BQ159: 5148.979009 | BR159: 6105.14425 | BS159: 2680.873204 | BT159: 2221.884288 | BU159: 2532.410571 | BV159: 11788.03017 | BW159: 1566.595699 | BX159: 2264.739279 | BY159: 4107.464583
B160: Pit latrine - without slab / open pit | C160: 41.3001995 | D160: 48.13139165 | E160: 46.598381 | F160: 43.0920378 | G160: 25.67790894 | H160: 44.86994469 | I160: 38.31340209 | J160: 29.41479875 | K160: 22.27792374 | L160: 5.396999374 | M160: 39.41027484 | N160: 47.77390101 | O160: 46.82448807 | P160: 48.5934592 | Q160: 38.31516223 | R160: 41.84780798 | S160: 5.590661885 | T160: 36.33083039 | U160: 58.82141788 | V160: 41.25407892 | W160: 40.81165849 | X160: 37.6345197 | Y160: 36.0380984 | BB160: Pit latrine - without slab / open pit | BC160: 14726.40563 | BD160: 17154.37632 | BE160: 16604.18043 | BF160: 15350.04984 | BG160: 9150.12943 | BH160: 3195.936211 | BI160: 2730.536132 | BJ160: 2086.242606 | BK160: 1587.803172 | BL160: 384.300286 | BM160: 11247.9163 | BN160: 13630.89157 | BO160: 13345.13721 | BP160: 13842.28148 | BQ160: 10934.09669 | BR160: 14884.30501 | BS160: 338.822359 | BT160: 11248.79443 | BU160: 15563.43113 | BV160: 11525.792 | BW160: 6576.818477 | BX160: 4804.872925 | BY160: 8042.305311
B161: No facility/bush/field | C161: 38.52287501 | D161: 20.57852029 | E161: 20.72805185 | F161: 18.47352098 | G161: 2.164735864 | H161: 5.054451233 | I161: 0.3437150636 | J161: 0.106085008 | K161: 0 | L161: 0 | M161: 41.43160264 | N161: 23.01831981 | O161: 20.7315998 | P161: 20.85905968 | Q161: 18.12850805 | R161: 2.756613361 | S161: 50.17419471 | T161: 23.48411936 | U161: 27.37230868 | V161: 8.88248957 | W161: 38.52656404 | X161: 9.875052664 | Y161: 32.81253081 | BB161: No facility/bush/field | BC161: 13736.09547 | BD161: 7334.333559 | BE161: 7385.928555 | BF161: 6580.553676 | BG161: 771.387319 | BH161: 360.01167 | BI161: 24.496034 | BJ161: 7.524072 | BK161: 0 | BL161: 0 | BM161: 11824.81473 | BN161: 6567.607307 | BO161: 5908.575944 | BP161: 5941.889718 | BQ161: 5173.379107 | BR161: 980.464116 | BS161: 3040.809722 | BT161: 7271.180655 | BU161: 7242.379673 | BV161: 2481.638904 | BW161: 6208.574404 | BX161: 1260.767337 | BY161: 7322.483773
B162: Other | C162: 0.1921168053 | D162: 0.3856326744 | E162: 0.5836530632 | F162: 0.3260449608 | G162: 0.2595390066 | H162: 0.5075269421 | I162: 0.542086101 | J162: 0.4879862404 | K162: 0.1979626548 | L162: 0.2199010744 | M162: 0.2400199567 | N162: 0.3213516319 | O162: 0.4029552224 | P162: 0.5667088512 | Q162: 0.1643974346 | R162: 0.8356228062 | S162: 0 | T162: 0.104890119 | U162: 0 | V162: 0.8295742847 | W162: 0.1859935412 | X162: 0.1685773905 | Y162: 0.04296463709 | BB162: Other | BC162: 68.503059 | BD162: 137.442276 | BE162: 207.970332 | BF162: 116.142254 | BG162: 92.48477 | BH162: 36.149448 | BI162: 38.633627 | BJ162: 34.610391 | BK162: 14.109292 | BL162: 15.658339 | BM162: 68.503059 | BN162: 91.688331 | BO162: 114.843599 | BP162: 161.432085 | BQ162: 46.91452 | BR162: 297.211857 | BS162: 0 | BT162: 32.476202 | BU162: 0 | BV162: 231.771037 | BW162: 29.972949 | BX162: 21.522606 | BY162: 9.58804
BB163: Total | BC163: 35656.98425 | BD163: 35640.72371 | BE163: 35632.52643 | BF163: 35621.54548 | BG163: 35634.24674 | BH163: 7122.665813 | BI163: 7126.843306 | BJ163: 7092.493217 | BK163: 7127.249337 | BL163: 7120.628693 | BM163: 28540.56802 | BN163: 28532.08818 | BO163: 28500.33766 | BP163: 28485.89442 | BQ163: 28537.25797 | BR163: 35567.70528 | BS163: 6060.505285 | BT163: 30962.1176 | BU163: 26458.7827 | BV163: 27938.55129 | BW163: 16115.0483 | BX163: 12767.19608 | BY163: 22316.12007
A208: =A1026 -> Afghanistan
A209: =A1034 -> 2010
A210: Access to hygiene facilities
A211: by wealth quintile and sub-national region
A212: Notes:
A213: WHO/UNICEF JMP customised wealth index excludes water,
A214: sanitation and hygiene assets.
A215: Survey used for analysis: | B215: =A1025 -> DHS10
A220: Access to handwashing | C220: NATIONAL wealth index quintile | H220: URBAN wealth index quintile | M220: RURAL wealth index quintile | R220: SUB-REGIONS: | BA220: Raw numbers of respondents: | BB220: Access to handwashing | BC220: NATIONAL wealth index quintile | BH220: URBAN wealth index quintile | BM220: RURAL wealth index quintile | BR220: SUB-REGIONS:
A221: Weighted percentage (used in graphs) | C221: Poorest | D221: Poor | E221: Middle | F221: Rich | G221: Richest | H221: Poorest | I221: Poor | J221: Middle | K221: Rich | L221: Richest | M221: Poorest | N221: Poor | O221: Middle | P221: Rich | Q221: Richest | R221: Capital | S221: Central Highlands | T221: Eastern | U221: North Eastern | V221: Northern | W221: South Eastern | X221: Southern | Y221: Western | BA221: Hygiene data, raw numbers (weighted) | BC221: Poorest | BD221: Poor | BE221: Middle | BF221: Rich | BG221: Richest | BH221: Poorest | BI221: Poor | BJ221: Middle | BK221: Rich | BL221: Richest | BM221: Poorest | BN221: Poor | BO221: Middle | BP221: Rich | BQ221: Richest | BR221: Capital | BS221: Central Highlands | BT221: Eastern | BU221: North Eastern | BV221: Northern | BW221: South Eastern | BX221: Southern | BY221: Western
A222: Hygiene ladder | B222: Basic | C222: N/A | D222: N/A | E222: N/A | F222: N/A | G222: N/A | H222: N/A | I222: N/A | J222: N/A | K222: N/A | L222: N/A | M222: N/A | N222: N/A | O222: N/A | P222: N/A | Q222: N/A | R222: N/A | S222: N/A | T222: N/A | U222: N/A | V222: N/A | W222: N/A | X222: N/A | Y222: N/A | BA222: Hygiene ladder | BB222: Basic | BC222: N/A | BD222: N/A | BE222: N/A | BF222: N/A | BG222: N/A | BH222: N/A | BI222: N/A | BJ222: N/A | BK222: N/A | BL222: N/A | BM222: N/A | BN222: N/A | BO222: N/A | BP222: N/A | BQ222: N/A | BR222: N/A | BS222: N/A | BT222: N/A | BU222: N/A | BV222: N/A | BW222: N/A | BX222: N/A | BY222: N/A
B223: Limited | C223: N/A | D223: N/A | E223: N/A | F223: N/A | G223: N/A | H223: N/A | I223: N/A | J223: N/A | K223: N/A | L223: N/A | M223: N/A | N223: N/A | O223: N/A | P223: N/A | Q223: N/A | R223: N/A | S223: N/A | T223: N/A | U223: N/A | V223: N/A | W223: N/A | X223: N/A | Y223: N/A | BB223: Limited | BC223: N/A | BD223: N/A | BE223: N/A | BF223: N/A | BG223: N/A | BH223: N/A | BI223: N/A | BJ223: N/A | BK223: N/A | BL223: N/A | BM223: N/A | BN223: N/A | BO223: N/A | BP223: N/A | BQ223: N/A | BR223: N/A | BS223: N/A | BT223: N/A | BU223: N/A | BV223: N/A | BW223: N/A | BX223: N/A | BY223: N/A
B224: No facility | C224: N/A | D224: N/A | E224: N/A | F224: N/A | G224: N/A | H224: N/A | I224: N/A | J224: N/A | K224: N/A | L224: N/A | M224: N/A | N224: N/A | O224: N/A | P224: N/A | Q224: N/A | R224: N/A | S224: N/A | T224: N/A | U224: N/A | V224: N/A | W224: N/A | X224: N/A | Y224: N/A | BB224: No facility | BC224: N/A | BD224: N/A | BE224: N/A | BF224: N/A | BG224: N/A | BH224: N/A | BI224: N/A | BJ224: N/A | BK224: N/A | BL224: N/A | BM224: N/A | BN224: N/A | BO224: N/A | BP224: N/A | BQ224: N/A | BR224: N/A | BS224: N/A | BT224: N/A | BU224: N/A | BV224: N/A | BW224: N/A | BX224: N/A | BY224: N/A
BA225: Observed handwashing place | BB225: Fixed | BC225: N/A | BD225: N/A | BE225: N/A | BF225: N/A | BG225: N/A | BH225: N/A | BI225: N/A | BJ225: N/A | BK225: N/A | BL225: N/A | BM225: N/A | BN225: N/A | BO225: N/A | BP225: N/A | BQ225: N/A | BR225: N/A | BS225: N/A | BT225: N/A | BU225: N/A | BV225: N/A | BW225: N/A | BX225: N/A | BY225: N/A
BB226: Mobile | BC226: N/A | BD226: N/A | BE226: N/A | BF226: N/A | BG226: N/A | BH226: N/A | BI226: N/A | BJ226: N/A | BK226: N/A | BL226: N/A | BM226: N/A | BN226: N/A | BO226: N/A | BP226: N/A | BQ226: N/A | BR226: N/A | BS226: N/A | BT226: N/A | BU226: N/A | BV226: N/A | BW226: N/A | BX226: N/A | BY226: N/A
BA227: Water / Soap | BB227: Water and soap | BC227: N/A | BD227: N/A | BE227: N/A | BF227: N/A | BG227: N/A | BH227: N/A | BI227: N/A | BJ227: N/A | BK227: N/A | BL227: N/A | BM227: N/A | BN227: N/A | BO227: N/A | BP227: N/A | BQ227: N/A | BR227: N/A | BS227: N/A | BT227: N/A | BU227: N/A | BV227: N/A | BW227: N/A | BX227: N/A | BY227: N/A
BB228: Water only | BC228: N/A | BD228: N/A | BE228: N/A | BF228: N/A | BG228: N/A | BH228: N/A | BI228: N/A | BJ228: N/A | BK228: N/A | BL228: N/A | BM228: N/A | BN228: N/A | BO228: N/A | BP228: N/A | BQ228: N/A | BR228: N/A | BS228: N/A | BT228: N/A | BU228: N/A | BV228: N/A | BW228: N/A | BX228: N/A | BY228: N/A
BB229: Soap only | BC229: N/A | BD229: N/A | BE229: N/A | BF229: N/A | BG229: N/A | BH229: N/A | BI229: N/A | BJ229: N/A | BK229: N/A | BL229: N/A | BM229: N/A | BN229: N/A | BO229: N/A | BP229: N/A | BQ229: N/A | BR229: N/A | BS229: N/A | BT229: N/A | BU229: N/A | BV229: N/A | BW229: N/A | BX229: N/A | BY229: N/A
BB230: Neither | BC230: N/A | BD230: N/A | BE230: N/A | BF230: N/A | BG230: N/A | BH230: N/A | BI230: N/A | BJ230: N/A | BK230: N/A | BL230: N/A | BM230: N/A | BN230: N/A | BO230: N/A | BP230: N/A | BQ230: N/A | BR230: N/A | BS230: N/A | BT230: N/A | BU230: N/A | BV230: N/A | BW230: N/A | BX230: N/A | BY230: N/A
BA259: Raw numbers of respondents: | BB259: Menstrual health and hygiene | BC259: NATIONAL wealth index quintile | BH259: URBAN wealth index quintile | BM259: RURAL wealth index quintile | BR259: SUB-REGIONS:
BA260: MHH data, raw numbers (weighted) | BC260: Poorest | BD260: Poor | BE260: Middle | BF260: Rich | BG260: Richest | BH260: Poorest | BI260: Poor | BJ260: Middle | BK260: Rich | BL260: Richest | BM260: Poorest | BN260: Poor | BO260: Middle | BP260: Rich | BQ260: Richest | BR260: Capital | BS260: Central Highlands | BT260: Eastern | BU260: North Eastern | BV260: Northern | BW260: South Eastern | BX260: Southern | BY260: Western
BA261: Private place to wash and change | BB261: Yes | BC261: N/A | BD261: N/A | BE261: N/A | BF261: N/A | BG261: N/A | BH261: N/A | BI261: N/A | BJ261: N/A | BK261: N/A | BL261: N/A | BM261: N/A | BN261: N/A | BO261: N/A | BP261: N/A | BQ261: N/A | BR261: N/A | BS261: N/A | BT261: N/A | BU261: N/A | BV261: N/A | BW261: N/A | BX261: N/A | BY261: N/A
BB262: No | BC262: N/A | BD262: N/A | BE262: N/A | BF262: N/A | BG262: N/A | BH262: N/A | BI262: N/A | BJ262: N/A | BK262: N/A | BL262: N/A | BM262: N/A | BN262: N/A | BO262: N/A | BP262: N/A | BQ262: N/A | BR262: N/A | BS262: N/A | BT262: N/A | BU262: N/A | BV262: N/A | BW262: N/A | BX262: N/A | BY262: N/A
BB263: DK/not sure/missing | BC263: N/A | BD263: N/A | BE263: N/A | BF263: N/A | BG263: N/A | BH263: N/A | BI263: N/A | BJ263: N/A | BK263: N/A | BL263: N/A | BM263: N/A | BN263: N/A | BO263: N/A | BP263: N/A | BQ263: N/A | BR263: N/A | BS263: N/A | BT263: N/A | BU263: N/A | BV263: N/A | BW263: N/A | BX263: N/A | BY263: N/A
BA264: Use of menstrual materials | BB264: Materials reusable | BC264: N/A | BD264: N/A | BE264: N/A | BF264: N/A | BG264: N/A | BH264: N/A | BI264: N/A | BJ264: N/A | BK264: N/A | BL264: N/A | BM264: N/A | BN264: N/A | BO264: N/A | BP264: N/A | BQ264: N/A | BR264: N/A | BS264: N/A | BT264: N/A | BU264: N/A | BV264: N/A | BW264: N/A | BX264: N/A | BY264: N/A
BB265: Materials not reusable | BC265: N/A | BD265: N/A | BE265: N/A | BF265: N/A | BG265: N/A | BH265: N/A | BI265: N/A | BJ265: N/A | BK265: N/A | BL265: N/A | BM265: N/A | BN265: N/A | BO265: N/A | BP265: N/A | BQ265: N/A | BR265: N/A | BS265: N/A | BT265: N/A | BU265: N/A | BV265: N/A | BW265: N/A | BX265: N/A | BY265: N/A
BB266: No materials used | BC266: N/A | BD266: N/A | BE266: N/A | BF266: N/A | BG266: N/A | BH266: N/A | BI266: N/A | BJ266: N/A | BK266: N/A | BL266: N/A | BM266: N/A | BN266: N/A | BO266: N/A | BP266: N/A | BQ266: N/A | BR266: N/A | BS266: N/A | BT266: N/A | BU266: N/A | BV266: N/A | BW266: N/A | BX266: N/A | BY266: N/A
BB267: DK/not sure/missing | BC267: N/A | BD267: N/A | BE267: N/A | BF267: N/A | BG267: N/A | BH267: N/A | BI267: N/A | BJ267: N/A | BK267: N/A | BL267: N/A | BM267: N/A | BN267: N/A | BO267: N/A | BP267: N/A | BQ267: N/A | BR267: N/A | BS267: N/A | BT267: N/A | BU267: N/A | BV267: N/A | BW267: N/A | BX267: N/A | BY267: N/A
BA268: Use of menstrual materials with private place to wash and change | BB268: Materials reusable | BC268: N/A | BD268: N/A | BE268: N/A | BF268: N/A | BG268: N/A | BH268: N/A | BI268: N/A | BJ268: N/A | BK268: N/A | BL268: N/A | BM268: N/A | BN268: N/A | BO268: N/A | BP268: N/A | BQ268: N/A | BR268: N/A | BS268: N/A | BT268: N/A | BU268: N/A | BV268: N/A | BW268: N/A | BX268: N/A | BY268: N/A
BB269: Materials not reusable | BC269: N/A | BD269: N/A | BE269: N/A | BF269: N/A | BG269: N/A | BH269: N/A | BI269: N/A | BJ269: N/A | BK269: N/A | BL269: N/A | BM269: N/A | BN269: N/A | BO269: N/A | BP269: N/A | BQ269: N/A | BR269: N/A | BS269: N/A | BT269: N/A | BU269: N/A | BV269: N/A | BW269: N/A | BX269: N/A | BY269: N/A
BB270: No materials used | BC270: N/A | BD270: N/A | BE270: N/A | BF270: N/A | BG270: N/A | BH270: N/A | BI270: N/A | BJ270: N/A | BK270: N/A | BL270: N/A | BM270: N/A | BN270: N/A | BO270: N/A | BP270: N/A | BQ270: N/A | BR270: N/A | BS270: N/A | BT270: N/A | BU270: N/A | BV270: N/A | BW270: N/A | BX270: N/A | BY270: N/A
BA271: Awareness of menstruation before menarche | BB271: Yes | BC271: N/A | BD271: N/A | BE271: N/A | BF271: N/A | BG271: N/A | BH271: N/A | BI271: N/A | BJ271: N/A | BK271: N/A | BL271: N/A | BM271: N/A | BN271: N/A | BO271: N/A | BP271: N/A | BQ271: N/A | BR271: N/A | BS271: N/A | BT271: N/A | BU271: N/A | BV271: N/A | BW271: N/A | BX271: N/A | BY271: N/A
BB272: No | BC272: N/A | BD272: N/A | BE272: N/A | BF272: N/A | BG272: N/A | BH272: N/A | BI272: N/A | BJ272: N/A | BK272: N/A | BL272: N/A | BM272: N/A | BN272: N/A | BO272: N/A | BP272: N/A | BQ272: N/A | BR272: N/A | BS272: N/A | BT272: N/A | BU272: N/A | BV272: N/A | BW272: N/A | BX272: N/A | BY272: N/A
BB273: DK/not sure/missing | BC273: N/A | BD273: N/A | BE273: N/A | BF273: N/A | BG273: N/A | BH273: N/A | BI273: N/A | BJ273: N/A | BK273: N/A | BL273: N/A | BM273: N/A | BN273: N/A | BO273: N/A | BP273: N/A | BQ273: N/A | BR273: N/A | BS273: N/A | BT273: N/A | BU273: N/A | BV273: N/A | BW273: N/A | BX273: N/A | BY273: N/A
BA274: Participation in (all) activities during menstruation | BB274: Yes | BC274: N/A | BD274: N/A | BE274: N/A | BF274: N/A | BG274: N/A | BH274: N/A | BI274: N/A | BJ274: N/A | BK274: N/A | BL274: N/A | BM274: N/A | BN274: N/A | BO274: N/A | BP274: N/A | BQ274: N/A | BR274: N/A | BS274: N/A | BT274: N/A | BU274: N/A | BV274: N/A | BW274: N/A | BX274: N/A | BY274: N/A
BB275: No | BC275: N/A | BD275: N/A | BE275: N/A | BF275: N/A | BG275: N/A | BH275: N/A | BI275: N/A | BJ275: N/A | BK275: N/A | BL275: N/A | BM275: N/A | BN275: N/A | BO275: N/A | BP275: N/A | BQ275: N/A | BR275: N/A | BS275: N/A | BT275: N/A | BU275: N/A | BV275: N/A | BW275: N/A | BX275: N/A | BY275: N/A
BB276: DK/not sure/missing/no such activity | BC276: N/A | BD276: N/A | BE276: N/A | BF276: N/A | BG276: N/A | BH276: N/A | BI276: N/A | BJ276: N/A | BK276: N/A | BL276: N/A | BM276: N/A | BN276: N/A | BO276: N/A | BP276: N/A | BQ276: N/A | BR276: N/A | BS276: N/A | BT276: N/A | BU276: N/A | BV276: N/A | BW276: N/A | BX276: N/A | BY276: N/A
BA277: Participation in specific activities during menstruation | BB277: Did not go to school (amongst those usually attending school) | BC277: N/A | BD277: N/A | BE277: N/A | BF277: N/A | BG277: N/A | BH277: N/A | BI277: N/A | BJ277: N/A | BK277: N/A | BL277: N/A | BM277: N/A | BN277: N/A | BO277: N/A | BP277: N/A | BQ277: N/A | BR277: N/A | BS277: N/A | BT277: N/A | BU277: N/A | BV277: N/A | BW277: N/A | BX277: N/A | BY277: N/A
BB278: Did not go to work (amongst those who usually work) | BC278: N/A | BD278: N/A | BE278: N/A | BF278: N/A | BG278: N/A | BH278: N/A | BI278: N/A | BJ278: N/A | BK278: N/A | BL278: N/A | BM278: N/A | BN278: N/A | BO278: N/A | BP278: N/A | BQ278: N/A | BR278: N/A | BS278: N/A | BT278: N/A | BU278: N/A | BV278: N/A | BW278: N/A | BX278: N/A | BY278: N/A
BB279: Did not participate in social activities | BC279: N/A | BD279: N/A | BE279: N/A | BF279: N/A | BG279: N/A | BH279: N/A | BI279: N/A | BJ279: N/A | BK279: N/A | BL279: N/A | BM279: N/A | BN279: N/A | BO279: N/A | BP279: N/A | BQ279: N/A | BR279: N/A | BS279: N/A | BT279: N/A | BU279: N/A | BV279: N/A | BW279: N/A | BX279: N/A | BY279: N/A
BB280: Did not cook food | BC280: N/A | BD280: N/A | BE280: N/A | BF280: N/A | BG280: N/A | BH280: N/A | BI280: N/A | BJ280: N/A | BK280: N/A | BL280: N/A | BM280: N/A | BN280: N/A | BO280: N/A | BP280: N/A | BQ280: N/A | BR280: N/A | BS280: N/A | BT280: N/A | BU280: N/A | BV280: N/A | BW280: N/A | BX280: N/A | BY280: N/A
BB281: Did not eat with others | BC281: N/A | BD281: N/A | BE281: N/A | BF281: N/A | BG281: N/A | BH281: N/A | BI281: N/A | BJ281: N/A | BK281: N/A | BL281: N/A | BM281: N/A | BN281: N/A | BO281: N/A | BP281: N/A | BQ281: N/A | BR281: N/A | BS281: N/A | BT281: N/A | BU281: N/A | BV281: N/A | BW281: N/A | BX281: N/A | BY281: N/A
BB282: Did not bathe in regular place | BC282: N/A | BD282: N/A | BE282: N/A | BF282: N/A | BG282: N/A | BH282: N/A | BI282: N/A | BJ282: N/A | BK282: N/A | BL282: N/A | BM282: N/A | BN282: N/A | BO282: N/A | BP282: N/A | BQ282: N/A | BR282: N/A | BS282: N/A | BT282: N/A | BU282: N/A | BV282: N/A | BW282: N/A | BX282: N/A | BY282: N/A
BB283: Did not participate in other activities | BC283: N/A | BD283: N/A | BE283: N/A | BF283: N/A | BG283: N/A | BH283: N/A | BI283: N/A | BJ283: N/A | BK283: N/A | BL283: N/A | BM283: N/A | BN283: N/A | BO283: N/A | BP283: N/A | BQ283: N/A | BR283: N/A | BS283: N/A | BT283: N/A | BU283: N/A | BV283: N/A | BW283: N/A | BX283: N/A | BY283: N/A
BB284: DK/not sure/missing/no such activity | BC284: N/A | BD284: N/A | BE284: N/A | BF284: N/A | BG284: N/A | BH284: N/A | BI284: N/A | BJ284: N/A | BK284: N/A | BL284: N/A | BM284: N/A | BN284: N/A | BO284: N/A | BP284: N/A | BQ284: N/A | BR284: N/A | BS284: N/A | BT284: N/A | BU284: N/A | BV284: N/A | BW284: N/A | BX284: N/A | BY284: N/A
BA339: Raw numbers of respondents: | BB339: Basic water, sanitation and hygiene | BC339: NATIONAL wealth index quintile | BH339: URBAN wealth index quintile | BM339: RURAL wealth index quintile | BR339: SUB-REGIONS:
BA340: WatSan data, raw numbers (weighted) | BC340: Poorest | BD340: Poor | BE340: Middle | BF340: Rich | BG340: Richest | BH340: Poorest | BI340: Poor | BJ340: Middle | BK340: Rich | BL340: Richest | BM340: Poorest | BN340: Poor | BO340: Middle | BP340: Rich | BQ340: Richest | BR340: Capital | BS340: Central Highlands | BT340: Eastern | BU340: North Eastern | BV340: Northern | BW340: South Eastern | BX340: Southern | BY340: Western
BA341: Use of Basic Water Sanitation and Hygiene | BB341: Yes | BC341: N/A | BD341: N/A | BE341: N/A | BF341: N/A | BG341: N/A | BH341: N/A | BI341: N/A | BJ341: N/A | BK341: N/A | BL341: N/A | BM341: N/A | BN341: N/A | BO341: N/A | BP341: N/A | BQ341: N/A | BR341: N/A | BS341: N/A | BT341: N/A | BU341: N/A | BV341: N/A | BW341: N/A | BX341: N/A | BY341: N/A
BB342: No | BC342: N/A | BD342: N/A | BE342: N/A | BF342: N/A | BG342: N/A | BH342: N/A | BI342: N/A | BJ342: N/A | BK342: N/A | BL342: N/A | BM342: N/A | BN342: N/A | BO342: N/A | BP342: N/A | BQ342: N/A | BR342: N/A | BS342: N/A | BT342: N/A | BU342: N/A | BV342: N/A | BW342: N/A | BX342: N/A | BY342: N/A
BA343: Use of Basic Water and Sanitation | BB343: Yes | BC343: N/A | BD343: N/A | BE343: N/A | BF343: N/A | BG343: N/A | BH343: N/A | BI343: N/A | BJ343: N/A | BK343: N/A | BL343: N/A | BM343: N/A | BN343: N/A | BO343: N/A | BP343: N/A | BQ343: N/A | BR343: N/A | BS343: N/A | BT343: N/A | BU343: N/A | BV343: N/A | BW343: N/A | BX343: N/A | BY343: N/A
BB344: No | BC344: N/A | BD344: N/A | BE344: N/A | BF344: N/A | BG344: N/A | BH344: N/A | BI344: N/A | BJ344: N/A | BK344: N/A | BL344: N/A | BM344: N/A | BN344: N/A | BO344: N/A | BP344: N/A | BQ344: N/A | BR344: N/A | BS344: N/A | BT344: N/A | BU344: N/A | BV344: N/A | BW344: N/A | BX344: N/A | BY344: N/A
BA345: Use of Basic Water and Hygiene | BB345: Yes | BC345: N/A | BD345: N/A | BE345: N/A | BF345: N/A | BG345: N/A | BH345: N/A | BI345: N/A | BJ345: N/A | BK345: N/A | BL345: N/A | BM345: N/A | BN345: N/A | BO345: N/A | BP345: N/A | BQ345: N/A | BR345: N/A | BS345: N/A | BT345: N/A | BU345: N/A | BV345: N/A | BW345: N/A | BX345: N/A | BY345: N/A
BB346: No | BC346: N/A | BD346: N/A | BE346: N/A | BF346: N/A | BG346: N/A | BH346: N/A | BI346: N/A | BJ346: N/A | BK346: N/A | BL346: N/A | BM346: N/A | BN346: N/A | BO346: N/A | BP346: N/A | BQ346: N/A | BR346: N/A | BS346: N/A | BT346: N/A | BU346: N/A | BV346: N/A | BW346: N/A | BX346: N/A | BY346: N/A
BA347: Use of Basic Sanitation and Hygiene | BB347: Yes | BC347: N/A | BD347: N/A | BE347: N/A | BF347: N/A | BG347: N/A | BH347: N/A | BI347: N/A | BJ347: N/A | BK347: N/A | BL347: N/A | BM347: N/A | BN347: N/A | BO347: N/A | BP347: N/A | BQ347: N/A | BR347: N/A | BS347: N/A | BT347: N/A | BU347: N/A | BV347: N/A | BW347: N/A | BX347: N/A | BY347: N/A
BB348: No | BC348: N/A | BD348: N/A | BE348: N/A | BF348: N/A | BG348: N/A | BH348: N/A | BI348: N/A | BJ348: N/A | BK348: N/A | BL348: N/A | BM348: N/A | BN348: N/A | BO348: N/A | BP348: N/A | BQ348: N/A | BR348: N/A | BS348: N/A | BT348: N/A | BU348: N/A | BV348: N/A | BW348: N/A | BX348: N/A | BY348: N/A
BA349: Use of Basic Water | BB349: Yes | BC349: N/A | BD349: N/A | BE349: N/A | BF349: N/A | BG349: N/A | BH349: N/A | BI349: N/A | BJ349: N/A | BK349: N/A | BL349: N/A | BM349: N/A | BN349: N/A | BO349: N/A | BP349: N/A | BQ349: N/A | BR349: N/A | BS349: N/A | BT349: N/A | BU349: N/A | BV349: N/A | BW349: N/A | BX349: N/A | BY349: N/A
BB350: No | BC350: N/A | BD350: N/A | BE350: N/A | BF350: N/A | BG350: N/A | BH350: N/A | BI350: N/A | BJ350: N/A | BK350: N/A | BL350: N/A | BM350: N/A | BN350: N/A | BO350: N/A | BP350: N/A | BQ350: N/A | BR350: N/A | BS350: N/A | BT350: N/A | BU350: N/A | BV350: N/A | BW350: N/A | BX350: N/A | BY350: N/A
BA351: Use of Basic Sanitation | BB351: Yes | BC351: N/A | BD351: N/A | BE351: N/A | BF351: N/A | BG351: N/A | BH351: N/A | BI351: N/A | BJ351: N/A | BK351: N/A | BL351: N/A | BM351: N/A | BN351: N/A | BO351: N/A | BP351: N/A | BQ351: N/A | BR351: N/A | BS351: N/A | BT351: N/A | BU351: N/A | BV351: N/A | BW351: N/A | BX351: N/A | BY351: N/A
BB352: No | BC352: N/A | BD352: N/A | BE352: N/A | BF352: N/A | BG352: N/A | BH352: N/A | BI352: N/A | BJ352: N/A | BK352: N/A | BL352: N/A | BM352: N/A | BN352: N/A | BO352: N/A | BP352: N/A | BQ352: N/A | BR352: N/A | BS352: N/A | BT352: N/A | BU352: N/A | BV352: N/A | BW352: N/A | BX352: N/A | BY352: N/A
BA353: Access to Basic Hygiene | BB353: Yes | BC353: N/A | BD353: N/A | BE353: N/A | BF353: N/A | BG353: N/A | BH353: N/A | BI353: N/A | BJ353: N/A | BK353: N/A | BL353: N/A | BM353: N/A | BN353: N/A | BO353: N/A | BP353: N/A | BQ353: N/A | BR353: N/A | BS353: N/A | BT353: N/A | BU353: N/A | BV353: N/A | BW353: N/A | BX353: N/A | BY353: N/A
BB354: No | BC354: N/A | BD354: N/A | BE354: N/A | BF354: N/A | BG354: N/A | BH354: N/A | BI354: N/A | BJ354: N/A | BK354: N/A | BL354: N/A | BM354: N/A | BN354: N/A | BO354: N/A | BP354: N/A | BQ354: N/A | BR354: N/A | BS354: N/A | BT354: N/A | BU354: N/A | BV354: N/A | BW354: N/A | BX354: N/A | BY354: N/A
C399: INITIAL (national) Wealth Index | H399: URBAN Wealth Index | M399: RURAL Wealth Index
C400: Component Matrix | H400: Component Matrix | M400: Component Matrix
E401: Component | J401: Component | O401: Component
B402: Note: The INITIAL (national) Wealth Index is based on the first component of the Principal Component Analysis (PCA) which has been obtained at national level. The final national-level (NATIONAL) Wealth Index is based on the URBAN and RURAL specific wealth indexes. Regression procedures are used to establish the relationships between the two sets of scores (urban and rural) and the initial (national) wealth factors. This allows best use of the available information for each area and a better precision of the FINAL (NATIONAL) Wealth Index. For dependency reasons, all WASH variables (contained in the generic MICS and DHS scripts) have been excluded from the sets of asset variables used in the PCAs. The PCA can extracts as many components as there are asset variables in the input. Only the first of the components is used to represent the Wealth Index. The scores represent the weights of the asset variables on the Wealth Index (correlations between the variables and the component). The communalities are the proportion of each variable's variance that can be explained by the component. Proportion of explained variance is the part of the model's total variance that is explained by the component. For more information on the procedure used: The DHS Wealth Index, DHS Comparative Reports No. 6, Shea Oscar Rutstein, Kiersten Johnson, ORC Macro International Inc., 2004. The DHS Wealth Index: Approaches for Rural and Urban Areas, Shea O. Rutstein, ORC Macro International Inc., 2008. MICS Methodological Paper No. 4, Review of options for reporting water, sanitation and hygiene coverage by wealth quintile, UNICEF, 2016. | E402: 1 | J402: 1 | O402: 1
C403: Television | E403: 0.6940883773 | H403: Refrigerator | J403: 0.5661737453 | M403: mud floor | O403: 0.7257306405
C404: LPG, natural gas for cooking | E404: -0.685093449 | H404: Television | J404: 0.5564489127 | M404: Mud roof | O404: 0.6724280568
C405: Stand fan | E405: 0.6749195243 | H405: LPG, natural gas for cooking | J405: -0.5470333745 | M405: Wood, straw for cooking | O405: -0.5223751884
C406: Refrigerator | E406: 0.6300216352 | H406: Stand fan | J406: 0.5121152252 | M406: Cabinet/almirah | O406: 0.487362254
C407: Cabinet/almirah | E407: 0.567820182 | H407: Electricity | J407: 0.5101834061 | M407: Radio | O407: 0.4810664917
C408: Electricity | E408: 0.567723748 | H408: mud floor | J408: 0.5047626344 | M408: Bicycle | O408: 0.4346748123
C409: Concrete, cement floor | E409: -0.5346497568 | H409: Cabinet/almirah | J409: 0.4899796734 | M409: Non-rustic wood roof | O409: -0.4336135784
C410: mud floor | E410: 0.4873061328 | H410: Concrete, cement floor | J410: -0.4560848194 | M410: Mobile telephone | O410: 0.4297466805
C411: Mobile telephone | E411: 0.4722458474 | H411: Car or Truck | J411: 0.4356210775 | M411: Car or Truck | O411: 0.4176089533
C412: Generator | E412: 0.4582100069 | H412: Household owns horses donkeys mules | J412: 0.4056455424 | M412: Dung for cooking | O412: 0.4100569844
C413: Car or Truck | E413: 0.4363943432 | H413: Mobile telephone | J413: 0.3795103686 | M413: Watch | O413: 0.3904975069
C414: Brick wall | E414: -0.4006120736 | H414: Mud roof | J414: 0.3755183532 | M414: Household owns horses donkeys mules | O414: 0.3768436716
C415: RCC/RBC/Cement roof | E415: -0.3939697698 | H415: Household owns cows | J415: 0.3643477776 | M415: Generator | O415: 0.3528131499
... 274 more rows

Sheet MICS11
A2: =A1026 -> Afghanistan
A3: =A1034 -> 2011
A4: Use of drinking water sources
A5: by wealth quintile and sub-national region
A6: Notes:
A7: WHO/UNICEF JMP customised wealth index excludes water,
A8: sanitation and hygiene assets.
A9: Survey used for analysis: | B9: =A1025 -> MICS11
A10: =B1028 -> 
A11: =B1027 -> 
A14: Use of drinking water sources | C14: NATIONAL wealth index quintile | H14: URBAN wealth index quintile | M14: RURAL wealth index quintile | R14: SUB-REGIONS: | BA14: Raw numbers of respondents: | BB14: Use of drinking water sources | BC14: NATIONAL wealth index quintile | BH14: URBAN wealth index quintile | BM14: RURAL wealth index quintile | BR14: SUB-REGIONS:
A15: Weighted percentage (used in graphs) | C15: Poorest | D15: Poor | E15: Middle | F15: Rich | G15: Richest | H15: Poorest | I15: Poor | J15: Middle | K15: Rich | L15: Richest | M15: Poorest | N15: Poor | O15: Middle | P15: Rich | Q15: Richest | R15: Region C | S15: Region CH | T15: Region E | U15: Region N | V15: Region NE | W15: Region S | X15: Region SE | Y15: Region W | BA15: Water data, raw numbers (weighted) | BC15: Poorest | BD15: Poor | BE15: Middle | BF15: Rich | BG15: Richest | BH15: Poorest | BI15: Poor | BJ15: Middle | BK15: Rich | BL15: Richest | BM15: Poorest | BN15: Poor | BO15: Middle | BP15: Rich | BQ15: Richest | BR15: Region C | BS15: Region CH | BT15: Region E | BU15: Region N | BV15: Region NE | BW15: Region S | BX15: Region SE | BY15: Region W
A16: Water | B16: Improved | C16: 45.92988628 | D16: 48.24703069 | E16: 57.43457721 | F16: 56.70477259 | G16: 84.30498555 | H16: 69.14050711 | I16: 76.93884442 | J16: 88.59804513 | K16: 93.33973332 | L16: 97.8173782 | M16: 44.96527085 | N16: 47.49320331 | O16: 54.4675178 | P16: 56.49760408 | Q16: 60.55977504 | R16: 71.8561631 | S16: 25.92521509 | T16: 62.59591212 | U16: 45.6872439 | V16: 46.75173291 | W16: 61.08901564 | X16: 72.43881711 | Y16: 59.33074402 | BA16: Water | BB16: Improved | BC16: N/A | BD16: N/A | BE16: N/A | BF16: N/A | BG16: N/A | BH16: N/A | BI16: N/A | BJ16: N/A | BK16: N/A | BL16: N/A | BM16: N/A | BN16: N/A | BO16: N/A | BP16: N/A | BQ16: N/A | BR16: N/A | BS16: N/A | BT16: N/A | BU16: N/A | BV16: N/A | BW16: N/A | BX16: N/A | BY16: N/A
B17: Not Improved | C17: 54.07011372 | D17: 51.75296931 | E17: 42.56542279 | F17: 43.29522741 | G17: 15.69501445 | H17: 30.85949289 | I17: 23.06115558 | J17: 11.40195487 | K17: 6.660266679 | L17: 2.182621804 | M17: 55.03472915 | N17: 52.50679669 | O17: 45.5324822 | P17: 43.50239592 | Q17: 39.44022496 | R17: 28.1438369 | S17: 74.07478491 | T17: 37.40408788 | U17: 54.3127561 | V17: 53.24826709 | W17: 38.91098436 | X17: 27.56118289 | Y17: 40.66925598 | BB17: Not Improved | BC17: N/A | BD17: N/A | BE17: N/A | BF17: N/A | BG17: N/A | BH17: N/A | BI17: N/A | BJ17: N/A | BK17: N/A | BL17: N/A | BM17: N/A | BN17: N/A | BO17: N/A | BP17: N/A | BQ17: N/A | BR17: N/A | BS17: N/A | BT17: N/A | BU17: N/A | BV17: N/A | BW17: N/A | BX17: N/A | BY17: N/A
A18: Water ladder | B18: Basic | C18: =C16*C23/100 -> 41.36106935 | D18: =D16*D23/100 -> 44.76719581 | E18: =E16*E23/100 -> 53.98971972 | F18: 52.97099303 | G18: 81.35582323 | H18: 64.22262949 | I18: 71.55200175 | J18: 85.01682649 | K18: 91.35027428 | L18: 96.94585083 | M18: 40.10453126 | N18: 44.13658021 | O18: 51.16754248 | P18: 52.44780584 | Q18: 57.60421434 | R18: 68.97606351 | S18: 23.64761683 | T18: 59.86830743 | U18: 42.60649527 | V18: 41.77943066 | W18: 58.46315926 | X18: 69.05465388 | Y18: 53.38274234 | BA18: Water ladder | BB18: Basic | BC18: N/A | BD18: N/A | BE18: N/A | BF18: N/A | BG18: N/A | BH18: N/A | BI18: N/A | BJ18: N/A | BK18: N/A | BL18: N/A | BM18: N/A | BN18: N/A | BO18: N/A | BP18: N/A | BQ18: N/A | BR18: N/A | BS18: N/A | BT18: N/A | BU18: N/A | BV18: N/A | BW18: N/A | BX18: N/A | BY18: N/A
B19: Limited | C19: =C16*C22/100 -> 4.568816933 | D19: =D16*D22/100 -> 3.479834878 | E19: =E16*E22/100 -> 3.444857499 | F19: 3.733779553 | G19: 2.949162321 | H19: 4.917877624 | I19: 5.386842675 | J19: 3.581218638 | K19: 1.989459043 | L19: 0.8715273671 | M19: 4.860739584 | N19: 3.3566231 | O19: 3.299975316 | P19: 4.049798242 | Q19: 2.955560701 | R19: 2.880099587 | S19: 2.277598252 | T19: 2.727604684 | U19: 3.080748631 | V19: 4.972302247 | W19: 2.625856386 | X19: 3.384163222 | Y19: 5.948001675 | BB19: Limited | BC19: N/A | BD19: N/A | BE19: N/A | BF19: N/A | BG19: N/A | BH19: N/A | BI19: N/A | BJ19: N/A | BK19: N/A | BL19: N/A | BM19: N/A | BN19: N/A | BO19: N/A | BP19: N/A | BQ19: N/A | BR19: N/A | BS19: N/A | BT19: N/A | BU19: N/A | BV19: N/A | BW19: N/A | BX19: N/A | BY19: N/A
B20: Unimproved | C20: =100-C18-C19-C21 -> 35.55260992 | D20: =100-D18-D19-D21 -> 31.06343155 | E20: =100-E18-E19-E21 -> 24.09691156 | F20: 24.04059938 | G20: 10.20128774 | H20: 17.73546892 | I20: 13.65045059 | J20: 8.279616228 | K20: 5.77799504 | L20: 1.673091064 | M20: 36.16701755 | N20: 31.37513004 | O20: 27.60563714 | P20: 25.37091597 | Q20: 21.07881606 | R20: 11.15621863 | S20: 48.30262477 | T20: 32.74043807 | U20: 27.00352411 | V20: 20.0148631 | W20: 31.09155084 | X20: 22.28445049 | Y20: 29.50433047 | BB20: Unimproved | BC20: N/A | BD20: N/A | BE20: N/A | BF20: N/A | BG20: N/A | BH20: N/A | BI20: N/A | BJ20: N/A | BK20: N/A | BL20: N/A | BM20: N/A | BN20: N/A | BO20: N/A | BP20: N/A | BQ20: N/A | BR20: N/A | BS20: N/A | BT20: N/A | BU20: N/A | BV20: N/A | BW20: N/A | BX20: N/A | BY20: N/A
B21: Surface water | C21: 18.51750379 | D21: 20.68953776 | E21: 18.46851122 | F21: 19.25462804 | G21: 5.493726709 | H21: 13.12402397 | I21: 9.410704985 | J21: 3.122338643 | K21: 0.882271639 | L21: 0.5095307398 | M21: 18.8677116 | N21: 21.13166665 | O21: 17.92684506 | P21: 18.13147995 | Q21: 18.3614089 | R21: 16.98761827 | S21: 25.77216015 | T21: 4.663649816 | U21: 27.30923198 | V21: 33.23340399 | W21: 7.81943352 | X21: 5.276732402 | Y21: 11.16492551 | BB21: Surface water | BC21: N/A | BD21: N/A | BE21: N/A | BF21: N/A | BG21: N/A | BH21: N/A | BI21: N/A | BJ21: N/A | BK21: N/A | BL21: N/A | BM21: N/A | BN21: N/A | BO21: N/A | BP21: N/A | BQ21: N/A | BR21: N/A | BS21: N/A | BT21: N/A | BU21: N/A | BV21: N/A | BW21: N/A | BX21: N/A | BY21: N/A
A22: Improved water point at more than 30 minutes | B22: Yes | C22: 9.947372622 | D22: 7.212536871 | E22: 5.997880835 | F22: 6.584594881 | G22: 3.498206306 | H22: 7.11287468 | I22: 7.001460336 | J22: 4.042096677 | K22: 2.131417107 | L22: 0.890973959 | M22: 10.80998622 | N22: 7.067586237 | O22: 6.058611536 | P22: 7.168088467 | Q22: 4.880402377 | R22: 4.008145527 | S22: 8.785262705 | T22: 4.357480531 | U22: 6.743126456 | V22: 10.6355464 | W22: 4.298410047 | X22: 4.671753844 | Y22: 10.02515942 | BA22: Improved water point at more than 30 minutes | BB22: Yes | BC22: N/A | BD22: N/A | BE22: N/A | BF22: N/A | BG22: N/A | BH22: N/A | BI22: N/A | BJ22: N/A | BK22: N/A | BL22: N/A | BM22: N/A | BN22: N/A | BO22: N/A | BP22: N/A | BQ22: N/A | BR22: N/A | BS22: N/A | BT22: N/A | BU22: N/A | BV22: N/A | BW22: N/A | BX22: N/A | BY22: N/A
B23: No | C23: 90.05262738 | D23: 92.78746313 | E23: 94.00211917 | F23: 93.41540512 | G23: 96.50179369 | H23: 92.88712532 | I23: 92.99853966 | J23: 95.95790332 | K23: 97.86858289 | L23: 99.10902604 | M23: 89.19001378 | N23: 92.93241376 | O23: 93.94138846 | P23: 92.83191153 | Q23: 95.11959762 | R23: 95.99185447 | S23: 91.21473729 | T23: 95.64251947 | U23: 93.25687354 | V23: 89.3644536 | W23: 95.70158995 | X23: 95.32824616 | Y23: 89.97484058 | BB23: No | BC23: N/A | BD23: N/A | BE23: N/A | BF23: N/A | BG23: N/A | BH23: N/A | BI23: N/A | BJ23: N/A | BK23: N/A | BL23: N/A | BM23: N/A | BN23: N/A | BO23: N/A | BP23: N/A | BQ23: N/A | BR23: N/A | BS23: N/A | BT23: N/A | BU23: N/A | BV23: N/A | BW23: N/A | BX23: N/A | BY23: N/A
A24: Manually calculated ratios | B24: Improved wells
B25: Improved sources
B26: Other
C27: NATIONAL wealth index quintile | H27: URBAN wealth index quintile | M27: RURAL wealth index quintile | R27: SUB-REGIONS: | BA27: Raw numbers of respondents: | BB27: Use of drinking water sources | BC27: NATIONAL wealth index quintile | BH27: URBAN wealth index quintile | BM27: RURAL wealth index quintile | BR27: SUB-REGIONS:
A28: Percentage based on weighted population | C28: Poorest | D28: Poor | E28: Middle | F28: Rich | G28: Richest | H28: Poorest | I28: Poor | J28: Middle | K28: Rich | L28: Richest | M28: Poorest | N28: Poor | O28: Middle | P28: Rich | Q28: Richest | R28: Region C | S28: Region CH | T28: Region E | U28: Region N | V28: Region NE | W28: Region S | X28: Region SE | Y28: Region W | BA28: Water data, raw numbers (weighted) | BC28: Poorest | BD28: Poor | BE28: Middle | BF28: Rich | BG28: Richest | BH28: Poorest | BI28: Poor | BJ28: Middle | BK28: Rich | BL28: Richest | BM28: Poorest | BN28: Poor | BO28: Middle | BP28: Rich | BQ28: Richest | BR28: Region C | BS28: Region CH | BT28: Region E | BU28: Region N | BV28: Region NE | BW28: Region S | BX28: Region SE | BY28: Region W
A29: Piped water | B29: Yes | C29: 10.41539015 | D29: 10.31542141 | E29: 12.3354989 | F29: 13.30871165 | G29: 41.80413307 | H29: 25.50870564 | I29: 33.01722861 | J29: 44.74473954 | K29: 54.26061521 | L29: 56.8583838 | M29: 10.00034224 | N29: 10.20001596 | O29: 12.72334381 | P29: 11.85589775 | Q29: 16.26566649 | R29: 21.74745591 | S29: 4.187346705 | T29: 24.82326891 | U29: 22.01808138 | V29: 9.9476163 | W29: 6.905742004 | X29: 12.97499104 | Y29: 30.49676167 | BA29: Piped water | BB29: Yes | BC29: N/A | BD29: N/A | BE29: N/A | BF29: N/A | BG29: N/A | BH29: N/A | BI29: N/A | BJ29: N/A | BK29: N/A | BL29: N/A | BM29: N/A | BN29: N/A | BO29: N/A | BP29: N/A | BQ29: N/A | BR29: N/A | BS29: N/A | BT29: N/A | BU29: N/A | BV29: N/A | BW29: N/A | BX29: N/A | BY29: N/A
B30: No | C30: 89.58460985 | D30: 89.68457859 | E30: 87.6645011 | F30: 86.69128835 | G30: 58.19586693 | H30: 74.49129436 | I30: 66.98277139 | J30: 55.25526046 | K30: 45.73938479 | L30: 43.1416162 | M30: 89.99965776 | N30: 89.79998404 | O30: 87.27665619 | P30: 88.14410225 | Q30: 83.73433351 | R30: 78.25254409 | S30: 95.81265329 | T30: 75.17673109 | U30: 77.98191862 | V30: 90.0523837 | W30: 93.094258 | X30: 87.02500896 | Y30: 69.50323833 | BB30: No | BC30: N/A | BD30: N/A | BE30: N/A | BF30: N/A | BG30: N/A | BH30: N/A | BI30: N/A | BJ30: N/A | BK30: N/A | BL30: N/A | BM30: N/A | BN30: N/A | BO30: N/A | BP30: N/A | BQ30: N/A | BR30: N/A | BS30: N/A | BT30: N/A | BU30: N/A | BV30: N/A | BW30: N/A | BX30: N/A | BY30: N/A
A31: Piped water on premises | B31: Yes | C31: 3.182317353 | D31: 3.198894213 | E31: 7.222423383 | F31: 5.584787426 | G31: 30.22706176 | H31: 13.03141175 | I31: 19.62033251 | J31: 28.25759484 | K31: 43.84241704 | L31: 51.23486417 | M31: 2.600332433 | N31: 3.377107447 | O31: 6.512152146 | P31: 5.806449427 | Q31: 8.206022742 | R31: 14.78213104 | S31: 0.6223450676 | T31: 11.7593369 | U31: 3.810144208 | V31: 7.388954197 | W31: 5.510967087 | X31: 8.166009724 | Y31: 20.36562794 | BA31: Piped water on premises | BB31: Yes | BC31: N/A | BD31: N/A | BE31: N/A | BF31: N/A | BG31: N/A | BH31: N/A | BI31: N/A | BJ31: N/A | BK31: N/A | BL31: N/A | BM31: N/A | BN31: N/A | BO31: N/A | BP31: N/A | BQ31: N/A | BR31: N/A | BS31: N/A | BT31: N/A | BU31: N/A | BV31: N/A | BW31: N/A | BX31: N/A | BY31: N/A
B32: No | C32: 96.81768265 | D32: 96.80110579 | E32: 92.77757662 | F32: 94.41521257 | G32: 69.77293824 | H32: 86.96858825 | I32: 80.37966749 | J32: 71.74240516 | K32: 56.15758296 | L32: 48.76513583 | M32: 97.39966757 | N32: 96.62289255 | O32: 93.48784785 | P32: 94.19355057 | Q32: 91.79397726 | R32: 85.21786896 | S32: 99.37765493 | T32: 88.2406631 | U32: 96.18985579 | V32: 92.6110458 | W32: 94.48903291 | X32: 91.83399028 | Y32: 79.63437206 | BB32: No | BC32: N/A | BD32: N/A | BE32: N/A | BF32: N/A | BG32: N/A | BH32: N/A | BI32: N/A | BJ32: N/A | BK32: N/A | BL32: N/A | BM32: N/A | BN32: N/A | BO32: N/A | BP32: N/A | BQ32: N/A | BR32: N/A | BS32: N/A | BT32: N/A | BU32: N/A | BV32: N/A | BW32: N/A | BX32: N/A | BY32: N/A
A33: Piped water into dwelling | B33: Yes | C33: N/A | D33: N/A | E33: N/A | F33: N/A | G33: N/A | H33: N/A | I33: N/A | J33: N/A | K33: N/A | L33: N/A | M33: N/A | N33: N/A | O33: N/A | P33: N/A | Q33: N/A | R33: N/A | S33: N/A | T33: N/A | U33: N/A | V33: N/A | W33: N/A | X33: N/A | Y33: N/A | BA33: Piped water into dwelling | BB33: Yes | BC33: N/A | BD33: N/A | BE33: N/A | BF33: N/A | BG33: N/A | BH33: N/A | BI33: N/A | BJ33: N/A | BK33: N/A | BL33: N/A | BM33: N/A | BN33: N/A | BO33: N/A | BP33: N/A | BQ33: N/A | BR33: N/A | BS33: N/A | BT33: N/A | BU33: N/A | BV33: N/A | BW33: N/A | BX33: N/A | BY33: N/A
B34: No | C34: N/A | D34: N/A | E34: N/A | F34: N/A | G34: N/A | H34: N/A | I34: N/A | J34: N/A | K34: N/A | L34: N/A | M34: N/A | N34: N/A | O34: N/A | P34: N/A | Q34: N/A | R34: N/A | S34: N/A | T34: N/A | U34: N/A | V34: N/A | W34: N/A | X34: N/A | Y34: N/A | BB34: No | BC34: N/A | BD34: N/A | BE34: N/A | BF34: N/A | BG34: N/A | BH34: N/A | BI34: N/A | BJ34: N/A | BK34: N/A | BL34: N/A | BM34: N/A | BN34: N/A | BO34: N/A | BP34: N/A | BQ34: N/A | BR34: N/A | BS34: N/A | BT34: N/A | BU34: N/A | BV34: N/A | BW34: N/A | BX34: N/A | BY34: N/A
A35: Water source on premises | B35: Yes | C35: 27.67619675 | D35: 31.75097211 | E35: 42.07756828 | F35: 39.48414591 | G35: 73.47928405 | H35: 54.07411073 | I35: 66.18527203 | J35: 69.49738202 | K35: 82.03078822 | L35: 93.16813074 | M35: 25.46843058 | N35: 32.15922007 | O35: 39.55041464 | P35: 39.73337718 | Q35: 44.99235677 | R35: 53.38780841 | S35: 5.952274427 | T35: 35.95532086 | U35: 21.71222902 | V35: 23.83751578 | W35: 72.18690011 | X35: 58.29112152 | Y35: 45.41709891 | BA35: Water source on premises | BB35: Yes | BC35: N/A | BD35: N/A | BE35: N/A | BF35: N/A | BG35: N/A | BH35: N/A | BI35: N/A | BJ35: N/A | BK35: N/A | BL35: N/A | BM35: N/A | BN35: N/A | BO35: N/A | BP35: N/A | BQ35: N/A | BR35: N/A | BS35: N/A | BT35: N/A | BU35: N/A | BV35: N/A | BW35: N/A | BX35: N/A | BY35: N/A
B36: No | C36: 72.32380325 | D36: 68.24902789 | E36: 57.92243172 | F36: 60.51585409 | G36: 26.52071595 | H36: 45.92588927 | I36: 33.81472797 | J36: 30.50261798 | K36: 17.96921178 | L36: 6.831869255 | M36: 74.53156942 | N36: 67.84077993 | O36: 60.44958536 | P36: 60.26662282 | Q36: 55.00764323 | R36: 46.61219159 | S36: 94.04772557 | T36: 64.04467914 | U36: 78.28777098 | V36: 76.16248422 | W36: 27.81309989 | X36: 41.70887848 | Y36: 54.58290109 | BB36: No | BC36: N/A | BD36: N/A | BE36: N/A | BF36: N/A | BG36: N/A | BH36: N/A | BI36: N/A | BJ36: N/A | BK36: N/A | BL36: N/A | BM36: N/A | BN36: N/A | BO36: N/A | BP36: N/A | BQ36: N/A | BR36: N/A | BS36: N/A | BT36: N/A | BU36: N/A | BV36: N/A | BW36: N/A | BX36: N/A | BY36: N/A
A37: Improved Water source on premises | B37: Yes | C37: 41.88214157 | D37: 44.79250011 | E37: 52.29590991 | F37: 45.54249457 | G37: 77.32127093 | H37: 63.71790985 | I37: 70.77815437 | J37: 69.42373814 | K37: 82.13287517 | L37: 94.02291196 | M37: 39.05069057 | N37: 46.44219827 | O37: 51.15001826 | P37: 47.84452719 | Q37: 51.75556462 | R37: 65.20872881 | S37: 11.28370985 | T37: 47.73061654 | U37: 28.09022235 | V37: 31.4255154 | W37: 76.86571129 | X37: 70.45610489 | Y37: 55.73282502 | BA37: Improved water source on premises | BB37: Yes | BC37: N/A | BD37: N/A | BE37: N/A | BF37: N/A | BG37: N/A | BH37: N/A | BI37: N/A | BJ37: N/A | BK37: N/A | BL37: N/A | BM37: N/A | BN37: N/A | BO37: N/A | BP37: N/A | BQ37: N/A | BR37: N/A | BS37: N/A | BT37: N/A | BU37: N/A | BV37: N/A | BW37: N/A | BX37: N/A | BY37: N/A
B38: No | C38: 58.11785843 | D38: 55.20749989 | E38: 47.70409009 | F38: 54.45750543 | G38: 22.67872907 | H38: 36.28209015 | I38: 29.22184563 | J38: 30.57626186 | K38: 17.86712483 | L38: 5.97708804 | M38: 60.94930943 | N38: 53.55780173 | O38: 48.84998174 | P38: 52.15547281 | Q38: 48.24443538 | R38: 34.79127119 | S38: 88.71629015 | T38: 52.26938346 | U38: 71.90977765 | V38: 68.5744846 | W38: 23.13428871 | X38: 29.54389511 | Y38: 44.26717498 | BB38: No | BC38: N/A | BD38: N/A | BE38: N/A | BF38: N/A | BG38: N/A | BH38: N/A | BI38: N/A | BJ38: N/A | BK38: N/A | BL38: N/A | BM38: N/A | BN38: N/A | BO38: N/A | BP38: N/A | BQ38: N/A | BR38: N/A | BS38: N/A | BT38: N/A | BU38: N/A | BV38: N/A | BW38: N/A | BX38: N/A | BY38: N/A
A39: Piped water on premises available when needed | B39: Yes | C39: N/A | D39: N/A | E39: N/A | F39: N/A | G39: N/A | H39: N/A | I39: N/A | J39: N/A | K39: N/A | L39: N/A | M39: N/A | N39: N/A | O39: N/A | P39: N/A | Q39: N/A | R39: N/A | S39: N/A | T39: N/A | U39: N/A | V39: N/A | W39: N/A | X39: N/A | Y39: N/A | BA39: Piped water on premises available when needed | BB39: Yes | BC39: N/A | BD39: N/A | BE39: N/A | BF39: N/A | BG39: N/A | BH39: N/A | BI39: N/A | BJ39: N/A | BK39: N/A | BL39: N/A | BM39: N/A | BN39: N/A | BO39: N/A | BP39: N/A | BQ39: N/A | BR39: N/A | BS39: N/A | BT39: N/A | BU39: N/A | BV39: N/A | BW39: N/A | BX39: N/A | BY39: N/A
B40: No | C40: N/A | D40: N/A | E40: N/A | F40: N/A | G40: N/A | H40: N/A | I40: N/A | J40: N/A | K40: N/A | L40: N/A | M40: N/A | N40: N/A | O40: N/A | P40: N/A | Q40: N/A | R40: N/A | S40: N/A | T40: N/A | U40: N/A | V40: N/A | W40: N/A | X40: N/A | Y40: N/A | BB40: No | BC40: N/A | BD40: N/A | BE40: N/A | BF40: N/A | BG40: N/A | BH40: N/A | BI40: N/A | BJ40: N/A | BK40: N/A | BL40: N/A | BM40: N/A | BN40: N/A | BO40: N/A | BP40: N/A | BQ40: N/A | BR40: N/A | BS40: N/A | BT40: N/A | BU40: N/A | BV40: N/A | BW40: N/A | BX40: N/A | BY40: N/A
A41: Water point at more than 30 minutes | B41: Yes | C41: 14.65306368 | D41: 13.85340381 | E41: 9.279377225 | F41: 10.13282886 | G41: 4.231078868 | H41: 11.04179147 | I41: 7.508716953 | J41: 3.592128552 | K41: 2.291803329 | L41: 0.8711494432 | M41: 16.06300615 | N41: 13.16646824 | O41: 10.37918236 | P41: 11.15406466 | Q41: 7.202442787 | R41: 3.632475565 | S41: 13.82454211 | T41: 12.21183416 | U41: 10.23746493 | V41: 18.60936096 | W41: 5.048153288 | X41: 9.796406487 | Y41: 12.79926956 | BA41: Water point at more than 30 minutes | BB41: Yes | BC41: N/A | BD41: N/A | BE41: N/A | BF41: N/A | BG41: N/A | BH41: N/A | BI41: N/A | BJ41: N/A | BK41: N/A | BL41: N/A | BM41: N/A | BN41: N/A | BO41: N/A | BP41: N/A | BQ41: N/A | BR41: N/A | BS41: N/A | BT41: N/A | BU41: N/A | BV41: N/A | BW41: N/A | BX41: N/A | BY41: N/A
B42: No | C42: 85.34693632 | D42: 86.14659619 | E42: 90.72062277 | F42: 89.86717114 | G42: 95.76892113 | H42: 88.95820853 | I42: 92.49128305 | J42: 96.40787145 | K42: 97.70819667 | L42: 99.12885056 | M42: 83.93699385 | N42: 86.83353176 | O42: 89.62081764 | P42: 88.84593534 | Q42: 92.79755721 | R42: 96.36752443 | S42: 86.17545789 | T42: 87.78816584 | U42: 89.76253507 | V42: 81.39063904 | W42: 94.95184671 | X42: 90.20359351 | Y42: 87.20073044 | BB42: No | BC42: N/A | BD42: N/A | BE42: N/A | BF42: N/A | BG42: N/A | BH42: N/A | BI42: N/A | BJ42: N/A | BK42: N/A | BL42: N/A | BM42: N/A | BN42: N/A | BO42: N/A | BP42: N/A | BQ42: N/A | BR42: N/A | BS42: N/A | BT42: N/A | BU42: N/A | BV42: N/A | BW42: N/A | BX42: N/A | BY42: N/A
A43: Water source available when needed | B43: Yes | C43: N/A | D43: N/A | E43: N/A | F43: N/A | G43: N/A | H43: N/A | I43: N/A | J43: N/A | K43: N/A | L43: N/A | M43: N/A | N43: N/A | O43: N/A | P43: N/A | Q43: N/A | R43: N/A | S43: N/A | T43: N/A | U43: N/A | V43: N/A | W43: N/A | X43: N/A | Y43: N/A | BA43: Water source available when needed | BB43: Yes | BC43: N/A | BD43: N/A | BE43: N/A | BF43: N/A | BG43: N/A | BH43: N/A | BI43: N/A | BJ43: N/A | BK43: N/A | BL43: N/A | BM43: N/A | BN43: N/A | BO43: N/A | BP43: N/A | BQ43: N/A | BR43: N/A | BS43: N/A | BT43: N/A | BU43: N/A | BV43: N/A | BW43: N/A | BX43: N/A | BY43: N/A
B44: No | C44: N/A | D44: N/A | E44: N/A | F44: N/A | G44: N/A | H44: N/A | I44: N/A | J44: N/A | K44: N/A | L44: N/A | M44: N/A | N44: N/A | O44: N/A | P44: N/A | Q44: N/A | R44: N/A | S44: N/A | T44: N/A | U44: N/A | V44: N/A | W44: N/A | X44: N/A | Y44: N/A | BB44: No | BC44: N/A | BD44: N/A | BE44: N/A | BF44: N/A | BG44: N/A | BH44: N/A | BI44: N/A | BJ44: N/A | BK44: N/A | BL44: N/A | BM44: N/A | BN44: N/A | BO44: N/A | BP44: N/A | BQ44: N/A | BR44: N/A | BS44: N/A | BT44: N/A | BU44: N/A | BV44: N/A | BW44: N/A | BX44: N/A | BY44: N/A
A45: Improved water source available when needed | B45: Yes | C45: N/A | D45: N/A | E45: N/A | F45: N/A | G45: N/A | H45: N/A | I45: N/A | J45: N/A | K45: N/A | L45: N/A | M45: N/A | N45: N/A | O45: N/A | P45: N/A | Q45: N/A | R45: N/A | S45: N/A | T45: N/A | U45: N/A | V45: N/A | W45: N/A | X45: N/A | Y45: N/A | BA45: Improved water source available when needed | BB45: Yes | BC45: N/A | BD45: N/A | BE45: N/A | BF45: N/A | BG45: N/A | BH45: N/A | BI45: N/A | BJ45: N/A | BK45: N/A | BL45: N/A | BM45: N/A | BN45: N/A | BO45: N/A | BP45: N/A | BQ45: N/A | BR45: N/A | BS45: N/A | BT45: N/A | BU45: N/A | BV45: N/A | BW45: N/A | BX45: N/A | BY45: N/A
B46: No | C46: N/A | D46: N/A | E46: N/A | F46: N/A | G46: N/A | H46: N/A | I46: N/A | J46: N/A | K46: N/A | L46: N/A | M46: N/A | N46: N/A | O46: N/A | P46: N/A | Q46: N/A | R46: N/A | S46: N/A | T46: N/A | U46: N/A | V46: N/A | W46: N/A | X46: N/A | Y46: N/A | BB46: No | BC46: N/A | BD46: N/A | BE46: N/A | BF46: N/A | BG46: N/A | BH46: N/A | BI46: N/A | BJ46: N/A | BK46: N/A | BL46: N/A | BM46: N/A | BN46: N/A | BO46: N/A | BP46: N/A | BQ46: N/A | BR46: N/A | BS46: N/A | BT46: N/A | BU46: N/A | BV46: N/A | BW46: N/A | BX46: N/A | BY46: N/A
A47: Microbiological quality at point of collection | B47: Not contaminated (No E. coli in 100 mL) | C47: N/A | D47: N/A | E47: N/A | F47: N/A | G47: N/A | H47: N/A | I47: N/A | J47: N/A | K47: N/A | L47: N/A | M47: N/A | N47: N/A | O47: N/A | P47: N/A | Q47: N/A | R47: N/A | S47: N/A | T47: N/A | U47: N/A | V47: N/A | W47: N/A | X47: N/A | Y47: N/A | BA47: Microbiological quality at point of collection | BB47: Not contaminated (No E. coli in 100 mL) | BC47: N/A | BD47: N/A | BE47: N/A | BF47: N/A | BG47: N/A | BH47: N/A | BI47: N/A | BJ47: N/A | BK47: N/A | BL47: N/A | BM47: N/A | BN47: N/A | BO47: N/A | BP47: N/A | BQ47: N/A | BR47: N/A | BS47: N/A | BT47: N/A | BU47: N/A | BV47: N/A | BW47: N/A | BX47: N/A | BY47: N/A
B48: Contaminated (E. coli detected in 100 mL) | C48: N/A | D48: N/A | E48: N/A | F48: N/A | G48: N/A | H48: N/A | I48: N/A | J48: N/A | K48: N/A | L48: N/A | M48: N/A | N48: N/A | O48: N/A | P48: N/A | Q48: N/A | R48: N/A | S48: N/A | T48: N/A | U48: N/A | V48: N/A | W48: N/A | X48: N/A | Y48: N/A | BB48: Contaminated (E. coli detected in 100 mL) | BC48: N/A | BD48: N/A | BE48: N/A | BF48: N/A | BG48: N/A | BH48: N/A | BI48: N/A | BJ48: N/A | BK48: N/A | BL48: N/A | BM48: N/A | BN48: N/A | BO48: N/A | BP48: N/A | BQ48: N/A | BR48: N/A | BS48: N/A | BT48: N/A | BU48: N/A | BV48: N/A | BW48: N/A | BX48: N/A | BY48: N/A
B49: Highly contaminated (>100 CFU/100 mL) | C49: N/A | D49: N/A | E49: N/A | F49: N/A | G49: N/A | H49: N/A | I49: N/A | J49: N/A | K49: N/A | L49: N/A | M49: N/A | N49: N/A | O49: N/A | P49: N/A | Q49: N/A | R49: N/A | S49: N/A | T49: N/A | U49: N/A | V49: N/A | W49: N/A | X49: N/A | Y49: N/A | BB49: Highly contaminated (>100 CFU/100 mL) | BC49: N/A | BD49: N/A | BE49: N/A | BF49: N/A | BG49: N/A | BH49: N/A | BI49: N/A | BJ49: N/A | BK49: N/A | BL49: N/A | BM49: N/A | BN49: N/A | BO49: N/A | BP49: N/A | BQ49: N/A | BR49: N/A | BS49: N/A | BT49: N/A | BU49: N/A | BV49: N/A | BW49: N/A | BX49: N/A | BY49: N/A
A50: Microbiological quality of improved water sources at point of collection | B50: Not contaminated (No E. coli in 100 mL) | C50: N/A | D50: N/A | E50: N/A | F50: N/A | G50: N/A | H50: N/A | I50: N/A | J50: N/A | K50: N/A | L50: N/A | M50: N/A | N50: N/A | O50: N/A | P50: N/A | Q50: N/A | R50: N/A | S50: N/A | T50: N/A | U50: N/A | V50: N/A | W50: N/A | X50: N/A | Y50: N/A | BA50: Microbiological quality of improved water sources at point of collection | BB50: Not contaminated (No E. coli in 100 mL) | BC50: N/A | BD50: N/A | BE50: N/A | BF50: N/A | BG50: N/A | BH50: N/A | BI50: N/A | BJ50: N/A | BK50: N/A | BL50: N/A | BM50: N/A | BN50: N/A | BO50: N/A | BP50: N/A | BQ50: N/A | BR50: N/A | BS50: N/A | BT50: N/A | BU50: N/A | BV50: N/A | BW50: N/A | BX50: N/A | BY50: N/A
B51: Contaminated (E. coli detected in 100 mL) | C51: N/A | D51: N/A | E51: N/A | F51: N/A | G51: N/A | H51: N/A | I51: N/A | J51: N/A | K51: N/A | L51: N/A | M51: N/A | N51: N/A | O51: N/A | P51: N/A | Q51: N/A | R51: N/A | S51: N/A | T51: N/A | U51: N/A | V51: N/A | W51: N/A | X51: N/A | Y51: N/A | BB51: Contaminated (E. coli detected in 100 mL) | BC51: N/A | BD51: N/A | BE51: N/A | BF51: N/A | BG51: N/A | BH51: N/A | BI51: N/A | BJ51: N/A | BK51: N/A | BL51: N/A | BM51: N/A | BN51: N/A | BO51: N/A | BP51: N/A | BQ51: N/A | BR51: N/A | BS51: N/A | BT51: N/A | BU51: N/A | BV51: N/A | BW51: N/A | BX51: N/A | BY51: N/A
B52: Highly contaminated (>100 CFU/100 mL) | C52: N/A | D52: N/A | E52: N/A | F52: N/A | G52: N/A | H52: N/A | I52: N/A | J52: N/A | K52: N/A | L52: N/A | M52: N/A | N52: N/A | O52: N/A | P52: N/A | Q52: N/A | R52: N/A | S52: N/A | T52: N/A | U52: N/A | V52: N/A | W52: N/A | X52: N/A | Y52: N/A | BB52: Highly contaminated (>100 CFU/100 mL) | BC52: N/A | BD52: N/A | BE52: N/A | BF52: N/A | BG52: N/A | BH52: N/A | BI52: N/A | BJ52: N/A | BK52: N/A | BL52: N/A | BM52: N/A | BN52: N/A | BO52: N/A | BP52: N/A | BQ52: N/A | BR52: N/A | BS52: N/A | BT52: N/A | BU52: N/A | BV52: N/A | BW52: N/A | BX52: N/A | BY52: N/A
A53: Microbiological quality of piped on premises at point of collection | B53: Not contaminated (No E. coli in 100 mL) | C53: N/A | D53: N/A | E53: N/A | F53: N/A | G53: N/A | H53: N/A | I53: N/A | J53: N/A | K53: N/A | L53: N/A | M53: N/A | N53: N/A | O53: N/A | P53: N/A | Q53: N/A | R53: N/A | S53: N/A | T53: N/A | U53: N/A | V53: N/A | W53: N/A | X53: N/A | Y53: N/A | BA53: Microbiological quality of piped on premises at point of collection | BB53: Not contaminated (No E. coli in 100 mL) | BC53: N/A | BD53: N/A | BE53: N/A | BF53: N/A | BG53: N/A | BH53: N/A | BI53: N/A | BJ53: N/A | BK53: N/A | BL53: N/A | BM53: N/A | BN53: N/A | BO53: N/A | BP53: N/A | BQ53: N/A | BR53: N/A | BS53: N/A | BT53: N/A | BU53: N/A | BV53: N/A | BW53: N/A | BX53: N/A | BY53: N/A
B54: Contaminated (E. coli detected in 100 mL) | C54: N/A | D54: N/A | E54: N/A | F54: N/A | G54: N/A | H54: N/A | I54: N/A | J54: N/A | K54: N/A | L54: N/A | M54: N/A | N54: N/A | O54: N/A | P54: N/A | Q54: N/A | R54: N/A | S54: N/A | T54: N/A | U54: N/A | V54: N/A | W54: N/A | X54: N/A | Y54: N/A | BB54: Contaminated (E. coli detected in 100 mL) | BC54: N/A | BD54: N/A | BE54: N/A | BF54: N/A | BG54: N/A | BH54: N/A | BI54: N/A | BJ54: N/A | BK54: N/A | BL54: N/A | BM54: N/A | BN54: N/A | BO54: N/A | BP54: N/A | BQ54: N/A | BR54: N/A | BS54: N/A | BT54: N/A | BU54: N/A | BV54: N/A | BW54: N/A | BX54: N/A | BY54: N/A
B55: Highly contaminated (>100 CFU/100 mL) | C55: N/A | D55: N/A | E55: N/A | F55: N/A | G55: N/A | H55: N/A | I55: N/A | J55: N/A | K55: N/A | L55: N/A | M55: N/A | N55: N/A | O55: N/A | P55: N/A | Q55: N/A | R55: N/A | S55: N/A | T55: N/A | U55: N/A | V55: N/A | W55: N/A | X55: N/A | Y55: N/A | BB55: Highly contaminated (>100 CFU/100 mL) | BC55: N/A | BD55: N/A | BE55: N/A | BF55: N/A | BG55: N/A | BH55: N/A | BI55: N/A | BJ55: N/A | BK55: N/A | BL55: N/A | BM55: N/A | BN55: N/A | BO55: N/A | BP55: N/A | BQ55: N/A | BR55: N/A | BS55: N/A | BT55: N/A | BU55: N/A | BV55: N/A | BW55: N/A | BX55: N/A | BY55: N/A
C56: NATIONAL wealth index quintile | H56: URBAN wealth index quintile | M56: RURAL wealth index quintile | R56: SUB-REGIONS: | BA56: Raw numbers of respondents: | BB56: Use of drinking water sources | BC56: NATIONAL wealth index quintile | BH56: URBAN wealth index quintile | BM56: RURAL wealth index quintile | BR56: SUB-REGIONS:
A57: Percentage based on weighted population | C57: Poorest | D57: Poor | E57: Middle | F57: Rich | G57: Richest | H57: Poorest | I57: Poor | J57: Middle | K57: Rich | L57: Richest | M57: Poorest | N57: Poor | O57: Middle | P57: Rich | Q57: Richest | R57: Region C | S57: Region CH | T57: Region E | U57: Region N | V57: Region NE | W57: Region S | X57: Region SE | Y57: Region W | BA57: Water data, raw numbers (weighted) | BC57: Poorest | BD57: Poor | BE57: Middle | BF57: Rich | BG57: Richest | BH57: Poorest | BI57: Poor | BJ57: Middle | BK57: Rich | BL57: Richest | BM57: Poorest | BN57: Poor | BO57: Middle | BP57: Rich | BQ57: Richest | BR57: Region C | BS57: Region CH | BT57: Region E | BU57: Region N | BV57: Region NE | BW57: Region S | BX57: Region SE | BY57: Region W
A58: Main source of drinking water | B58: Piped into dwelling | C58: 1.828067899 | D58: 0.8007767082 | E58: 2.143212408 | F58: 1.872349263 | G58: 12.47438694 | H58: 5.653661202 | I58: 7.802357219 | J58: 10.22670565 | K58: 14.96251754 | L58: 26.15754462 | M58: 1.588145335 | N58: 1.101065089 | O58: 1.940714346 | P58: 1.781171935 | Q58: 2.886625534 | R58: 5.122023687 | S58: 0.1027681488 | T58: 6.496577537 | U58: 0.8385952534 | V58: 0.6848188717 | W58: 4.170823765 | X58: 3.399392198 | Y58: 8.01076126
B59: Piped into compound, yard or plot | C59: 1.354249454 | D59: 2.398117505 | E59: 5.079210975 | F59: 3.712438164 | G59: 17.75267482 | H59: 7.377750545 | I59: 11.81797529 | J59: 18.03088919 | K59: 28.8798995 | L59: 25.07731955 | M59: 1.012187098 | N59: 2.276042358 | O59: 4.571437799 | P59: 4.025277492 | Q59: 5.319397208 | R59: 9.660107354 | S59: 0.5195769188 | T59: 5.262759361 | U59: 2.971548954 | V59: 6.704135326 | W59: 1.340143322 | X59: 4.766617527 | Y59: 12.35486668
B60: Piped to neighbour | C60: 0.6568298746 | D60: 0.9591882593 | E60: 0.6944838471 | F60: 0.9247495632 | G60: 3.724339013 | H60: 5.317634733 | I60: 4.819350185 | J60: 4.307726559 | K60: 2.74148503 | L60: 1.790599557 | M60: 0.4364319949 | N60: 0.9100944721 | O60: 1.168276695 | P60: 0.4694010496 | Q60: 1.392658069 | R60: 0.9592466849 | S60: 0.01885249267 | T60: 4.192335179 | U60: 0.5401108999 | V60: 1.202807363 | W60: 1.285427119 | X60: 1.259001066 | Y60: 1.265508073
B61: Public tap / standpipe | C61: 6.576242918 | D61: 6.157338937 | E61: 4.418591674 | F61: 6.79917466 | G61: 7.852732301 | H61: 7.159659163 | I61: 8.577545914 | J61: 12.17941814 | K61: 7.676713137 | L61: 3.832920068 | M61: 6.963577815 | N61: 5.912814042 | O61: 5.042914971 | P61: 5.580047274 | Q61: 6.666985684 | R61: 6.006078185 | S61: 3.546149145 | T61: 8.871596829 | U61: 17.66782627 | V61: 1.35585474 | W61: 0.1093477981 | X61: 3.549980254 | Y61: 8.865625655
B62: Tube well, Borehole | C62: 15.34361426 | D62: 17.68434228 | E62: 18.75884581 | F62: 25.82361479 | G62: 28.92283893 | H62: 24.93383467 | I62: 29.12051319 | J62: 29.66906861 | K62: 28.97718581 | L62: 32.87130963 | M62: 14.78113975 | N62: 17.57189679 | O62: 18.32895028 | P62: 20.54538798 | Q62: 26.91528 | R62: 32.14409998 | S62: 3.700204487 | T62: 8.751864552 | U62: 9.621279575 | V62: 23.13324912 | W62: 32.38813144 | X62: 26.83574046 | Y62: 16.58690536
B63: Protected well/kariaz | C63: 12.14011099 | D63: 15.11940581 | E63: 22.17805074 | F63: 14.31260455 | G63: 10.51112758 | H63: 14.10439607 | I63: 10.9584818 | J63: 10.04780803 | K63: 7.164159297 | L63: 6.127706639 | M63: 11.64758471 | N63: 14.47430876 | O63: 19.01425797 | P63: 20.43510672 | Q63: 14.24880023 | R63: 13.4269709 | S63: 9.535405264 | T63: 26.0302625 | U63: 12.49284218 | V63: 8.87835466 | W63: 15.48061179 | X63: 23.99522328 | Y63: 8.91793194
B64: Unprotected well/kariaz | C64: 16.21964113 | D64: 14.64663935 | E64: 15.93771651 | F64: 16.92363661 | G64: 8.199932477 | H64: 12.06374549 | I64: 11.49541427 | J64: 7.082502061 | K64: 4.431019604 | L64: 1.213678452 | M64: 15.21737201 | N64: 15.86844591 | O64: 16.17036447 | P64: 16.46507861 | Q64: 15.86901622 | R64: 6.274400109 | S64: 13.17584163 | T64: 9.079580443 | U64: 15.58980896 | V64: 15.55203523 | W64: 26.55505121 | X64: 12.24669935 | Y64: 15.80452729
B65: Protected spring | C65: 6.487167295 | D65: 2.850884878 | E65: 2.055314052 | F65: 1.350325919 | G65: 0.4487840105 | H65: 1.201001298 | I65: 0.410386445 | J65: 0.1880436098 | K65: 0 | L65: 0.02757019111 | M65: 7.195330463 | N65: 2.655777036 | O65: 2.751109894 | P65: 1.521965653 | Q65: 1.51173815 | R65: 1.775383021 | S65: 7.866356635 | T65: 2.756313405 | U65: 1.069538123 | V65: 2.165655355 | W65: 4.730001766 | X65: 2.983862253 | Y65: 1.978469443
B66: Unprotected spring | C66: 17.81068325 | D66: 15.50852129 | E66: 7.918321722 | F66: 6.246690051 | G66: 0.9430817626 | H66: 4.718895907 | I66: 1.045901822 | J66: 0.3678474121 | K66: 0.4681322302 | L66: 0 | M66: 19.24257289 | N66: 14.52106601 | O66: 11.0786406 | P66: 8.499146463 | Q66: 4.076033781 | R66: 4.11720265 | S66: 35.09411605 | T66: 23.5643174 | U66: 10.81960637 | V66: 3.973681051 | W66: 3.706909922 | X66: 6.731648232 | Y66: 13.02193917
B67: Rainwater collection | C67: 0.2014060597 | D67: 0.4208547205 | E67: 0.139268404 | F67: 0.4290013006 | G67: 0.01963959775 | H67: 0 | I67: 0 | J67: 0 | K67: 0 | L67: 0.1110526097 | M67: 0.1611592185 | N67: 0.5948770182 | O67: 0.09116520477 | P67: 0.299701404 | Q67: 0.2995171842 | R67: 0 | S67: 0 | T67: 0 | U67: 0.09136106374 | V67: 0.03759003029 | W67: 0.1535851476 | X67: 0.1940884359 | Y67: 1.350675608
B68: Tanker-truck | C68: 0.1797278083 | D68: 0.1390729835 | E68: 0.4339932953 | F68: 0.4012442265 | G68: 1.953904514 | H68: 1.219302758 | I68: 2.904963998 | J68: 3.656588464 | K68: 2.329690999 | L68: 1.267228033 | M68: 0.08057885678 | N68: 0.2062607594 | O68: 0.209862566 | P68: 0.5662840265 | Q68: 0.2669726258 | R68: 2.193591066 | S68: 0.04084856542 | T68: 0 | U68: 0.08947199089 | V68: 0.2179453235 | W68: 0.5195883383 | X68: 1.199199412 | Y68: 0
B69: Cart with small tank / drum | C69: 1.087012885 | D69: 1.700186865 | E69: 1.533606019 | F69: 1.079270155 | G69: 0.5039174208 | H69: 1.901799022 | I69: 0.5272703847 | J69: 0.2917968777 | K69: 0.3675644636 | L69: 0 | M69: 1.099135604 | N69: 1.736251484 | O69: 1.348828068 | P69: 1.273260552 | Q69: 1.051800358 | R69: 0.3499613644 | S69: 0.5818723981 | T69: 0.2342027507 | U69: 0.2649738512 | V69: 2.33594274 | W69: 0.9113551608 | X69: 4.255712224 | Y69: 0
B70: Surface water (river, stream, dam, lake, pond, canal, irrigation channel) | C70: 18.3635484 | D70: 20.45953784 | E70: 18.32646856 | F70: 19.05209312 | G70: 5.287552426 | H70: 12.39050883 | I70: 8.957170157 | J70: 2.98640563 | K70: 0.8580842941 | L70: 0.4998173192 | M70: 18.75636138 | N70: 20.92535331 | O70: 17.67980053 | P70: 18.04637059 | Q70: 18.07732516 | R70: 16.81008149 | S70: 25.76730145 | T70: 4.461418806 | U70: 27.16173184 | V70: 32.77367348 | W70: 7.689742122 | X70: 5.210298285 | Y70: 11.02225957
B71: Bottled water | C71: 0.07545683307 | D71: 0.01686173877 | E71: 0 | F71: 0 | G71: 0.1406404211 | H71: 0.2714676548 | I71: 0 | J71: 0 | K71: 0.2405175488 | L71: 0.5541272937 | M71: 0 | N71: 0.05381550901 | O71: 0 | P71: 0 | Q71: 0 | R71: 0.2187008601 | S71: 0.01318103059 | T71: 0 | U71: 0.0396957452 | V71: 0.0353793775 | W71: 0 | X71: 0 | Y71: 0
B72: Other | C72: 1.676240941 | D72: 1.112674478 | E72: 0.3829159975 | F72: 1.061903918 | G72: 1.264447782 | H72: 1.686342651 | I72: 1.562669327 | J72: 0.9651997677 | K72: 0.9030305512 | L72: 0.4691260326 | M72: 1.818422864 | N72: 1.16083214 | O72: 0.6036766018 | P72: 0.4918002481 | Q72: 1.404596545 | R72: 0.9421526549 | S72: 0.0375257788 | T72: 0.2792021386 | U72: 0.7416089279 | V72: 0.9174342513 | W72: 0.9592811098 | X72: 3.372537028 | Y72: 0.8205299494
B73: Missing | C73: 0 | D73: 0.02559635107 | E73: 0 | F73: 0.01090371649 | G73: 0 | H73: 0 | I73: 0 | J73: 0 | K73: 0 | L73: 0 | M73: 0 | N73: 0.03109931242 | O73: 0 | P73: 0 | Q73: 0.01325324242 | R73: 0 | S73: 0 | T73: 0.01956909396 | U73: 0 | V73: 0.03144307627 | W73: 0 | X73: 0 | Y73: 0
A108: =A1026 -> Afghanistan
A109: =A1034 -> 2011
A110: Use of sanitation facilities
A111: by wealth quintile and sub-national region
A112: Notes:
A113: WHO/UNICEF JMP customised wealth index excludes water,
A114: sanitation and hygiene assets.
A115: Survey used for analysis: | B115: =A1025 -> MICS11
A116: =B1030 -> 
A117: =B1029 -> 
A120: Use of sanitation facilities | C120: NATIONAL wealth index quintile | H120: URBAN wealth index quintile | M120: RURAL wealth index quintile | R120: SUB-REGIONS: | BA120: Raw numbers of respondents: | BB120: Use of sanitation facilities | BC120: NATIONAL wealth index quintile | BH120: URBAN wealth index quintile | BM120: RURAL wealth index quintile | BR120: SUB-REGIONS:
A121: Weighted percentage (used in graphs) | C121: Poorest | D121: Poor | E121: Middle | F121: Rich | G121: Richest | H121: Poorest | I121: Poor | J121: Middle | K121: Rich | L121: Richest | M121: Poorest | N121: Poor | O121: Middle | P121: Rich | Q121: Richest | R121: Region C | S121: Region CH | T121: Region E | U121: Region N | V121: Region NE | W121: Region S | X121: Region SE | Y121: Region W | BA121: Sanitation data, raw numbers (weighted) | BC121: Poorest | BD121: Poor | BE121: Middle | BF121: Rich | BG121: Richest | BH121: Poorest | BI121: Poor | BJ121: Middle | BK121: Rich | BL121: Richest | BM121: Poorest | BN121: Poor | BO121: Middle | BP121: Rich | BQ121: Richest | BR121: Region C | BS121: Region CH | BT121: Region E | BU121: Region N | BV121: Region NE | BW121: Region S | BX121: Region SE | BY121: Region W
A122: Sanitation | B122: Improved | C122: 27.40944236 | D122: 31.90264986 | E122: 37.99635296 | F122: 33.91179731 | G122: 61.85742635 | H122: 53.65802023 | I122: 55.92825342 | J122: 57.49848988 | K122: 66.35354244 | L122: 86.821341 | M122: 25.05479448 | N122: 31.86163541 | O122: 36.53840714 | P122: 36.93608644 | Q122: 35.34378357 | R122: 40.22209804 | S122: 23.24349204 | T122: 46.43678416 | U122: 35.87671494 | V122: 25.22122667 | W122: 41.9757744 | X122: 55.45613977 | Y122: 33.79751217 | BA122: Sanitation | BB122: Improved | BC122: 5575.817296 | BD122: 6488.651482 | BE122: 7730.107884 | BF122: 6898.543053 | BG122: 12584.43304 | BH122: 1931.273729 | BI122: 2015.229261 | BJ122: 2065.855948 | BK122: 2393.370073 | BL122: 3123.720131 | BM122: 4195.465891 | BN122: 5333.631724 | BO122: 6114.647518 | BP122: 6189.123257 | BQ122: 5915.235219 | BR122: 6528.95696 | BS122: 801.689651 | BT122: 5263.474698 | BU122: 5042.449702 | BV122: 4175.869565 | BW122: 5803.072466 | BX122: 7135.51749 | BY122: 4526.522219
B123: Not Improved | C123: 72.59055764 | D123: 68.09735014 | E123: 62.00364704 | F123: 66.08820269 | G123: 38.14257365 | H123: 46.34197977 | I123: 44.07174658 | J123: 42.50151012 | K123: 33.64645756 | L123: 13.178659 | M123: 74.94520552 | N123: 68.13836459 | O123: 63.46159286 | P123: 63.06391356 | Q123: 64.65621643 | R123: 59.77790196 | S123: 76.75650796 | T123: 53.56321584 | U123: 64.12328506 | V123: 74.77877333 | W123: 58.0242256 | X123: 44.54386023 | Y123: 66.20248783 | BB123: Not Improved | BC123: 14766.87054 | BD123: 13850.25927 | BE123: 12614.23383 | BF123: 13444.06218 | BG123: 7759.822744 | BH123: 1667.952856 | BI123: 1588.010851 | BJ123: 1527.031365 | BK123: 1213.626607 | BL123: 474.151193 | BM123: 12549.69598 | BN123: 11406.34931 | BO123: 10620.20218 | BP123: 10567.18163 | BQ123: 10821.04659 | BR123: 9703.306591 | BS123: 2647.403323 | BT123: 6071.235044 | BU123: 9012.487351 | BV123: 12381.09501 | BW123: 8021.740891 | BX123: 5731.439206 | BY123: 8866.541139
A124: Sanitation ladder | B124: Basic | C124: =C122*C129/100 -> 25.886923 | D124: =D122*D129/100 -> 30.32976267 | E124: =E122*E129/100 -> 36.26896555 | F124: 30.78661171 | G124: 52.31471063 | H124: 48.39041585 | I124: 45.79984179 | J124: 45.83228325 | K124: 53.35521994 | L124: 75.6267643 | M124: 23.51614068 | N124: 30.35487084 | O124: 34.81987512 | P124: 34.8014588 | Q124: 32.01407379 | R124: 31.0233582 | S124: 20.74176085 | T124: 43.07416284 | U124: 35.16681544 | V124: 22.58128868 | W124: 40.3335298 | X124: 52.11060678 | Y124: 30.79888066 | BA124: Sanitation ladder | BB124: Basic | BC124: 5257.541809 | BD124: 6168.743361 | BE124: 7374.839856 | BF124: 6262.798884 | BG124: 10623.49155 | BH124: 1741.680712 | BI124: 1640.793977 | BJ124: 1646.70229 | BK124: 1924.521012 | BL124: 2720.953666 | BM124: 3937.815822 | BN124: 5072.770714 | BO124: 5823.217662 | BP124: 5831.438541 | BQ124: 5347.52106 | BR124: 5035.793266 | BS124: 715.402616 | BT124: 4859.500141 | BU124: 4942.673774 | BV124: 3733.308909 | BW124: 5570.77394 | BX124: 6705.049209 | BY124: 4124.913601
B125: Limited | C125: =C122*C128/100 -> 1.522519359 | D125: =D122*D128/100 -> 1.572887186 | E125: =E122*E128/100 -> 1.727387404 | F125: 3.125185599 | G125: 9.54271572 | H125: 5.267604373 | I125: 10.12841162 | J125: 11.66620663 | K125: 12.9983225 | L125: 11.1945767 | M125: 1.538653798 | N125: 1.506764571 | O125: 1.71853202 | P125: 2.134627643 | Q125: 3.329709781 | R125: 9.198739839 | S125: 2.501731199 | T125: 3.36262132 | U125: 0.709899501 | V125: 2.639937985 | W125: 1.642244603 | X125: 3.345532989 | Y125: 2.99863151 | BB125: Limited | BC125: 309.218256 | BD125: 319.908121 | BE125: 351.242592 | BF125: 635.744169 | BG125: 1937.828931 | BH125: 189.593017 | BI125: 362.853585 | BJ125: 419.153658 | BK125: 468.849061 | BL125: 402.766465 | BM125: 257.650069 | BN125: 251.803779 | BO125: 287.40442 | BP125: 357.684716 | BQ125: 556.183299 | BR125: 1493.163694 | BS125: 86.287035 | BT125: 379.36103 | BU125: 99.775928 | BV125: 436.454453 | BW125: 226.82303 | BX125: 430.468281 | BY125: 401.608618
B126: Unimproved | C126: =100-C124-C125-C127 -> 45.88332103 | D126: =100-D124-D125-D127 -> 40.90135591 | E126: =100-E124-E125-E127 -> 44.50621438 | F126: 49.87750444 | G126: 37.43487459 | H126: 43.84845232 | I126: 43.56685946 | J126: 42.35850141 | K126: 33.63265472 | L126: 13.178659 | M126: 46.77280295 | N126: 41.65611624 | O126: 41.79518922 | P126: 45.05876204 | Q126: 52.34678876 | R126: 58.91415142 | S126: 26.57827704 | T126: 25.95990668 | U126: 48.64796446 | V126: 71.66415525 | W126: 34.33094076 | X126: 22.45673004 | Y126: 35.12039952 | BB126: Unimproved | BC126: 9336.319702 | BD126: 8318.890274 | BE126: 9055.200685 | BF126: 10146.38383 | BG126: 7616.010205 | BH126: 1578.205153 | BI126: 1569.87703 | BJ126: 1521.893223 | BK126: 1213.128739 | BL126: 474.151193 | BM126: 7832.181564 | BN126: 6975.624515 | BO126: 6995.234266 | BP126: 7550.183545 | BQ126: 8762.325465 | BR126: 9563.100327 | BS126: 916.709486 | BT126: 2949.274219 | BU126: 6837.440782 | BV126: 11865.59898 | BW126: 4747.485808 | BX126: 2889.497729 | BY126: 4703.697359
B127: Open defecation | C127: 26.70723661 | D127: 27.19599423 | E127: 17.49743266 | F127: 16.21069825 | G127: 0.7076990573 | H127: 2.493527453 | I127: 0.5048871278 | J127: 0.1430087156 | K127: 0.01380284054 | L127: 0 | M127: 28.17240258 | N127: 26.48224835 | O127: 21.66640365 | P127: 18.00515152 | Q127: 12.30942767 | R127: 0.8637505395 | S127: 50.17823092 | T127: 27.60330916 | U127: 15.4753206 | V127: 3.114618084 | W127: 23.69328484 | X127: 22.08713019 | Y127: 31.08208831 | BB127: Open defecation | BC127: 5430.550836 | BD127: 5531.368995 | BE127: 3559.033144 | BF127: 3297.678349 | BG127: 143.812539 | BH127: 89.747703 | BI127: 18.133821 | BJ127: 5.138142 | BK127: 0.497868 | BL127: 0 | BM127: 4717.514414 | BN127: 4430.724792 | BO127: 3624.967919 | BP127: 3016.998083 | BQ127: 2058.721121 | BR127: 140.206264 | BS127: 1730.693837 | BT127: 3121.960825 | BU127: 2175.046569 | BV127: 515.496028 | BW127: 3274.255083 | BX127: 2841.941477 | BY127: 4162.84378
A128: Shared among Improved Sanitation | B128: Yes | C128: 5.554725772 | D128: 4.930271288 | E128: 4.546192645 | F128: 9.215629505 | G128: 15.4269524 | H128: 9.816993529 | I128: 18.10965121 | J128: 20.28958788 | K128: 19.58949292 | L128: 12.89380764 | M128: 6.141155135 | N128: 4.729087354 | O128: 4.703357795 | P128: 5.779246933 | Q128: 9.420920581 | R128: 22.86986579 | S128: 10.76314692 | T128: 7.241288089 | U128: 1.978719351 | V128: 10.46712763 | W128: 3.912362849 | X128: 6.0327549 | Y128: 8.8723439 | BA128: Shared among improved sanitation facilities | BB128: Yes | BC128: N/A | BD128: N/A | BE128: N/A | BF128: N/A | BG128: N/A | BH128: N/A | BI128: N/A | BJ128: N/A | BK128: N/A | BL128: N/A | BM128: N/A | BN128: N/A | BO128: N/A | BP128: N/A | BQ128: N/A | BR128: N/A | BS128: N/A | BT128: N/A | BU128: N/A | BV128: N/A | BW128: N/A | BX128: N/A | BY128: N/A
B129: No | C129: 94.44527423 | D129: 95.06972871 | E129: 95.45380735 | F129: 90.7843705 | G129: 84.5730476 | H129: 90.18300647 | I129: 81.89034879 | J129: 79.71041212 | K129: 80.41050708 | L129: 87.10619236 | M129: 93.85884487 | N129: 95.27091265 | O129: 95.29664221 | P129: 94.22075307 | Q129: 90.57907942 | R129: 77.13013421 | S129: 89.23685308 | T129: 92.75871191 | U129: 98.02128065 | V129: 89.53287237 | W129: 96.08763715 | X129: 93.9672451 | Y129: 91.1276561 | BB129: No | BC129: N/A | BD129: N/A | BE129: N/A | BF129: N/A | BG129: N/A | BH129: N/A | BI129: N/A | BJ129: N/A | BK129: N/A | BL129: N/A | BM129: N/A | BN129: N/A | BO129: N/A | BP129: N/A | BQ129: N/A | BR129: N/A | BS129: N/A | BT129: N/A | BU129: N/A | BV129: N/A | BW129: N/A | BX129: N/A | BY129: N/A
A130: Manually calculated ratios | B130: Improved latrines
B131: Other
B132: Other
C133: NATIONAL wealth index quintile | H133: URBAN wealth index quintile | M133: RURAL wealth index quintile | R133: SUB-REGIONS: | BA133: Raw numbers of respondents: | BB133: Use of sanitation facilities | BC133: NATIONAL wealth index quintile | BH133: URBAN wealth index quintile | BM133: RURAL wealth index quintile | BR133: SUB-REGIONS:
A134: Percentage based on weighted population | C134: Poorest | D134: Poor | E134: Middle | F134: Rich | G134: Richest | H134: Poorest | I134: Poor | J134: Middle | K134: Rich | L134: Richest | M134: Poorest | N134: Poor | O134: Middle | P134: Rich | Q134: Richest | R134: Region C | S134: Region CH | T134: Region E | U134: Region N | V134: Region NE | W134: Region S | X134: Region SE | Y134: Region W | BA134: Sanitation data, raw numbers (weighted) | BC134: Poorest | BD134: Poor | BE134: Middle | BF134: Rich | BG134: Richest | BH134: Poorest | BI134: Poor | BJ134: Middle | BK134: Rich | BL134: Richest | BM134: Poorest | BN134: Poor | BO134: Middle | BP134: Rich | BQ134: Richest | BR134: Region C | BS134: Region CH | BT134: Region E | BU134: Region N | BV134: Region NE | BW134: Region S | BX134: Region SE | BY134: Region W
A135: Sanitation type | B135: Sewer connection | C135: 2.339182103 | D135: 2.31120284 | E135: 1.961931905 | F135: 1.808512872 | G135: 4.625001824 | H135: 5.399524576 | I135: 3.915887663 | J135: 3.153731279 | K135: 4.42219226 | L135: 5.738047429 | M135: 0.8329191804 | N135: 3.967178127 | O135: 2.168729779 | P135: 1.622950453 | Q135: 2.394345289 | R135: 1.2183952 | S135: 0.07502215856 | T135: 4.414358686 | U135: 0.2140647794 | V135: 0.5971854958 | W135: 11.18305296 | X135: 0.6121519009 | Y135: 1.488901595 | BA135: Sanitation type | BB135: Sewer connection | BC135: N/A | BD135: N/A | BE135: N/A | BF135: N/A | BG135: N/A | BH135: N/A | BI135: N/A | BJ135: N/A | BK135: N/A | BL135: N/A | BM135: N/A | BN135: N/A | BO135: N/A | BP135: N/A | BQ135: N/A | BR135: N/A | BS135: N/A | BT135: N/A | BU135: N/A | BV135: N/A | BW135: N/A | BX135: N/A | BY135: N/A
B136: Septic tank connection | C136: 0.8358893396 | D136: 0.5782360149 | E136: 1.396909608 | F136: 1.093249254 | G136: 20.53480727 | H136: 8.931014439 | I136: 14.71760603 | J136: 19.00964268 | K136: 25.30256745 | L136: 45.83171285 | M136: 0.3247631849 | N136: 0.5856323482 | O136: 0.8830970915 | P136: 1.636476794 | Q136: 1.799046882 | R136: 12.18560499 | S136: 0.3699132235 | T136: 4.746311659 | U136: 2.815102747 | V136: 5.87899618 | W136: 3.963986109 | X136: 0.333356978 | Y136: 3.607843703 | BB136: Septic tank connection | BC136: N/A | BD136: N/A | BE136: N/A | BF136: N/A | BG136: N/A | BH136: N/A | BI136: N/A | BJ136: N/A | BK136: N/A | BL136: N/A | BM136: N/A | BN136: N/A | BO136: N/A | BP136: N/A | BQ136: N/A | BR136: N/A | BS136: N/A | BT136: N/A | BU136: N/A | BV136: N/A | BW136: N/A | BX136: N/A | BY136: N/A
B137: Improved latrines | C137: 24.23437092 | D137: 29.013211 | E137: 34.63751144 | F137: 31.01003518 | G137: 36.69761726 | H137: 39.32748121 | I137: 37.29475972 | J137: 35.33511592 | K137: 36.62878273 | L137: 35.25158072 | M137: 23.89711211 | N137: 27.30882494 | O137: 33.48658026 | P137: 33.6766592 | Q137: 31.1503914 | R137: 26.81809785 | S137: 22.79855666 | T137: 37.27611381 | U137: 32.84754742 | V137: 18.74504499 | W137: 26.82873533 | X137: 54.5106309 | Y137: 28.70076688 | BB137: Improved latrines | BC137: N/A | BD137: N/A | BE137: N/A | BF137: N/A | BG137: N/A | BH137: N/A | BI137: N/A | BJ137: N/A | BK137: N/A | BL137: N/A | BM137: N/A | BN137: N/A | BO137: N/A | BP137: N/A | BQ137: N/A | BR137: N/A | BS137: N/A | BT137: N/A | BU137: N/A | BV137: N/A | BW137: N/A | BX137: N/A | BY137: N/A
B138: Unimproved facilities | C138: 45.89521197 | D138: 40.90135591 | E138: 44.50967651 | F138: 49.87750444 | G138: 37.43567859 | H138: 43.84845232 | I138: 43.56848229 | J138: 42.35850141 | K138: 33.63265472 | L138: 13.178659 | M138: 46.77280295 | N138: 41.67044456 | O138: 41.8004009 | P138: 45.05876204 | Q138: 52.35526963 | R138: 58.91415142 | S138: 26.57827704 | T138: 26.01984776 | U138: 48.64796446 | V138: 71.66530392 | W138: 34.34032479 | X138: 22.45673004 | Y138: 35.12039952 | BB138: Unimproved facilities | BC138: N/A | BD138: N/A | BE138: N/A | BF138: N/A | BG138: N/A | BH138: N/A | BI138: N/A | BJ138: N/A | BK138: N/A | BL138: N/A | BM138: N/A | BN138: N/A | BO138: N/A | BP138: N/A | BQ138: N/A | BR138: N/A | BS138: N/A | BT138: N/A | BU138: N/A | BV138: N/A | BW138: N/A | BX138: N/A | BY138: N/A
B139: Open defecation | C139: 26.69534567 | D139: 27.19599423 | E139: 17.49397053 | F139: 16.21069825 | G139: 0.7068950595 | H139: 2.493527453 | I139: 0.5032642965 | J139: 0.1430087156 | K139: 0.01380284054 | L139: 0 | M139: 28.17240258 | N139: 26.46792003 | O139: 21.66119196 | P139: 18.00515152 | Q139: 12.3009468 | R139: 0.8637505395 | S139: 50.17823092 | T139: 27.54336808 | U139: 15.4753206 | V139: 3.113469414 | W139: 23.68390081 | X139: 22.08713019 | Y139: 31.08208831 | BB139: Open defecation | BC139: N/A | BD139: N/A | BE139: N/A | BF139: N/A | BG139: N/A | BH139: N/A | BI139: N/A | BJ139: N/A | BK139: N/A | BL139: N/A | BM139: N/A | BN139: N/A | BO139: N/A | BP139: N/A | BQ139: N/A | BR139: N/A | BS139: N/A | BT139: N/A | BU139: N/A | BV139: N/A | BW139: N/A | BX139: N/A | BY139: N/A
A140: Septic tank emptying practices | B140: Not emptied/treated and disposed in situ | C140: N/A | D140: N/A | E140: N/A | F140: N/A | G140: N/A | H140: N/A | I140: N/A | J140: N/A | K140: N/A | L140: N/A | M140: N/A | N140: N/A | O140: N/A | P140: N/A | Q140: N/A | R140: N/A | S140: N/A | T140: N/A | U140: N/A | V140: N/A | W140: N/A | X140: N/A | Y140: N/A | BA140: Septic tank emptying practices | BB140: Not emptied/treated and disposed in situ | BC140: N/A | BD140: N/A | BE140: N/A | BF140: N/A | BG140: N/A | BH140: N/A | BI140: N/A | BJ140: N/A | BK140: N/A | BL140: N/A | BM140: N/A | BN140: N/A | BO140: N/A | BP140: N/A | BQ140: N/A | BR140: N/A | BS140: N/A | BT140: N/A | BU140: N/A | BV140: N/A | BW140: N/A | BX140: N/A | BY140: N/A
B141: Emptied and buried on site | C141: N/A | D141: N/A | E141: N/A | F141: N/A | G141: N/A | H141: N/A | I141: N/A | J141: N/A | K141: N/A | L141: N/A | M141: N/A | N141: N/A | O141: N/A | P141: N/A | Q141: N/A | R141: N/A | S141: N/A | T141: N/A | U141: N/A | V141: N/A | W141: N/A | X141: N/A | Y141: N/A | BB141: Emptied and buried on site | BC141: N/A | BD141: N/A | BE141: N/A | BF141: N/A | BG141: N/A | BH141: N/A | BI141: N/A | BJ141: N/A | BK141: N/A | BL141: N/A | BM141: N/A | BN141: N/A | BO141: N/A | BP141: N/A | BQ141: N/A | BR141: N/A | BS141: N/A | BT141: N/A | BU141: N/A | BV141: N/A | BW141: N/A | BX141: N/A | BY141: N/A
B142: Emptied and discharged locally | C142: N/A | D142: N/A | E142: N/A | F142: N/A | G142: N/A | H142: N/A | I142: N/A | J142: N/A | K142: N/A | L142: N/A | M142: N/A | N142: N/A | O142: N/A | P142: N/A | Q142: N/A | R142: N/A | S142: N/A | T142: N/A | U142: N/A | V142: N/A | W142: N/A | X142: N/A | Y142: N/A | BB142: Emptied and discharged locally | BC142: N/A | BD142: N/A | BE142: N/A | BF142: N/A | BG142: N/A | BH142: N/A | BI142: N/A | BJ142: N/A | BK142: N/A | BL142: N/A | BM142: N/A | BN142: N/A | BO142: N/A | BP142: N/A | BQ142: N/A | BR142: N/A | BS142: N/A | BT142: N/A | BU142: N/A | BV142: N/A | BW142: N/A | BX142: N/A | BY142: N/A
B143: Emptied and removed offsite | C143: N/A | D143: N/A | E143: N/A | F143: N/A | G143: N/A | H143: N/A | I143: N/A | J143: N/A | K143: N/A | L143: N/A | M143: N/A | N143: N/A | O143: N/A | P143: N/A | Q143: N/A | R143: N/A | S143: N/A | T143: N/A | U143: N/A | V143: N/A | W143: N/A | X143: N/A | Y143: N/A | BB143: Emptied and removed offsite | BC143: N/A | BD143: N/A | BE143: N/A | BF143: N/A | BG143: N/A | BH143: N/A | BI143: N/A | BJ143: N/A | BK143: N/A | BL143: N/A | BM143: N/A | BN143: N/A | BO143: N/A | BP143: N/A | BQ143: N/A | BR143: N/A | BS143: N/A | BT143: N/A | BU143: N/A | BV143: N/A | BW143: N/A | BX143: N/A | BY143: N/A
A144: Latrine emptying practices | B144: Not emptied/treated and disposed in situ | C144: N/A | D144: N/A | E144: N/A | F144: N/A | G144: N/A | H144: N/A | I144: N/A | J144: N/A | K144: N/A | L144: N/A | M144: N/A | N144: N/A | O144: N/A | P144: N/A | Q144: N/A | R144: N/A | S144: N/A | T144: N/A | U144: N/A | V144: N/A | W144: N/A | X144: N/A | Y144: N/A | BA144: Latrine emptying practices | BB144: Not emptied/treated and disposed in situ | BC144: N/A | BD144: N/A | BE144: N/A | BF144: N/A | BG144: N/A | BH144: N/A | BI144: N/A | BJ144: N/A | BK144: N/A | BL144: N/A | BM144: N/A | BN144: N/A | BO144: N/A | BP144: N/A | BQ144: N/A | BR144: N/A | BS144: N/A | BT144: N/A | BU144: N/A | BV144: N/A | BW144: N/A | BX144: N/A | BY144: N/A
B145: Emptied and buried on site | C145: N/A | D145: N/A | E145: N/A | F145: N/A | G145: N/A | H145: N/A | I145: N/A | J145: N/A | K145: N/A | L145: N/A | M145: N/A | N145: N/A | O145: N/A | P145: N/A | Q145: N/A | R145: N/A | S145: N/A | T145: N/A | U145: N/A | V145: N/A | W145: N/A | X145: N/A | Y145: N/A | BB145: Emptied and buried on site | BC145: N/A | BD145: N/A | BE145: N/A | BF145: N/A | BG145: N/A | BH145: N/A | BI145: N/A | BJ145: N/A | BK145: N/A | BL145: N/A | BM145: N/A | BN145: N/A | BO145: N/A | BP145: N/A | BQ145: N/A | BR145: N/A | BS145: N/A | BT145: N/A | BU145: N/A | BV145: N/A | BW145: N/A | BX145: N/A | BY145: N/A
B146: Emptied and discharged locally | C146: N/A | D146: N/A | E146: N/A | F146: N/A | G146: N/A | H146: N/A | I146: N/A | J146: N/A | K146: N/A | L146: N/A | M146: N/A | N146: N/A | O146: N/A | P146: N/A | Q146: N/A | R146: N/A | S146: N/A | T146: N/A | U146: N/A | V146: N/A | W146: N/A | X146: N/A | Y146: N/A | BB146: Emptied and discharged locally | BC146: N/A | BD146: N/A | BE146: N/A | BF146: N/A | BG146: N/A | BH146: N/A | BI146: N/A | BJ146: N/A | BK146: N/A | BL146: N/A | BM146: N/A | BN146: N/A | BO146: N/A | BP146: N/A | BQ146: N/A | BR146: N/A | BS146: N/A | BT146: N/A | BU146: N/A | BV146: N/A | BW146: N/A | BX146: N/A | BY146: N/A
B147: Emptied and removed offsite | C147: N/A | D147: N/A | E147: N/A | F147: N/A | G147: N/A | H147: N/A | I147: N/A | J147: N/A | K147: N/A | L147: N/A | M147: N/A | N147: N/A | O147: N/A | P147: N/A | Q147: N/A | R147: N/A | S147: N/A | T147: N/A | U147: N/A | V147: N/A | W147: N/A | X147: N/A | Y147: N/A | BB147: Emptied and removed offsite | BC147: N/A | BD147: N/A | BE147: N/A | BF147: N/A | BG147: N/A | BH147: N/A | BI147: N/A | BJ147: N/A | BK147: N/A | BL147: N/A | BM147: N/A | BN147: N/A | BO147: N/A | BP147: N/A | BQ147: N/A | BR147: N/A | BS147: N/A | BT147: N/A | BU147: N/A | BV147: N/A | BW147: N/A | BX147: N/A | BY147: N/A
A148: Shared among improved sanitation facilities | B148: Yes | C148: 1.520046213 | D148: 1.572887186 | E148: 1.72648787 | F148: 3.125185599 | G148: 9.525189577 | H148: 5.267604373 | I148: 10.07020275 | J148: 11.66620663 | K148: 12.9983225 | L148: 11.1945767 | M148: 1.538653798 | N148: 1.50420588 | O148: 1.717400664 | P148: 2.134627643 | Q148: 3.323219013 | R148: 9.198739839 | S148: 2.501731199 | T148: 3.346896733 | U148: 0.709899501 | V148: 2.636077712 | W148: 1.640695061 | X148: 3.345532989 | Y148: 2.99863151 | BA148: Shared among improved sanitation facilities | BB148: Yes | BC148: N/A | BD148: N/A | BE148: N/A | BF148: N/A | BG148: N/A | BH148: N/A | BI148: N/A | BJ148: N/A | BK148: N/A | BL148: N/A | BM148: N/A | BN148: N/A | BO148: N/A | BP148: N/A | BQ148: N/A | BR148: N/A | BS148: N/A | BT148: N/A | BU148: N/A | BV148: N/A | BW148: N/A | BX148: N/A | BY148: N/A
B149: No | C149: 25.84487287 | D149: 30.32976267 | E149: 36.25007857 | F149: 30.78661171 | G149: 52.21862948 | H149: 48.39041585 | I149: 45.53662609 | J149: 45.83228325 | K149: 53.35521994 | L149: 75.6267643 | M149: 23.51614068 | N149: 30.30332415 | O149: 34.79695226 | P149: 34.8014588 | Q149: 31.95166718 | R149: 31.0233582 | S149: 20.74176085 | T149: 42.87273562 | U149: 35.16681544 | V149: 22.54826899 | W149: 40.29547305 | X149: 52.11060678 | Y149: 30.79888066 | BB149: No | BC149: N/A | BD149: N/A | BE149: N/A | BF149: N/A | BG149: N/A | BH149: N/A | BI149: N/A | BJ149: N/A | BK149: N/A | BL149: N/A | BM149: N/A | BN149: N/A | BO149: N/A | BP149: N/A | BQ149: N/A | BR149: N/A | BS149: N/A | BT149: N/A | BU149: N/A | BV149: N/A | BW149: N/A | BX149: N/A | BY149: N/A
B150: DK/missing | C150: 72.63508092 | D150: 68.09735014 | E150: 62.02343356 | F150: 66.08820269 | G150: 38.25618094 | H150: 46.34197977 | I150: 44.39317115 | J150: 42.50151012 | K150: 33.64645756 | L150: 13.178659 | M150: 74.94520552 | N150: 68.19246997 | O150: 63.48564708 | P150: 63.06391356 | Q150: 64.72511381 | R150: 59.77790196 | S150: 76.75650796 | T150: 53.78036765 | U150: 64.12328506 | V150: 74.8156533 | W150: 58.06383189 | X150: 44.54386023 | Y150: 66.20248783 | BB150: DK/missing | BC150: N/A | BD150: N/A | BE150: N/A | BF150: N/A | BG150: N/A | BH150: N/A | BI150: N/A | BJ150: N/A | BK150: N/A | BL150: N/A | BM150: N/A | BN150: N/A | BO150: N/A | BP150: N/A | BQ150: N/A | BR150: N/A | BS150: N/A | BT150: N/A | BU150: N/A | BV150: N/A | BW150: N/A | BX150: N/A | BY150: N/A
A151: Shared among all sanitation facilities | B151: Yes | C151: 4.201167471 | D151: 4.295462351 | E151: 4.955809631 | F151: 8.102420916 | G151: 17.73276843 | H151: 12.86284312 | I151: 20.06004384 | J151: 23.82143392 | K151: 23.0047242 | L151: 14.1587286 | M151: 4.452673058 | N151: 4.058579826 | O151: 4.005193921 | P151: 5.843537025 | Q151: 9.184057343 | R151: 19.34699829 | S151: 7.191801 | T151: 5.291927651 | U151: 3.232439607 | V151: 9.375911067 | W151: 2.500481562 | X151: 4.42328247 | Y151: 8.082587636 | BA151: Shared among all sanitation facilities | BB151: Yes | BC151: N/A | BD151: N/A | BE151: N/A | BF151: N/A | BG151: N/A | BH151: N/A | BI151: N/A | BJ151: N/A | BK151: N/A | BL151: N/A | BM151: N/A | BN151: N/A | BO151: N/A | BP151: N/A | BQ151: N/A | BR151: N/A | BS151: N/A | BT151: N/A | BU151: N/A | BV151: N/A | BW151: N/A | BX151: N/A | BY151: N/A
B152: No | C152: 68.94940443 | D152: 68.20445217 | E152: 77.39505938 | F152: 75.29369004 | G152: 81.38337756 | H152: 84.60348331 | I152: 79.07564318 | J152: 76.03555737 | K152: 76.98147296 | L152: 85.8412714 | M152: 67.24182755 | N152: 69.21666929 | O152: 74.00542278 | P152: 76.07125499 | Q152: 77.96126466 | R152: 79.68685929 | S152: 42.62996808 | T152: 66.6208211 | U152: 81.10148995 | V152: 87.20485893 | W152: 73.40853917 | X152: 73.36135889 | Y152: 60.74373573 | BB152: No | BC152: N/A | BD152: N/A | BE152: N/A | BF152: N/A | BG152: N/A | BH152: N/A | BI152: N/A | BJ152: N/A | BK152: N/A | BL152: N/A | BM152: N/A | BN152: N/A | BO152: N/A | BP152: N/A | BQ152: N/A | BR152: N/A | BS152: N/A | BT152: N/A | BU152: N/A | BV152: N/A | BW152: N/A | BX152: N/A | BY152: N/A
A153: Type of toilet facility | B153: Flush to piped sewer system | C153: 2.339182103 | D153: 2.31120284 | E153: 1.961931905 | F153: 1.808512872 | G153: 4.625001824 | H153: 5.399524576 | I153: 3.915887663 | J153: 3.153731279 | K153: 4.42219226 | L153: 5.738047429 | M153: 0.8329191804 | N153: 3.967178127 | O153: 2.168729779 | P153: 1.622950453 | Q153: 2.394345289 | R153: 1.2183952 | S153: 0.07502215856 | T153: 4.414358686 | U153: 0.2140647794 | V153: 0.5971854958 | W153: 11.18305296 | X153: 0.6121519009 | Y153: 1.488901595 | BA153: Type of toilet facility | BB153: Flush to piped sewer system | BC153: 475.852513 | BD153: 470.073483 | BE153: 399.142131 | BF153: 367.898634 | BG153: 940.922201 | BH153: 194.341124 | BI153: 141.098835 | BJ153: 113.310011 | BK153: 159.508328 | BL153: 206.447563 | BM153: 139.473665 | BN153: 664.104866 | BO153: 362.933669 | BP153: 271.946526 | BQ153: 400.724375 | BR153: 197.77312 | BS153: 2.587584 | BT153: 500.354744 | BU153: 30.08667 | BV153: 98.875791 | BW153: 1546.036199 | BX153: 78.76532 | BY153: 199.409534
B154: Flush to septic tank | C154: 0.8358893396 | D154: 0.5782360149 | E154: 1.396909608 | F154: 1.093249254 | G154: 20.53480727 | H154: 8.931014439 | I154: 14.71760603 | J154: 19.00964268 | K154: 25.30256745 | L154: 45.83171285 | M154: 0.3247631849 | N154: 0.5856323482 | O154: 0.8830970915 | P154: 1.636476794 | Q154: 1.799046882 | R154: 12.18560499 | S154: 0.3699132235 | T154: 4.746311659 | U154: 2.815102747 | V154: 5.87899618 | W154: 3.963986109 | X154: 0.333356978 | Y154: 3.607843703 | BB154: Flush to septic tank | BC154: 170.042359 | BD154: 117.606907 | BE154: 284.192064 | BF154: 222.39538 | BG154: 4177.653715 | BH154: 321.447446 | BI154: 530.310684 | BJ154: 682.99504 | BK154: 912.662768 | BL154: 1648.966054 | BM154: 54.382121 | BN154: 98.034744 | BO154: 147.784971 | BP154: 274.213041 | BQ154: 301.093556 | BR154: 1977.999518 | BS154: 12.758651 | BT154: 537.98065 | BU154: 395.660919 | BV154: 973.383315 | BW154: 548.013681 | BX154: 42.892898 | BY154: 483.200793
B155: Flush to pit (latrine) | C155: 0.7798232185 | D155: 1.102901614 | E155: 1.639192581 | F155: 1.837161346 | G155: 10.17153373 | H155: 10.45101649 | I155: 9.855734033 | J155: 9.057331379 | K155: 11.6097472 | L155: 10.49296453 | M155: 0.6648682101 | N155: 0.8810227247 | O155: 1.332772185 | P155: 1.524802925 | Q155: 3.400667518 | R155: 2.119685803 | S155: 0.1010552637 | T155: 4.159452008 | U155: 2.598485341 | V155: 3.00606765 | W155: 4.04545144 | X155: 0.733730922 | Y155: 6.151342236 | BB155: Flush to pit (latrine) | BC155: 158.637003 | BD155: 224.318175 | BE155: 333.48294 | BF155: 373.72648 | BG155: 2069.322839 | BH155: 376.155764 | BI155: 355.125762 | BJ155: 325.41971 | BK155: 418.763196 | BL155: 377.523362 | BM155: 111.333258 | BN155: 147.483037 | BO155: 223.037422 | BP155: 255.500627 | BQ155: 569.145299 | BR155: 344.072986 | BS155: 3.48549 | BT155: 471.461812 | BU155: 365.215479 | BV155: 497.713556 | BW155: 559.276111 | BX155: 94.40884 | BY155: 823.853163
B156: Flush to somewhere else | C156: 1.358995843 | D156: 1.122748297 | E156: 1.117542372 | F156: 1.240958359 | G156: 1.137462808 | H156: 2.101862865 | I156: 1.486506709 | J156: 1.493261946 | K156: 0.8138253679 | L156: 0.5142287851 | M156: 1.417007294 | N156: 1.209328581 | O156: 1.390606304 | P156: 0.8063181168 | Q156: 1.062078107 | R156: 0.4207583113 | S156: 2.870186966 | T156: 0.6141845586 | U156: 0.3514089876 | V156: 0.3860180029 | W156: 4.415507394 | X156: 0.7965754329 | Y156: 1.141452063 | BB156: Flush to somewhere else | BC156: 276.456282 | BD156: 228.354774 | BE156: 227.356639 | BF156: 252.44326 | BG156: 231.408343 | BH156: 75.650807 | BI156: 53.562406 | BJ156: 53.651219 | BK156: 29.354654 | BL156: 18.50129 | BM156: 237.280165 | BN156: 202.441375 | BO156: 232.715875 | BP156: 135.109122 | BQ156: 177.752385 | BR156: 68.298598 | BS156: 98.995417 | BT156: 69.616037 | BU156: 49.390312 | BV156: 63.912864 | BW156: 610.435656 | BX156: 102.495016 | BY156: 152.875398
B157: Flush to unknown place / Not sure / DK where | C157: 0.082783972 | D157: 0.1238609103 | E157: 0.05401128803 | F157: 0.1659516892 | G157: 0.1257519335 | H157: 0.1242143526 | I157: 0.2253134054 | J157: 0 | K157: 0 | L157: 0.3611567738 | M157: 0.1005692577 | N157: 0.06196637846 | O157: 0.15421137 | P157: 0 | Q157: 0.2017108543 | R157: 0.1594156965 | S157: 0 | T157: 0 | U157: 0 | V157: 0 | W157: 0.4762835439 | X157: 0.0853989118 | Y157: 0.07207126362 | BB157: Flush to unknown place / Not sure / DK where | BC157: 16.840485 | BD157: 25.19196 | BE157: 10.988241 | BF157: 33.758897 | BG157: 25.583295 | BH157: 4.470756 | BI157: 8.118583 | BJ157: 0 | BK157: 0 | BL157: 12.993956 | BM157: 16.840485 | BN157: 10.37316 | BO157: 25.807041 | BP157: 0 | BQ157: 33.758897 | BR157: 25.876776 | BS157: 0 | BT157: 0 | BU157: 0 | BV157: 0 | BW157: 65.845311 | BX157: 10.988241 | BY157: 9.65255
B158: Ventilated Improved Pit latrine (VIP) | C158: 1.158181819 | D158: 4.426250491 | E158: 7.353849159 | F158: 5.563438071 | G158: 3.831884987 | H158: 2.562956008 | I158: 3.535092446 | J158: 2.185498658 | K158: 3.879656163 | L158: 8.45711093 | M158: 0.9733425229 | N158: 4.079056319 | O158: 6.882354992 | P158: 7.245086082 | Q158: 3.521223339 | R158: 2.80787941 | S158: 0.2107915343 | T158: 3.770854841 | U158: 0.6498315265 | V158: 0.2839068827 | W158: 4.554117323 | X158: 20.95637211 | Y158: 1.406786647 | BB158: Ventilated Improved Pit latrine (VIP) | BC158: 235.605312 | BD158: 900.251137 | BE158: 1496.092202 | BF158: 1131.748244 | BG158: 779.568483 | BH158: 92.246594 | BI158: 127.377869 | BJ158: 78.522504 | BK158: 139.939069 | BL158: 304.275969 | BM158: 162.987781 | BN158: 682.833254 | BO158: 1151.751764 | BP158: 1214.008713 | BQ158: 589.321861 | BR158: 455.782386 | BS158: 7.270396 | BT158: 427.415451 | BU158: 91.333412 | BV158: 47.006362 | BW158: 629.59822 | BX158: 2696.447324 | BY158: 188.411827
B159: Pit latrine with slab | C159: 12.16615203 | D159: 13.58993727 | E159: 15.97032517 | F159: 15.76577496 | G159: 18.63244936 | H159: 20.85273995 | I159: 19.79241704 | J159: 19.43479673 | K159: 17.89489474 | L159: 13.19466463 | M159: 11.50789828 | N159: 13.4495367 | O159: 14.1313628 | P159: 16.03025873 | Q159: 17.77126393 | R159: 17.20924189 | S159: 5.871327898 | T159: 24.40521336 | U159: 26.92762613 | V159: 9.137348498 | W159: 6.251792908 | X159: 7.911490814 | Y159: 18.99352751 | BB159: Pit latrine with slab | BC159: 2474.922328 | BD159: 2764.045212 | BE159: 3249.057525 | BF159: 3207.169361 | BG159: 3790.633155 | BH159: 750.53736 | BI159: 713.16831 | BJ159: 698.270346 | BK159: 645.468259 | BL159: 474.727055 | BM159: 1927.016195 | BN159: 2251.449892 | BO159: 2364.862326 | BP159: 2686.079026 | BQ159: 2974.248812 | BR159: 2793.449499 | BS159: 202.507558 | BT159: 2766.260096 | BU159: 3784.660903 | BV159: 1512.867554 | BW159: 864.298701 | BX159: 1017.968097 | BY159: 2543.815173
B160: Pit latrine without slab / Open pit | C160: 21.00679159 | D160: 17.84209728 | E160: 18.35602446 | F160: 20.88034596 | G160: 20.25893843 | H160: 18.48176208 | I160: 18.38152858 | J160: 26.58232513 | K160: 23.82919989 | L160: 8.694693524 | M160: 21.5618116 | N160: 17.90340818 | O160: 17.89638841 | P160: 18.8829657 | Q160: 22.61092665 | R160: 31.92208444 | S160: 12.55725677 | T160: 15.31764578 | U160: 12.17589367 | V160: 23.38190553 | W160: 21.02700083 | X160: 13.14725017 | Y160: 18.46882612 | BB160: Pit latrine without slab / Open pit | BC160: 4273.346037 | BD160: 3628.888241 | BE160: 3734.412342 | BF160: 4247.60635 | BG160: 4121.530253 | BH160: 665.200494 | BI160: 662.330611 | BJ160: 955.072987 | BK160: 859.518449 | BL160: 312.823885 | BM160: 3610.560254 | BN160: 2997.027133 | BO160: 2994.933703 | BP160: 3164.087304 | BQ160: 3784.228403 | BR160: 5181.676877 | BS160: 433.111461 | BT160: 1736.210688 | BU160: 1711.314191 | BV160: 3871.333816 | BW160: 2906.94362 | BX160: 1691.650986 | BY160: 2473.541584
B161: Composting toilet | C161: 1.876252165 | D161: 1.476286526 | E161: 0.4813881195 | F161: 1.000527896 | G161: 0.5126070136 | H161: 1.209770015 | I161: 0.3082036349 | J161: 0.845525878 | K161: 0.2460531791 | L161: 0 | M161: 1.585330139 | N161: 2.033237244 | O161: 0.694103969 | P161: 0.5753610218 | Q161: 1.04800908 | R161: 0.05917678683 | S161: 13.75872427 | T161: 0.5302120951 | U161: 2.063319671 | V161: 0.08770286325 | W161: 0 | X161: 0.4537724217 | Y161: 1.347971268 | BB161: Composting toilet | BC161: 381.680121 | BD161: 300.260599 | BE161: 97.935244 | BF161: 203.53344 | BG161: 104.286082 | BH161: 43.542364 | BI161: 11.105317 | BJ161: 30.378792 | BK161: 8.87513 | BL161: 0 | BM161: 265.466098 | BN161: 340.363529 | BO161: 116.157256 | BP161: 96.409247 | BQ161: 175.397753 | BR161: 9.605732 | BS161: 474.551192 | BT161: 60.098002 | BU161: 289.998281 | BV161: 14.520932 | BW161: 0 | BX161: 58.386701 | BY161: 180.534646
B162: Bucket | C162: 1.192846781 | D162: 0.7351294365 | E162: 1.054076799 | F162: 2.123420698 | G162: 0.6258920817 | H162: 1.723953731 | I162: 0.7669259095 | J162: 0.6462921872 | K162: 0.4048327264 | L162: 0.1926936618 | M162: 1.186559787 | N162: 0.935368312 | O162: 0.9462601625 | P162: 1.695504486 | Q162: 1.396616786 | R162: 0.02624994343 | S162: 0.02723237695 | T162: 0.3628602402 | U162: 1.394212463 | V162: 0.05066325389 | W162: 0.1439610321 | X162: 0.03463426594 | Y162: 6.651797794 | BB162: Bucket | BC162: 242.657097 | BD162: 149.51732 | BE162: 214.444986 | BF162: 431.95909 | BG162: 127.333086 | BH162: 62.049001 | BI162: 27.634182 | BJ162: 23.22055 | BK162: 14.602303 | BL162: 6.93287 | BM162: 198.691357 | BN162: 156.580478 | BO162: 158.355216 | BP162: 284.103901 | BQ162: 233.741721 | BR162: 4.26096 | BS162: 0.93927 | BT162: 41.129155 | BU162: 195.955684 | BV162: 8.388297 | BW162: 19.902344 | BX162: 4.456376 | BY162: 890.879493
B163: Double vault | C163: 7.753993695 | D163: 7.968149405 | E163: 8.007415098 | F163: 6.405771224 | G163: 1.000761376 | H163: 1.657275156 | I163: 0.8236002897 | J163: 0.5795333164 | K163: 0.5236998998 | L163: 0.3375188801 | M163: 8.649133949 | N163: 6.579522103 | O163: 9.560850551 | P163: 7.270139189 | Q163: 4.927355118 | R163: 1.921898761 | S163: 2.727900602 | T163: 4.363971502 | U163: 0.4618731038 | V163: 6.164869353 | W163: 10.4837752 | X163: 21.95332797 | Y163: 0.5476107522 | BB163: Double vault | BC163: 1577.370732 | BD163: 1620.634796 | BE163: 1629.05589 | BF163: 1303.100752 | BG163: 203.597454 | BH163: 59.649088 | BI163: 29.676296 | BJ163: 20.821979 | BK163: 18.889838 | BL163: 12.143495 | BM163: 1448.31148 | BN163: 1101.410752 | BO163: 1599.99397 | BP163: 1218.206688 | BQ163: 824.656038 | BR163: 311.967672 | BS163: 94.087828 | BT163: 494.643503 | BU163: 64.915974 | BV163: 1020.715235 | BW163: 1449.362354 | BX163: 2824.725203 | BY163: 73.341855
B164: Eco sanitation | C164: 0.4171840206 | D164: 0.3258247888 | E164: 1.131330029 | F164: 0.2714100007 | G164: 2.422628861 | H164: 2.469509238 | I164: 2.754398872 | J164: 3.232429962 | K164: 2.474731554 | L164: 2.408164973 | M164: 0.4159697502 | N164: 0.2244834682 | O164: 0.7309243953 | P164: 1.031011253 | Q164: 0.2801615589 | R164: 2.540799499 | S164: 0.1287570974 | T164: 0.04641001066 | U164: 0.1464116411 | V164: 0.06514974379 | W164: 1.01731492 | X164: 2.416537751 | Y164: 0.1814572018 | BB164: Eco sanitation | BC164: 84.866443 | BD164: 66.269213 | BE164: 230.161647 | BF164: 55.211865 | BG164: 492.865812 | BH164: 88.883233 | BI164: 99.247605 | BJ164: 116.137566 | BK164: 89.263485 | BL164: 86.642677 | BM164: 69.654808 | BN164: 37.57849 | BO164: 122.319099 | BP164: 172.759389 | BQ164: 46.888628 | BR164: 412.429271 | BS164: 4.440952 | BT164: 5.26044 | BU164: 20.578064 | BV164: 10.78682 | BW164: 140.641889 | BX164: 310.934866 | BY164: 24.302678
B165: Single vault | C165: 20.94486344 | D165: 20.03624259 | E165: 23.03756989 | F165: 24.70178994 | G165: 14.98226396 | H165: 20.91356357 | I165: 22.8511187 | J165: 13.37526856 | K165: 8.277623089 | L165: 3.777043028 | M165: 21.22933899 | N165: 20.35472953 | O165: 20.43812539 | P165: 22.87347675 | Q165: 26.22640441 | R165: 26.46107266 | S165: 10.73219721 | T165: 8.966802125 | U165: 31.14248996 | V165: 47.01750161 | W165: 8.540004682 | X165: 7.679725395 | Y165: 8.089939606 | BB165: Single vault | BC165: 4260.748187 | BD165: 4075.153498 | BE165: 4686.84194 | BF165: 5024.987613 | BG165: 3048.030101 | BH165: 752.72654 | BI165: 823.380675 | BJ165: 480.558327 | BK165: 298.57359 | BL165: 135.893148 | BM165: 3554.887178 | BN165: 3407.377863 | BO165: 3420.289566 | BP165: 3832.749502 | BQ165: 4389.32495 | BR165: 4295.231053 | BS165: 370.16346 | BT165: 1016.360994 | BU165: 4377.05736 | BV165: 7784.671086 | BW165: 1180.639708 | BX165: 988.146941 | BY165: 1083.490737
B166: No facility, Bush, Field | C166: 26.69534567 | D166: 27.19599423 | E166: 17.49397053 | F166: 16.21069825 | G166: 0.7068950595 | H166: 2.493527453 | I166: 0.5032642965 | J166: 0.1430087156 | K166: 0.01380284054 | L166: 0 | M166: 28.17240258 | N166: 26.46792003 | O166: 21.66119196 | P166: 18.00515152 | Q166: 12.3009468 | R166: 0.8637505395 | S166: 50.17823092 | T166: 27.54336808 | U166: 15.4753206 | V166: 3.113469414 | W166: 23.68390081 | X166: 22.08713019 | Y166: 31.08208831 | BB166: No facility, Bush, Field | BC166: 5430.550836 | BD166: 5531.368995 | BE166: 3559.033144 | BF166: 3297.678349 | BG166: 143.812539 | BH166: 89.747703 | BI166: 18.133821 | BJ166: 5.138142 | BK166: 0.497868 | BL166: 0 | BM166: 4717.514414 | BN166: 4430.724792 | BO166: 3624.967919 | BP166: 3016.998083 | BQ166: 2058.721121 | BR166: 140.206264 | BS166: 1730.693837 | BT166: 3121.960825 | BU166: 2175.046569 | BV166: 515.496028 | BW166: 3274.255083 | BX166: 2841.941477 | BY166: 4162.84378
B167: Other | C167: 1.391714317 | D167: 0.9036699076 | E167: 0.7920722099 | F167: 0.8154875648 | G167: 0.4240188136 | H167: 0.5871639504 | I167: 0.08240239084 | J167: 0.2613535906 | K167: 0.3071736401 | L167: 0 | M167: 1.378085275 | N167: 1.116670805 | O167: 0.7769676293 | P167: 0.7210265439 | Q167: 0.9984190034 | R167: 0.08398606243 | S167: 0.2860079469 | T167: 0.7380089557 | U167: 3.583959381 | V167: 0.5658338796 | W167: 0 | X167: 0.7362709943 | Y167: 0.6041408589 | BB167: Other | BC167: 283.112099 | BD167: 183.796616 | BE167: 161.141877 | BF167: 165.891416 | BG167: 86.263472 | BH167: 21.133361 | BI167: 2.969156 | BJ167: 9.39014 | BK167: 11.079743 | BL167: 0 | BM167: 230.76261 | BN167: 186.930481 | BO167: 130.024365 | BP167: 120.817406 | BQ167: 167.098218 | BR167: 13.632839 | BS167: 9.86468 | BT167: 83.651173 | BU167: 503.723235 | BV167: 93.684915 | BW167: 0 | BX167: 94.73567 | BY167: 80.912968
B168: Missing | C168: 0 | D168: 0.2614684024 | E168: 0.1523907799 | F168: 0.115501912 | G168: 0.007102496231 | H168: 0.04014612489 | I168: 0 | J168: 0 | K168: 0 | L168: 0 | M168: 0 | N168: 0.1509391495 | O168: 0.3520530034 | P168: 0.07947044466 | Q168: 0.06082466894 | R168: 0 | S168: 0.1053957672 | T168: 0.02034610548 | U168: 0 | V168: 0.263381641 | W168: 0.2138508437 | X168: 0.06227377763 | Y168: 0.1642430743 | BB168: Missing | BC168: 0 | BD168: 53.179825 | BE168: 31.002901 | BF168: 23.496098 | BG168: 1.44495 | BH168: 1.44495 | BI168: 0 | BJ168: 0 | BK168: 0 | BL168: 0 | BM168: 0 | BN168: 25.267185 | BO168: 58.915541 | BP168: 13.31631 | BQ168: 10.179788 | BR168: 0 | BS168: 3.635198 | BT168: 2.306172 | BU168: 0 | BV168: 43.608005 | BW168: 29.56448 | BX168: 8.01274 | BY168: 21.997179
BB169: Total | BC169: 20342.68783 | BD169: 20338.91075 | BE169: 20344.34171 | BF169: 20342.60523 | BG169: 20344.25578 | BH169: 3599.226585 | BI169: 3603.240112 | BJ169: 3592.887313 | BK169: 3606.99668 | BL169: 3597.871324 | BM169: 16745.16187 | BN169: 16739.98103 | BO169: 16734.8497 | BP169: 16756.30488 | BQ169: 16736.2818 | BR169: 16232.26355 | BS169: 3449.092974 | BT169: 11334.70974 | BU169: 14054.93705 | BV169: 16556.96458 | BW169: 13824.81336 | BX169: 12866.9567 | BY169: 13393.06336
A208: =A1026 -> Afghanistan
A209: =A1034 -> 2011
A210: Access to hygiene facilities
A211: by wealth quintile and sub-national region
A212: Notes:
A213: WHO/UNICEF JMP customised wealth index excludes water,
A214: sanitation and hygiene assets.
A215: Survey used for analysis: | B215: =A1025 -> MICS11
A220: Access to handwashing | C220: NATIONAL wealth index quintile | H220: URBAN wealth index quintile | M220: RURAL wealth index quintile | R220: SUB-REGIONS: | BA220: Raw numbers of respondents: | BB220: Access to handwashing | BC220: NATIONAL wealth index quintile | BH220: URBAN wealth index quintile | BM220: RURAL wealth index quintile | BR220: SUB-REGIONS:
A221: Weighted percentage (used in graphs) | C221: Poorest | D221: Poor | E221: Middle | F221: Rich | G221: Richest | H221: Poorest | I221: Poor | J221: Middle | K221: Rich | L221: Richest | M221: Poorest | N221: Poor | O221: Middle | P221: Rich | Q221: Richest | R221: Region C | S221: Region CH | T221: Region E | U221: Region N | V221: Region NE | W221: Region S | X221: Region SE | Y221: Region W | BA221: Hygiene data, raw numbers (weighted) | BC221: Poorest | BD221: Poor | BE221: Middle | BF221: Rich | BG221: Richest | BH221: Poorest | BI221: Poor | BJ221: Middle | BK221: Rich | BL221: Richest | BM221: Poorest | BN221: Poor | BO221: Middle | BP221: Rich | BQ221: Richest | BR221: Region C | BS221: Region CH | BT221: Region E | BU221: Region N | BV221: Region NE | BW221: Region S | BX221: Region SE | BY221: Region W
A222: Hygiene ladder | B222: Basic | C222: 34.95646985 | D222: 33.49563864 | E222: 39.48158395 | F222: 42.24398955 | G222: 68.81960416 | H222: 52.8360919 | I222: 61.79200652 | J222: 68.15881214 | K222: 76.00871519 | L222: 89.3308775 | M222: 34.88994456 | N222: 32.81561148 | O222: 37.96368227 | P222: 38.95748977 | Q222: 46.62984155 | R222: 63.15620831 | S222: 6.270177767 | T222: 42.42434919 | U222: 38.10949533 | V222: 33.59197502 | W222: 47.96586337 | X222: 48.56938246 | Y222: 42.5641804 | BA222: Hygiene ladder | BB222: Basic | BC222: 6668.776489 | BD222: 6360.877949 | BE222: 7702.231745 | BF222: 8213.199228 | BG222: 13699.32774 | BH222: 1829.678347 | BI222: 2145.775278 | BJ222: 2395.560678 | BK222: 2703.847433 | BL222: 3169.08514 | BM222: 5482.982844 | BN222: 5112.873997 | BO222: 6006.387887 | BP222: 6301.084431 | BQ222: 7497.137115 | BR222: 10023.54249 | BS222: 214.180542 | BT222: 4467.041494 | BU222: 5070.59115 | BV222: 5350.154491 | BW222: 6160.402624 | BX222: 5690.616491 | BY222: 5667.883869
B223: Limited | C223: 16.18717833 | D223: 21.16798085 | E223: 24.90327366 | F223: 19.12723368 | G223: 15.48322576 | H223: 20.1882061 | I223: 18.12503358 | J223: 18.28174779 | K223: 11.59979247 | L223: 6.808502425 | M223: 15.80975378 | N223: 20.66664334 | O223: 24.37965361 | P223: 23.00478268 | Q223: 17.78365307 | R223: 26.85528288 | S223: 9.244984064 | T223: 29.52734859 | U223: 11.79764438 | V223: 5.991255402 | W223: 29.07551747 | X223: 23.81259093 | Y223: 15.25814633 | BB223: Limited | BC223: 3088.08855 | BD223: 4019.835062 | BE223: 4858.234288 | BF223: 3718.772364 | BG223: 3082.112819 | BH223: 699.104007 | BI223: 629.405827 | BJ223: 642.544005 | BK223: 412.637801 | BL223: 241.537131 | BM223: 2484.51552 | BN223: 3219.990077 | BO223: 3857.203712 | BP223: 3720.852622 | BQ223: 2859.252381 | BR223: 4262.210735 | BS223: 315.795783 | BT223: 3109.061044 | BU223: 1569.714599 | BV223: 954.220226 | BW223: 3734.257689 | BX223: 2789.994761 | BY223: 2031.788246
B224: No facility | C224: 48.85635182 | D224: 45.3363805 | E224: 35.61514239 | F224: 38.62877677 | G224: 15.69717008 | H224: 26.97570201 | I224: 20.08295991 | J224: 13.55944007 | K224: 12.39149234 | L224: 3.860620073 | M224: 49.30030166 | N224: 46.51774518 | O224: 37.65666412 | P224: 38.03772755 | Q224: 35.58650538 | R224: 9.98850881 | S224: 84.48483817 | T224: 28.04830222 | U224: 50.09286029 | V224: 60.41676958 | W224: 22.95861916 | X224: 27.61802661 | Y224: 42.17767327 | BB224: No facility | BC224: 9320.508958 | BD224: 8609.454685 | BE224: 6947.95023 | BF224: 7510.319051 | BG224: 3124.700878 | BH224: 934.150428 | BI224: 697.396335 | BJ224: 476.57024 | BK224: 440.80083 | BL224: 136.95862 | BM224: 7747.582049 | BN224: 7247.750658 | BO224: 5957.813303 | BP224: 6152.319727 | BQ224: 5721.591612 | BR224: 1585.279502 | BS224: 2885.884436 | BT224: 2953.325914 | BU224: 6665.01647 | BV224: 9622.508081 | BW224: 2948.645719 | BX224: 3235.857442 | BY224: 5616.416238
A225: Place where household members most often wash their hands | B225: Observed | C225: 47.96251665 | D225: 51.03868707 | E225: 61.73935834 | F225: 58.65508109 | G225: 82.48736518 | H225: 70.25904856 | I225: 77.01904449 | J225: 84.55886362 | K225: 86.4011118 | L225: 94.79556004 | M225: 47.58089785 | N225: 49.77821694 | O225: 58.94042536 | P225: 59.80994689 | Q225: 61.87987043 | R225: 88.00838638 | S225: 15.36567234 | T225: 66.83984602 | U225: 47.245361 | V225: 38.07687507 | W225: 71.57174609 | X225: 65.91000073 | Y225: 57.48999993 | BA225: Observed handwashing place | BB225: Fixed | BC225: N/A | BD225: N/A | BE225: N/A | BF225: N/A | BG225: N/A | BH225: N/A | BI225: N/A | BJ225: N/A | BK225: N/A | BL225: N/A | BM225: N/A | BN225: N/A | BO225: N/A | BP225: N/A | BQ225: N/A | BR225: N/A | BS225: N/A | BT225: N/A | BU225: N/A | BV225: N/A | BW225: N/A | BX225: N/A | BY225: N/A
B226: Not in dwelling/plot/yard | C226: 42.99450995 | D226: 38.69807449 | E226: 30.77255584 | F226: 33.87486859 | G226: 14.66245993 | H226: 25.01835196 | I226: 17.81615566 | J226: 13.03040439 | K226: 12.03961064 | L226: 3.806656983 | M226: 43.43376677 | N226: 39.46976069 | O226: 32.28856216 | P226: 33.24437135 | Q226: 31.75975736 | R226: 9.560020623 | S226: 82.66758167 | T226: 24.87675844 | U226: 47.16763109 | V226: 57.86214024 | W226: 20.27754758 | X226: 6.989505998 | Y226: 41.93526222 | BB226: Mobile | BC226: N/A | BD226: N/A | BE226: N/A | BF226: N/A | BG226: N/A | BH226: N/A | BI226: N/A | BJ226: N/A | BK226: N/A | BL226: N/A | BM226: N/A | BN226: N/A | BO226: N/A | BP226: N/A | BQ226: N/A | BR226: N/A | BS226: N/A | BT226: N/A | BU226: N/A | BV226: N/A | BW226: N/A | BX226: N/A | BY226: N/A
B227: No permission to see | C227: 6.168416658 | D227: 6.54488914 | E227: 3.845508845 | F227: 4.247098994 | G227: 2.077358506 | H227: 3.786752509 | I227: 3.626254924 | J227: 2.024469115 | K227: 1.378171937 | L227: 1.39778298 | M227: 6.129087112 | N227: 6.851222584 | O227: 5.216815965 | P227: 3.214750667 | Q227: 3.766099378 | R227: 2.118610974 | S227: 0.9635058623 | T227: 7.104560314 | U227: 4.725707739 | V227: 3.728273423 | W227: 7.011274655 | X227: 8.896829958 | Y227: 0.5747378545 | BA227: Water / Soap | BB227: Water and soap | BC227: N/A | BD227: N/A | BE227: N/A | BF227: N/A | BG227: N/A | BH227: N/A | BI227: N/A | BJ227: N/A | BK227: N/A | BL227: N/A | BM227: N/A | BN227: N/A | BO227: N/A | BP227: N/A | BQ227: N/A | BR227: N/A | BS227: N/A | BT227: N/A | BU227: N/A | BV227: N/A | BW227: N/A | BX227: N/A | BY227: N/A
B228: Other reason | C228: 2.822980024 | D228: 3.631894854 | E228: 3.379201577 | F228: 3.044291791 | G228: 0.6966709843 | H228: 0.9358469717 | I228: 1.538544928 | J228: 0.2338646684 | K228: 0.1811056283 | L228: 0 | M228: 2.833818513 | N228: 3.826289909 | O228: 3.312673641 | P228: 3.472075198 | Q228: 2.426997369 | R228: 0.2062051229 | S228: 1.003240135 | T228: 1.178835233 | U228: 0.2535451483 | V228: 0.2554454882 | W228: 1.051099999 | X228: 18.15907823 | Y228: 0 | BB228: Water only | BC228: N/A | BD228: N/A | BE228: N/A | BF228: N/A | BG228: N/A | BH228: N/A | BI228: N/A | BJ228: N/A | BK228: N/A | BL228: N/A | BM228: N/A | BN228: N/A | BO228: N/A | BP228: N/A | BQ228: N/A | BR228: N/A | BS228: N/A | BT228: N/A | BU228: N/A | BV228: N/A | BW228: N/A | BX228: N/A | BY228: N/A
B229: Missing | C229: 0.0515767242 | D229: 0.08645445282 | E229: 0.2633753933 | F229: 0.1786595354 | G229: 0.07614540521 | H229: 0 | I229: 0 | J229: 0.1523982113 | K229: 0 | L229: 0 | M229: 0.02242975033 | N229: 0.07450986938 | O229: 0.2415228742 | P229: 0.2588558892 | Q229: 0.1672754578 | R229: 0.1067769011 | S229: 0 | T229: 0 | U229: 0.6077550236 | V229: 0.07726578106 | W229: 0.08833168076 | X229: 0.04458508827 | Y229: 0 | BB229: Soap only | BC229: N/A | BD229: N/A | BE229: N/A | BF229: N/A | BG229: N/A | BH229: N/A | BI229: N/A | BJ229: N/A | BK229: N/A | BL229: N/A | BM229: N/A | BN229: N/A | BO229: N/A | BP229: N/A | BQ229: N/A | BR229: N/A | BS229: N/A | BT229: N/A | BU229: N/A | BV229: N/A | BW229: N/A | BX229: N/A | BY229: N/A
BB230: Neither | BC230: N/A | BD230: N/A | BE230: N/A | BF230: N/A | BG230: N/A | BH230: N/A | BI230: N/A | BJ230: N/A | BK230: N/A | BL230: N/A | BM230: N/A | BN230: N/A | BO230: N/A | BP230: N/A | BQ230: N/A | BR230: N/A | BS230: N/A | BT230: N/A | BU230: N/A | BV230: N/A | BW230: N/A | BX230: N/A | BY230: N/A
BA231: Place where household members most often wash their hands | BB231: Observed | BC231: 9756.865039 | BD231: 10380.71301 | BE231: 12560.46603 | BF231: 11931.97159 | BG231: 16781.44056 | BH231: 2528.782354 | BI231: 2775.181105 | BJ231: 3038.104683 | BK231: 3116.485234 | BL231: 3410.622271 | BM231: 7967.498364 | BN231: 8332.864074 | BO231: 9863.591599 | BP231: 10021.93705 | BQ231: 10356.3895 | BR231: 14285.75322 | BS231: 529.976325 | BT231: 7576.102538 | BU231: 6640.305749 | BV231: 6304.374717 | BW231: 9894.660313 | BX231: 8480.611252 | BY231: 7699.672115
BB232: Not in dwelling/plot/yard | BC232: 8746.238944 | BD232: 7870.766832 | BE232: 6260.473914 | BF232: 6891.03079 | BG232: 2982.968351 | BH232: 900.467175 | BI232: 641.958867 | BJ232: 468.167746 | BK232: 434.268356 | BL232: 136.95862 | BM232: 7273.054552 | BN232: 6607.230453 | BO232: 5403.442348 | BP232: 5570.528221 | BQ232: 5315.402493 | BR232: 1551.807743 | BS232: 2851.281751 | BT232: 2819.708362 | BU232: 6629.380859 | BV232: 9580.214062 | BW232: 2803.333106 | BX232: 899.33671 | BY232: 5616.416238
BB233: No permission to see | BC233: 1254.821745 | BD233: 1331.159161 | BE233: 782.34346 | BF233: 863.970582 | BG233: 422.623128 | BH233: 136.293803 | BI233: 130.662672 | BJ233: 72.736894 | BK233: 49.710616 | BL233: 50.290433 | BM233: 1026.325558 | BN233: 1146.893361 | BO233: 873.026311 | BP233: 538.673423 | BQ233: 630.305005 | BR233: 343.898517 | BS233: 33.232213 | BT233: 805.28129 | BU233: 664.195248 | BV233: 617.28891 | BW233: 969.295635 | BX233: 1144.751258 | BY233: 76.975005
BB234: Other reason | BC234: 574.270014 | BD234: 738.687853 | BE234: 687.476316 | BF234: 619.288261 | BG234: 141.732527 | BH234: 33.683253 | BI234: 55.437468 | BJ234: 8.402494 | BK234: 6.532474 | BL234: 0 | BM234: 474.527497 | BN234: 640.520205 | BO234: 554.370955 | BP234: 581.791506 | BQ234: 406.189119 | BR234: 33.471759 | BS234: 34.602685 | BT234: 133.617552 | BU234: 35.635611 | BV234: 42.294019 | BW234: 145.312613 | BX234: 2336.520732 | BY234: 0
BB235: Missing | BC235: 10.492092 | BD235: 17.583894 | BE235: 53.58199 | BF235: 36.344004 | BG235: 15.491216 | BH235: 0 | BI235: 0 | BJ235: 5.475496 | BK235: 0 | BL235: 0 | BM235: 3.755898 | BN235: 12.472938 | BO235: 40.41849 | BP235: 43.374682 | BQ235: 27.995692 | BR235: 17.332308 | BS235: 0 | BT235: 0 | BU235: 85.419586 | BV235: 12.792868 | BW235: 12.21169 | BX235: 5.736744 | BY235: 0
BB236: Total | BC236: 20342.68783 | BD236: 20338.91075 | BE236: 20344.34171 | BF236: 20342.60523 | BG236: 20344.25578 | BH236: 3599.226585 | BI236: 3603.240112 | BJ236: 3592.887313 | BK236: 3606.99668 | BL236: 3597.871324 | BM236: 16745.16187 | BN236: 16739.98103 | BO236: 16734.8497 | BP236: 16756.30488 | BQ236: 16736.2818 | BR236: 16232.26355 | BS236: 3449.092974 | BT236: 11334.70974 | BU236: 14054.93705 | BV236: 16556.96458 | BW236: 13824.81336 | BX236: 12866.9567 | BY236: 13393.06336
BA259: Raw numbers of respondents: | BB259: Menstrual health and hygiene | BC259: NATIONAL wealth index quintile | BH259: URBAN wealth index quintile | BM259: RURAL wealth index quintile | BR259: SUB-REGIONS:
BA260: MHH data, raw numbers (weighted) | BC260: Poorest | BD260: Poor | BE260: Middle | BF260: Rich | BG260: Richest | BH260: Poorest | BI260: Poor | BJ260: Middle | BK260: Rich | BL260: Richest | BM260: Poorest | BN260: Poor | BO260: Middle | BP260: Rich | BQ260: Richest | BR260: Region C | BS260: Region CH | BT260: Region E | BU260: Region N | BV260: Region NE | BW260: Region S | BX260: Region SE | BY260: Region W
BA261: Private place to wash and change | BB261: Yes | BC261: N/A | BD261: N/A | BE261: N/A | BF261: N/A | BG261: N/A | BH261: N/A | BI261: N/A | BJ261: N/A | BK261: N/A | BL261: N/A | BM261: N/A | BN261: N/A | BO261: N/A | BP261: N/A | BQ261: N/A | BR261: N/A | BS261: N/A | BT261: N/A | BU261: N/A | BV261: N/A | BW261: N/A | BX261: N/A | BY261: N/A
BB262: No | BC262: N/A | BD262: N/A | BE262: N/A | BF262: N/A | BG262: N/A | BH262: N/A | BI262: N/A | BJ262: N/A | BK262: N/A | BL262: N/A | BM262: N/A | BN262: N/A | BO262: N/A | BP262: N/A | BQ262: N/A | BR262: N/A | BS262: N/A | BT262: N/A | BU262: N/A | BV262: N/A | BW262: N/A | BX262: N/A | BY262: N/A
BB263: DK/not sure/missing | BC263: N/A | BD263: N/A | BE263: N/A | BF263: N/A | BG263: N/A | BH263: N/A | BI263: N/A | BJ263: N/A | BK263: N/A | BL263: N/A | BM263: N/A | BN263: N/A | BO263: N/A | BP263: N/A | BQ263: N/A | BR263: N/A | BS263: N/A | BT263: N/A | BU263: N/A | BV263: N/A | BW263: N/A | BX263: N/A | BY263: N/A
BA264: Use of menstrual materials | BB264: Materials reusable | BC264: N/A | BD264: N/A | BE264: N/A | BF264: N/A | BG264: N/A | BH264: N/A | BI264: N/A | BJ264: N/A | BK264: N/A | BL264: N/A | BM264: N/A | BN264: N/A | BO264: N/A | BP264: N/A | BQ264: N/A | BR264: N/A | BS264: N/A | BT264: N/A | BU264: N/A | BV264: N/A | BW264: N/A | BX264: N/A | BY264: N/A
BB265: Materials not reusable | BC265: N/A | BD265: N/A | BE265: N/A | BF265: N/A | BG265: N/A | BH265: N/A | BI265: N/A | BJ265: N/A | BK265: N/A | BL265: N/A | BM265: N/A | BN265: N/A | BO265: N/A | BP265: N/A | BQ265: N/A | BR265: N/A | BS265: N/A | BT265: N/A | BU265: N/A | BV265: N/A | BW265: N/A | BX265: N/A | BY265: N/A
BB266: No materials used | BC266: N/A | BD266: N/A | BE266: N/A | BF266: N/A | BG266: N/A | BH266: N/A | BI266: N/A | BJ266: N/A | BK266: N/A | BL266: N/A | BM266: N/A | BN266: N/A | BO266: N/A | BP266: N/A | BQ266: N/A | BR266: N/A | BS266: N/A | BT266: N/A | BU266: N/A | BV266: N/A | BW266: N/A | BX266: N/A | BY266: N/A
BB267: DK/not sure/missing | BC267: N/A | BD267: N/A | BE267: N/A | BF267: N/A | BG267: N/A | BH267: N/A | BI267: N/A | BJ267: N/A | BK267: N/A | BL267: N/A | BM267: N/A | BN267: N/A | BO267: N/A | BP267: N/A | BQ267: N/A | BR267: N/A | BS267: N/A | BT267: N/A | BU267: N/A | BV267: N/A | BW267: N/A | BX267: N/A | BY267: N/A
BA268: Use of menstrual materials with private place to wash and change | BB268: Materials reusable | BC268: N/A | BD268: N/A | BE268: N/A | BF268: N/A | BG268: N/A | BH268: N/A | BI268: N/A | BJ268: N/A | BK268: N/A | BL268: N/A | BM268: N/A | BN268: N/A | BO268: N/A | BP268: N/A | BQ268: N/A | BR268: N/A | BS268: N/A | BT268: N/A | BU268: N/A | BV268: N/A | BW268: N/A | BX268: N/A | BY268: N/A
BB269: Materials not reusable | BC269: N/A | BD269: N/A | BE269: N/A | BF269: N/A | BG269: N/A | BH269: N/A | BI269: N/A | BJ269: N/A | BK269: N/A | BL269: N/A | BM269: N/A | BN269: N/A | BO269: N/A | BP269: N/A | BQ269: N/A | BR269: N/A | BS269: N/A | BT269: N/A | BU269: N/A | BV269: N/A | BW269: N/A | BX269: N/A | BY269: N/A
BB270: No materials used | BC270: N/A | BD270: N/A | BE270: N/A | BF270: N/A | BG270: N/A | BH270: N/A | BI270: N/A | BJ270: N/A | BK270: N/A | BL270: N/A | BM270: N/A | BN270: N/A | BO270: N/A | BP270: N/A | BQ270: N/A | BR270: N/A | BS270: N/A | BT270: N/A | BU270: N/A | BV270: N/A | BW270: N/A | BX270: N/A | BY270: N/A
BA271: Awareness of menstruation before menarche | BB271: Yes | BC271: N/A | BD271: N/A | BE271: N/A | BF271: N/A | BG271: N/A | BH271: N/A | BI271: N/A | BJ271: N/A | BK271: N/A | BL271: N/A | BM271: N/A | BN271: N/A | BO271: N/A | BP271: N/A | BQ271: N/A | BR271: N/A | BS271: N/A | BT271: N/A | BU271: N/A | BV271: N/A | BW271: N/A | BX271: N/A | BY271: N/A
BB272: No | BC272: N/A | BD272: N/A | BE272: N/A | BF272: N/A | BG272: N/A | BH272: N/A | BI272: N/A | BJ272: N/A | BK272: N/A | BL272: N/A | BM272: N/A | BN272: N/A | BO272: N/A | BP272: N/A | BQ272: N/A | BR272: N/A | BS272: N/A | BT272: N/A | BU272: N/A | BV272: N/A | BW272: N/A | BX272: N/A | BY272: N/A
BB273: DK/not sure/missing | BC273: N/A | BD273: N/A | BE273: N/A | BF273: N/A | BG273: N/A | BH273: N/A | BI273: N/A | BJ273: N/A | BK273: N/A | BL273: N/A | BM273: N/A | BN273: N/A | BO273: N/A | BP273: N/A | BQ273: N/A | BR273: N/A | BS273: N/A | BT273: N/A | BU273: N/A | BV273: N/A | BW273: N/A | BX273: N/A | BY273: N/A
BA274: Participation in (all) activities during menstruation | BB274: Yes | BC274: N/A | BD274: N/A | BE274: N/A | BF274: N/A | BG274: N/A | BH274: N/A | BI274: N/A | BJ274: N/A | BK274: N/A | BL274: N/A | BM274: N/A | BN274: N/A | BO274: N/A | BP274: N/A | BQ274: N/A | BR274: N/A | BS274: N/A | BT274: N/A | BU274: N/A | BV274: N/A | BW274: N/A | BX274: N/A | BY274: N/A
BB275: No | BC275: N/A | BD275: N/A | BE275: N/A | BF275: N/A | BG275: N/A | BH275: N/A | BI275: N/A | BJ275: N/A | BK275: N/A | BL275: N/A | BM275: N/A | BN275: N/A | BO275: N/A | BP275: N/A | BQ275: N/A | BR275: N/A | BS275: N/A | BT275: N/A | BU275: N/A | BV275: N/A | BW275: N/A | BX275: N/A | BY275: N/A
BB276: DK/not sure/missing/no such activity | BC276: N/A | BD276: N/A | BE276: N/A | BF276: N/A | BG276: N/A | BH276: N/A | BI276: N/A | BJ276: N/A | BK276: N/A | BL276: N/A | BM276: N/A | BN276: N/A | BO276: N/A | BP276: N/A | BQ276: N/A | BR276: N/A | BS276: N/A | BT276: N/A | BU276: N/A | BV276: N/A | BW276: N/A | BX276: N/A | BY276: N/A
BA277: Participation in specific activities during menstruation | BB277: Did not go to school (amongst those usually attending school) | BC277: N/A | BD277: N/A | BE277: N/A | BF277: N/A | BG277: N/A | BH277: N/A | BI277: N/A | BJ277: N/A | BK277: N/A | BL277: N/A | BM277: N/A | BN277: N/A | BO277: N/A | BP277: N/A | BQ277: N/A | BR277: N/A | BS277: N/A | BT277: N/A | BU277: N/A | BV277: N/A | BW277: N/A | BX277: N/A | BY277: N/A
BB278: Did not go to work (amongst those who usually work) | BC278: N/A | BD278: N/A | BE278: N/A | BF278: N/A | BG278: N/A | BH278: N/A | BI278: N/A | BJ278: N/A | BK278: N/A | BL278: N/A | BM278: N/A | BN278: N/A | BO278: N/A | BP278: N/A | BQ278: N/A | BR278: N/A | BS278: N/A | BT278: N/A | BU278: N/A | BV278: N/A | BW278: N/A | BX278: N/A | BY278: N/A
BB279: Did not participate in social activities | BC279: N/A | BD279: N/A | BE279: N/A | BF279: N/A | BG279: N/A | BH279: N/A | BI279: N/A | BJ279: N/A | BK279: N/A | BL279: N/A | BM279: N/A | BN279: N/A | BO279: N/A | BP279: N/A | BQ279: N/A | BR279: N/A | BS279: N/A | BT279: N/A | BU279: N/A | BV279: N/A | BW279: N/A | BX279: N/A | BY279: N/A
BB280: Did not cook food | BC280: N/A | BD280: N/A | BE280: N/A | BF280: N/A | BG280: N/A | BH280: N/A | BI280: N/A | BJ280: N/A | BK280: N/A | BL280: N/A | BM280: N/A | BN280: N/A | BO280: N/A | BP280: N/A | BQ280: N/A | BR280: N/A | BS280: N/A | BT280: N/A | BU280: N/A | BV280: N/A | BW280: N/A | BX280: N/A | BY280: N/A
BB281: Did not eat with others | BC281: N/A | BD281: N/A | BE281: N/A | BF281: N/A | BG281: N/A | BH281: N/A | BI281: N/A | BJ281: N/A | BK281: N/A | BL281: N/A | BM281: N/A | BN281: N/A | BO281: N/A | BP281: N/A | BQ281: N/A | BR281: N/A | BS281: N/A | BT281: N/A | BU281: N/A | BV281: N/A | BW281: N/A | BX281: N/A | BY281: N/A
BB282: Did not bathe in regular place | BC282: N/A | BD282: N/A | BE282: N/A | BF282: N/A | BG282: N/A | BH282: N/A | BI282: N/A | BJ282: N/A | BK282: N/A | BL282: N/A | BM282: N/A | BN282: N/A | BO282: N/A | BP282: N/A | BQ282: N/A | BR282: N/A | BS282: N/A | BT282: N/A | BU282: N/A | BV282: N/A | BW282: N/A | BX282: N/A | BY282: N/A
BB283: Did not participate in other activities | BC283: N/A | BD283: N/A | BE283: N/A | BF283: N/A | BG283: N/A | BH283: N/A | BI283: N/A | BJ283: N/A | BK283: N/A | BL283: N/A | BM283: N/A | BN283: N/A | BO283: N/A | BP283: N/A | BQ283: N/A | BR283: N/A | BS283: N/A | BT283: N/A | BU283: N/A | BV283: N/A | BW283: N/A | BX283: N/A | BY283: N/A
BB284: DK/not sure/missing/no such activity | BC284: N/A | BD284: N/A | BE284: N/A | BF284: N/A | BG284: N/A | BH284: N/A | BI284: N/A | BJ284: N/A | BK284: N/A | BL284: N/A | BM284: N/A | BN284: N/A | BO284: N/A | BP284: N/A | BQ284: N/A | BR284: N/A | BS284: N/A | BT284: N/A | BU284: N/A | BV284: N/A | BW284: N/A | BX284: N/A | BY284: N/A
BA339: Raw numbers of respondents: | BB339: Basic water, sanitation and hygiene | BC339: NATIONAL wealth index quintile | BH339: URBAN wealth index quintile | BM339: RURAL wealth index quintile | BR339: SUB-REGIONS:
BA340: WatSan data, raw numbers (weighted) | BC340: Poorest | BD340: Poor | BE340: Middle | BF340: Rich | BG340: Richest | BH340: Poorest | BI340: Poor | BJ340: Middle | BK340: Rich | BL340: Richest | BM340: Poorest | BN340: Poor | BO340: Middle | BP340: Rich | BQ340: Richest | BR340: Region C | BS340: Region CH | BT340: Region E | BU340: Region N | BV340: Region NE | BW340: Region S | BX340: Region SE | BY340: Region W
BA341: Use of Basic Water Sanitation and Hygiene | BB341: Yes | BC341: N/A | BD341: N/A | BE341: N/A | BF341: N/A | BG341: N/A | BH341: N/A | BI341: N/A | BJ341: N/A | BK341: N/A | BL341: N/A | BM341: N/A | BN341: N/A | BO341: N/A | BP341: N/A | BQ341: N/A | BR341: N/A | BS341: N/A | BT341: N/A | BU341: N/A | BV341: N/A | BW341: N/A | BX341: N/A | BY341: N/A
BB342: No | BC342: N/A | BD342: N/A | BE342: N/A | BF342: N/A | BG342: N/A | BH342: N/A | BI342: N/A | BJ342: N/A | BK342: N/A | BL342: N/A | BM342: N/A | BN342: N/A | BO342: N/A | BP342: N/A | BQ342: N/A | BR342: N/A | BS342: N/A | BT342: N/A | BU342: N/A | BV342: N/A | BW342: N/A | BX342: N/A | BY342: N/A
BA343: Use of Basic Water and Sanitation | BB343: Yes | BC343: N/A | BD343: N/A | BE343: N/A | BF343: N/A | BG343: N/A | BH343: N/A | BI343: N/A | BJ343: N/A | BK343: N/A | BL343: N/A | BM343: N/A | BN343: N/A | BO343: N/A | BP343: N/A | BQ343: N/A | BR343: N/A | BS343: N/A | BT343: N/A | BU343: N/A | BV343: N/A | BW343: N/A | BX343: N/A | BY343: N/A
BB344: No | BC344: N/A | BD344: N/A | BE344: N/A | BF344: N/A | BG344: N/A | BH344: N/A | BI344: N/A | BJ344: N/A | BK344: N/A | BL344: N/A | BM344: N/A | BN344: N/A | BO344: N/A | BP344: N/A | BQ344: N/A | BR344: N/A | BS344: N/A | BT344: N/A | BU344: N/A | BV344: N/A | BW344: N/A | BX344: N/A | BY344: N/A
BA345: Use of Basic Water and Hygiene | BB345: Yes | BC345: N/A | BD345: N/A | BE345: N/A | BF345: N/A | BG345: N/A | BH345: N/A | BI345: N/A | BJ345: N/A | BK345: N/A | BL345: N/A | BM345: N/A | BN345: N/A | BO345: N/A | BP345: N/A | BQ345: N/A | BR345: N/A | BS345: N/A | BT345: N/A | BU345: N/A | BV345: N/A | BW345: N/A | BX345: N/A | BY345: N/A
BB346: No | BC346: N/A | BD346: N/A | BE346: N/A | BF346: N/A | BG346: N/A | BH346: N/A | BI346: N/A | BJ346: N/A | BK346: N/A | BL346: N/A | BM346: N/A | BN346: N/A | BO346: N/A | BP346: N/A | BQ346: N/A | BR346: N/A | BS346: N/A | BT346: N/A | BU346: N/A | BV346: N/A | BW346: N/A | BX346: N/A | BY346: N/A
BA347: Use of Basic Sanitation and Hygiene | BB347: Yes | BC347: N/A | BD347: N/A | BE347: N/A | BF347: N/A | BG347: N/A | BH347: N/A | BI347: N/A | BJ347: N/A | BK347: N/A | BL347: N/A | BM347: N/A | BN347: N/A | BO347: N/A | BP347: N/A | BQ347: N/A | BR347: N/A | BS347: N/A | BT347: N/A | BU347: N/A | BV347: N/A | BW347: N/A | BX347: N/A | BY347: N/A
BB348: No | BC348: N/A | BD348: N/A | BE348: N/A | BF348: N/A | BG348: N/A | BH348: N/A | BI348: N/A | BJ348: N/A | BK348: N/A | BL348: N/A | BM348: N/A | BN348: N/A | BO348: N/A | BP348: N/A | BQ348: N/A | BR348: N/A | BS348: N/A | BT348: N/A | BU348: N/A | BV348: N/A | BW348: N/A | BX348: N/A | BY348: N/A
BA349: Use of Basic Water | BB349: Yes | BC349: N/A | BD349: N/A | BE349: N/A | BF349: N/A | BG349: N/A | BH349: N/A | BI349: N/A | BJ349: N/A | BK349: N/A | BL349: N/A | BM349: N/A | BN349: N/A | BO349: N/A | BP349: N/A | BQ349: N/A | BR349: N/A | BS349: N/A | BT349: N/A | BU349: N/A | BV349: N/A | BW349: N/A | BX349: N/A | BY349: N/A
BB350: No | BC350: N/A | BD350: N/A | BE350: N/A | BF350: N/A | BG350: N/A | BH350: N/A | BI350: N/A | BJ350: N/A | BK350: N/A | BL350: N/A | BM350: N/A | BN350: N/A | BO350: N/A | BP350: N/A | BQ350: N/A | BR350: N/A | BS350: N/A | BT350: N/A | BU350: N/A | BV350: N/A | BW350: N/A | BX350: N/A | BY350: N/A
BA351: Use of Basic Sanitation | BB351: Yes | BC351: N/A | BD351: N/A | BE351: N/A | BF351: N/A | BG351: N/A | BH351: N/A | BI351: N/A | BJ351: N/A | BK351: N/A | BL351: N/A | BM351: N/A | BN351: N/A | BO351: N/A | BP351: N/A | BQ351: N/A | BR351: N/A | BS351: N/A | BT351: N/A | BU351: N/A | BV351: N/A | BW351: N/A | BX351: N/A | BY351: N/A
BB352: No | BC352: N/A | BD352: N/A | BE352: N/A | BF352: N/A | BG352: N/A | BH352: N/A | BI352: N/A | BJ352: N/A | BK352: N/A | BL352: N/A | BM352: N/A | BN352: N/A | BO352: N/A | BP352: N/A | BQ352: N/A | BR352: N/A | BS352: N/A | BT352: N/A | BU352: N/A | BV352: N/A | BW352: N/A | BX352: N/A | BY352: N/A
BA353: Access to Basic Hygiene | BB353: Yes | BC353: N/A | BD353: N/A | BE353: N/A | BF353: N/A | BG353: N/A | BH353: N/A | BI353: N/A | BJ353: N/A | BK353: N/A | BL353: N/A | BM353: N/A | BN353: N/A | BO353: N/A | BP353: N/A | BQ353: N/A | BR353: N/A | BS353: N/A | BT353: N/A | BU353: N/A | BV353: N/A | BW353: N/A | BX353: N/A | BY353: N/A
BB354: No | BC354: N/A | BD354: N/A | BE354: N/A | BF354: N/A | BG354: N/A | BH354: N/A | BI354: N/A | BJ354: N/A | BK354: N/A | BL354: N/A | BM354: N/A | BN354: N/A | BO354: N/A | BP354: N/A | BQ354: N/A | BR354: N/A | BS354: N/A | BT354: N/A | BU354: N/A | BV354: N/A | BW354: N/A | BX354: N/A | BY354: N/A
C399: INITIAL (national) Wealth Index | H399: URBAN Wealth Index | M399: RURAL Wealth Index
C400: Component Matrix | H400: Component Matrix | M400: Component Matrix
E401: Component | J401: Component | O401: Component
... 251 more rows

Sheet DHS15
A2: =A1026 -> Afghanistan
A3: =A1034 -> 2015
A4: Use of drinking water sources
A5: by wealth quintile and sub-national region
A6: Notes:
A7: WHO/UNICEF JMP customised wealth index excludes water,
A8: sanitation and hygiene assets.
A9: Survey used for analysis: | B9: =A1025 -> DHS15
A10: =B1028 -> 
A11: =B1027 -> 
A14: Use of drinking water sources | C14: NATIONAL wealth index quintile | H14: URBAN wealth index quintile | M14: RURAL wealth index quintile | R14: SUB-REGIONS: | BA14: Raw numbers of respondents: | BB14: Use of drinking water sources | BC14: NATIONAL wealth index quintile | BH14: URBAN wealth index quintile | BM14: RURAL wealth index quintile | BR14: SUB-REGIONS:
A15: Weighted percentage (used in graphs) | C15: Poorest | D15: Poor | E15: Middle | F15: Rich | G15: Richest | H15: Poorest | I15: Poor | J15: Middle | K15: Rich | L15: Richest | M15: Poorest | N15: Poor | O15: Middle | P15: Rich | Q15: Richest | R15: Badakhshan | S15: Badghis | T15: Baghlan | U15: Balkh | V15: Bamyan | W15: Daykundi | X15: Farah | Y15: Faryab | Z15: Ghazni | AA15: Ghor | AB15: Helmand | AC15: Herat | AD15: Jawzjan | AE15: Kabul | AF15: Kandahar | AG15: Kapisa | AH15: Khost | AI15: Kunarha | AJ15: Kunduz | AK15: Laghman | AL15: Logar | AM15: Nangarhar | AN15: Nimroz | AO15: Nooristan | AP15: Paktika | AQ15: Paktya | AR15: Panjsher | AS15: Parwan | AT15: Samangan | AU15: Sar-E-Pul | AV15: Takhar | AW15: Urozgan | AX15: Wardak | AY15: Zabul | BA15: Water data, raw numbers (weighted) | BC15: Poorest | BD15: Poor | BE15: Middle | BF15: Rich | BG15: Richest | BH15: Poorest | BI15: Poor | BJ15: Middle | BK15: Rich | BL15: Richest | BM15: Poorest | BN15: Poor | BO15: Middle | BP15: Rich | BQ15: Richest | BR15: Badakhshan | BS15: Badghis | BT15: Baghlan | BU15: Balkh | BV15: Bamyan | BW15: Daykundi | BX15: Farah | BY15: Faryab | BZ15: Ghazni | CA15: Ghor | CB15: Helmand | CC15: Herat | CD15: Jawzjan | CE15: Kabul | CF15: Kandahar | CG15: Kapisa | CH15: Khost | CI15: Kunarha | CJ15: Kunduz | CK15: Laghman | CL15: Logar | CM15: Nangarhar | CN15: Nimroz | CO15: Nooristan | CP15: Paktika | CQ15: Paktya | CR15: Panjsher | CS15: Parwan | CT15: Samangan | CU15: Sar-E-Pul | CV15: Takhar | CW15: Urozgan | CX15: Wardak | CY15: Zabul
A16: Water | B16: Improved | C16: 51.84140486 | D16: 60.85030669 | E16: 73.57593696 | F16: 80.5289007 | G16: 93.79545153 | H16: 82.00874236 | I16: 89.24999436 | J16: 93.26911012 | K16: 98.21808319 | L16: 97.61329958 | M16: 50.79065575 | N16: 55.88577773 | O16: 66.87714887 | P16: 71.83705222 | Q16: 82.57807933 | R16: 74.66012995 | S16: 52.16334379 | T16: 78.77405018 | U16: 72.30181711 | V16: 43.12036451 | W16: 18.39213705 | X16: 52.56539373 | Y16: 79.06444976 | Z16: 47.7545841 | AA16: 43.39575238 | AB16: 73.26327778 | AC16: 57.29107005 | AD16: 73.74523078 | AE16: 93.85379921 | AF16: 89.28786891 | AG16: 36.85767256 | AH16: 83.85184623 | AI16: 76.48529745 | AJ16: 69.13721431 | AK16: 72.93182682 | AL16: 75.27358901 | AM16: 89.61862024 | AN16: 90.22466706 | AO16: 16.28107611 | AP16: 95.21190114 | AQ16: 81.2111178 | AR16: 75.79970193 | AS16: 66.10361951 | AT16: 47.82738269 | AU16: 40.38354565 | AV16: 83.1672577 | AW16: 24.92463421 | AX16: 17.9704439 | AY16: 97.46302511 | BA16: Water | BB16: Improved | BC16: N/A | BD16: N/A | BE16: N/A | BF16: N/A | BG16: N/A | BH16: N/A | BI16: N/A | BJ16: N/A | BK16: N/A | BL16: N/A | BM16: N/A | BN16: N/A | BO16: N/A | BP16: N/A | BQ16: N/A | BR16: N/A | BS16: N/A | BT16: N/A | BU16: N/A | BV16: N/A | BW16: N/A | BX16: N/A | BY16: N/A | BZ16: N/A | CA16: N/A | CB16: N/A | CC16: N/A | CD16: N/A | CE16: N/A | CF16: N/A | CG16: N/A | CH16: N/A | CI16: N/A | CJ16: N/A | CK16: N/A | CL16: N/A | CM16: N/A | CN16: N/A | CO16: N/A | CP16: N/A | CQ16: N/A | CR16: N/A | CS16: N/A | CT16: N/A | CU16: N/A | CV16: N/A | CW16: N/A | CX16: N/A | CY16: N/A
B17: Not Improved | C17: 48.15859514 | D17: 39.14969331 | E17: 26.42406304 | F17: 19.4710993 | G17: 6.204548474 | H17: 17.99125764 | I17: 10.75000564 | J17: 6.730889876 | K17: 1.781916809 | L17: 2.386700417 | M17: 49.20934425 | N17: 44.11422227 | O17: 33.12285113 | P17: 28.16294778 | Q17: 17.42192067 | R17: 25.33987005 | S17: 47.83665621 | T17: 21.22594982 | U17: 27.69818289 | V17: 56.87963549 | W17: 81.60786295 | X17: 47.43460627 | Y17: 20.93555024 | Z17: 52.2454159 | AA17: 56.60424762 | AB17: 26.73672222 | AC17: 42.70892995 | AD17: 26.25476922 | AE17: 6.146200792 | AF17: 10.71213109 | AG17: 63.14232744 | AH17: 16.14815377 | AI17: 23.51470255 | AJ17: 30.86278569 | AK17: 27.06817318 | AL17: 24.72641099 | AM17: 10.38137976 | AN17: 9.775332935 | AO17: 83.71892389 | AP17: 4.788098858 | AQ17: 18.7888822 | AR17: 24.20029807 | AS17: 33.89638049 | AT17: 52.17261731 | AU17: 59.61645435 | AV17: 16.8327423 | AW17: 75.07536579 | AX17: 82.0295561 | AY17: 2.536974891 | BB17: Not Improved | BC17: N/A | BD17: N/A | BE17: N/A | BF17: N/A | BG17: N/A | BH17: N/A | BI17: N/A | BJ17: N/A | BK17: N/A | BL17: N/A | BM17: N/A | BN17: N/A | BO17: N/A | BP17: N/A | BQ17: N/A | BR17: N/A | BS17: N/A | BT17: N/A | BU17: N/A | BV17: N/A | BW17: N/A | BX17: N/A | BY17: N/A | BZ17: N/A | CA17: N/A | CB17: N/A | CC17: N/A | CD17: N/A | CE17: N/A | CF17: N/A | CG17: N/A | CH17: N/A | CI17: N/A | CJ17: N/A | CK17: N/A | CL17: N/A | CM17: N/A | CN17: N/A | CO17: N/A | CP17: N/A | CQ17: N/A | CR17: N/A | CS17: N/A | CT17: N/A | CU17: N/A | CV17: N/A | CW17: N/A | CX17: N/A | CY17: N/A
